Workbook

Sheet GENERAL_ENTIDAD
E3: REVISIÓN ESTADOS FINANCIEROS DE LA ENTIDAD | K3: Rango en presentación información
K4: No Aplica | L4: 0
K5: Presentó | L5: 1
K6: Con Errores | L6: 2
C7: Grupo Institucional: | E7: SECTOR_MUNICIPAL | K7: No Presento | L7: 3
C8: Entidad: | E8: 15603 - Municipalidad de Buenos Aires
C9: Año | E9: 2024
C10: Tipo de Presentación | E10: MENSUAL
C11: Período Contable: | E11: M1_ENERO
C12: Fecha presentación a Contabilidad Nacional: | E12: 2024-01-31
C13: Generalidades de presentación
C14: a. | D14: Balanza Comprobación | F14: Presenta | H14: Justificación
C15: 1 | D15: Balanza de Comprobación | F15: 1 | G15: =IF(F15=1,IF(F15=1,"SI",""),IF(F15=3,IF(F15=3,"NO",""),IF(F15=0,IF(F15=0,"No Aplica",""),IF(F15=2,IF(F15=2,"Error",""))))) -> SI
C16: 2 | D16: Balanza de Comprobación nivel 1 | F16: =IFERROR(IF(BALANCE_COMPROBACION!B10="",0,IF(AND(NIVELES_BC!Q3>-2,NIVELES_BC!Q3<2),1,2)),0) -> 1 | G16: =IF(F16=1,IF(F16=1,"SI",""),IF(F16=3,IF(F16=3,"NO",""),IF(F16=0,IF(F16=0,"No Aplica",""),IF(F16=2,IF(F16=2,"Error",""))))) -> SI
C17: 3 | D17: Balanza de Comprobación nivel 2 | F17: =IFERROR(IF(BALANCE_COMPROBACION!B10="",0,IF(AND(NIVELES_BC!Q4>-2,NIVELES_BC!Q4<2),1,2)),0) -> 1 | G17: SI
C18: 4 | D18: Balanza de Comprobación nivel 3 | F18: =IFERROR(IF(BALANCE_COMPROBACION!B10="",0,IF(AND(NIVELES_BC!Q5>-2,NIVELES_BC!Q5<2),1,2)),0) -> 1 | G18: SI
C19: 5 | D19: Balanza de Comprobación nivel 4 | F19: =IFERROR(IF(BALANCE_COMPROBACION!B10="",0,IF(AND(NIVELES_BC!Q6>-2,NIVELES_BC!Q6<2),1,2)),0) -> 1 | G19: SI
C20: 6 | D20: Balanza de Comprobación nivel 5 | F20: =IFERROR(IF(BALANCE_COMPROBACION!B10="",0,IF(AND(NIVELES_BC!Q7>-2,NIVELES_BC!Q7<2),1,2)),0) -> 1 | G20: SI
C21: 7 | D21: Balanza de Comprobación nivel 6 | F21: =IFERROR(IF(BALANCE_COMPROBACION!B10="",0,IF(AND(NIVELES_BC!Q8>-2,NIVELES_BC!Q8<2),1,2)),0) -> 1 | G21: =IF(F21=1,IF(F21=1,"SI",""),IF(F21=3,IF(F21=3,"NO",""),IF(F21=0,IF(F21=0,"No Aplica",""),IF(F21=2,IF(F21=2,"Error",""))))) -> SI
C22: 8 | D22: Balanza de Comprobación nivel 7 | F22: =IFERROR(IF(BALANCE_COMPROBACION!B10="",0,IF(AND(NIVELES_BC!Q9>-2,NIVELES_BC!Q9<2),1,2)),0) -> 1 | G22: SI
C23: 9 | D23: Balanza de Comprobación nivel 8 | F23: =IFERROR(IF(BALANCE_COMPROBACION!B10="",0,IF(AND(NIVELES_BC!Q10>-2,NIVELES_BC!Q10<2),1,2)),0) -> 1 | G23: SI
C24: 10 | D24: Cuentas Saldos Negativo | F24: =IFERROR(IF(BALANCE_COMPROBACION!B10="",0,IF(VALIDACION!AJ7>0,2,1)),0) -> 1 | G24: =IF(F24=1,IF(F24=1,"SI",""),IF(F24=3,IF(F24=3,"NO",""),IF(F24=0,IF(F24=0,"No Aplica",""),IF(F24=2,IF(F24=2,"Error",""))))) -> SI
C25: 11 | D25: Cuentas Vrs Plan Contable | F25: =IFERROR(IF(BALANCE_COMPROBACION!B10="",0,IF(VALIDACION!L7=0,1,2)),0) -> 1 | G25: SI
C26: 12 | D26: Cuentas Reciprocas | F26: =IFERROR(IF(BALANCE_COMPROBACION!B10="",0,IF(VALIDACION!U7=0,1,2)),0) -> 1 | G26: SI
C27: 13 | D27: Saldos Período Anterior | F27: 1 | G27: SI
C28: 14 | D28: Confirmación de Saldos | F28: 1 | G28: SI
C29: 15 | D29: Balanza con saldos mayores a dos decimales | F29: =IFERROR(IF(BALANCE_COMPROBACION!B10="",0,IF(VALIDACION!BD7=0,1,2)),0) -> 1 | G29: SI
C30: b. | D30: Capital | F30: Presenta | H30: Justificación
C31: 1 | D31: Capital Inicial Balanza coincide certificación de capital | F31: =IFERROR(IF(BALANCE_COMPROBACION!B10="",0,IF(EXACT(IFERROR(VLOOKUP(E8,CAPITAL_INICIAL!D3:G190,4,FALSE),0),SUM(IFERROR(VLOOKUP("3.1.1.01.",BALANCE_COMPROBACION!B10:G1048576,6,FALSE),0),IFERROR(VLOOKUP("3.1.1.02.",BALANCE_COMPROBACION!B10:G1048576,6,FALSE),0))),1,2)),3) -> 1 | G31: SI
C32: c. | D32: Estados Financieros | F32: Presenta | H32: Justificación
C33: 1 | D33: Balance General de Situación correcto sin errores | F33: =IFERROR(IF(BALANCE_COMPROBACION!B10="",0,IF(AND(REVISION_EEFF_ENTIDAD!G6>-2,REVISION_EEFF_ENTIDAD!G6<2),IF(AND(REVISION_EEFF_ENTIDAD!G7>-2,REVISION_EEFF_ENTIDAD!G7<2),IF(AND(REVISION_EEFF_ENTIDAD!G8>-2,REVISION_EEFF_ENTIDAD!G8<2),IF(AND(REVISION_EEFF_ENTIDAD!G12>-2,REVISION_EEFF_ENTIDAD!G12<2),IF(AND(REVISION_EEFF_ENTIDAD!M6>-2,REVISION_EEFF_ENTIDAD!M6<2),IF(AND(REVISION_EEFF_ENTIDAD!M7>-2,REVISION_EEFF_ENTIDAD!M7<2),1,2),2),2),2),2),2)),0) -> 1 | G33: SI
C34: 2 | D34: Estado de Resultados Rendimiento correcto sin errores | F34: =IFERROR(IF(BALANCE_COMPROBACION!B10="",0,IF(AND(REVISION_EEFF_ENTIDAD!M6>-2,REVISION_EEFF_ENTIDAD!M6<2),IF(AND(REVISION_EEFF_ENTIDAD!M7>-2,REVISION_EEFF_ENTIDAD!M7<2),IF(AND(REVISION_EEFF_ENTIDAD!M8>-2,REVISION_EEFF_ENTIDAD!M8<2),1,2),2),2)),0) -> 1 | G34: SI
C35: 3 | D35: Estado de Cambios en el Patrimonio correcto sin errores | F35: =IFERROR(IF(BALANCE_COMPROBACION!B10="",0,IF(AND(REVISION_EEFF_ENTIDAD!G16>-2,REVISION_EEFF_ENTIDAD!G16<2),IF(AND(REVISION_EEFF_ENTIDAD!G17>-2,REVISION_EEFF_ENTIDAD!G17<2),IF(AND(REVISION_EEFF_ENTIDAD!G18>-2,REVISION_EEFF_ENTIDAD!G18<2),IF(AND(REVISION_EEFF_ENTIDAD!M16>-2,REVISION_EEFF_ENTIDAD!M16<2),IF(AND(REVISION_EEFF_ENTIDAD!M17>-2,REVISION_EEFF_ENTIDAD!M17<2),IF(AND(REVISION_EEFF_ENTIDAD!G29>-2,REVISION_EEFF_ENTIDAD!G29<2),1,2),2),2),2),2),2)),0) -> 1 | G35: SI
C36: 4 | D36: Estado de Flujo de Efectivo correcto sin errores | F36: =IFERROR(IF(BALANCE_COMPROBACION!B10="",0,IF(AND(REVISION_EEFF_ENTIDAD!G12>-2,REVISION_EEFF_ENTIDAD!G12<2),IF(AND(REVISION_EEFF_ENTIDAD!M12>-2,REVISION_EEFF_ENTIDAD!M12<2),IF(AND(REVISION_EEFF_ENTIDAD!M29>-2,REVISION_EEFF_ENTIDAD!M29<2),1,2),2),2)),0) -> 1 | G36: SI
C37: 5 | D37: Estado de Evolución de Bienes correcto sin errores | F37: 1 | G37: SI
C38: 6 | D38: Estados Financiero Segmentos (en caso de que aplique) | F38: 0 | G38: No Aplica
C39: 7 | D39: Estado de Deuda Pública correcto sin errores | F39: 1 | G39: SI
C40: 8 | D40: Notas a los Estados Financieros | F40: 1 | G40: SI
C41: d. | D41: Certificaciones | F41: Presenta | H41: Justificación
C42: 1 | D42: Certificación Comisión de NICSP Institucional | F42: 1 | G42: SI
C43: 2 | D43: Certificación de uso de Políticas Contables | F43: 1 | G43: SI
C44: 3 | D44: Certificación Comisión Administración de Riesgo (Impacto Covid-19) | F44: 1 | G44: SI
C45: 4 | D45: FODA (Impacto Covid-19) | F45: 1 | G45: SI
C46: e. | D46: Notas Pandemia | F46: Presenta | H46: Justificación
C47: 1 | D47: Pandemia 2020 NICSP 21 Deterioro de Valor de Activos no generadores de Efectivo | F47: 0 | G47: No Aplica
C48: 2 | D48: Pandemia 2020 NICSP 26 Deterioro del Valor de Activos generadores de efectivo | F48: 0 | G48: No Aplica
C49: 3 | D49: Pandemia 2020 NICSP 39 Beneficios a los Empleados | F49: 1 | G49: SI
C50: 4 | D50: Pandemia 2020 NICSP 23 Ingresos Transferencias corrientes | F50: 0 | G50: No Aplica
C51: 5 | D51: Pandemia 2020 NICSP 23 Ingresos Transferencias capital | F51: 0 | G51: No Aplica
C52: 6 | D52: Pandemia 2020 GastosTransferencias corrientes | F52: 0 | G52: No Aplica
C53: 7 | D53: Pandemia 2020 Gastos Transferencias capital | F53: 0 | G53: No Aplica
C54: 8 | D54: Pandemia 2020 Control de Gasto | F54: 0 | G54: No Aplica
C55: 9 | D55: Pandemia 2020 NICSP 23 Ingresos por Impuestos | F55: 0 | G55: No Aplica
C56: 10 | D56: Pandemia 2020 NICSP 23 Ingresos Contribuciones Sociales | F56: 0 | G56: No Aplica
C57: 11 | D57: Pandemia 2020 NICSP 23 Otros Ingresos | F57: 0 | G57: No Aplica
C58: 12 | D58: Pandemia 2020 Cuentas por Cobrar | F58: 0 | G58: No Aplica
C59: 13 | D59: Pandemia 2020 Documentos por Cobrar | F59: 0 | G59: No Aplica
C60: f. | D60: Matriz de Autoevaluación NICSP | F60: Presenta | H60: Justificación
C61: 1 | D61: Matriz de Autoevaluación NICSP actualizada trimestral | F61: 1 | G61: SI
C62: g. | D62: Oficio de Presentacion EEFF | F62: Presenta | H62: Justificación
C63: 1 | D63: Oficio de presentación de los EEFF firmado maximo jerarca | F63: 1 | G63: =IF(F63=1,IF(F63=1,"SI",""),IF(F63=3,IF(F63=3,"NO",""),IF(F63=0,IF(F63=0,"No Aplica",""),IF(F63=2,IF(F63=2,"Error",""))))) -> SI
C64: h. | D64: Informes de Auditorias y CGR | F64: Presenta | H64: Justificación
C65: 1 | D65: Nota complementaria Informes de Auditoria Externa, Interna o especial de la CGR en EEFF, obtener los resultados y dispociones | F65: 1 | G65: =+IF(F65=1,IF(F65=1,"SI",""),IF(F65=3,IF(F65=3,"NO",""),IF(F65=0,IF(F65=0,"No Aplica",""),IF(F65=2,IF(F65=2,"Error",""))))) -> SI
C66: i. | D66: Depuración de Cuentas Contables | F66: Presenta | H66: Justificación
C67: 1 | D67: Nota complementaria en el Estado de Notas Contables denominada “Depuración de Cuentas Contables”, e incluir el plan de acción que esta lleva a cabo la entidad para obtener estados financieros con cuentas contables depuradas y a un valor razonable | F67: 1 | G67: =+IF(F67=1,IF(F67=1,"SI",""),IF(F67=3,IF(F67=3,"NO",""),IF(F67=0,IF(F67=0,"No Aplica",""),IF(F67=2,IF(F67=2,"Error",""))))) -> SI
C68: j. | D68: Cumplimiento de la Ley 10092 | F68: Presenta | H68: Justificación
C69: 1 | D69: Nota complementaria al Estado de Notas Contables denominada “Cumplimiento de la Ley 10092”, el ente contable debe revelar el Plan de Acción para cumplir con el inventario y el procedimiento para emitir la certificación correspondiente. | F69: 1 | G69: =+IF(F69=1,IF(F69=1,"SI",""),IF(F69=3,IF(F69=3,"NO",""),IF(F69=0,IF(F69=0,"No Aplica",""),IF(F69=2,IF(F69=2,"Error",""))))) -> SI | H69: Ver Oficio AMBA-59-2024
C70: k. | D70: Informe Matriz de autoevaluación | F70: Presenta | H70: Justificación
C71: 1 | D71: Nota complementaria el ente contable debe presentar un informe actualizado de la matriz de autoevaluación a junio 2022, con una nota aclaratoria del seguimiento de los planes de acción para eliminar brechas. | F71: 1 | G71: =+IF(F71=1,IF(F71=1,"SI",""),IF(F71=3,IF(F71=3,"NO",""),IF(F71=0,IF(F71=0,"No Aplica",""),IF(F71=2,IF(F71=2,"Error",""))))) -> SI
C72: l. | D72: Resultados de Oficios de Observaciones CN | F72: Presenta | H72: Justificación
C73: 1 | D73: Nota complementaria denominada “Resultados de Oficios de Observaciones de la Contabilidad Nacional” | F73: 1 | G73: =+IF(F73=1,IF(F73=1,"SI",""),IF(F73=3,IF(F73=3,"NO",""),IF(F73=0,IF(F73=0,"No Aplica",""),IF(F73=2,IF(F73=2,"Error",""))))) -> SI
C74: m. | D74: Estados Financieros y Balanza de Comprobación de Apertura | F74: Presenta
C75: 1 | D75: Nota complementaria el ente contable debe presentar y todos los cambios técnicos contables que ha debido realizar para pasar de una contabilidad presupuestaria a una contabilidad base devengo, y los impactos de las NICSP. | F75: 1 | G75: =+IF(F75=1,IF(F75=1,"SI",""),IF(F75=3,IF(F75=3,"NO",""),IF(F75=0,IF(F75=0,"No Aplica",""),IF(F75=2,IF(F75=2,"Error",""))))) -> SI
C76: n. | D76: Registro de firmas | F76: Presenta | H76: Justificación
C77: 1 | D77: Registro de firmas actualizado digitalmente si procede | F77: 1 | G77: =+IF(F77=1,IF(F77=1,"SI",""),IF(F77=3,IF(F77=3,"NO",""),IF(F77=0,IF(F77=0,"No Aplica",""),IF(F77=2,IF(F77=2,"Error",""))))) -> SI
C78: Declaración sobre Herramienta de Revisón Balances de Comprobación, EEFF y Cuentas Recíprocas
C79: Se declara que la información emitida en esta herramienta fue revisada y verifcada.
C86: Firma Digital del Jerarca: | G86: Firma Digital del Contador:
C87: Nombre del Jerarca: | G87: Nombre del Contador:

Sheet CAPITAL_INICIAL (hidden)
E1: SALDO REPORTADO POR LA INSTITUCION CERTIFICACIÓN
A2: N° | B2: Código | C2: Entidad | D2: ENTIDAD | E2: CAPITAL INICIAL | F2: INCORPORACIONES AL CAPITAL | G2: TOTAL CAPITAL INICIAL
A3: 1 | B3: 14231 | C3: Instituto Tecnológico de Costa Rica (ITCR) | D3: 14231 - Instituto Tecnológico de Costa Rica (ITCR) | E3: 763233828.6 | F3: 0 | G3: =E3+F3 -> 763233828.6
A4: 2 | B4: 14340 | C4: Universidad de Costa Rica (UCR) | D4: 14340 - Universidad de Costa Rica (UCR) | E4: 1593528.72 | F4: 0 | G4: =E4+F4 -> 1593528.72
A5: 3 | B5: 14341 | C5: Universidad Estatal a Distancia (UNED) | D5: 14341 - Universidad Estatal a Distancia (UNED) | E5: 5273782.22 | F5: 0 | G5: 5273782.22
A6: 4 | B6: 14342 | C6: Universidad Nacional (UNA) | D6: 14342 - Universidad Nacional (UNA) | E6: 523805.2 | F6: 0 | G6: 523805.2
A7: 5 | B7: 14353 | C7: Universidad Técnica Nacional | D7: 14353 - Universidad Técnica Nacional | E7: 5.995500222e+10 | F7: 0 | G7: 5.995500222e+10
D8: -
A9: 1 | B9: 12325 | C9: Sistema Nacional de Acreditación para Educación Superior (SINAES) | D9: 14990 - Sistema Nacional de Acreditación para Educación Superior (SINAES) | E9: 25924010.84 | F9: 5552282516 | G9: =E9+F9 -> 5578206527
A10: 2 | B10: 14110 | C10: Autoridad Reguladora de Servicios Públicos (ARESEP) | D10: 14110 - Autoridad Reguladora de Servicios Públicos (ARESEP) | E10: 3473534904 | G10: =E10+F10 -> 3473534904
A11: 3 | B11: 14115 | C11: Benemérito Cuerpo de Bomberos de Costa Rica | D11: 14115 - Benemérito Cuerpo de Bomberos de Costa Rica | E11: 3.371425612e+10 | G11: 3.371425612e+10
A12: 4 | B12: 14120 | C12: Caja Costarricense de Seguro Social (CCSS) | D12: 14120 - Caja Costarricense de Seguro Social (CCSS) | E12: 0 | G12: 0
A13: 5 | B13: 14132 | C13: Colegio Universitario de Cartago (CUC) | D13: 14132 - Colegio Universitario de Cartago (CUC) | E13: 2544830009 | G13: 2544830009
A14: 6 | B14: 14133 | C14: Colegio Universitario de Limón (CUNLIMON) | D14: 14133 - Colegio Universitario de Limón (CUNLIMON) | E14: 122000000 | F14: 83000000 | G14: 205000000
A15: 7 | B15: 14137 | C15: Comisión de Energía Atómica de Costa Rica (CEA) | D15: 14137 - Comisión de Energía Atómica de Costa Rica (CEA) | E15: 12377206 | G15: 12377206
A16: 8 | B16: 14150 | C16: Comisión Nacional de Asuntos Indígenas (CONAI) | D16: 14150 - Comisión Nacional de Asuntos Indígenas (CONAI) | E16: 34056387.43 | G16: 34056387.43
A17: 9 | B17: 14161 | C17: Consejo Nacional de Investigaciones Científicas y Tecnológicas (CONICIT) | D17: 14161 - Promotora Costarricense de Innovación e Investigación (PROMOTORA) | E17: 78022.11 | F17: 721977.89 | G17: 800000
A18: 10 | B18: 14163 | C18: Consejo Nacional de Rectores (CONARE) | D18: 14163 - Consejo Nacional de Rectores (CONARE) | E18: 0 | F18: 0 | G18: 0
A19: 11 | B19: 14222 | C19: Instituto Costarricense del Deporte y la Recreación (ICODER) | D19: 14222 - Instituto Costarricense del Deporte y la Recreación (ICODER) | E19: 3.340930197e+10 | G19: 3.340930197e+10
A20: 12 | B20: 14223 | C20: Instituto Costarricense de Pesca y Acuicultura (INCOPESCA) | D20: 14223 - Instituto Costarricense de Pesca y Acuicultura (INCOPESCA) | E20: 2174174137 | F20: 701021175.2 | G20: 2875195312
A21: 13 | B21: 14224 | C21: Instituto Costarricense de Turismo (ICT) | D21: 14224 - Instituto Costarricense de Turismo (ICT) | E21: 1000000 | F21: 15109736.3 | G21: 16109736.3
A22: 14 | B22: 14225 | C22: Instituto de Desarrollo Rural (INDER) | D22: 14225 - Instituto de Desarrollo Rural (INDER) | E22: 4668743.9 | G22: 4668743.9
A23: 15 | B23: 14226 | C23: Instituto de Fomento y Asesoría Municipal (IFAM) | D23: 14226 - Instituto de Fomento y Asesoría Municipal (IFAM) | E23: 10000000 | F23: 6482726282 | G23: =E23+F23 -> 6492726282
A24: 16 | B24: 14227 | C24: Instituto Mixto de Ayuda Social (IMAS) | D24: 14227 - Instituto Mixto de Ayuda Social (IMAS) | E24: 6630461385 | G24: 6630461385
A25: 17 | B25: 14228 | C25: Instituto Nacional de Aprendizaje (INA) | D25: 14228 - Instituto Nacional de Aprendizaje (INA) | E25: 256143.2 | G25: 256143.2
A26: 18 | B26: 14229 | C26: Instituto Nacional de Estadística y Censos (INEC) | D26: 14229 - Instituto Nacional de Estadística y Censos (INEC) | E26: 35118500 | G26: 35118500
A27: 19 | B27: 14230 | C27: Instituto Nacional de las Mujeres (INAMU) | D27: 14230 - Instituto Nacional de las Mujeres (INAMU) | E27: 50539103 | G27: 50539103
A28: 20 | B28: 14251 | C28: Junta Administrativa Colegio San Luis Gonzaga (JACSLG) | D28: 14251 - Junta Administrativa Colegio San Luis Gonzaga (JACSLG) | E28: 1360392527 | F28: 0 | G28: 1360392527
A29: 21 | B29: 14252 | C29: Junta de Desarrollo Regional de la Zona Sur de la Provincia de Puntarenas (JUDESUR) | D29: 14252 - Junta de Desarrollo Regional de la Zona Sur de la Provincia de Puntarenas (JUDESUR) | E29: 386268748 | F29: 20524530 | G29: 406793278
A30: 22 | B30: 14267 | C30: Oficina Nacional de Semillas (ONS) | D30: 14267 - Oficina Nacional de Semillas (ONS) | E30: 39711100 | F30: 53418489.16 | G30: 93129589.16
A31: 23 | B31: 14290 | C31: Patronato Nacional de la Infancia (PANI) | D31: 14290 - Patronato Nacional de la Infancia (PANI) | E31: 1414735222 | G31: 1414735222
A32: 24 | B32: 14296 | C32: Patronato Nacional de Rehabilitación (PANARE) | D32: 14275 - Patronato Nacional de Ciegos (PANACI ) | E32: 56152250 | F32: 0 | G32: 56152250
A33: 25 | B33: 14300 | C33: Programa Integral de Mercadeo Agropecuario (PIMA) | D33: 14300 - Programa Integral de Mercadeo Agropecuario (PIMA) | E33: 1463259630 | F33: 245464625.6 | G33: 1708724256
A34: 26 | B34: 14320 | C34: Servicio Nacional de Aguas Subterráneas, Riego y Avenamiento (SENARA) | D34: 14320 - Servicio Nacional de Aguas Subterráneas, Riego y Avenamiento (SENARA) | E34: 445662380.8 | G34: 445662380.8
A35: 27 | B35: 14323 | C35: Sistema de Emergencias 9-1-1 | D35: 14323 - Sistema de Emergencias 9-1-1 | E35: 302625427.9 | G35: 302625427.9
A36: 28 | B36: 14326 | C36: Superintendencia de Telecomunicaciones (SUTEL) | D36: 14326 - Superintendencia de Telecomunicaciones (SUTEL) | E36: 185748421.7 | G36: 185748421.7
D37: -
A38: 1 | B38: 22150 | C38: COMISIÓN Nacional de Préstamos para la Educación (CONAPE) | D38: 22150 - COMISIÓN Nacional de Préstamos para la Educación (CONAPE) | E38: 286252174.7 | F38: 0 | G38: =E38+F38 -> 286252174.7
A39: 2 | B39: 22194 | C39: Instituto Nacional de Vivienda y Urbanismo (INVU) | D39: 22194 - Instituto Nacional de Vivienda y Urbanismo (INVU) | E39: 5818300160 | F39: 0 | G39: =E39+F39 -> 5818300160
A40: 3 | D40: 22165 - Fondo de Desarrollo de la Provincia de Limón (FODELI) | E40: 2861100000 | G40: =E40+F40 -> 2861100000
A42: 1 | B42: 11206 | C42: Poder Ejecutivo | D42: 11206 - Poder Ejecutivo | E42: 0 | F42: 0 | G42: =E42+F42 -> 0
D43: -
A44: 7 | B44: 12505 | C44: Agencia de Protección de Datos | D44: 12505 - Agencia de Protección de Datos | E44: 36282292 | F44: 0 | G44: =E44+F44 -> 36282292
A45: 8 | B45: 12510 | C45: Casa de Cultura de Puntarenas | D45: 12510 - Casa de Cultura de Puntarenas | E45: 50146560 | F45: 0 | G45: =E45+F45 -> 50146560
A46: 9 | B46: 12530 | C46: Centro Costarricense de Producción Cinematográfica | D46: 12530 - Centro Costarricense de Producción Cinematográfica | E46: 1154412777 | F46: 0 | G46: 1154412777
A47: 10 | B47: 12531 | C47: Centro Cultural e Histórico José Figueres Ferrer | D47: 12531 - Centro Cultural e Histórico José Figueres Ferrer | E47: 36318170 | F47: 0 | G47: 36318170
A48: 11 | B48: 12534 | C48: Centro Nacional de la Música | D48: 12534 - Centro Nacional de la Música | E48: 2551651460 | F48: 31602467 | G48: 2583253927
A49: 12 | B49: 12553 | C49: Comisión Nacional para la Gestión de la Biodiversidad (CONAGEBIO) | D49: 12553 - Comisión Nacional para la Gestión de la Biodiversidad (CONAGEBIO) | E49: 13892151.03 | F49: 0 | G49: 13892151.03
A50: 13 | B50: 12554 | C50: Comisión Nacional de Prevención de Riesgos y Atención de Emergencias (CNE) | D50: 12554 - Comisión Nacional de Prevención de Riesgos y Atención de Emergencias (CNE) | E50: 2.193332612e+10 | F50: 0 | G50: 2.193332612e+10
A51: 14 | B51: 12555 | C51: Comisión Nacional de Vacunación y Epidemiología | D51: 12555 - Comisión Nacional de Vacunación y Epidemiología | E51: 34762317.78 | F51: 0 | G51: 34762317.78
A52: 15 | B52: 12556 | C52: Comisión de Ordenamiento y Manejo de la Cuenca Alta del Río Reventazón (CONCURE) | D52: 12556 - Comisión de Ordenamiento y Manejo de la Cuenca Alta del Río Reventazón (CONCURE) | E52: 0 | F52: 0 | G52: 0
A53: 16 | B53: 12570 | C53: Consejo Nacional de Clubes 4-S | D53: 12570 - Consejo Nacional de Clubes 4-S | E53: 143419857.9 | F53: 0 | G53: 143419857.9
A54: 17 | B54: 12575 | C54: Comisión Nacional de Investigación en Salud (CONIS) | D54: 12575 - Comisión Nacional de Investigación en Salud (CONIS) | E54: 356400 | F54: 0 | G54: 356400
A55: 18 | B55: 12580 | C55: Consejo Nacional de Concesiones (CNC) | D55: 12580 - Consejo Nacional de Concesiones (CNC) | E55: 7388983201 | F55: 0 | G55: 7388983201
A56: 19 | B56: 12581 | C56: Consejo de Nacional de Personas con Discapacidad (CONAPDIS) | D56: 12581 - Consejo de Nacional de Personas con Discapacidad (CONAPDIS) | E56: 2534518229 | F56: 0 | G56: 2534518229
A57: 20 | B57: 12582 | C57: Consejo Nacional de la Persona Adulta Mayor (CONAPAM) | D57: 12582 - Consejo Nacional de la Persona Adulta Mayor (CONAPAM) | E57: 34756444.26 | F57: 0 | G57: 34756444.26
A58: 21 | B58: 12583 | C58: Consejo Nacional de la Política Pública de la Persona Joven (CPJ) | D58: 12583 - Consejo Nacional de la Política Pública de la Persona Joven (CPJ) | E58: 381647010 | F58: 0 | G58: 381647010
A59: 22 | B59: 12584 | C59: Consejo Nacional de Vialidad (CONAVI) | D59: 12584 - Consejo Nacional de Vialidad (CONAVI) | E59: 1577636402 | F59: 0 | G59: 1577636402
A60: 23 | B60: 12587 | C60: Consejo de Seguridad Vial (COSEVI) | D60: 12587 - Consejo de Seguridad Vial (COSEVI) | E60: 1.240189191e+10 | F60: 0 | G60: 1.240189191e+10
A61: 24 | B61: 12588 | C61: Consejo Superior de Educación (CSE) | D61: 12588 - Consejo Superior de Educación (CSE) | E61: 26649425.62 | F61: 0 | G61: 26649425.62
A62: 25 | B62: 12589 | C62: Consejo Técnico de Asistencia Médico Social (CTAMS) | D62: 12589 - Consejo Técnico de Asistencia Médico Social (CTAMS) | E62: 8442737741 | F62: 5584565891 | G62: 1.402730363e+10
A63: 26 | B63: 12590 | C63: Consejo Técnico de Aviación Civil (CTAC) | D63: 12590 - Consejo Técnico de Aviación Civil (CTAC) | E63: 4.550492902e+10 | F63: 0 | G63: 4.550492902e+10
A64: 27 | B64: 12591 | C64: Consejo de Transporte Público (CTP) | D64: 12591 - Consejo de Transporte Público (CTP) | E64: 458302827.1 | F64: 0 | G64: 458302827.1
A65: 28 | B65: 12634 | C65: Dirección Nacional de Centros de Educación y Nutrición y de Centros Infantiles de Atención Integral (Dirección de CEN-CINAI) | D65: 12634 - Dirección Nacional de Centros de Educación y Nutrición y de Centros Infantiles de Atención Integral (Dirección de CEN-CINAI) | E65: 607479033.6 | F65: 0 | G65: 607479033.6
A66: 29 | B66: 12637 | C66: Dirección Nacional de Notariado | D66: 12637 - Dirección Nacional de Notariado | E66: 15087780 | F66: 0 | G66: 15087780
A67: 30 | B67: 12700 | C67: Fondo de Desarrollo Social y Asignaciones Familiares (FODESAF) | D67: 12700 - Fondo de Desarrollo Social y Asignaciones Familiares (FODESAF) | E67: 0 | F67: 0 | G67: 0
A68: 31 | B68: 12704 | C68: Fondo Nacional de Financiamiento Forestal (FONAFIFO). | D68: 12704 - Fondo Nacional de Financiamiento Forestal (FONAFIFO). | E68: 7463370815 | F68: 352889979.4 | G68: 7816260795
A69: 32 | B69: 12750 | C69: Instituto sobre Alcoholismo y Farmacodependencia (IAFA) | D69: 12750 - Instituto sobre Alcoholismo y Farmacodependencia (IAFA) | E69: 2573513822 | F69: 0 | G69: 2573513822
A70: 33 | B70: 12751 | C70: Instituto Costarricense sobre Drogas (ICD) | D70: 12751 - Instituto Costarricense sobre Drogas (ICD) | E70: 268210331.4 | F70: 0 | G70: 268210331.4
A71: 34 | B71: 12752 | C71: Instituto Costarricense de Investigación y Enseñanza en Nutrición y Salud (INCIENSA) | D71: 12752 - Instituto Costarricense de Investigación y Enseñanza en Nutrición y Salud (INCIENSA) | E71: 2131055240 | F71: 0 | G71: 2131055240
A72: 35 | B72: 12755 | C72: Instituto Nacional de Innovación y Transferencia en Tecnología Agropecuaria (INTA) | D72: 12755 - Instituto Nacional de Innovación y Transferencia en Tecnología Agropecuaria (INTA) | E72: 2104781790 | F72: 0 | G72: 2104781790
A73: 36 | B73: 12756 | C73: Instituto Desarrollo Profesional Uladislao Gámez Solano | D73: 12756 - Instituto Desarrollo Profesional Uladislao Gámez Solano | E73: 391178790 | F73: 0 | G73: 391178790
A74: 37 | B74: 12780 | C74: Junta Administrativa del Archivo Nacional (JAAN) | D74: 12780 - Junta Administrativa del Archivo Nacional (JAAN) | E74: 7965128911 | F74: 0 | G74: 7965128911
A75: 38 | B75: 12781 | C75: Junta Administrativa de la Dirección General de Migración y Extranjería | D75: 12781 - Junta Administrativa de la Dirección General de Migración y Extranjería | E75: 4299074907 | F75: 0 | G75: 4299074907
A76: 39 | B76: 12782 | C76: Junta Administrativa de la Imprenta Nacional (JAIN) | D76: 12782 - Junta Administrativa de la Imprenta Nacional (JAIN) | E76: 4388938000 | F76: 0 | G76: 4388938000
A77: 40 | B77: 12784 | C77: Junta Administrativa del Registro Nacional | D77: 12784 - Junta Administrativa del Registro Nacional | E77: 2.220725149e+10 | F77: 0 | G77: 2.220725149e+10
A78: 41 | B78: 12795 | C78: Laboratorio Costarricense de Metrología (LACOMET) | D78: 12795 - Laboratorio Costarricense de Metrología (LACOMET) | E78: 489902654.4 | F78: 0 | G78: 489902654.4
A79: 42 | B79: 12800 | C79: Museo de Arte Costarricense | D79: 12800 - Museo de Arte Costarricense | E79: 3007671904 | F79: 0 | G79: 3007671904
A80: 43 | B80: 12801 | C80: Museo de Arte y Diseño Contemporáneo (MADC) | D80: 12801 - Museo de Arte y Diseño Contemporáneo (MADC) | E80: 1097740937 | F80: 0 | G80: 1097740937
A81: 44 | B81: 12802 | C81: Museo Histórico Cultural Juan Santamaría | D81: 12802 - Museo Histórico Cultural Juan Santamaría | E81: 1560574360 | F81: 0 | G81: 1560574360
A82: 45 | B82: 12804 | C82: Museo Nacional de Costa Rica (MNCR) | D82: 12804 - Museo Nacional de Costa Rica (MNCR) | E82: 6145320.51 | F82: 0 | G82: 6145320.51
A83: 46 | B83: 12805 | C83: Museo Dr. Rafael Ángel Calderón Guardia | D83: 12805 - Museo Dr. Rafael Ángel Calderón Guardia | E83: 13472080 | F83: 669884832.8 | G83: 683356912.8
A84: 47 | B84: 12820 | C84: Oficina de Cooperación Internacional de la Salud (OCIS) | D84: 12820 - Oficina de Cooperación Internacional de la Salud (OCIS) | E84: 2920689333 | F84: 0 | G84: 2920689333
A85: 48 | B85: 12851 | C85: Patronato Nacional de Ciegos (PANACI) | D85: 12851 - Patronato Nacional de Ciegos (PANACI) | E85: 56152250 | F85: 0 | G85: 56152250
A86: 49 | B86: 12853 | C86: Parque Marino del Pacífico | D86: 12853 - Parque Marino del Pacífico | E86: 160116644 | F86: 0 | G86: 160116644
A87: 50 | B87: 12901 | C87: Servicio Fitosanitario del Estado | D87: 12901 - Servicio Fitosanitario del Estado | E87: 7193283001 | F87: 0 | G87: 7193283001
A88: 51 | B88: 12902 | C88: Servicio Nacional de Salud Animal (SENASA) | D88: 12902 - Servicio Nacional de Salud Animal (SENASA) | E88: 3831044790 | F88: 0 | G88: 3831044790
A89: 52 | B89: 12908 | C89: Sistema Nacional de Áreas de Conservación (SINAC) | D89: 12908 - Sistema Nacional de Áreas de Conservación (SINAC) | E89: 217133509150 | F89: 0 | G89: 217133509150
A90: 53 | B90: 12914 | C90: Sistema Nacional de Educación Musical (SINEM) | D90: 12914 - Sistema Nacional de Educación Musical (SINEM) | E90: 1410649200 | F90: 0 | G90: 1410649200
A91: 54 | B91: 12920 | C91: Teatro Nacional (TNCR) | D91: 12920 - Teatro Nacional (TNCR) | E91: 3.866648968e+11 | F91: 0 | G91: 3.866648968e+11
A92: 55 | B92: 12921 | C92: Teatro Popular Melico Salazar (TPMS) | D92: 12921 - Teatro Popular Melico Salazar (TPMS) | E92: 9313531762 | F92: 0 | G92: 9313531762
A93: 56 | B93: 12940 | C93: Tribunal Registral Administrativo (TRA) | D93: 12940 - Tribunal Registral Administrativo (TRA) | E93: 680250917.8 | F93: 0 | G93: 680250917.8
D94: - | G94: 0
A95: 2 | B95: 13101 | C95: Asamblea Legislativa | D95: 13101 - Asamblea Legislativa | E95: 1.268118437e+10 | F95: 7486747939 | G95: 2.016793231e+10
A96: 3 | B96: 13102 | C96: Contraloría General de la República (CGR) | D96: 13102 - Contraloría General de la República (CGR) | E96: 3603826029 | F96: 0 | G96: 3603826029
A97: 4 | B97: 13103 | C97: Defensoría de los Habitantes de la República | D97: 13103 - Defensoría de los Habitantes de la República | E97: 139732600 | F97: 1868385880 | G97: 2008118480
A98: 5 | B98: 13301 | C98: Poder Judicial | D98: 13301 - Poder Judicial | E98: 8.336385604e+10 | F98: 0 | G98: 8.336385604e+10
A99: 6 | B99: 13401 | C99: Tribunal Supremo de Elecciones | D99: 13401 - Tribunal Supremo de Elecciones | E99: 1396900084 | F99: 2822418388 | G99: 4219318472
D100: -
A101: 1 | B101: 15101 | C101: Municipalidad de San José | D101: 15101 - Municipalidad de San José | E101: 1.808781766e+10 | F101: 0 | G101: 1.808781766e+10
A102: 2 | B102: 15102 | C102: Municipalidad de Escazú | D102: 15102 - Municipalidad de Escazú | E102: 150000 | F102: 0 | G102: 150000
A103: 3 | B103: 15103 | C103: Municipalidad de Desamparados | D103: 15103 - Municipalidad de Desamparados | E103: 18491519840 | F103: 0 | G103: 18491519840
A104: 4 | B104: 15104 | C104: Municipalidad de Puriscal | D104: 15104 - Municipalidad de Puriscal | E104: 224083768.8 | F104: 0 | G104: 224083768.8
A105: 5 | B105: 15105 | C105: Municipalidad de Tarrazú | D105: 15105 - Municipalidad de Tarrazú | E105: 455660000 | F105: 2880478950 | G105: 3336138950
A106: 6 | B106: 15106 | C106: Municipalidad de Aserrí | D106: 15106 - Municipalidad de Aserrí | E106: 1.120782307e+10 | F106: 0 | G106: =E106+F106 -> 1.120782307e+10
A107: 7 | B107: 15107 | C107: Municipalidad de Mora | D107: 15107 - Municipalidad de Mora | E107: 202 | F107: 0 | G107: 202
A108: 8 | B108: 15108 | C108: Municipalidad de Goicoechea | D108: 15108 - Municipalidad de Goicoechea | E108: 3894028708 | F108: 0 | G108: 3894028708
A109: 9 | B109: 15109 | C109: Municipalidad de Santa Ana | D109: 15109 - Municipalidad de Santa Ana | E109: 308940 | F109: 435475929.7 | G109: 435784869.7
A110: 10 | B110: 15110 | C110: Municipalidad de Alajuelita | D110: 15110 - Municipalidad de Alajuelita | E110: 1644630197 | F110: 0 | G110: 1644630197
A111: 11 | B111: 15111 | C111: Municipalidad de Vásquez de Coronado | D111: 15111 - Municipalidad de Vásquez de Coronado | E111: 2342680270 | F111: 0 | G111: 2342680270
A112: 12 | B112: 15112 | C112: Municipalidad de Acosta | D112: 15112 - Municipalidad de Acosta | E112: 658148723.5 | F112: 0 | G112: 658148723.5
A113: 13 | B113: 15113 | C113: Municipalidad de Tibás | D113: 15113 - Municipalidad de Tibás | E113: 1.417453464e+10 | F113: 0 | G113: 1.417453464e+10
A114: 14 | B114: 15114 | C114: Municipalidad de Moravia | D114: 15114 - Municipalidad de Moravia | E114: 3940526310 | F114: 0 | G114: 3940526310
A115: 15 | B115: 15115 | C115: Municipalidad de Montes de Oca | D115: 15115 - Municipalidad de Montes de Oca | E115: 8583383.08 | F115: 0 | G115: 8583383.08
A116: 16 | B116: 15116 | C116: Municipalidad de Turrubares | D116: 15116 - Municipalidad de Turrubares | E116: 44016700 | F116: 0 | G116: 44016700
A117: 17 | B117: 15117 | C117: Municipalidad de Dota | D117: 15117 - Municipalidad de Dota | E117: 457210730 | F117: 0 | G117: 457210730
A118: 18 | B118: 15118 | C118: Municipalidad de Curridabat | D118: 15118 - Municipalidad de Curridabat | E118: 950420476.1 | F118: 1.469794647e+11 | G118: 1.479298852e+11
A119: 19 | B119: 15119 | C119: Municipalidad de Pérez Zeledón | D119: 15119 - Municipalidad de Pérez Zeledón | E119: 1.800725821e+10 | F119: 0 | G119: 1.800725821e+10
A120: 20 | B120: 15120 | C120: Municipalidad de León Cortés | D120: 15120 - Municipalidad de León Cortés | E120: 1103186650 | F120: 0 | G120: 1103186650
A121: 21 | B121: 15201 | C121: Municipalidad de Alajuela | D121: 15201 - Municipalidad de Alajuela | E121: 1572637044 | F121: 0 | G121: 1572637044
A122: 22 | B122: 15202 | C122: Municipalidad de San Ramón | D122: 15202 - Municipalidad de San Ramón | E122: 3610734567 | F122: 0 | G122: 3610734567
A123: 23 | B123: 15203 | C123: Municipalidad de Grecia | D123: 15203 - Municipalidad de Grecia | E123: 590244700 | F123: 4499915223 | G123: 5090159923
A124: 24 | B124: 15204 | C124: Municipalidad de San Mateo | D124: 15204 - Municipalidad de San Mateo | E124: 1.666117786e+10 | F124: 0 | G124: 1.666117786e+10
A125: 25 | B125: 15205 | C125: Municipalidad de Atenas | D125: 15205 - Municipalidad de Atenas | E125: 499940890 | F125: 0 | G125: 499940890
A126: 26 | B126: 15206 | C126: Municipalidad de Naranjo | D126: 15206 - Municipalidad de Naranjo | E126: 778369604 | F126: 0 | G126: 778369604
A127: 27 | B127: 15207 | C127: Municipalidad de Palmares | D127: 15207 - Municipalidad de Palmares | E127: 3067525400 | F127: 0 | G127: 3067525400
A128: 28 | B128: 15208 | C128: Municipalidad de Poás | D128: 15208 - Municipalidad de Poás | E128: 6255 | F128: 1691663000 | G128: 1691669255
A129: 29 | B129: 15209 | C129: Municipalidad de Orotina | D129: 15209 - Municipalidad de Orotina | E129: 27796446140 | F129: 0 | G129: 27796446140
A130: 30 | B130: 15210 | C130: Municipalidad de San Carlos | D130: 15210 - Municipalidad de San Carlos | E130: 3116.6 | F130: 2.356837859e+10 | G130: 2.356838171e+10
A131: 31 | B131: 15211 | C131: Municipalidad de Alfaro Ruíz | D131: 15211 - Municipalidad de Alfaro Ruíz | E131: 1047231790 | F131: 0 | G131: 1047231790
A132: 32 | B132: 15212 | C132: Municipalidad de Sarchí | D132: 15212 - Municipalidad de Sarchí | E132: 5212154558 | F132: 0 | G132: 5212154558
A133: 33 | B133: 15213 | C133: Municipalidad de Upala | D133: 15213 - Municipalidad de Upala | E133: 3030 | F133: 0 | G133: 3030
A134: 34 | B134: 15214 | C134: Municipalidad de Los Chiles | D134: 15214 - Municipalidad de Los Chiles | E134: 2802797906 | F134: 0 | G134: 2802797906
A135: 35 | B135: 15215 | C135: Municipalidad de Guatuso | D135: 15215 - Municipalidad de Guatuso | E135: 0 | F135: 0 | G135: 0
A136: 36 | B136: 15216 | C136: Municipalidad de Rio Cuarto | D136: 15216 - Municipalidad de Rio Cuarto | E136: 800000000 | F136: 0 | G136: 800000000
A137: 37 | B137: 15220 | C137: Concejo Municipal de Distrito de Peñas Blancas de San Ramón | D137: 15220 - Concejo Municipal de Distrito de Peñas Blancas de San Ramón | E137: 5112061079 | F137: 0 | G137: 5112061079
A138: 38 | B138: 15301 | C138: Municipalidad de Cartago | D138: 15301 - Municipalidad de Cartago | E138: 5143927053 | F138: 0 | G138: 5143927053
A139: 39 | B139: 15302 | C139: Municipalidad de Paraíso | D139: 15302 - Municipalidad de Paraíso | E139: 3383833383 | F139: 0 | G139: 3383833383
A140: 40 | B140: 15303 | C140: Municipalidad de La Unión | D140: 15303 - Municipalidad de La Unión | E140: 997998089.2 | F140: 0 | G140: 997998089.2
A141: 41 | B141: 15304 | C141: Municipalidad de Jiménez | D141: 15304 - Municipalidad de Jiménez | E141: 582545169.5 | F141: 23523826.22 | G141: 606068995.7
A142: 42 | B142: 15305 | C142: Municipalidad de Turrialba | D142: 15305 - Municipalidad de Turrialba | E142: 4997121490 | F142: 0 | G142: 4997121490
A143: 43 | B143: 15306 | C143: Municipalidad de Alvarado | D143: 15306 - Municipalidad de Alvarado | E143: 0 | F143: 0 | G143: 0
A144: 44 | B144: 15307 | C144: Municipalidad de Oreamuno | D144: 15307 - Municipalidad de Oreamuno | E144: 1483098887 | F144: 0 | G144: 1483098887
A145: 45 | B145: 15308 | C145: Municipalidad de El Guarco | D145: 15308 - Municipalidad de El Guarco | E145: 744309236.5 | F145: 1.396140305e+10 | G145: 1.470571229e+10
A146: 46 | B146: 15320 | C146: Concejo Municipal de Distrito de Cervantes de Alvarado | D146: 15320 - Concejo Municipal de Distrito de Cervantes de Alvarado | E146: 0 | F146: 0 | G146: 0
A147: 47 | B147: 15321 | C147: Concejo Municipal de Distrito de Tucurrique de Jiménez | D147: 15321 - Concejo Municipal de Distrito de Tucurrique de Jiménez | E147: 190009320 | F147: 0 | G147: 190009320
A148: 48 | B148: 15401 | C148: Municipalidad de Heredia | D148: 15401 - Municipalidad de Heredia | E148: 8.086736814e+10 | F148: 284971265 | G148: 8.115233941e+10
A149: 49 | B149: 15402 | C149: Municipalidad de Barva | D149: 15402 - Municipalidad de Barva | E149: 315096571.4 | F149: 0 | G149: 315096571.4
A150: 50 | B150: 15403 | C150: Municipalidad de Santo Domingo | D150: 15403 - Municipalidad de Santo Domingo | E150: 57936894.06 | F150: 0 | G150: 57936894.06
A151: 51 | B151: 15404 | C151: Municipalidad de Santa Barbara | D151: 15404 - Municipalidad de Santa Barbara | E151: 794 | F151: 10080000 | G151: 10080794
A152: 52 | B152: 15405 | C152: Municipalidad de San Rafael | D152: 15405 - Municipalidad de San Rafael | E152: 9.075908424e+10 | F152: 0 | G152: 9.075908424e+10
A153: 53 | B153: 15406 | C153: Municipalidad de San Isidro | D153: 15406 - Municipalidad de San Isidro | E153: 8150515227 | F153: 0 | G153: 8150515227
A154: 54 | B154: 15407 | C154: Municipalidad de Belén | D154: 15407 - Municipalidad de Belén | E154: 3561340756 | F154: 0 | G154: 3561340756
A155: 55 | B155: 15408 | C155: Municipalidad de Flores | D155: 15408 - Municipalidad de Flores | E155: 6206116289 | F155: 0 | G155: 6206116289
A156: 56 | B156: 15409 | C156: Municipalidad de San Pablo | D156: 15409 - Municipalidad de San Pablo | E156: 244570650 | F156: 1.778246186e+10 | G156: 1.802703251e+10
A157: 57 | B157: 15410 | C157: Municipalidad de Sarapiquí | D157: 15410 - Municipalidad de Sarapiquí | E157: 868008000 | F157: 0 | G157: 868008000
A158: 58 | B158: 15501 | C158: Municipalidad de Liberia | D158: 15501 - Municipalidad de Liberia | E158: 0 | F158: 0 | G158: 0
A159: 59 | B159: 15502 | C159: Municipalidad de Nicoya | D159: 15502 - Municipalidad de Nicoya | E159: 6606392942 | F159: 1.817848219e+11 | G159: 1.883912149e+11
A160: 60 | B160: 15503 | C160: Municipalidad de Santa Cruz | D160: 15503 - Municipalidad de Santa Cruz | E160: 23820494.27 | F160: 194475063.8 | G160: 218295558.1
A161: 61 | B161: 15504 | C161: Municipalidad de Bagaces | D161: 15504 - Municipalidad de Bagaces | E161: 1668876567 | F161: 0 | G161: 1668876567
A162: 62 | B162: 15505 | C162: Municipalidad de Carrillo | D162: 15505 - Municipalidad de Carrillo | E162: 50000 | F162: 1.088032773e+10 | G162: 1.088037773e+10
A163: 63 | B163: 15506 | C163: Municipalidad de Cañas | D163: 15506 - Municipalidad de Cañas | E163: 1015.5 | F163: 0 | G163: 1015.5
A164: 64 | B164: 15507 | C164: Municipalidad de Abangares | D164: 15507 - Municipalidad de Abangares | E164: 1726688139 | F164: 0 | G164: 1726688139
A165: 65 | B165: 15508 | C165: Municipalidad de Tilarán | D165: 15508 - Municipalidad de Tilarán | E165: 1295021.27 | F165: 0 | G165: 1295021.27
A166: 66 | B166: 15509 | C166: Municipalidad de Nandayure | D166: 15509 - Municipalidad de Nandayure | E166: 574593320 | F166: 0 | G166: 574593320
A167: 67 | B167: 15510 | C167: Municipalidad de La Cruz | D167: 15510 - Municipalidad de La Cruz | E167: 679637610 | F167: 0 | G167: 679637610
A168: 68 | B168: 15511 | C168: Municipalidad de Hojancha | D168: 15511 - Municipalidad de Hojancha | E168: 628929063.6 | F168: 0 | G168: 628929063.6
A169: 69 | B169: 15520 | C169: Concejo Municipal de Distrito de Colorado de Abangares | D169: 15520 - Concejo Municipal de Distrito de Colorado de Abangares | E169: 345700423 | F169: 0 | G169: =E169+F169 -> 345700423
A170: 70 | B170: 15601 | C170: Municipalidad de Puntarenas | D170: 15601 - Municipalidad de Puntarenas | E170: 1.312547782e+11 | F170: 0 | G170: =E170+F170 -> 1.312547782e+11
A171: 71 | B171: 15602 | C171: Municipalidad de Esparza | D171: 15602 - Municipalidad de Esparza | E171: 367285065 | F171: 0 | G171: 367285065
A172: 72 | B172: 15603 | C172: Municipalidad de Buenos Aires | D172: 15603 - Municipalidad de Buenos Aires | E172: 524.8 | F172: 0 | G172: 524.8
A173: 73 | B173: 15604 | C173: Municipalidad de Montes de Oro | D173: 15604 - Municipalidad de Montes de Oro | E173: 0 | F173: 0 | G173: 0
A174: 74 | B174: 15605 | C174: Municipalidad de Osa | D174: 15605 - Municipalidad de Osa | E174: 4100208179 | F174: 0 | G174: 4100208179
A175: 75 | B175: 15606 | C175: Municipalidad de Aguirre | D175: 15606 - Municipalidad de Aguirre | E175: 16473.6 | F175: 0 | G175: 16473.6
A176: 76 | B176: 15607 | C176: Municipalidad de Golfito | D176: 15607 - Municipalidad de Golfito | E176: 1752084864 | F176: 0 | G176: 1752084864
A177: 77 | B177: 15608 | C177: Municipalidad de Coto Brus | D177: 15608 - Municipalidad de Coto Brus | E177: 814000 | F177: 0 | G177: 814000
A178: 78 | B178: 15609 | C178: Municipalidad de Parrita | D178: 15609 - Municipalidad de Parrita | E178: 0 | F178: 0 | G178: 0
A179: 79 | B179: 15610 | C179: Municipalidad de Corredores | D179: 15610 - Municipalidad de Corredores | E179: 509814650 | F179: 0 | G179: 509814650
A180: 80 | B180: 15611 | C180: Municipalidad de Garabito | D180: 15611 - Municipalidad de Garabito | E180: 12562089360 | F180: 0 | G180: 12562089360
A181: 81 | B181: 15620 | C181: Concejo Municipal de Distrito de Cóbano Puntarenas | D181: 15620 - Concejo Municipal de Distrito de Cóbano Puntarenas | E181: 1352620896 | F181: 0 | G181: 1352620896
A182: 82 | B182: 15621 | C182: Concejo Municipal de Distrito de Monteverde de Puntarenas | D182: 15621 - Concejo Municipal de Distrito de Monteverde de Puntarenas | E182: 9099452457 | F182: 0 | G182: 9099452457
A183: 83 | B183: 15622 | C183: Concejo Municipal de Distrito de Lepanto de Puntarenas | D183: 15622 - Concejo Municipal de Distrito de Lepanto de Puntarenas | E183: 5512593.48 | F183: 0 | G183: 5512593.48
A184: 84 | B184: 15623 | C184: Concejo Municipal de Distrito de Paquera de Puntarenas | D184: 15623 - Concejo Municipal de Distrito de Paquera de Puntarenas | E184: 379187778.7 | F184: 0 | G184: 379187778.7
A185: 85 | B185: 15701 | C185: Municipalidad de Limón | D185: 15701 - Municipalidad de Limón | E185: 385139540 | F185: 0 | G185: 385139540
A186: 86 | B186: 15702 | C186: Municipalidad de Pococí | D186: 15702 - Municipalidad de Pococí | E186: 2528178580 | F186: 0 | G186: 2528178580
A187: 87 | B187: 15703 | C187: Municipalidad de Siquirres | D187: 15703 - Municipalidad de Siquirres | E187: 1165390010 | F187: 0 | G187: 1165390010
A188: 88 | B188: 15704 | C188: Municipalidad de Talamanca | D188: 15704 - Municipalidad de Talamanca | E188: 794112400 | F188: 0 | G188: 794112400
A189: 89 | B189: 15705 | C189: Municipalidad de Matina | D189: 15705 - Municipalidad de Matina | E189: 0 | F189: 0 | G189: 0
A190: 90 | B190: 15706 | C190: Municipalidad de Guácimo | D190: 15706 - Municipalidad de Guácimo | E190: 16503500 | F190: 0 | G190: 16503500

Sheet VALIDACION_BALANCE (hidden)
C2: Ministerio de Hacienda
C3: Dirección General de Contabilidad Nacional
C4: Herramienta de Revisión Balance Comprobación
H5: Parametros
C6: ENTIDAD | H6: No Aplica | I6: 0
H7: Presentó | I7: 1
D8: NIVEL 1 | E8: =IFERROR(IF(BALANCE_COMPROBACION!B10="",0,IF(AND(NIVELES_BC!Q3>-1,NIVELES_BC!Q3<1),1,2)),0) -> 1 | H8: Con Errores | I8: 2
D9: NIVEL 2 | E9: =IFERROR(IF(BALANCE_COMPROBACION!B11="",0,IF(AND(NIVELES_BC!Q4>-1,NIVELES_BC!Q4<1),1,2)),0) -> 1 | H9: No Presento | I9: 3
D10: NIVEL 3 | E10: =IFERROR(IF(BALANCE_COMPROBACION!B12="",0,IF(AND(NIVELES_BC!Q5>-1,NIVELES_BC!Q5<1),1,2)),0) -> 1
D11: NIVEL 4 | E11: =IFERROR(IF(BALANCE_COMPROBACION!B13="",0,IF(AND(NIVELES_BC!Q6>-1,NIVELES_BC!Q6<1),1,2)),0) -> 1
D12: NIVEL 5 | E12: =IFERROR(IF(BALANCE_COMPROBACION!B14="",0,IF(AND(NIVELES_BC!Q7>-1,NIVELES_BC!Q7<1),1,2)),0) -> 1
D13: NIVEL 6 | E13: =IFERROR(IF(BALANCE_COMPROBACION!B15="",0,IF(AND(NIVELES_BC!Q8>-1,NIVELES_BC!Q8<1),1,2)),0) -> 1
D14: NIVEL 7 | E14: =IFERROR(IF(BALANCE_COMPROBACION!B16="",0,IF(AND(NIVELES_BC!Q9>-1,NIVELES_BC!Q9<1),1,2)),0) -> 1
D15: NIVEL 8 | E15: =IFERROR(IF(BALANCE_COMPROBACION!B17="",0,IF(AND(NIVELES_BC!Q10>-1,NIVELES_BC!Q10<1),1,2)),0) -> 1
D16: CUENTAS SALDO NEGATIVO | E16: =IFERROR(IF(BALANCE_COMPROBACION!B10="",0,IF(VALIDACION!AJ7>0,2,1)),0) -> 1
D17: CUENTAS VRS PLAN CONTABLE | E17: =IFERROR(IF(BALANCE_COMPROBACION!B10="",0,IF(VALIDACION!L7=0,1,2)),0) -> 1
D18: REVISION CUENTAS RECÍPROCAS | E18: =IFERROR(IF(BALANCE_COMPROBACION!B10="",0,IF(VALIDACION!U7=0,1,2)),0) -> 1
D19: SALDOS PERIODO ANTERIOR | E19: 0
D20: CONFIRMACIÓN DE SALDOS | E20: 0

Sheet BALANCE_COMPROBACION
A9: CODIGO SEGMENTO | B9: CUENTA (REPORTAR MÁXIMO A NIVEL 8) | C9: NOMBRE CUENTA | D9: SALDO INICIAL | E9: DEBITOS PERIODO | F9: CREDITOS PERIODO | G9: SALDO FINAL
A10: 3.1 | B10: 1. | C10: ACTIVO | D10: 1.658328453e+11 | E10: 1362170417 | F10: 1240628054 | G10: 1.659543877e+11
A11: 3.1 | B11: 1.1. | C11: Activo Corriente | D11: 2822037062 | E11: 1341964867 | F11: 1210437047 | G11: 2953564882
A12: 3.1 | B12: 1.1.1. | C12: Efectivo equivalentes de efectivo | D12: 2106811911 | E12: 934735291.5 | F12: 1057976865 | G12: 1983570338
A13: 3.1 | B13: 1.1.1.01. | C13: Efectivo | D13: 2106811911 | E13: 333716048.5 | F13: 1057976865 | G13: 1382551095
A14: 3.1 | B14: 1.1.1.01.02. | C14: Depósitos bancarios | D14: 2103561911 | E14: 333716048.5 | F14: 1057976865 | G14: 1379301095
A15: 3.1 | B15: 1.1.1.01.02.02. | C15: Depósitos bancarios en el sector público interno | D15: 2103561911 | E15: 333716048.5 | F15: 1057976865 | G15: 1379301095
A16: 3.1 | B16: 1.1.1.01.02.02.2. | C16: Cuentas corrientes en el sector público interno | D16: 687233539.5 | E16: 252716048.5 | F16: 802618724 | G16: 137330864.1
A17: 3.1 | B17: 1.1.1.01.02.02.2.21101 | C17: Banco Costa Rica | D17: 372598001.7 | E17: 17215243.53 | F17: 382609424.8 | G17: 7203820.43
A18: 3.1 | B18: 1.1.1.01.02.02.2.21103 | C18: Banco Nacional de Costa Rica | D18: 314635537.9 | E18: 235500805 | F18: 420009299.2 | G18: 130127043.7
A19: 3.1 | B19: 1.1.1.01.02.02.3. | C19: Caja Única | D19: 1416328372 | E19: 81000000 | F19: 255358141 | G19: 1241970231
A20: 3.1 | B20: 1.1.1.01.02.02.3.11206 | C20: Ministerio de Hacienda | D20: 1416328372 | E20: 81000000 | F20: 255358141 | G20: 1241970231
A21: 3.1 | B21: 1.1.1.01.03. | C21: Cajas chicas fondos rotatorios | D21: 3250000 | E21: 0 | F21: 0 | G21: 3250000
A22: 3.1 | B22: 1.1.1.01.03.01. | C22: Cajas chicas | D22: 2250000 | E22: 0 | F22: 0 | G22: 2250000
A23: 3.1 | B23: 1.1.1.01.03.01.2. | C23: Cajas chicas en el país | D23: 2250000 | E23: 0 | F23: 0 | G23: 2250000
A24: 3.1 | B24: 1.1.1.01.03.01.2.99999 | C24: Cajas chicas en el país | D24: 2250000 | E24: 0 | F24: 0 | G24: 2250000
A25: 3.1 | B25: 1.1.1.01.03.02. | C25: Fondos rotatorios | D25: 1000000 | E25: 0 | F25: 0 | G25: 1000000
A26: 3.1 | B26: 1.1.1.01.03.02.2. | C26: Fondos rotatorios en el sector público interno | D26: 1000000 | E26: 0 | F26: 0 | G26: 1000000
A27: 3.1 | B27: 1.1.1.01.03.02.2.99999 | C27: Fondos rotatorios en el sector público interno | D27: 1000000 | E27: 0 | F27: 0 | G27: 1000000
A28: 3.1 | B28: 1.1.1.02. | C28: Equivalentes de efectivo | D28: 0 | E28: 601019243 | F28: 0 | G28: 601019243
A29: 3.1 | B29: 1.1.1.02.99. | C29: Otros equivalentes de efectivo | D29: 0 | E29: 601019243 | F29: 0 | G29: 601019243
A30: 3.1 | B30: 1.1.1.02.99.02. | C30: Otros equivalentes de efectivo en el sector público interno | D30: 0 | E30: 601019243 | F30: 0 | G30: 601019243
A31: 3.1 | B31: 1.1.1.02.99.02.0. | C31: Otros equivalentes de efectivo en el sector público interno | D31: 0 | E31: 601019243 | F31: 0 | G31: 601019243
A32: 3.1 | B32: 1.1.1.02.99.02.0.21101 | C32: Banco Costa Rica | D32: 0 | E32: 300516991.8 | F32: 0 | G32: 300516991.8
A33: 3.1 | B33: 1.1.1.02.99.02.0.21103 | C33: Banco Nacional de Costa Rica | D33: 0 | E33: 300502251.3 | F33: 0 | G33: 300502251.3
A34: 3.1 | B34: 1.1.3. | C34: Cuentas a cobrar a c/p | D34: 495942436.4 | E34: 403488080.7 | F34: 138564595.9 | G34: 760865921.2
A35: 3.1 | B35: 1.1.3.01. | C35: Impuestos a cobrar a c/p | D35: 488369513.4 | E35: 239859036.7 | F35: 88968732.81 | G35: 639259817.2
A36: 3.1 | B36: 1.1.3.01.02. | C36: Impuestos sobre la propiedad a cobrar c/p | D36: 454864572.4 | E36: 164593346.3 | F36: 59420740.81 | G36: 560037177.9
A37: 3.1 | B37: 1.1.3.01.02.01. | C37: Impuesto sobre la propiedad de bienes inmuebles a cobrar c/p | D37: 454864572.4 | E37: 164593346.3 | F37: 59420740.81 | G37: 560037177.9
A38: 3.1 | B38: 1.1.3.01.02.01.0. | C38: Impuesto sobre la propiedad de bienes inmuebles a cobrar c/p | D38: 454864572.4 | E38: 164593346.3 | F38: 59420740.81 | G38: 560037177.9
A39: 3.1 | B39: 1.1.3.01.02.01.0.99999 | C39: Impuesto sobre la propiedad de bienes inmuebles a cobrar c/p | D39: 454864572.4 | E39: 164593346.3 | F39: 59420740.81 | G39: 560037177.9
A40: 3.1 | B40: 1.1.3.01.03. | C40: Impuestos sobre bienes y servicios a cobrar c/p | D40: 33504940.95 | E40: 75265690.44 | F40: 29547992 | G40: 79222639.39
A41: 3.1 | B41: 1.1.3.01.03.99. | C41: Otros Impuestos sobre bienes y servicios a cobrar c/p | D41: 33504940.95 | E41: 75265690.44 | F41: 29547992 | G41: 79222639.39
A42: 3.1 | B42: 1.1.3.01.03.99.1. | C42: Licencias profesionales, comerciales y otros permisos a cobrar c/p | D42: 30044160.51 | E42: 72323171.51 | F42: 28176282 | G42: 74191050.02
A43: 3.1 | B43: 1.1.3.01.03.99.1.99999 | C43: Licencias profesionales, comerciales y otros permisos a cobrar c/p | D43: 30044160.51 | E43: 72323171.51 | F43: 28176282 | G43: 74191050.02
A44: 3.1 | B44: 1.1.3.01.03.99.9. | C44: Otros impuestos varios sobre bienes y servicios a cobrar c/p | D44: 3460780.44 | E44: 2942518.93 | F44: 1371710 | G44: 5031589.37
A45: 3.1 | B45: 1.1.3.01.03.99.9.99999 | C45: Otros impuestos varios sobre bienes y servicios a cobrar c/p | D45: 3460780.44 | E45: 2942518.93 | F45: 1371710 | G45: 5031589.37
A46: 3.1 | B46: 1.1.3.04. | C46: Servicios y derechos a cobrar a corto plazo | D46: 180183637.8 | E46: 162004044 | F46: 49200355.06 | G46: 292987326.7
A47: 3.1 | B47: 1.1.3.04.01. | C47: Servicios a cobrar c/p | D47: 179741182.8 | E47: 161888404 | F47: 49117175.06 | G47: 292512411.7
A48: 3.1 | B48: 1.1.3.04.01.04. | C48: Servicios comunitarios a cobrar c/p | D48: 179741182.8 | E48: 161888404 | F48: 49117175.06 | G48: 292512411.7
A49: 3.1 | B49: 1.1.3.04.01.04.0. | C49: Servicios comunitarios a cobrar c/p | D49: 179741182.8 | E49: 161888404 | F49: 49117175.06 | G49: 292512411.7
A50: 3.1 | B50: 1.1.3.04.01.04.0.99999 | C50: Servicios comunitarios a cobrar c/p | D50: 179741182.8 | E50: 161888404 | F50: 49117175.06 | G50: 292512411.7
A51: 3.1 | B51: 1.1.3.04.02. | C51: Derechos administrativos a cobrar c/p | D51: 442455 | E51: 115640 | F51: 83180 | G51: 474915
A52: 3.1 | B52: 1.1.3.04.02.01. | C52: Derechos administrativos a los servicios de transporte a cobrar c/p | D52: 50000 | E52: 40000 | F52: 60000 | G52: 30000
A53: 3.1 | B53: 1.1.3.04.02.01.0. | C53: Derechos administrativos a los servicios de transporte a cobrar c/p | D53: 50000 | E53: 40000 | F53: 60000 | G53: 30000
A54: 3.1 | B54: 1.1.3.04.02.01.0.99999 | C54: Derechos administrativos a los servicios de transporte a cobrar c/p Derecho de piso uso terminal | D54: 50000 | E54: 40000 | F54: 60000 | G54: 30000
A55: 3.1 | B55: 1.1.3.04.02.99. | C55: Otros derechos administrativos a cobrar c/p | D55: 392455 | E55: 75640 | F55: 23180 | G55: 444915
A56: 3.1 | B56: 1.1.3.04.02.99.0. | C56: Otros derechos administrativos a cobrar c/p | D56: 392455 | E56: 75640 | F56: 23180 | G56: 444915
A57: 3.1 | B57: 1.1.3.04.02.99.0.99999 | C57: Otros derechos administrativos a cobrar c/p Derecho cementerio | D57: 392455 | E57: 75640 | F57: 23180 | G57: 444915
A58: 3.1 | B58: 1.1.3.06. | C58: Transferencias a cobrar a c/p | D58: 0 | E58: 0 | F58: 0 | G58: 0
A59: 3.1 | B59: 1.1.3.06.02. | C59: Transferencias del sector público interno a cobrar c/p | D59: 0 | E59: 0 | F59: 0 | G59: 0
A60: 3.1 | B60: 1.1.3.06.02.01. | C60: Transferencias del Gobierno Central a cobrar c/p | D60: 0 | E60: 0 | F60: 0 | G60: 0
A61: 3.1 | B61: 1.1.3.06.02.01.0. | C61: Transferencias del Gobierno Central a cobrar c/p | D61: 0 | E61: 0 | F61: 0 | G61: 0
A62: 3.1 | B62: 1.1.3.06.02.01.0.11206 | C62: Ministerio de Hacienda | D62: 0 | E62: 0 | F62: 0 | G62: 0
A63: 3.1 | B63: 1.1.3.06.02.03. | C63: Transferencias de Instituciones Descentralizadas no Empresariales a cobrar c/p | D63: 0 | E63: 0 | F63: 0 | G63: 0
A64: 3.1 | B64: 1.1.3.06.02.03.0. | C64: Transferencias de Instituciones Descentralizadas no Empresariales a cobrar c/p | D64: 0 | E64: 0 | F64: 0 | G64: 0
A65: 3.1 | B65: 1.1.3.06.02.03.0.14226 | C65: Transferencias de Instituciones Descentralizadas no Empresariales a cobrar c/p (Aporte IFAM Licores Nacionales y Ext) | D65: 0 | E65: 0 | F65: 0 | G65: 0
A66: 3.1 | B66: 1.1.3.98. | C66: Otras cuentas a cobrar a corto plazo | D66: 2767182.6 | E66: 1625000 | F66: 395508 | G66: 3996674.6
A67: 3.1 | B67: 1.1.3.98.01. | C67: Multas, sanciones, remates y confiscaciones de origen no tributario a cobrar c/p | D67: 2267182.6 | E67: 1625000 | F67: 395508 | G67: 3496674.6
A68: 3.1 | B68: 1.1.3.98.01.01. | C68: Multas y sanciones administrativas a cobrar c/p | D68: 2267182.6 | E68: 1625000 | F68: 395508 | G68: 3496674.6
A69: 3.1 | B69: 1.1.3.98.01.01.0. | C69: Multas y sanciones administrativas a cobrar c/p | D69: 2267182.6 | E69: 1625000 | F69: 395508 | G69: 3496674.6
A70: 3.1 | B70: 1.1.3.98.01.01.0.99999 | C70: Multas y sanciones administrativas a cobrar c/p | D70: 2267182.6 | E70: 1625000 | F70: 395508 | G70: 3496674.6
A71: 3.1 | B71: 1.1.3.98.03. | C71: Depósitos en garantía c/p | D71: 500000 | E71: 0 | F71: 0 | G71: 500000
A72: 3.1 | B72: 1.1.3.98.03.02. | C72: Depósitos en garantía en el sector público interno c/p | D72: 500000 | E72: 0 | F72: 0 | G72: 500000
A73: 3.1 | B73: 1.1.3.98.03.02.0. | C73: Depósitos en garantía en el sector público interno c/p | D73: 500000 | E73: 0 | F73: 0 | G73: 500000
A74: 3.1 | B74: 1.1.3.98.03.02.0.99999 | C74: Depósitos en garantía en el sector público interno c/p | D74: 500000 | E74: 0 | F74: 0 | G74: 500000
A75: 3.1 | B75: 1.1.3.99. | C75: Previsiones para deterioro de cuentas a cobrar a corto plazo * | D75: -175377897.4 | E75: 0 | F75: 0 | G75: -175377897.4
A76: 3.1 | B76: 1.1.3.99.01. | C76: Previsiones para impuestos a cobrar c/p * | D76: -116983004.6 | E76: 0 | F76: 0 | G76: -116983004.6
A77: 3.1 | B77: 1.1.3.99.01.02. | C77: Previsiones para impuestos sobre la propiedad a cobrar c/p * | D77: -106283608.3 | E77: 0 | F77: 0 | G77: -106283608.3
A78: 3.1 | B78: 1.1.3.99.01.02.0. | C78: Previsiones para impuestos sobre la propiedad a cobrar c/p * | D78: -106283608.3 | E78: 0 | F78: 0 | G78: -106283608.3
A79: 3.1 | B79: 1.1.3.99.01.02.0.99999 | C79: Previsiones para impuestos sobre la propiedad a cobrar c/p * | D79: -106283608.3 | E79: 0 | F79: 0 | G79: -106283608.3
A80: 3.1 | B80: 1.1.3.99.01.03. | C80: Previsiones para impuestos sobre bienes y servicios a cobrar c/p * | D80: -9270015.01 | E80: 0 | F80: 0 | G80: -9270015.01
A81: 3.1 | B81: 1.1.3.99.01.03.0. | C81: Previsiones para impuestos sobre bienes y servicios a cobrar c/p * | D81: -9270015.01 | E81: 0 | F81: 0 | G81: -9270015.01
A82: 3.1 | B82: 1.1.3.99.01.03.0.99999 | C82: Previsiones para impuestos sobre bienes y servicios a cobrar c/p * | D82: -9270015.01 | E82: 0 | F82: 0 | G82: -9270015.01
A83: 3.1 | B83: 1.1.3.99.01.99. | C83: Previsiones para otros impuestos a cobrar c/p * | D83: -1429381.33 | E83: 0 | F83: 0 | G83: -1429381.33
A84: 3.1 | B84: 1.1.3.99.01.99.0. | C84: Previsiones para otros impuestos a cobrar c/p * | D84: -1429381.33 | E84: 0 | F84: 0 | G84: -1429381.33
A85: 3.1 | B85: 1.1.3.99.01.99.0.99999 | C85: Previsiones para otros impuestos a cobrar c/p * | D85: -1429381.33 | E85: 0 | F85: 0 | G85: -1429381.33
A86: 3.1 | B86: 1.1.3.99.04. | C86: Previsiones para servicios a cobrar c/p * | D86: -51378929.55 | E86: 0 | F86: 0 | G86: -51378929.55
A87: 3.1 | B87: 1.1.3.99.04.01. | C87: Previsiones para ventas de servicios a cobrar c/p * | D87: -50738208.69 | E87: 0 | F87: 0 | G87: -50738208.69
A88: 3.1 | B88: 1.1.3.99.04.01.0. | C88: Previsiones para ventas de servicios a cobrar c/p * | D88: -50738208.69 | E88: 0 | F88: 0 | G88: -50738208.69
A89: 3.1 | B89: 1.1.3.99.04.01.0.99999 | C89: Previsiones para ventas de servicios a cobrar c/p * | D89: -50738208.69 | E89: 0 | F89: 0 | G89: -50738208.69
A90: 3.1 | B90: 1.1.3.99.04.02. | C90: Previsiones para derechos administrativos a cobrar c/p * | D90: -640720.86 | E90: 0 | F90: 0 | G90: -640720.86
A91: 3.1 | B91: 1.1.3.99.04.02.0. | C91: Previsiones para derechos administrativos a cobrar c/p * | D91: -640720.86 | E91: 0 | F91: 0 | G91: -640720.86
A92: 3.1 | B92: 1.1.3.99.04.02.0.99999 | C92: Previsiones para derechos administrativos a cobrar c/p * | D92: -640720.86 | E92: 0 | F92: 0 | G92: -640720.86
A93: 3.1 | B93: 1.1.3.99.05. | C93: Previsiones para ingresos de la propiedad a cobrar c/p * | D93: -7015963.19 | E93: 0 | F93: 0 | G93: -7015963.19
A94: 3.1 | B94: 1.1.3.99.05.01. | C94: Previsiones para alquileres y derechos sobre bienes a cobrar c/p * | D94: -7015963.19 | E94: 0 | F94: 0 | G94: -7015963.19
A95: 3.1 | B95: 1.1.3.99.05.01.0. | C95: Previsiones para alquileres y derechos sobre bienes a cobrar c/p * | D95: -7015963.19 | E95: 0 | F95: 0 | G95: -7015963.19
A96: 3.1 | B96: 1.1.3.99.05.01.0.99999 | C96: Previsiones para alquileres y derechos sobre bienes a cobrar c/p * | D96: -7015963.19 | E96: 0 | F96: 0 | G96: -7015963.19
A97: 3.1 | B97: 1.1.4. | C97: Inventarios | D97: 192987092.2 | E97: 3741494.92 | F97: 8011262.09 | G97: 188717325.1
A98: 3.1 | B98: 1.1.4.01. | C98: Materiales y suministros para consumo y prestación de servicios | D98: 192987092.2 | E98: 3741494.92 | F98: 8011262.09 | G98: 188717325.1
A99: 3.1 | B99: 1.1.4.01.01. | C99: Productos químicos y conexos | D99: 21280495.09 | E99: 227330.1 | F99: 403241.5 | G99: 21104583.69
A100: 3.1 | B100: 1.1.4.01.01.01. | C100: Combustibles y lubricantes | D100: 17684339.46 | E100: 0 | F100: 113417.4 | G100: 17570922.06
A101: 3.1 | B101: 1.1.4.01.01.01.0. | C101: Combustibles y lubricantes | D101: 17684339.46 | E101: 0 | F101: 113417.4 | G101: 17570922.06
A102: 3.1 | B102: 1.1.4.01.01.01.0.99999 | C102: Combustibles y lubricantes | D102: 17684339.46 | E102: 0 | F102: 113417.4 | G102: 17570922.06
A103: 3.1 | B103: 1.1.4.01.01.02. | C103: Productos farmacéuticos y medicinales | D103: 6400 | E103: 0 | F103: 6400 | G103: 0
A104: 3.1 | B104: 1.1.4.01.01.02.0. | C104: Productos farmacéuticos y medicinales | D104: 6400 | E104: 0 | F104: 6400 | G104: 0
A105: 3.1 | B105: 1.1.4.01.01.02.0.99999 | C105: Productos farmacéuticos y medicinales | D105: 6400 | E105: 0 | F105: 6400 | G105: 0
A106: 3.1 | B106: 1.1.4.01.01.04. | C106: Tintas, pinturas y diluyentes | D106: 2775593.63 | E106: 227330.1 | F106: 95370.1 | G106: 2907553.63
A107: 3.1 | B107: 1.1.4.01.01.04.0. | C107: Tintas, pinturas y diluyentes | D107: 2775593.63 | E107: 227330.1 | F107: 95370.1 | G107: 2907553.63
A108: 3.1 | B108: 1.1.4.01.01.04.0.99999 | C108: Tintas, pinturas y diluyentes | D108: 2775593.63 | E108: 227330.1 | F108: 95370.1 | G108: 2907553.63
A109: 3.1 | B109: 1.1.4.01.01.99. | C109: Otros productos químicos y conexos | D109: 814162 | E109: 0 | F109: 188054 | G109: 626108
A110: 3.1 | B110: 1.1.4.01.01.99.0. | C110: Otros productos químicos y conexos | D110: 814162 | E110: 0 | F110: 188054 | G110: 626108
A111: 3.1 | B111: 1.1.4.01.01.99.0.99999 | C111: Otros productos químicos y conexos | D111: 814162 | E111: 0 | F111: 188054 | G111: 626108
A112: 3.1 | B112: 1.1.4.01.03. | C112: Materiales y productos de uso en la construcción y mantenimiento | D112: 30127789.25 | E112: 2226700 | F112: 464966.64 | G112: 31889522.61
A113: 3.1 | B113: 1.1.4.01.03.01. | C113: Materiales y productos metálicos | D113: 25238704.2 | E113: 0 | F113: 370635.64 | G113: 24868068.56
A114: 3.1 | B114: 1.1.4.01.03.01.0. | C114: Materiales y productos metálicos | D114: 25238704.2 | E114: 0 | F114: 370635.64 | G114: 24868068.56
A115: 3.1 | B115: 1.1.4.01.03.01.0.99999 | C115: Materiales y productos metálicos | D115: 25238704.2 | E115: 0 | F115: 370635.64 | G115: 24868068.56
A116: 3.1 | B116: 1.1.4.01.03.02. | C116: Materiales y productos minerales y asfálticos | D116: 3708677 | E116: 2226700 | F116: 0 | G116: 5935377
A117: 3.1 | B117: 1.1.4.01.03.02.0. | C117: Materiales y productos minerales y asfálticos | D117: 3708677 | E117: 2226700 | F117: 0 | G117: 5935377
A118: 3.1 | B118: 1.1.4.01.03.02.0.99999 | C118: Materiales y productos minerales y asfálticos | D118: 3708677 | E118: 2226700 | F118: 0 | G118: 5935377
A119: 3.1 | B119: 1.1.4.01.03.03. | C119: Madera y sus derivados | D119: 896515 | E119: 0 | F119: 93960 | G119: 802555
A120: 3.1 | B120: 1.1.4.01.03.03.0. | C120: Madera y sus derivados | D120: 896515 | E120: 0 | F120: 93960 | G120: 802555
A121: 3.1 | B121: 1.1.4.01.03.03.0.99999 | C121: Madera y sus derivados | D121: 896515 | E121: 0 | F121: 93960 | G121: 802555
A122: 3.1 | B122: 1.1.4.01.03.04. | C122: Materiales y productos eléctricos, telefónicos y de cómputo | D122: 135171.56 | E122: 0 | F122: 371 | G122: 134800.56
A123: 3.1 | B123: 1.1.4.01.03.04.0. | C123: Materiales y productos eléctricos, telefónicos y de cómputo | D123: 135171.56 | E123: 0 | F123: 371 | G123: 134800.56
A124: 3.1 | B124: 1.1.4.01.03.04.0.99999 | C124: Materiales y productos eléctricos, telefónicos y de cómputo | D124: 135171.56 | E124: 0 | F124: 371 | G124: 134800.56
A125: 3.1 | B125: 1.1.4.01.03.06. | C125: Materiales y productos de plástico | D125: 148721.49 | E125: 0 | F125: 0 | G125: 148721.49
A126: 3.1 | B126: 1.1.4.01.03.06.0. | C126: Materiales y productos de plástico | D126: 148721.49 | E126: 0 | F126: 0 | G126: 148721.49
A127: 3.1 | B127: 1.1.4.01.03.06.0.99999 | C127: Materiales y productos de plástico | D127: 148721.49 | E127: 0 | F127: 0 | G127: 148721.49
A128: 3.1 | B128: 1.1.4.01.04. | C128: Herramientas, repuestos y accesorios | D128: 131278007.8 | E128: 0 | F128: 5687215.26 | G128: 125590792.5
A129: 3.1 | B129: 1.1.4.01.04.01. | C129: Herramientas e instrumentos | D129: 1233641.5 | E129: 0 | F129: 25624.39 | G129: 1208017.11
A130: 3.1 | B130: 1.1.4.01.04.01.0. | C130: Herramientas e instrumentos | D130: 1233641.5 | E130: 0 | F130: 25624.39 | G130: 1208017.11
A131: 3.1 | B131: 1.1.4.01.04.01.0.99999 | C131: Herramientas e instrumentos | D131: 1233641.5 | E131: 0 | F131: 25624.39 | G131: 1208017.11
A132: 3.1 | B132: 1.1.4.01.04.02. | C132: Repuestos y accesorios Nuevos | D132: 130044366.3 | E132: 0 | F132: 5661590.87 | G132: 124382775.4
A133: 3.1 | B133: 1.1.4.01.04.02.0. | C133: Repuestos y accesorios Nuevos | D133: 130044366.3 | E133: 0 | F133: 5661590.87 | G133: 124382775.4
A134: 3.1 | B134: 1.1.4.01.04.02.0.99999 | C134: Repuestos y accesorios Nuevos | D134: 130044366.3 | E134: 0 | F134: 5661590.87 | G134: 124382775.4
A135: 3.1 | B135: 1.1.4.01.99. | C135: Útiles, materiales y suministros diversos | D135: 10300800.1 | E135: 1287464.82 | F135: 1455838.69 | G135: 10132426.23
A136: 3.1 | B136: 1.1.4.01.99.01. | C136: Útiles y materiales de oficina y cómputo | D136: 1943168.61 | E136: 0 | F136: 29128.19 | G136: 1914040.42
A137: 3.1 | B137: 1.1.4.01.99.01.0. | C137: Útiles y materiales de oficina y cómputo | D137: 1943168.61 | E137: 0 | F137: 29128.19 | G137: 1914040.42
A138: 3.1 | B138: 1.1.4.01.99.01.0.99999 | C138: Útiles y materiales de oficina y cómputo | D138: 1943168.61 | E138: 0 | F138: 29128.19 | G138: 1914040.42
A139: 3.1 | B139: 1.1.4.01.99.03. | C139: Productos de papel, cartón e impresos | D139: 2730589.18 | E139: 0 | F139: 85273.28 | G139: 2645315.9
A140: 3.1 | B140: 1.1.4.01.99.03.0. | C140: Productos de papel, cartón e impresos | D140: 2730589.18 | E140: 0 | F140: 85273.28 | G140: 2645315.9
A141: 3.1 | B141: 1.1.4.01.99.03.0.99999 | C141: Productos de papel, cartón e impresos | D141: 2730589.18 | E141: 0 | F141: 85273.28 | G141: 2645315.9
A142: 3.1 | B142: 1.1.4.01.99.04. | C142: Textiles y vestuario | D142: 306936.35 | E142: 20920 | F142: 0 | G142: 327856.35
A143: 3.1 | B143: 1.1.4.01.99.04.0. | C143: Textiles y vestuario | D143: 306936.35 | E143: 20920 | F143: 0 | G143: 327856.35
A144: 3.1 | B144: 1.1.4.01.99.04.0.99999 | C144: Textiles y vestuario | D144: 306936.35 | E144: 20920 | F144: 0 | G144: 327856.35
A145: 3.1 | B145: 1.1.4.01.99.05. | C145: Útiles y materiales de limpieza | D145: 2737377.74 | E145: 118266.4 | F145: 440489.8 | G145: 2415154.34
A146: 3.1 | B146: 1.1.4.01.99.05.0. | C146: Útiles y materiales de limpieza | D146: 2737377.74 | E146: 118266.4 | F146: 440489.8 | G146: 2415154.34
A147: 3.1 | B147: 1.1.4.01.99.05.0.99999 | C147: Útiles y materiales de limpieza | D147: 2737377.74 | E147: 118266.4 | F147: 440489.8 | G147: 2415154.34
A148: 3.1 | B148: 1.1.4.01.99.06. | C148: Útiles y materiales de resguardo y seguridad | D148: 2042904.22 | E148: 899278.42 | F148: 899278.42 | G148: 2042904.22
A149: 3.1 | B149: 1.1.4.01.99.06.0. | C149: Útiles y materiales de resguardo y seguridad | D149: 2042904.22 | E149: 899278.42 | F149: 899278.42 | G149: 2042904.22
A150: 3.1 | B150: 1.1.4.01.99.06.0.99999 | C150: Útiles y materiales de resguardo y seguridad | D150: 2042904.22 | E150: 899278.42 | F150: 899278.42 | G150: 2042904.22
A151: 3.1 | B151: 1.1.4.01.99.99. | C151: Otros útiles, materiales y suministros diversos | D151: 539824 | E151: 249000 | F151: 1669 | G151: 787155
A152: 3.1 | B152: 1.1.4.01.99.99.0. | C152: Otros útiles, materiales y suministros diversos | D152: 539824 | E152: 249000 | F152: 1669 | G152: 787155
A153: 3.1 | B153: 1.1.4.01.99.99.0.99999 | C153: Otros útiles, materiales y suministros diversos | D153: 539824 | E153: 249000 | F153: 1669 | G153: 787155
A154: 3.1 | B154: 1.1.9. | C154: Otros activos a corto plazo | D154: 26295622.24 | E154: 0 | F154: 5884323.92 | G154: 20411298.32
A155: 3.1 | B155: 1.1.9.01. | C155: Gastos a devengar a corto plazo | D155: 26295622.24 | E155: 0 | F155: 5884323.92 | G155: 20411298.32
A156: 3.1 | B156: 1.1.9.01.01. | C156: Servicios a devengar c/p | D156: 26295622.24 | E156: 0 | F156: 5884323.92 | G156: 20411298.32
A157: 3.1 | B157: 1.1.9.01.01.01. | C157: Primas y gastos de seguros a devengar c/p | D157: 26295622.24 | E157: 0 | F157: 5884323.92 | G157: 20411298.32
A158: 3.1 | B158: 1.1.9.01.01.01.0. | C158: Primas y gastos de seguros a devengar c/p | D158: 26295622.24 | E158: 0 | F158: 5884323.92 | G158: 20411298.32
A159: 3.1 | B159: 1.1.9.01.01.01.0.99999 | C159: Primas y gastos de seguros a devengar c/p | D159: 26295622.24 | E159: 0 | F159: 5884323.92 | G159: 20411298.32
A160: 3.1 | B160: 1.2. | C160: Activo No Corriente | D160: 1.630108083e+11 | E160: 20205550 | F160: 30191006.97 | G160: 1.630008228e+11
A161: 3.1 | B161: 1.2.5. | C161: Bienes no concesionados | D161: 1.630108083e+11 | E161: 20205550 | F161: 30191006.97 | G161: 1.630008228e+11
A162: 3.1 | B162: 1.2.5.01. | C162: Propiedades, planta y equipos explotados | D162: 2155163988 | E162: 20205550 | F162: 30191006.97 | G162: 2145178531
A163: 3.1 | B163: 1.2.5.01.02. | C163: Edificios | D163: 1250873081 | E163: 20205550 | F163: 16297389.51 | G163: 1254781241
A164: 3.1 | B164: 1.2.5.01.02.01. | C164: Edificios de oficinas atención al públ | D164: 439702157.1 | E164: 0 | F164: 571819.99 | G164: 439130337.1
A165: 3.1 | B165: 1.2.5.01.02.01.1. | C165: Edificios de oficinas y atención público Valores Origen | D165: 258127776.8 | E165: 0 | F165: 0 | G165: 258127776.8
A166: 3.1 | B166: 1.2.5.01.02.01.1.99999 | C166: Edificios de oficinas y atención público Valores Origen | D166: 258127776.8 | E166: 0 | F166: 0 | G166: 258127776.8
A167: 3.1 | B167: 1.2.5.01.02.01.3. | C167: Edificios oficinas y atención público Depreciación Acumulada | D167: -9149119.74 | E167: 0 | F167: 571819.99 | G167: -9720939.73
A168: 3.1 | B168: 1.2.5.01.02.01.3.99999 | C168: Edificios oficinas y atención público Depreciación Acumulada | D168: -9149119.74 | E168: 0 | F168: 571819.99 | G168: -9720939.73
A169: 3.1 | B169: 1.2.5.01.02.01.6. | C169: Edificios oficinas y atención público Porción Terreno Valores Origen | D169: 190723500 | E169: 0 | F169: 0 | G169: 190723500
A170: 3.1 | B170: 1.2.5.01.02.01.6.99999 | C170: Edificios oficinas y atención público Porción Terreno Valores Origen | D170: 190723500 | E170: 0 | F170: 0 | G170: 190723500
A171: 3.1 | B171: 1.2.5.01.02.05. | C171: Locales | D171: 297585392.3 | E171: 0 | F171: 426459.57 | G171: 297158932.7
A172: 3.1 | B172: 1.2.5.01.02.05.1. | C172: Locales Valores de origen | D172: 198576095.4 | E172: 0 | F172: 0 | G172: 198576095.4
A173: 3.1 | B173: 1.2.5.01.02.05.1.99999 | C173: Locales Valores de origen | D173: 198576095.4 | E173: 0 | F173: 0 | G173: 198576095.4
A174: 3.1 | B174: 1.2.5.01.02.05.3. | C174: Locales Depreciaciones acumuladas * | D174: -6823353.09 | E174: 0 | F174: 426459.57 | G174: -7249812.66
A175: 3.1 | B175: 1.2.5.01.02.05.3.99999 | C175: Locales Depreciaciones acumuladas * | D175: -6823353.09 | E175: 0 | F175: 426459.57 | G175: -7249812.66
A176: 3.1 | B176: 1.2.5.01.02.05.6. | C176: Locales Porción terreno: valores de origen | D176: 105832650 | E176: 0 | F176: 0 | G176: 105832650
A177: 3.1 | B177: 1.2.5.01.02.05.6.99999 | C177: Locales Porción terreno: valores de origen | D177: 105832650 | E177: 0 | F177: 0 | G177: 105832650
A178: 3.1 | B178: 1.2.5.01.02.99. | C178: Otros edificios | D178: 513585531.3 | E178: 20205550 | F178: 15299109.95 | G178: 518491971.4
A179: 3.1 | B179: 1.2.5.01.02.99.1. | C179: Otros edificios Valores de origen | D179: 362322050.9 | E179: 20205550 | F179: 14635400 | G179: 367892200.9
A180: 3.1 | B180: 1.2.5.01.02.99.1.99999 | C180: Otros edificios Valores de origen | D180: 362322050.9 | E180: 20205550 | F180: 14635400 | G180: 367892200.9
A181: 3.1 | B181: 1.2.5.01.02.99.3. | C181: Otros edificios Depreciaciones acumuladas * | D181: -10193719.61 | E181: 0 | F181: 663709.95 | G181: -10857429.56
A182: 3.1 | B182: 1.2.5.01.02.99.3.99999 | C182: Otros edificios Depreciaciones acumuladas * | D182: -10193719.61 | E182: 0 | F182: 663709.95 | G182: -10857429.56
A183: 3.1 | B183: 1.2.5.01.02.99.6. | C183: Otros edificios Porción terreno: valores de origen | D183: 161457200 | E183: 0 | F183: 0 | G183: 161457200
A184: 3.1 | B184: 1.2.5.01.02.99.6.99999 | C184: Otros edificios Porción terreno: valores de origen | D184: 161457200 | E184: 0 | F184: 0 | G184: 161457200
A185: 3.1 | B185: 1.2.5.01.03. | C185: Maquinaria equipos para la producción | D185: 786374546 | E185: 0 | F185: 11349807.31 | G185: 775024738.7
A186: 3.1 | B186: 1.2.5.01.03.01. | C186: Maquinaria para la construcción | D186: 754306983.3 | E186: 0 | F186: 10990097.04 | G186: 743316886.3
A187: 3.1 | B187: 1.2.5.01.03.01.1. | C187: Maquinaria para la construcción Valores de origen | D187: 1997638164 | E187: 0 | F187: 0 | G187: 1997638164
A188: 3.1 | B188: 1.2.5.01.03.01.1.99999 | C188: Maquinaria para la construcción Valores de origen | D188: 1997638164 | E188: 0 | F188: 0 | G188: 1997638164
A189: 3.1 | B189: 1.2.5.01.03.01.3. | C189: Maq para la construcción Depreciaciones acumuladas | D189: -1243331181 | E189: 0 | F189: 10990097.04 | G189: -1254321278
A190: 3.1 | B190: 1.2.5.01.03.01.3.99999 | C190: Maq para la construcción Depreciaciones acumuladas | D190: -1243331181 | E190: 0 | F190: 10990097.04 | G190: -1254321278
A191: 3.1 | B191: 1.2.5.01.03.03. | C191: Planta eléctrica | D191: 3500057.28 | E191: 0 | F191: 28831.58 | G191: 3471225.7
A192: 3.1 | B192: 1.2.5.01.03.03.1. | C192: Planta eléctrica Valores de origen | D192: 5189684.8 | E192: 0 | F192: 0 | G192: 5189684.8
A193: 3.1 | B193: 1.2.5.01.03.03.1.99999 | C193: Planta eléctrica Valores de origen | D193: 5189684.8 | E193: 0 | F193: 0 | G193: 5189684.8
A194: 3.1 | B194: 1.2.5.01.03.03.3. | C194: Planta eléctrica Depreciaciones acumuladas * | D194: -1689627.52 | E194: 0 | F194: 28831.58 | G194: -1718459.1
A195: 3.1 | B195: 1.2.5.01.03.03.3.99999 | C195: Planta eléctrica Depreciaciones acumuladas * | D195: -1689627.52 | E195: 0 | F195: 28831.58 | G195: -1718459.1
A196: 3.1 | B196: 1.2.5.01.03.06. | C196: Equipos hidráulicos | D196: 181634.5 | E196: 0 | F196: 1763.44 | G196: 179871.06
A197: 3.1 | B197: 1.2.5.01.03.06.1. | C197: Equipos hidráulicos Valores de origen | D197: 280058 | E197: 0 | F197: 0 | G197: 280058
A198: 3.1 | B198: 1.2.5.01.03.06.1.99999 | C198: Equipos hidráulicos Valores de origen | D198: 280058 | E198: 0 | F198: 0 | G198: 280058
A199: 3.1 | B199: 1.2.5.01.03.06.3. | C199: Equipos hidráulicos Depreciaciones acumuladas * | D199: -98423.5 | E199: 0 | F199: 1763.44 | G199: -100186.94
A200: 3.1 | B200: 1.2.5.01.03.06.3.99999 | C200: Equipos hidráulicos Depreciaciones acumuladas * | D200: -98423.5 | E200: 0 | F200: 1763.44 | G200: -100186.94
A201: 3.1 | B201: 1.2.5.01.03.08. | C201: Equipos de medición | D201: 948171.86 | E201: 0 | F201: 53069.78 | G201: 895102.08
A202: 3.1 | B202: 1.2.5.01.03.08.1. | C202: Equipos de medición Valores de origen | D202: 6734898.73 | E202: 0 | F202: 0 | G202: 6734898.73
A203: 3.1 | B203: 1.2.5.01.03.08.1.99999 | C203: Equipos de medición Valores de origen | D203: 6734898.73 | E203: 0 | F203: 0 | G203: 6734898.73
A204: 3.1 | B204: 1.2.5.01.03.08.3. | C204: Equipos de medición Depreciaciones acumuladas * | D204: -5786726.87 | E204: 0 | F204: 53069.78 | G204: -5839796.65
A205: 3.1 | B205: 1.2.5.01.03.08.3.99999 | C205: Equipos de medición Depreciaciones acumuladas * | D205: -5786726.87 | E205: 0 | F205: 53069.78 | G205: -5839796.65
A206: 3.1 | B206: 1.2.5.01.03.09. | C206: Bombas | D206: 5578043.87 | E206: 0 | F206: 58662.4 | G206: 5519381.47
A207: 3.1 | B207: 1.2.5.01.03.09.1. | C207: Bombas Valores de origen | D207: 7392803 | E207: 0 | F207: 0 | G207: 7392803
A208: 3.1 | B208: 1.2.5.01.03.09.1.99999 | C208: Bombas Valores de origen | D208: 7392803 | E208: 0 | F208: 0 | G208: 7392803
... 613 more rows

Sheet VALIDACION (hidden)
L5: CUENTA DUPLICADA / CUENTA NO ENCONTRADA | U5: Error | AF5: REVISAR SALDO / CUENTA NUEVA | AI5: 1 | BD5: ERROR
L6: REVISION CUENTAS | U6: RECIPROCAS | AF6: ANTERIOR | AJ6: NEGATIVOS | BD6: NEGATIVOS
L7: =SUM(COUNTIF(L10:L10000,"CUENTA NO ENCONTRADA"),COUNTIF(L10:L10000,"CUENTA DUPLICADA")) -> 0 | U7: =COUNTIF(U10:U10000,"ERROR") -> 0 | AH7: EXCEPCION_ACTI | AJ7: =SUM(AJ10:AJ10000) -> 0 | BD7: =COUNTIF(BD10:BD10000,BD5) -> 0
A8: BALANCE DE COMPROBACION PERIODO ACTUAL | H8: NIVELES | J8: PLAN CUENTAS | M8: REGISTRO DE CUENTAS RECIPROCAS POR GRUPO INSTITUCIONAL | V8: BALANCE DE COMPROBACION PERIODO ANTERIOR | AC8: REVISION SALDOS PERIODO ANTERIOR | AG8: SALDOS NEGATIVO | AK8: REVISION BALANCE DE COMPROBACION SIMULADO | AZ8: BALANCE_DECIMALES
A9: CODIGO SEGMENTO | B9: CUENTA | C9: NOMBRE CUENTA | D9: SALDO INICIAL | E9: DEBITOS PERIODO | F9: CREDITOS PERIODO | G9: SALDO FINAL | H9: NIVEL | I9: CUENTA | J9: PLAN CUENTAS | K9: DUPLICADO | L9: REVISION_CUENTAS | M9: RECIPROCA | N9: ENTIDAD | O9: CODIGO_GRUPO | P9: NOMBRE_ENTIDAD | Q9: CUENTA REGISTRADA | R9: CODIGO_CUENTA | S9: VALIDACION_1 | T9: VALIDACION_2 | U9: FILTRO | V9: CODIGO SEGMENTO | W9: CUENTA | X9: NOMBRE CUENTA | Y9: SALDO INICIAL | Z9: DEBITOS PERIODO | AA9: CREDITOS PERIODO | AB9: SALDO FINAL AÑO ANTERIOR | AC9: SALDO INCIAL BALANCE ACTUAL | AD9: SALDO FINAL BALANCE ANTERIOR | AE9: DIFERENCIA | AF9: VALIDACION_PERIODO_ANTERIOR | AG9: NEGATIVA | AH9: CUENTA | AI9: CUENTA_RESULTADOS | AJ9: INCORRECTO | AK9: CODIGO | AL9: CUENTA | AM9: SALDO INICIAL | AN9: DEBITOS PERIODO | AO9: CREDITOS PERIODO | AP9: SALDO FINAL | AQ9: SALDO_INICIAL_SIMULADO | AR9: DEBITOS _SIMULADOS | AS9: CREDITOS_SIMULADOS | AT9: SALDO_FINAL_SIMULADOS | AU9: DIFERENCIA_SALDO_INICIAL | AV9: DIFERENCIA_DEBITOS | AW9: DIFRENCIAS_CREDITOS | AX9: DIFRENCIA_SALDO_FINAL | AY9: DIFERENCIAS | AZ9: SALDO_INICIAL | BA9: DEBITOS | BB9: CREDITOS | BC9: SALDO_FINAL | BD9: TOTAL_DECIMALES
A10: =BALANCE_COMPROBACION!A10 -> 3.1 | B10: =BALANCE_COMPROBACION!B10 -> 1. | C10: =BALANCE_COMPROBACION!C10 -> ACTIVO | D10: =BALANCE_COMPROBACION!D10 -> 1.658328453e+11 | E10: =BALANCE_COMPROBACION!E10 -> 1362170417 | F10: =BALANCE_COMPROBACION!F10 -> 1240628054 | G10: =BALANCE_COMPROBACION!G10 -> 1.659543877e+11 | H10: =LEN(B10) -> 2 | I10: =MID(B10,1,1) -> 1 | J10: =IFERROR(IF(B10="GRAN TOTAL","N/A",IF(H10=22,"N/A",IF(B10=0,"N/A",VLOOKUP(B10,PLAN_CUENTAS!$J:$J,1,FALSE)))),"ERROR") -> 1. | K10: =IF(IF(B10<>0,COUNTIF($B$10:$B$10000,B10),1)>1,"DUPLICADO","") ->  | L10: =IFERROR(IF(J10="ERROR","CUENTA NO ENCONTRADA",IF(K10="DUPLICADO","CUENTA DUPLICADA","")),"") ->  | M10: =IFERROR(IF(AND(B10<>"",J10="N/A",B10<>0),"RECIPROCA",""),"") ->  | N10: =IFERROR(IF(M10="RECIPROCA",RIGHT(B10,5),""),"") ->  | O10: =IFERROR(IF(N10="","",VLOOKUP(N10,REGISTRO_RECIPROCAS!C:E,3,FALSE)),"1") ->  | P10: =IFERROR(VLOOKUP(N10,REGISTRO_RECIPROCAS!C$2:D$501,2,FALSE),"") ->  | Q10: =IFERROR(IF(M10="","",IF(M10<>"",MID(B10,1,17))),"") ->  | R10: =IFERROR(IF(Q10="","",VLOOKUP(Q10,REGISTRO_RECIPROCAS!A:B,2,FALSE)),"") ->  | S10: =IFERROR(IF(B10="1.1.1.01.02.02.3.11206","CORRECTO",IF(B10="2.1.1.02.01.04.0.14120","CORRECTO",IF(B10="2.1.1.02.02.02.0.11206","CORRECTO",IF(B10="1.1.3.13.01.01.0.11206","CORRECTO",IF(B10="2.1.1.02.01.05.0.14120","CORRECTO",IF(OR(B10="1.1.1.01.02.02.3.00000",B10="1.1.1.01.02.02.3.99999"),"ERROR",IF(OR(B10="2.1.1.02.01.04.0.00000",B10="2.1.1.02.01.04.0.99999"),"ERROR",IF(OR(B10="2.1.1.02.02.02.0.00000",B10="2.1.1.02.02.02.0.99999"),"ERROR",IF(OR(B10="1.1.3.13.01.01.0.00000",B10="1.1.3.13.01.01.0.99999"),"ERROR",IF(OR(B10="2.1.1.02.01.05.0.14120",B10="2.1.1.02.01.05.0.14120"),"ERROR",IF(OR(B10="2.1.1.02.01.05.0.14120",B10="2.1.1.02.01.05.0.14120"),"ERROR",IF(AND(T10="APLICA",N10="00000",N10="99999"),"ERROR",IF(AND(M10="RECIPROCA",O10=""),"ERROR",IF(O10="EPE","CORRECTO",IF(EXACT(O10,R10),"CORRECTO","ERROR"))))))))))))))),"") -> CORRECTO | T10: =IFERROR(IF(Q10=VLOOKUP(Q10,REGISTRO_RECIPROCAS!A:A,1,FALSE),"APLICA","NO APLICA"),"NO APLICA") -> NO APLICA | U10: =IF(AND(S10="ERROR",T10="APLICA",G10<>0),"ERROR","") ->  | V10: =BALANCE_PERIODO_ANTERIOR!A10 -> 3.1 | W10: =BALANCE_PERIODO_ANTERIOR!B10 -> 1. | X10: =BALANCE_PERIODO_ANTERIOR!C10 -> ACTIVO | Y10: =BALANCE_PERIODO_ANTERIOR!D10 -> 1.662327302e+11 | Z10: =BALANCE_PERIODO_ANTERIOR!E10 -> 1.557370486e+10 | AA10: =BALANCE_PERIODO_ANTERIOR!F10 -> 1.597358975e+10 | AB10: =BALANCE_PERIODO_ANTERIOR!G10 -> 1.658328453e+11 | AC10: =IFERROR(VLOOKUP(B10,$B$10:$D$10000,3,FALSE),"0") -> 1.658328453e+11 | AD10: =IFERROR(IF(I10="4",0,IF(I10="5",0,VLOOKUP(B10,$W$10:$AB$10000,6,FALSE))),"CUENTA NUEVA") -> 1.658328453e+11 | AE10: =IFERROR(ROUND(AC10-AD10,0),0) -> 0 | AF10: =IFERROR(IF(B10="GRAN TOTAL",0,IF(AD10="CUENTA NUEVA","CUENTA NUEVA",IF(ROUND((AC10-AD10),0)=0,0,"REVISAR SALDO"))),"REVISAR SALDO") -> 0 | AG10: =IFERROR(IF(G10<0,1,0),0) -> 0 | AH10: =IFERROR(IF(VLOOKUP(B10,PLAN_CUENTAS!$J:$AC,20,0)="EXCEP",0,1),0) -> 1 | AI10: =IFERROR(IF(MID(B10,1,6)="3.1.5.",0,1),0) -> 1 | AJ10: =IFERROR(IF(AND(AG10=1,AH10=1,AI10=1),1,0),0) -> 0 | AK10: =#REF! ->  | AL10: =#REF! ->  | AM10: =#REF! ->  | AN10: =#REF! ->  | AO10: =#REF! ->  | AP10: =#REF! ->  | AQ10: =IF(H10=22,VLOOKUP(B10,$B$10:$G$10000,3,FALSE),VLOOKUP(B10,$AK$10:$AP$10000,3,FALSE)) ->  | AR10: =IF(H10=22,VLOOKUP(B10,$B$10:$G$10000,4,FALSE),VLOOKUP(B10,$AK$10:$AP$10000,4,FALSE)) ->  | AS10: =IF(H10=22,VLOOKUP(B10,$B$10:$G$10000,5,FALSE),VLOOKUP(B10,$AK$10:$AP$10000,5,FALSE)) ->  | AT10: =IF(H10=22,VLOOKUP(B10,$B$10:$G$10000,6,FALSE),VLOOKUP(B10,$AK$10:$AP$10000,6,FALSE)) ->  | AU10: =ROUND(D10-AQ10,0) ->  | AV10: =ROUND(E10-AR10,0) ->  | AW10: =ROUND(F10-AS10,0) ->  | AX10: =ROUND(G10-AT10,0) ->  | AY10: =IFERROR(IF(SUM(AU10,AV10,AW10,AX10)=0,"-","DIFERENCIA"),"-") -> - | AZ10: =DecimalesFX(D10) -> 2 | BA10: =DecimalesFX(E10) -> 2 | BB10: 2 | BC10: 2 | BD10: =IF(OR(AZ10>2,BA10>2,BB10>2,BC10>2),"ERROR","-") -> -
A11: =BALANCE_COMPROBACION!A11 -> 3.1 | B11: =BALANCE_COMPROBACION!B11 -> 1.1. | C11: =BALANCE_COMPROBACION!C11 -> Activo Corriente | D11: =BALANCE_COMPROBACION!D11 -> 2822037062 | E11: =BALANCE_COMPROBACION!E11 -> 1341964867 | F11: =BALANCE_COMPROBACION!F11 -> 1210437047 | G11: =BALANCE_COMPROBACION!G11 -> 2953564882 | H11: =LEN(B11) -> 4 | I11: =MID(B11,1,1) -> 1 | J11: =IFERROR(IF(B11="GRAN TOTAL","N/A",IF(H11=22,"N/A",IF(B11=0,"N/A",VLOOKUP(B11,PLAN_CUENTAS!$J:$J,1,FALSE)))),"ERROR") -> 1.1. | K11: =IF(IF(B11<>0,COUNTIF($B$10:$B$10000,B11),1)>1,"DUPLICADO","") ->  | L11: =IFERROR(IF(J11="ERROR","CUENTA NO ENCONTRADA",IF(K11="DUPLICADO","CUENTA DUPLICADA","")),"") ->  | N11: =IFERROR(IF(M11="RECIPROCA",RIGHT(B11,5),""),"") ->  | O11: =IFERROR(IF(N11="","",VLOOKUP(N11,REGISTRO_RECIPROCAS!C:E,3,FALSE)),"") ->  | P11: =IFERROR(VLOOKUP(N11,REGISTRO_RECIPROCAS!C$2:D$501,2,FALSE),"") ->  | Q11: =IFERROR(IF(M11="","",IF(M11<>"",MID(B11,1,17))),"") ->  | R11: =IFERROR(IF(Q11="","",VLOOKUP(Q11,REGISTRO_RECIPROCAS!A:B,2,FALSE)),"") ->  | S11: =IFERROR(IF(B11="1.1.1.01.02.02.3.11206","CORRECTO",IF(B11="2.1.1.02.01.04.0.14120","CORRECTO",IF(B11="2.1.1.02.02.02.0.11206","CORRECTO",IF(B11="1.1.3.13.01.01.0.11206","CORRECTO",IF(B11="2.1.1.02.01.05.0.14120","CORRECTO",IF(OR(B11="1.1.1.01.02.02.3.00000",B11="1.1.1.01.02.02.3.99999"),"ERROR",IF(OR(B11="2.1.1.02.01.04.0.00000",B11="2.1.1.02.01.04.0.99999"),"ERROR",IF(OR(B11="2.1.1.02.02.02.0.00000",B11="2.1.1.02.02.02.0.99999"),"ERROR",IF(OR(B11="1.1.3.13.01.01.0.00000",B11="1.1.3.13.01.01.0.99999"),"ERROR",IF(OR(B11="2.1.1.02.01.05.0.14120",B11="2.1.1.02.01.05.0.14120"),"ERROR",IF(OR(B11="2.1.1.02.01.05.0.14120",B11="2.1.1.02.01.05.0.14120"),"ERROR",IF(AND(T11="APLICA",N11="00000",N11="99999"),"ERROR",IF(AND(M11="RECIPROCA",O11=""),"ERROR",IF(O11="EPE","CORRECTO",IF(EXACT(O11,R11),"CORRECTO","ERROR"))))))))))))))),"") -> CORRECTO | T11: =IFERROR(IF(Q11=VLOOKUP(Q11,REGISTRO_RECIPROCAS!A:A,1,FALSE),"APLICA","NO APLICA"),"NO APLICA") -> NO APLICA | U11: =IF(AND(S11="ERROR",T11="APLICA",G11<>0),"ERROR","") ->  | V11: =BALANCE_PERIODO_ANTERIOR!A11 -> 3.1 | W11: =BALANCE_PERIODO_ANTERIOR!B11 -> 1.1. | X11: =BALANCE_PERIODO_ANTERIOR!C11 -> Activo Corriente | Y11: =BALANCE_PERIODO_ANTERIOR!D11 -> 3349699858 | Z11: =BALANCE_PERIODO_ANTERIOR!E11 -> 1.498015259e+10 | AA11: =BALANCE_PERIODO_ANTERIOR!F11 -> 1.550781538e+10 | AB11: =BALANCE_PERIODO_ANTERIOR!G11 -> 2822037062 | AC11: =IFERROR(VLOOKUP(B11,$B$10:$D$10000,3,FALSE),"Cuenta Nueva") -> 2822037062 | AD11: =IFERROR(IF(I11="4",0,IF(I11="5",0,VLOOKUP(B11,$W$10:$AB$10000,6,FALSE))),"CUENTA NUEVA") -> 2822037062 | AE11: =IFERROR(ROUND(AC11-AD11,0),0) -> 0 | AF11: =IFERROR(IF(B11="GRAN TOTAL",0,IF(AD11="CUENTA NUEVA","CUENTA NUEVA",IF(ROUND((AC11-AD11),0)=0,0,"REVISAR SALDO"))),"REVISAR SALDO") -> 0 | AG11: =IFERROR(IF(G11<0,1,0),0) -> 0 | AH11: =IFERROR(IF(VLOOKUP(B11,PLAN_CUENTAS!$J:$AC,20,0)="EXCEP",0,1),0) -> 1 | AI11: =IFERROR(IF(MID(B11,1,6)="3.1.5.",0,1),0) -> 1 | AJ11: =IFERROR(IF(AND(AG11=1,AH11=1,AI11=1),1,0),0) -> 0 | AK11: =#REF! ->  | AL11: =#REF! ->  | AM11: =#REF! ->  | AN11: =#REF! ->  | AO11: =#REF! ->  | AP11: =#REF! ->  | AQ11: =IF(H11=22,VLOOKUP(B11,$B$10:$G$10000,3,FALSE),VLOOKUP(B11,$AK$10:$AP$10000,3,FALSE)) ->  | AR11: =IF(H11=22,VLOOKUP(B11,$B$10:$G$10000,4,FALSE),VLOOKUP(B11,$AK$10:$AP$10000,4,FALSE)) ->  | AS11: =IF(H11=22,VLOOKUP(B11,$B$10:$G$10000,5,FALSE),VLOOKUP(B11,$AK$10:$AP$10000,5,FALSE)) ->  | AT11: =IF(H11=22,VLOOKUP(B11,$B$10:$G$10000,6,FALSE),VLOOKUP(B11,$AK$10:$AP$10000,6,FALSE)) ->  | AU11: =ROUND(D11-AQ11,0) ->  | AV11: =ROUND(E11-AR11,0) ->  | AW11: =ROUND(F11-AS11,0) ->  | AX11: =ROUND(G11-AT11,0) ->  | AY11: =IFERROR(IF(SUM(AU11,AV11,AW11,AX11)=0,"-","DIFERENCIA"),"-") -> - | AZ11: =DecimalesFX(D11) -> 2 | BA11: =DecimalesFX(E11) -> 2 | BB11: =DecimalesFX(F11) -> 2 | BC11: =DecimalesFX(G11) -> 2 | BD11: =IF(OR(AZ11>2,BA11>2,BB11>2,BC11>2),"ERROR","-") -> -
A12: =BALANCE_COMPROBACION!A12 -> 3.1 | B12: =BALANCE_COMPROBACION!B12 -> 1.1.1. | C12: =BALANCE_COMPROBACION!C12 -> Efectivo equivalentes de efectivo | D12: =BALANCE_COMPROBACION!D12 -> 2106811911 | E12: =BALANCE_COMPROBACION!E12 -> 934735291.5 | F12: =BALANCE_COMPROBACION!F12 -> 1057976865 | G12: =BALANCE_COMPROBACION!G12 -> 1983570338 | H12: 6 | I12: 1 | J12: =IFERROR(IF(B12="GRAN TOTAL","N/A",IF(H12=22,"N/A",IF(B12=0,"N/A",VLOOKUP(B12,PLAN_CUENTAS!$J:$J,1,FALSE)))),"ERROR") -> 1.1.1. | L12: =IFERROR(IF(J12="ERROR","CUENTA NO ENCONTRADA",IF(K12="DUPLICADO","CUENTA DUPLICADA","")),"") ->  | O12: =IFERROR(IF(N12="","",VLOOKUP(N12,REGISTRO_RECIPROCAS!C:E,3,FALSE)),"") ->  | P12: =IFERROR(VLOOKUP(N12,REGISTRO_RECIPROCAS!C$2:D$501,2,FALSE),"") ->  | R12: =IFERROR(IF(Q12="","",VLOOKUP(Q12,REGISTRO_RECIPROCAS!A:B,2,FALSE)),"") ->  | S12: CORRECTO | T12: =IFERROR(IF(Q12=VLOOKUP(Q12,REGISTRO_RECIPROCAS!A:A,1,FALSE),"APLICA","NO APLICA"),"NO APLICA") -> NO APLICA | V12: =BALANCE_PERIODO_ANTERIOR!A12 -> 3.1 | W12: =BALANCE_PERIODO_ANTERIOR!B12 -> 1.1.1. | X12: =BALANCE_PERIODO_ANTERIOR!C12 -> Efectivo equivalentes de efectivo | Y12: =BALANCE_PERIODO_ANTERIOR!D12 -> 2705767389 | Z12: =BALANCE_PERIODO_ANTERIOR!E12 -> 8620068481 | AA12: =BALANCE_PERIODO_ANTERIOR!F12 -> 9219023959 | AB12: =BALANCE_PERIODO_ANTERIOR!G12 -> 2106811911 | AC12: 2106811911 | AD12: 2106811911 | AE12: 0 | AF12: 0 | AG12: 0 | AH12: =IFERROR(IF(VLOOKUP(B12,PLAN_CUENTAS!$J:$AC,20,0)="EXCEP",0,1),0) -> 1 | AI12: =IFERROR(IF(MID(B12,1,6)="3.1.5.",0,1),0) -> 1 | AJ12: =IFERROR(IF(AND(AG12=1,AH12=1,AI12=1),1,0),0) -> 0 | AK12: =#REF! ->  | AL12: =#REF! ->  | AM12: =#REF! ->  | AN12: =#REF! ->  | AO12: =#REF! ->  | AP12: =#REF! ->  | AY12: - | AZ12: 2 | BA12: 2 | BB12: 2 | BC12: 2 | BD12: -
A13: =BALANCE_COMPROBACION!A13 -> 3.1 | B13: =BALANCE_COMPROBACION!B13 -> 1.1.1.01. | C13: =BALANCE_COMPROBACION!C13 -> Efectivo | D13: =BALANCE_COMPROBACION!D13 -> 2106811911 | E13: =BALANCE_COMPROBACION!E13 -> 333716048.5 | F13: =BALANCE_COMPROBACION!F13 -> 1057976865 | G13: =BALANCE_COMPROBACION!G13 -> 1382551095 | H13: 9 | I13: 1 | J13: =IFERROR(IF(B13="GRAN TOTAL","N/A",IF(H13=22,"N/A",IF(B13=0,"N/A",VLOOKUP(B13,PLAN_CUENTAS!$J:$J,1,FALSE)))),"ERROR") -> 1.1.1.01. | O13: =IFERROR(IF(N13="","",VLOOKUP(N13,REGISTRO_RECIPROCAS!C:E,3,FALSE)),"") ->  | P13: =IFERROR(VLOOKUP(N13,REGISTRO_RECIPROCAS!C$2:D$501,2,FALSE),"") ->  | R13: =IFERROR(IF(Q13="","",VLOOKUP(Q13,REGISTRO_RECIPROCAS!A:B,2,FALSE)),"") ->  | S13: CORRECTO | T13: =IFERROR(IF(Q13=VLOOKUP(Q13,REGISTRO_RECIPROCAS!A:A,1,FALSE),"APLICA","NO APLICA"),"NO APLICA") -> NO APLICA | V13: =BALANCE_PERIODO_ANTERIOR!A13 -> 3.1 | W13: =BALANCE_PERIODO_ANTERIOR!B13 -> 1.1.1.01. | X13: =BALANCE_PERIODO_ANTERIOR!C13 -> Efectivo | Y13: =BALANCE_PERIODO_ANTERIOR!D13 -> 2705767389 | Z13: =BALANCE_PERIODO_ANTERIOR!E13 -> 7941797205 | AA13: =BALANCE_PERIODO_ANTERIOR!F13 -> 8540752683 | AB13: =BALANCE_PERIODO_ANTERIOR!G13 -> 2106811911 | AC13: 2106811911 | AD13: 2106811911 | AE13: 0 | AF13: 0 | AG13: 0 | AH13: =IFERROR(IF(VLOOKUP(B13,PLAN_CUENTAS!$J:$AC,20,0)="EXCEP",0,1),0) -> 1 | AI13: 1 | AJ13: 0 | AK13: =#REF! ->  | AL13: =#REF! ->  | AM13: =#REF! ->  | AN13: =#REF! ->  | AO13: =#REF! ->  | AP13: =#REF! ->  | AY13: - | AZ13: 2 | BA13: 2 | BB13: 2 | BC13: 2 | BD13: -
A14: =BALANCE_COMPROBACION!A14 -> 3.1 | B14: =BALANCE_COMPROBACION!B14 -> 1.1.1.01.02. | C14: =BALANCE_COMPROBACION!C14 -> Depósitos bancarios | D14: =BALANCE_COMPROBACION!D14 -> 2103561911 | E14: =BALANCE_COMPROBACION!E14 -> 333716048.5 | F14: =BALANCE_COMPROBACION!F14 -> 1057976865 | G14: =BALANCE_COMPROBACION!G14 -> 1379301095 | H14: 12 | I14: 1 | J14: =IFERROR(IF(B14="GRAN TOTAL","N/A",IF(H14=22,"N/A",IF(B14=0,"N/A",VLOOKUP(B14,PLAN_CUENTAS!$J:$J,1,FALSE)))),"ERROR") -> 1.1.1.01.02. | O14: =IFERROR(IF(N14="","",VLOOKUP(N14,REGISTRO_RECIPROCAS!C:E,3,FALSE)),"") ->  | P14: =IFERROR(VLOOKUP(N14,REGISTRO_RECIPROCAS!C$2:D$501,2,FALSE),"") ->  | R14: =IFERROR(IF(Q14="","",VLOOKUP(Q14,REGISTRO_RECIPROCAS!A:B,2,FALSE)),"") ->  | S14: CORRECTO | T14: =IFERROR(IF(Q14=VLOOKUP(Q14,REGISTRO_RECIPROCAS!A:A,1,FALSE),"APLICA","NO APLICA"),"NO APLICA") -> NO APLICA | V14: =BALANCE_PERIODO_ANTERIOR!A14 -> 3.1 | W14: =BALANCE_PERIODO_ANTERIOR!B14 -> 1.1.1.01.02. | X14: =BALANCE_PERIODO_ANTERIOR!C14 -> Depósitos bancarios | Y14: =BALANCE_PERIODO_ANTERIOR!D14 -> 2704317389 | Z14: =BALANCE_PERIODO_ANTERIOR!E14 -> 7938047205 | AA14: =BALANCE_PERIODO_ANTERIOR!F14 -> 8538802683 | AB14: =BALANCE_PERIODO_ANTERIOR!G14 -> 2103561911 | AC14: 2103561911 | AD14: 2103561911 | AE14: 0 | AF14: 0 | AG14: 0 | AH14: =IFERROR(IF(VLOOKUP(B14,PLAN_CUENTAS!$J:$AC,20,0)="EXCEP",0,1),0) -> 1 | AI14: 1 | AJ14: 0 | AK14: =#REF! ->  | AL14: =#REF! ->  | AM14: =#REF! ->  | AN14: =#REF! ->  | AO14: =#REF! ->  | AP14: =#REF! ->  | AY14: - | AZ14: 2 | BA14: 2 | BB14: 2 | BC14: 2 | BD14: -
A15: =BALANCE_COMPROBACION!A15 -> 3.1 | B15: =BALANCE_COMPROBACION!B15 -> 1.1.1.01.02.02. | C15: =BALANCE_COMPROBACION!C15 -> Depósitos bancarios en el sector público interno | D15: =BALANCE_COMPROBACION!D15 -> 2103561911 | E15: =BALANCE_COMPROBACION!E15 -> 333716048.5 | F15: =BALANCE_COMPROBACION!F15 -> 1057976865 | G15: =BALANCE_COMPROBACION!G15 -> 1379301095 | H15: 15 | I15: 1 | J15: =IFERROR(IF(B15="GRAN TOTAL","N/A",IF(H15=22,"N/A",IF(B15=0,"N/A",VLOOKUP(B15,PLAN_CUENTAS!$J:$J,1,FALSE)))),"ERROR") -> 1.1.1.01.02.02. | O15: =IFERROR(IF(N15="","",VLOOKUP(N15,REGISTRO_RECIPROCAS!C:E,3,FALSE)),"") ->  | P15: =IFERROR(VLOOKUP(N15,REGISTRO_RECIPROCAS!C$2:D$501,2,FALSE),"") ->  | R15: =IFERROR(IF(Q15="","",VLOOKUP(Q15,REGISTRO_RECIPROCAS!A:B,2,FALSE)),"") ->  | S15: CORRECTO | T15: =IFERROR(IF(Q15=VLOOKUP(Q15,REGISTRO_RECIPROCAS!A:A,1,FALSE),"APLICA","NO APLICA"),"NO APLICA") -> NO APLICA | V15: =BALANCE_PERIODO_ANTERIOR!A15 -> 3.1 | W15: =BALANCE_PERIODO_ANTERIOR!B15 -> 1.1.1.01.02.02. | X15: =BALANCE_PERIODO_ANTERIOR!C15 -> Depósitos bancarios en el sector público interno | Y15: =BALANCE_PERIODO_ANTERIOR!D15 -> 2704317389 | Z15: =BALANCE_PERIODO_ANTERIOR!E15 -> 7938047205 | AA15: =BALANCE_PERIODO_ANTERIOR!F15 -> 8538802683 | AB15: =BALANCE_PERIODO_ANTERIOR!G15 -> 2103561911 | AC15: 2103561911 | AD15: 2103561911 | AE15: 0 | AF15: 0 | AG15: 0 | AH15: =IFERROR(IF(VLOOKUP(B15,PLAN_CUENTAS!$J:$AC,20,0)="EXCEP",0,1),0) -> 1 | AI15: 1 | AJ15: 0 | AK15: =#REF! ->  | AL15: =#REF! ->  | AM15: =#REF! ->  | AN15: =#REF! ->  | AO15: =#REF! ->  | AP15: =#REF! ->  | AY15: - | AZ15: 2 | BA15: 2 | BB15: 2 | BC15: 2 | BD15: -
A16: =BALANCE_COMPROBACION!A16 -> 3.1 | B16: =BALANCE_COMPROBACION!B16 -> 1.1.1.01.02.02.2. | C16: =BALANCE_COMPROBACION!C16 -> Cuentas corrientes en el sector público interno | D16: =BALANCE_COMPROBACION!D16 -> 687233539.5 | E16: =BALANCE_COMPROBACION!E16 -> 252716048.5 | F16: =BALANCE_COMPROBACION!F16 -> 802618724 | G16: =BALANCE_COMPROBACION!G16 -> 137330864.1 | H16: 17 | I16: 1 | J16: =IFERROR(IF(B16="GRAN TOTAL","N/A",IF(H16=22,"N/A",IF(B16=0,"N/A",VLOOKUP(B16,PLAN_CUENTAS!$J:$J,1,FALSE)))),"ERROR") -> 1.1.1.01.02.02.2. | O16: =IFERROR(IF(N16="","",VLOOKUP(N16,REGISTRO_RECIPROCAS!C:E,3,FALSE)),"") ->  | P16: =IFERROR(VLOOKUP(N16,REGISTRO_RECIPROCAS!C$2:D$501,2,FALSE),"") ->  | R16: =IFERROR(IF(Q16="","",VLOOKUP(Q16,REGISTRO_RECIPROCAS!A:B,2,FALSE)),"") ->  | S16: CORRECTO | T16: =IFERROR(IF(Q16=VLOOKUP(Q16,REGISTRO_RECIPROCAS!A:A,1,FALSE),"APLICA","NO APLICA"),"NO APLICA") -> NO APLICA | V16: =BALANCE_PERIODO_ANTERIOR!A16 -> 3.1 | W16: =BALANCE_PERIODO_ANTERIOR!B16 -> 1.1.1.01.02.02.2. | X16: =BALANCE_PERIODO_ANTERIOR!C16 -> Cuentas corrientes en el sector público interno | Y16: =BALANCE_PERIODO_ANTERIOR!D16 -> 600136255.9 | Z16: =BALANCE_PERIODO_ANTERIOR!E16 -> 2619932502 | AA16: =BALANCE_PERIODO_ANTERIOR!F16 -> 2532835218 | AB16: =BALANCE_PERIODO_ANTERIOR!G16 -> 687233539.5 | AC16: 687233539.5 | AD16: 687233539.5 | AE16: 0 | AF16: 0 | AG16: 0 | AH16: =IFERROR(IF(VLOOKUP(B16,PLAN_CUENTAS!$J:$AC,20,0)="EXCEP",0,1),0) -> 1 | AI16: 1 | AJ16: 0 | AK16: =#REF! ->  | AL16: =#REF! ->  | AM16: =#REF! ->  | AN16: =#REF! ->  | AO16: =#REF! ->  | AP16: =#REF! ->  | AY16: - | AZ16: 2 | BA16: 2 | BB16: 2 | BC16: 1 | BD16: -
A17: =BALANCE_COMPROBACION!A17 -> 3.1 | B17: =BALANCE_COMPROBACION!B17 -> 1.1.1.01.02.02.2.21101 | C17: =BALANCE_COMPROBACION!C17 -> Banco Costa Rica | D17: =BALANCE_COMPROBACION!D17 -> 372598001.7 | E17: =BALANCE_COMPROBACION!E17 -> 17215243.53 | F17: =BALANCE_COMPROBACION!F17 -> 382609424.8 | G17: =BALANCE_COMPROBACION!G17 -> 7203820.43 | H17: 22 | I17: 1 | J17: =IFERROR(IF(B17="GRAN TOTAL","N/A",IF(H17=22,"N/A",IF(B17=0,"N/A",VLOOKUP(B17,PLAN_CUENTAS!$J:$J,1,FALSE)))),"ERROR") -> N/A | M17: RECIPROCA | N17: 21101 | O17: =IFERROR(IF(N17="","",VLOOKUP(N17,REGISTRO_RECIPROCAS!C:E,3,FALSE)),"") -> IPF | P17: =IFERROR(VLOOKUP(N17,REGISTRO_RECIPROCAS!C$2:D$501,2,FALSE),"") -> Banco de Costa Rica (BCR) | Q17: 1.1.1.01.02.02.2. | R17: =IFERROR(IF(Q17="","",VLOOKUP(Q17,REGISTRO_RECIPROCAS!A:B,2,FALSE)),"") ->  | S17: ERROR | T17: =IFERROR(IF(Q17=VLOOKUP(Q17,REGISTRO_RECIPROCAS!A:A,1,FALSE),"APLICA","NO APLICA"),"NO APLICA") -> NO APLICA | V17: =BALANCE_PERIODO_ANTERIOR!A17 -> 3.1 | W17: =BALANCE_PERIODO_ANTERIOR!B17 -> 1.1.1.01.02.02.2.21101 | X17: =BALANCE_PERIODO_ANTERIOR!C17 -> Banco Costa Rica | Y17: =BALANCE_PERIODO_ANTERIOR!D17 -> 478691142.3 | Z17: =BALANCE_PERIODO_ANTERIOR!E17 -> 608687986.8 | AA17: =BALANCE_PERIODO_ANTERIOR!F17 -> 714781127.4 | AB17: =BALANCE_PERIODO_ANTERIOR!G17 -> 372598001.7 | AC17: 372598001.7 | AD17: 372598001.7 | AE17: 0 | AF17: 0 | AG17: 0 | AH17: =IFERROR(IF(VLOOKUP(B17,PLAN_CUENTAS!$J:$AC,20,0)="EXCEP",0,1),0) -> 0 | AI17: 1 | AJ17: 0 | AK17: =#REF! ->  | AL17: =#REF! ->  | AM17: =#REF! ->  | AN17: =#REF! ->  | AO17: =#REF! ->  | AP17: =#REF! ->  | AQ17: 372598001.7 | AR17: 17215243.53 | AS17: 382609424.8 | AT17: 7203820.43 | AU17: 0 | AV17: 0 | AW17: 0 | AX17: 0 | AY17: - | AZ17: 2 | BA17: 2 | BB17: 2 | BC17: 2 | BD17: -
A18: =BALANCE_COMPROBACION!A18 -> 3.1 | B18: =BALANCE_COMPROBACION!B18 -> 1.1.1.01.02.02.2.21103 | C18: =BALANCE_COMPROBACION!C18 -> Banco Nacional de Costa Rica | D18: =BALANCE_COMPROBACION!D18 -> 314635537.9 | E18: =BALANCE_COMPROBACION!E18 -> 235500805 | F18: =BALANCE_COMPROBACION!F18 -> 420009299.2 | G18: =BALANCE_COMPROBACION!G18 -> 130127043.7 | H18: 22 | I18: 1 | J18: =IFERROR(IF(B18="GRAN TOTAL","N/A",IF(H18=22,"N/A",IF(B18=0,"N/A",VLOOKUP(B18,PLAN_CUENTAS!$J:$J,1,FALSE)))),"ERROR") -> N/A | M18: RECIPROCA | N18: 21103 | O18: =IFERROR(IF(N18="","",VLOOKUP(N18,REGISTRO_RECIPROCAS!C:E,3,FALSE)),"") -> IPF | P18: =IFERROR(VLOOKUP(N18,REGISTRO_RECIPROCAS!C$2:D$501,2,FALSE),"") -> Banco Nacional de Costa Rica (BNCR) | Q18: 1.1.1.01.02.02.2. | R18: =IFERROR(IF(Q18="","",VLOOKUP(Q18,REGISTRO_RECIPROCAS!A:B,2,FALSE)),"") ->  | S18: ERROR | T18: =IFERROR(IF(Q18=VLOOKUP(Q18,REGISTRO_RECIPROCAS!A:A,1,FALSE),"APLICA","NO APLICA"),"NO APLICA") -> NO APLICA | V18: =BALANCE_PERIODO_ANTERIOR!A18 -> 3.1 | W18: =BALANCE_PERIODO_ANTERIOR!B18 -> 1.1.1.01.02.02.2.21103 | X18: =BALANCE_PERIODO_ANTERIOR!C18 -> Banco Nacional de Costa Rica | Y18: =BALANCE_PERIODO_ANTERIOR!D18 -> 121445113.7 | Z18: =BALANCE_PERIODO_ANTERIOR!E18 -> 2011244515 | AA18: =BALANCE_PERIODO_ANTERIOR!F18 -> 1818054091 | AB18: =BALANCE_PERIODO_ANTERIOR!G18 -> 314635537.9 | AC18: 314635537.9 | AD18: 314635537.9 | AE18: 0 | AF18: 0 | AG18: 0 | AH18: =IFERROR(IF(VLOOKUP(B18,PLAN_CUENTAS!$J:$AC,20,0)="EXCEP",0,1),0) -> 0 | AI18: 1 | AJ18: 0 | AK18: =#REF! ->  | AL18: =#REF! ->  | AM18: =#REF! ->  | AN18: =#REF! ->  | AO18: =#REF! ->  | AP18: =#REF! ->  | AQ18: 314635537.9 | AR18: 235500805 | AS18: 420009299.2 | AT18: 130127043.7 | AU18: 0 | AV18: 0 | AW18: 0 | AX18: 0 | AY18: - | AZ18: 2 | BA18: 2 | BB18: 1 | BC18: 2 | BD18: -
A19: =BALANCE_COMPROBACION!A19 -> 3.1 | B19: =BALANCE_COMPROBACION!B19 -> 1.1.1.01.02.02.3. | C19: =BALANCE_COMPROBACION!C19 -> Caja Única | D19: =BALANCE_COMPROBACION!D19 -> 1416328372 | E19: =BALANCE_COMPROBACION!E19 -> 81000000 | F19: =BALANCE_COMPROBACION!F19 -> 255358141 | G19: =BALANCE_COMPROBACION!G19 -> 1241970231 | H19: 17 | I19: 1 | J19: =IFERROR(IF(B19="GRAN TOTAL","N/A",IF(H19=22,"N/A",IF(B19=0,"N/A",VLOOKUP(B19,PLAN_CUENTAS!$J:$J,1,FALSE)))),"ERROR") -> 1.1.1.01.02.02.3. | O19: =IFERROR(IF(N19="","",VLOOKUP(N19,REGISTRO_RECIPROCAS!C:E,3,FALSE)),"") ->  | P19: =IFERROR(VLOOKUP(N19,REGISTRO_RECIPROCAS!C$2:D$501,2,FALSE),"") ->  | R19: =IFERROR(IF(Q19="","",VLOOKUP(Q19,REGISTRO_RECIPROCAS!A:B,2,FALSE)),"") ->  | S19: CORRECTO | T19: =IFERROR(IF(Q19=VLOOKUP(Q19,REGISTRO_RECIPROCAS!A:A,1,FALSE),"APLICA","NO APLICA"),"NO APLICA") -> NO APLICA | V19: =BALANCE_PERIODO_ANTERIOR!A19 -> 3.1 | W19: =BALANCE_PERIODO_ANTERIOR!B19 -> 1.1.1.01.02.02.3. | X19: =BALANCE_PERIODO_ANTERIOR!C19 -> Caja Única | Y19: =BALANCE_PERIODO_ANTERIOR!D19 -> 2104181133 | Z19: =BALANCE_PERIODO_ANTERIOR!E19 -> 5318114703 | AA19: =BALANCE_PERIODO_ANTERIOR!F19 -> 6005967464 | AB19: =BALANCE_PERIODO_ANTERIOR!G19 -> 1416328372 | AC19: 1416328372 | AD19: 1416328372 | AE19: 0 | AF19: 0 | AG19: 0 | AH19: =IFERROR(IF(VLOOKUP(B19,PLAN_CUENTAS!$J:$AC,20,0)="EXCEP",0,1),0) -> 1 | AI19: 1 | AJ19: 0 | AK19: =#REF! ->  | AL19: =#REF! ->  | AM19: =#REF! ->  | AN19: =#REF! ->  | AO19: =#REF! ->  | AP19: =#REF! ->  | AY19: - | AZ19: 2 | BA19: 0 | BB19: 2 | BC19: 2 | BD19: -
A20: =BALANCE_COMPROBACION!A20 -> 3.1 | B20: =BALANCE_COMPROBACION!B20 -> 1.1.1.01.02.02.3.11206 | C20: =BALANCE_COMPROBACION!C20 -> Ministerio de Hacienda | D20: =BALANCE_COMPROBACION!D20 -> 1416328372 | E20: =BALANCE_COMPROBACION!E20 -> 81000000 | F20: =BALANCE_COMPROBACION!F20 -> 255358141 | G20: =BALANCE_COMPROBACION!G20 -> 1241970231 | H20: 22 | I20: 1 | J20: =IFERROR(IF(B20="GRAN TOTAL","N/A",IF(H20=22,"N/A",IF(B20=0,"N/A",VLOOKUP(B20,PLAN_CUENTAS!$J:$J,1,FALSE)))),"ERROR") -> N/A | M20: RECIPROCA | N20: 11206 | O20: =IFERROR(IF(N20="","",VLOOKUP(N20,REGISTRO_RECIPROCAS!C:E,3,FALSE)),"") -> PD | P20: =IFERROR(VLOOKUP(N20,REGISTRO_RECIPROCAS!C$2:D$501,2,FALSE),"") -> Ministerio de Hacienda (MHD) | Q20: 1.1.1.01.02.02.3. | R20: =IFERROR(IF(Q20="","",VLOOKUP(Q20,REGISTRO_RECIPROCAS!A:B,2,FALSE)),"") -> EXC | S20: CORRECTO | T20: =IFERROR(IF(Q20=VLOOKUP(Q20,REGISTRO_RECIPROCAS!A:A,1,FALSE),"APLICA","NO APLICA"),"NO APLICA") -> APLICA | V20: =BALANCE_PERIODO_ANTERIOR!A20 -> 3.1 | W20: =BALANCE_PERIODO_ANTERIOR!B20 -> 1.1.1.01.02.02.3.11206 | X20: =BALANCE_PERIODO_ANTERIOR!C20 -> Ministerio de Hacienda | Y20: =BALANCE_PERIODO_ANTERIOR!D20 -> 2104181133 | Z20: =BALANCE_PERIODO_ANTERIOR!E20 -> 5318114703 | AA20: =BALANCE_PERIODO_ANTERIOR!F20 -> 6005967464 | AB20: =BALANCE_PERIODO_ANTERIOR!G20 -> 1416328372 | AC20: 1416328372 | AD20: 1416328372 | AE20: 0 | AF20: 0 | AG20: 0 | AH20: =IFERROR(IF(VLOOKUP(B20,PLAN_CUENTAS!$J:$AC,20,0)="EXCEP",0,1),0) -> 0 | AI20: 1 | AJ20: 0 | AK20: =#REF! ->  | AL20: =#REF! ->  | AM20: =#REF! ->  | AN20: =#REF! ->  | AO20: =#REF! ->  | AP20: =#REF! ->  | AQ20: 1416328372 | AR20: 81000000 | AS20: 255358141 | AT20: 1241970231 | AU20: 0 | AV20: 0 | AW20: 0 | AX20: 0 | AY20: - | AZ20: 2 | BA20: 0 | BB20: 2 | BC20: 2 | BD20: -
A21: =BALANCE_COMPROBACION!A21 -> 3.1 | B21: =BALANCE_COMPROBACION!B21 -> 1.1.1.01.03. | C21: =BALANCE_COMPROBACION!C21 -> Cajas chicas fondos rotatorios | D21: =BALANCE_COMPROBACION!D21 -> 3250000 | E21: =BALANCE_COMPROBACION!E21 -> 0 | F21: =BALANCE_COMPROBACION!F21 -> 0 | G21: =BALANCE_COMPROBACION!G21 -> 3250000 | H21: 12 | I21: 1 | J21: =IFERROR(IF(B21="GRAN TOTAL","N/A",IF(H21=22,"N/A",IF(B21=0,"N/A",VLOOKUP(B21,PLAN_CUENTAS!$J:$J,1,FALSE)))),"ERROR") -> 1.1.1.01.03. | O21: =IFERROR(IF(N21="","",VLOOKUP(N21,REGISTRO_RECIPROCAS!C:E,3,FALSE)),"") ->  | P21: =IFERROR(VLOOKUP(N21,REGISTRO_RECIPROCAS!C$2:D$501,2,FALSE),"") ->  | R21: =IFERROR(IF(Q21="","",VLOOKUP(Q21,REGISTRO_RECIPROCAS!A:B,2,FALSE)),"") ->  | S21: CORRECTO | T21: =IFERROR(IF(Q21=VLOOKUP(Q21,REGISTRO_RECIPROCAS!A:A,1,FALSE),"APLICA","NO APLICA"),"NO APLICA") -> NO APLICA | V21: =BALANCE_PERIODO_ANTERIOR!A21 -> 3.1 | W21: =BALANCE_PERIODO_ANTERIOR!B21 -> 1.1.1.01.03. | X21: =BALANCE_PERIODO_ANTERIOR!C21 -> Cajas chicas fondos rotatorios | Y21: =BALANCE_PERIODO_ANTERIOR!D21 -> 1450000 | Z21: =BALANCE_PERIODO_ANTERIOR!E21 -> 3750000 | AA21: =BALANCE_PERIODO_ANTERIOR!F21 -> 1950000 | AB21: =BALANCE_PERIODO_ANTERIOR!G21 -> 3250000 | AC21: 3250000 | AD21: 3250000 | AE21: 0 | AF21: 0 | AG21: 0 | AH21: =IFERROR(IF(VLOOKUP(B21,PLAN_CUENTAS!$J:$AC,20,0)="EXCEP",0,1),0) -> 1 | AI21: 1 | AJ21: 0 | AK21: =#REF! ->  | AL21: =#REF! ->  | AM21: =#REF! ->  | AN21: =#REF! ->  | AO21: =#REF! ->  | AP21: =#REF! ->  | AY21: - | AZ21: 0 | BA21: 0 | BB21: 0 | BC21: 0 | BD21: -
A22: =BALANCE_COMPROBACION!A22 -> 3.1 | B22: =BALANCE_COMPROBACION!B22 -> 1.1.1.01.03.01. | C22: =BALANCE_COMPROBACION!C22 -> Cajas chicas | D22: =BALANCE_COMPROBACION!D22 -> 2250000 | E22: =BALANCE_COMPROBACION!E22 -> 0 | F22: =BALANCE_COMPROBACION!F22 -> 0 | G22: =BALANCE_COMPROBACION!G22 -> 2250000 | H22: 15 | I22: 1 | J22: =IFERROR(IF(B22="GRAN TOTAL","N/A",IF(H22=22,"N/A",IF(B22=0,"N/A",VLOOKUP(B22,PLAN_CUENTAS!$J:$J,1,FALSE)))),"ERROR") -> 1.1.1.01.03.01. | O22: =IFERROR(IF(N22="","",VLOOKUP(N22,REGISTRO_RECIPROCAS!C:E,3,FALSE)),"") ->  | P22: =IFERROR(VLOOKUP(N22,REGISTRO_RECIPROCAS!C$2:D$501,2,FALSE),"") ->  | R22: =IFERROR(IF(Q22="","",VLOOKUP(Q22,REGISTRO_RECIPROCAS!A:B,2,FALSE)),"") ->  | S22: CORRECTO | T22: =IFERROR(IF(Q22=VLOOKUP(Q22,REGISTRO_RECIPROCAS!A:A,1,FALSE),"APLICA","NO APLICA"),"NO APLICA") -> NO APLICA | V22: =BALANCE_PERIODO_ANTERIOR!A22 -> 3.1 | W22: =BALANCE_PERIODO_ANTERIOR!B22 -> 1.1.1.01.03.01. | X22: =BALANCE_PERIODO_ANTERIOR!C22 -> Cajas chicas | Y22: =BALANCE_PERIODO_ANTERIOR!D22 -> 450000 | Z22: =BALANCE_PERIODO_ANTERIOR!E22 -> 3750000 | AA22: =BALANCE_PERIODO_ANTERIOR!F22 -> 1950000 | AB22: =BALANCE_PERIODO_ANTERIOR!G22 -> 2250000 | AC22: 2250000 | AD22: 2250000 | AE22: 0 | AF22: 0 | AG22: 0 | AH22: =IFERROR(IF(VLOOKUP(B22,PLAN_CUENTAS!$J:$AC,20,0)="EXCEP",0,1),0) -> 1 | AI22: 1 | AJ22: 0 | AK22: =#REF! ->  | AL22: =#REF! ->  | AM22: =#REF! ->  | AN22: =#REF! ->  | AO22: =#REF! ->  | AP22: =#REF! ->  | AY22: - | AZ22: 0 | BA22: 0 | BB22: 0 | BC22: 0 | BD22: -
A23: =BALANCE_COMPROBACION!A23 -> 3.1 | B23: =BALANCE_COMPROBACION!B23 -> 1.1.1.01.03.01.2. | C23: =BALANCE_COMPROBACION!C23 -> Cajas chicas en el país | D23: =BALANCE_COMPROBACION!D23 -> 2250000 | E23: =BALANCE_COMPROBACION!E23 -> 0 | F23: =BALANCE_COMPROBACION!F23 -> 0 | G23: =BALANCE_COMPROBACION!G23 -> 2250000 | H23: 17 | I23: 1 | J23: =IFERROR(IF(B23="GRAN TOTAL","N/A",IF(H23=22,"N/A",IF(B23=0,"N/A",VLOOKUP(B23,PLAN_CUENTAS!$J:$J,1,FALSE)))),"ERROR") -> 1.1.1.01.03.01.2. | O23: =IFERROR(IF(N23="","",VLOOKUP(N23,REGISTRO_RECIPROCAS!C:E,3,FALSE)),"") ->  | P23: =IFERROR(VLOOKUP(N23,REGISTRO_RECIPROCAS!C$2:D$501,2,FALSE),"") ->  | R23: =IFERROR(IF(Q23="","",VLOOKUP(Q23,REGISTRO_RECIPROCAS!A:B,2,FALSE)),"") ->  | S23: CORRECTO | T23: =IFERROR(IF(Q23=VLOOKUP(Q23,REGISTRO_RECIPROCAS!A:A,1,FALSE),"APLICA","NO APLICA"),"NO APLICA") -> NO APLICA | V23: =BALANCE_PERIODO_ANTERIOR!A23 -> 3.1 | W23: =BALANCE_PERIODO_ANTERIOR!B23 -> 1.1.1.01.03.01.2. | X23: =BALANCE_PERIODO_ANTERIOR!C23 -> Cajas chicas en el país | Y23: =BALANCE_PERIODO_ANTERIOR!D23 -> 450000 | Z23: =BALANCE_PERIODO_ANTERIOR!E23 -> 3750000 | AA23: =BALANCE_PERIODO_ANTERIOR!F23 -> 1950000 | AB23: =BALANCE_PERIODO_ANTERIOR!G23 -> 2250000 | AC23: 2250000 | AD23: 2250000 | AE23: 0 | AF23: 0 | AG23: 0 | AH23: =IFERROR(IF(VLOOKUP(B23,PLAN_CUENTAS!$J:$AC,20,0)="EXCEP",0,1),0) -> 1 | AI23: 1 | AJ23: 0 | AK23: =#REF! ->  | AL23: =#REF! ->  | AM23: =#REF! ->  | AN23: =#REF! ->  | AO23: =#REF! ->  | AP23: =#REF! ->  | AY23: - | AZ23: 0 | BA23: 0 | BB23: 0 | BC23: 0 | BD23: -
A24: =BALANCE_COMPROBACION!A24 -> 3.1 | B24: =BALANCE_COMPROBACION!B24 -> 1.1.1.01.03.01.2.99999 | C24: =BALANCE_COMPROBACION!C24 -> Cajas chicas en el país | D24: =BALANCE_COMPROBACION!D24 -> 2250000 | E24: =BALANCE_COMPROBACION!E24 -> 0 | F24: =BALANCE_COMPROBACION!F24 -> 0 | G24: =BALANCE_COMPROBACION!G24 -> 2250000 | H24: 22 | I24: 1 | J24: =IFERROR(IF(B24="GRAN TOTAL","N/A",IF(H24=22,"N/A",IF(B24=0,"N/A",VLOOKUP(B24,PLAN_CUENTAS!$J:$J,1,FALSE)))),"ERROR") -> N/A | M24: RECIPROCA | N24: 99999 | O24: =IFERROR(IF(N24="","",VLOOKUP(N24,REGISTRO_RECIPROCAS!C:E,3,FALSE)),"") -> N/A | P24: =IFERROR(VLOOKUP(N24,REGISTRO_RECIPROCAS!C$2:D$501,2,FALSE),"") -> NO APLICA | Q24: 1.1.1.01.03.01.2. | R24: =IFERROR(IF(Q24="","",VLOOKUP(Q24,REGISTRO_RECIPROCAS!A:B,2,FALSE)),"") ->  | S24: ERROR | T24: =IFERROR(IF(Q24=VLOOKUP(Q24,REGISTRO_RECIPROCAS!A:A,1,FALSE),"APLICA","NO APLICA"),"NO APLICA") -> NO APLICA | V24: =BALANCE_PERIODO_ANTERIOR!A24 -> 3.1 | W24: =BALANCE_PERIODO_ANTERIOR!B24 -> 1.1.1.01.03.01.2.99999 | X24: =BALANCE_PERIODO_ANTERIOR!C24 -> Cajas chicas en el país | Y24: =BALANCE_PERIODO_ANTERIOR!D24 -> 450000 | Z24: =BALANCE_PERIODO_ANTERIOR!E24 -> 3750000 | AA24: =BALANCE_PERIODO_ANTERIOR!F24 -> 1950000 | AB24: =BALANCE_PERIODO_ANTERIOR!G24 -> 2250000 | AC24: 2250000 | AD24: 2250000 | AE24: 0 | AF24: 0 | AG24: 0 | AH24: =IFERROR(IF(VLOOKUP(B24,PLAN_CUENTAS!$J:$AC,20,0)="EXCEP",0,1),0) -> 0 | AI24: 1 | AJ24: 0 | AK24: =#REF! ->  | AL24: =#REF! ->  | AM24: =#REF! ->  | AN24: =#REF! ->  | AO24: =#REF! ->  | AP24: =#REF! ->  | AQ24: 2250000 | AR24: 0 | AS24: 0 | AT24: 2250000 | AU24: 0 | AV24: 0 | AW24: 0 | AX24: 0 | AY24: - | AZ24: 0 | BA24: 0 | BB24: 0 | BC24: 0 | BD24: -
A25: =BALANCE_COMPROBACION!A25 -> 3.1 | B25: =BALANCE_COMPROBACION!B25 -> 1.1.1.01.03.02. | C25: =BALANCE_COMPROBACION!C25 -> Fondos rotatorios | D25: =BALANCE_COMPROBACION!D25 -> 1000000 | E25: =BALANCE_COMPROBACION!E25 -> 0 | F25: =BALANCE_COMPROBACION!F25 -> 0 | G25: =BALANCE_COMPROBACION!G25 -> 1000000 | H25: 15 | I25: 1 | J25: =IFERROR(IF(B25="GRAN TOTAL","N/A",IF(H25=22,"N/A",IF(B25=0,"N/A",VLOOKUP(B25,PLAN_CUENTAS!$J:$J,1,FALSE)))),"ERROR") -> 1.1.1.01.03.02. | O25: =IFERROR(IF(N25="","",VLOOKUP(N25,REGISTRO_RECIPROCAS!C:E,3,FALSE)),"") ->  | P25: =IFERROR(VLOOKUP(N25,REGISTRO_RECIPROCAS!C$2:D$501,2,FALSE),"") ->  | R25: =IFERROR(IF(Q25="","",VLOOKUP(Q25,REGISTRO_RECIPROCAS!A:B,2,FALSE)),"") ->  | S25: CORRECTO | T25: =IFERROR(IF(Q25=VLOOKUP(Q25,REGISTRO_RECIPROCAS!A:A,1,FALSE),"APLICA","NO APLICA"),"NO APLICA") -> NO APLICA | V25: =BALANCE_PERIODO_ANTERIOR!A25 -> 3.1 | W25: =BALANCE_PERIODO_ANTERIOR!B25 -> 1.1.1.01.03.02. | X25: =BALANCE_PERIODO_ANTERIOR!C25 -> Fondos rotatorios | Y25: =BALANCE_PERIODO_ANTERIOR!D25 -> 1000000 | Z25: =BALANCE_PERIODO_ANTERIOR!E25 -> 0 | AA25: =BALANCE_PERIODO_ANTERIOR!F25 -> 0 | AB25: =BALANCE_PERIODO_ANTERIOR!G25 -> 1000000 | AC25: 1000000 | AD25: 1000000 | AE25: 0 | AF25: 0 | AG25: 0 | AH25: =IFERROR(IF(VLOOKUP(B25,PLAN_CUENTAS!$J:$AC,20,0)="EXCEP",0,1),0) -> 1 | AI25: 1 | AJ25: 0 | AK25: =#REF! ->  | AL25: =#REF! ->  | AM25: =#REF! ->  | AN25: =#REF! ->  | AO25: =#REF! ->  | AP25: =#REF! ->  | AY25: - | AZ25: 0 | BA25: 0 | BB25: 0 | BC25: 0 | BD25: -
A26: =BALANCE_COMPROBACION!A26 -> 3.1 | B26: =BALANCE_COMPROBACION!B26 -> 1.1.1.01.03.02.2. | C26: =BALANCE_COMPROBACION!C26 -> Fondos rotatorios en el sector público interno | D26: =BALANCE_COMPROBACION!D26 -> 1000000 | E26: =BALANCE_COMPROBACION!E26 -> 0 | F26: =BALANCE_COMPROBACION!F26 -> 0 | G26: =BALANCE_COMPROBACION!G26 -> 1000000 | H26: 17 | I26: 1 | J26: =IFERROR(IF(B26="GRAN TOTAL","N/A",IF(H26=22,"N/A",IF(B26=0,"N/A",VLOOKUP(B26,PLAN_CUENTAS!$J:$J,1,FALSE)))),"ERROR") -> 1.1.1.01.03.02.2. | O26: =IFERROR(IF(N26="","",VLOOKUP(N26,REGISTRO_RECIPROCAS!C:E,3,FALSE)),"") ->  | P26: =IFERROR(VLOOKUP(N26,REGISTRO_RECIPROCAS!C$2:D$501,2,FALSE),"") ->  | R26: =IFERROR(IF(Q26="","",VLOOKUP(Q26,REGISTRO_RECIPROCAS!A:B,2,FALSE)),"") ->  | S26: CORRECTO | T26: =IFERROR(IF(Q26=VLOOKUP(Q26,REGISTRO_RECIPROCAS!A:A,1,FALSE),"APLICA","NO APLICA"),"NO APLICA") -> NO APLICA | V26: =BALANCE_PERIODO_ANTERIOR!A26 -> 3.1 | W26: =BALANCE_PERIODO_ANTERIOR!B26 -> 1.1.1.01.03.02.2. | X26: =BALANCE_PERIODO_ANTERIOR!C26 -> Fondos rotatorios en el sector público interno | Y26: =BALANCE_PERIODO_ANTERIOR!D26 -> 1000000 | Z26: =BALANCE_PERIODO_ANTERIOR!E26 -> 0 | AA26: =BALANCE_PERIODO_ANTERIOR!F26 -> 0 | AB26: =BALANCE_PERIODO_ANTERIOR!G26 -> 1000000 | AC26: 1000000 | AD26: 1000000 | AE26: 0 | AF26: 0 | AG26: 0 | AH26: =IFERROR(IF(VLOOKUP(B26,PLAN_CUENTAS!$J:$AC,20,0)="EXCEP",0,1),0) -> 1 | AI26: 1 | AJ26: 0 | AK26: =#REF! ->  | AL26: =#REF! ->  | AM26: =#REF! ->  | AN26: =#REF! ->  | AO26: =#REF! ->  | AP26: =#REF! ->  | AY26: - | AZ26: 0 | BA26: 0 | BB26: 0 | BC26: 0 | BD26: -
A27: =BALANCE_COMPROBACION!A27 -> 3.1 | B27: =BALANCE_COMPROBACION!B27 -> 1.1.1.01.03.02.2.99999 | C27: =BALANCE_COMPROBACION!C27 -> Fondos rotatorios en el sector público interno | D27: =BALANCE_COMPROBACION!D27 -> 1000000 | E27: =BALANCE_COMPROBACION!E27 -> 0 | F27: =BALANCE_COMPROBACION!F27 -> 0 | G27: =BALANCE_COMPROBACION!G27 -> 1000000 | H27: 22 | I27: 1 | J27: =IFERROR(IF(B27="GRAN TOTAL","N/A",IF(H27=22,"N/A",IF(B27=0,"N/A",VLOOKUP(B27,PLAN_CUENTAS!$J:$J,1,FALSE)))),"ERROR") -> N/A | M27: RECIPROCA | N27: 99999 | O27: =IFERROR(IF(N27="","",VLOOKUP(N27,REGISTRO_RECIPROCAS!C:E,3,FALSE)),"") -> N/A | P27: =IFERROR(VLOOKUP(N27,REGISTRO_RECIPROCAS!C$2:D$501,2,FALSE),"") -> NO APLICA | Q27: 1.1.1.01.03.02.2. | R27: =IFERROR(IF(Q27="","",VLOOKUP(Q27,REGISTRO_RECIPROCAS!A:B,2,FALSE)),"") ->  | S27: ERROR | T27: =IFERROR(IF(Q27=VLOOKUP(Q27,REGISTRO_RECIPROCAS!A:A,1,FALSE),"APLICA","NO APLICA"),"NO APLICA") -> NO APLICA | V27: =BALANCE_PERIODO_ANTERIOR!A27 -> 3.1 | W27: =BALANCE_PERIODO_ANTERIOR!B27 -> 1.1.1.01.03.02.2.99999 | X27: =BALANCE_PERIODO_ANTERIOR!C27 -> Fondos rotatorios en el sector público interno | Y27: =BALANCE_PERIODO_ANTERIOR!D27 -> 1000000 | Z27: =BALANCE_PERIODO_ANTERIOR!E27 -> 0 | AA27: =BALANCE_PERIODO_ANTERIOR!F27 -> 0 | AB27: =BALANCE_PERIODO_ANTERIOR!G27 -> 1000000 | AC27: 1000000 | AD27: 1000000 | AE27: 0 | AF27: 0 | AG27: 0 | AH27: =IFERROR(IF(VLOOKUP(B27,PLAN_CUENTAS!$J:$AC,20,0)="EXCEP",0,1),0) -> 0 | AI27: 1 | AJ27: 0 | AK27: =#REF! ->  | AL27: =#REF! ->  | AM27: =#REF! ->  | AN27: =#REF! ->  | AO27: =#REF! ->  | AP27: =#REF! ->  | AQ27: 1000000 | AR27: 0 | AS27: 0 | AT27: 1000000 | AU27: 0 | AV27: 0 | AW27: 0 | AX27: 0 | AY27: - | AZ27: 0 | BA27: 0 | BB27: 0 | BC27: 0 | BD27: -
A28: =BALANCE_COMPROBACION!A28 -> 3.1 | B28: =BALANCE_COMPROBACION!B28 -> 1.1.1.02. | C28: =BALANCE_COMPROBACION!C28 -> Equivalentes de efectivo | D28: =BALANCE_COMPROBACION!D28 -> 0 | E28: =BALANCE_COMPROBACION!E28 -> 601019243 | F28: =BALANCE_COMPROBACION!F28 -> 0 | G28: =BALANCE_COMPROBACION!G28 -> 601019243 | H28: 9 | I28: 1 | J28: =IFERROR(IF(B28="GRAN TOTAL","N/A",IF(H28=22,"N/A",IF(B28=0,"N/A",VLOOKUP(B28,PLAN_CUENTAS!$J:$J,1,FALSE)))),"ERROR") -> 1.1.1.02. | O28: =IFERROR(IF(N28="","",VLOOKUP(N28,REGISTRO_RECIPROCAS!C:E,3,FALSE)),"") ->  | P28: =IFERROR(VLOOKUP(N28,REGISTRO_RECIPROCAS!C$2:D$501,2,FALSE),"") ->  | R28: =IFERROR(IF(Q28="","",VLOOKUP(Q28,REGISTRO_RECIPROCAS!A:B,2,FALSE)),"") ->  | S28: CORRECTO | T28: =IFERROR(IF(Q28=VLOOKUP(Q28,REGISTRO_RECIPROCAS!A:A,1,FALSE),"APLICA","NO APLICA"),"NO APLICA") -> NO APLICA | V28: =BALANCE_PERIODO_ANTERIOR!A28 -> 3.1 | W28: =BALANCE_PERIODO_ANTERIOR!B28 -> 1.1.1.02. | X28: =BALANCE_PERIODO_ANTERIOR!C28 -> Equivalentes de efectivo | Y28: =BALANCE_PERIODO_ANTERIOR!D28 -> 0 | Z28: =BALANCE_PERIODO_ANTERIOR!E28 -> 678271275.7 | AA28: =BALANCE_PERIODO_ANTERIOR!F28 -> 678271275.7 | AB28: =BALANCE_PERIODO_ANTERIOR!G28 -> 0 | AC28: 0 | AD28: 0 | AE28: 0 | AF28: 0 | AG28: 0 | AH28: =IFERROR(IF(VLOOKUP(B28,PLAN_CUENTAS!$J:$AC,20,0)="EXCEP",0,1),0) -> 1 | AI28: 1 | AJ28: 0 | AK28: =#REF! ->  | AL28: =#REF! ->  | AM28: =#REF! ->  | AN28: =#REF! ->  | AO28: =#REF! ->  | AP28: =#REF! ->  | AY28: - | AZ28: 0 | BA28: 2 | BB28: 0 | BC28: 2 | BD28: -
A29: =BALANCE_COMPROBACION!A29 -> 3.1 | B29: =BALANCE_COMPROBACION!B29 -> 1.1.1.02.99. | C29: =BALANCE_COMPROBACION!C29 -> Otros equivalentes de efectivo | D29: =BALANCE_COMPROBACION!D29 -> 0 | E29: =BALANCE_COMPROBACION!E29 -> 601019243 | F29: =BALANCE_COMPROBACION!F29 -> 0 | G29: =BALANCE_COMPROBACION!G29 -> 601019243 | H29: 12 | I29: 1 | J29: =IFERROR(IF(B29="GRAN TOTAL","N/A",IF(H29=22,"N/A",IF(B29=0,"N/A",VLOOKUP(B29,PLAN_CUENTAS!$J:$J,1,FALSE)))),"ERROR") -> 1.1.1.02.99. | O29: =IFERROR(IF(N29="","",VLOOKUP(N29,REGISTRO_RECIPROCAS!C:E,3,FALSE)),"") ->  | P29: =IFERROR(VLOOKUP(N29,REGISTRO_RECIPROCAS!C$2:D$501,2,FALSE),"") ->  | R29: =IFERROR(IF(Q29="","",VLOOKUP(Q29,REGISTRO_RECIPROCAS!A:B,2,FALSE)),"") ->  | S29: CORRECTO | T29: =IFERROR(IF(Q29=VLOOKUP(Q29,REGISTRO_RECIPROCAS!A:A,1,FALSE),"APLICA","NO APLICA"),"NO APLICA") -> NO APLICA | V29: =BALANCE_PERIODO_ANTERIOR!A29 -> 3.1 | W29: =BALANCE_PERIODO_ANTERIOR!B29 -> 1.1.1.02.99. | X29: =BALANCE_PERIODO_ANTERIOR!C29 -> Otros equivalentes de efectivo | Y29: =BALANCE_PERIODO_ANTERIOR!D29 -> 0 | Z29: =BALANCE_PERIODO_ANTERIOR!E29 -> 678271275.7 | AA29: =BALANCE_PERIODO_ANTERIOR!F29 -> 678271275.7 | AB29: =BALANCE_PERIODO_ANTERIOR!G29 -> 0 | AC29: 0 | AD29: 0 | AE29: 0 | AF29: 0 | AG29: 0 | AH29: =IFERROR(IF(VLOOKUP(B29,PLAN_CUENTAS!$J:$AC,20,0)="EXCEP",0,1),0) -> 1 | AI29: 1 | AJ29: 0 | AK29: =#REF! ->  | AL29: =#REF! ->  | AM29: =#REF! ->  | AN29: =#REF! ->  | AO29: =#REF! ->  | AP29: =#REF! ->  | AY29: - | AZ29: 0 | BA29: 2 | BB29: 0 | BC29: 2 | BD29: -
A30: =BALANCE_COMPROBACION!A30 -> 3.1 | B30: =BALANCE_COMPROBACION!B30 -> 1.1.1.02.99.02. | C30: =BALANCE_COMPROBACION!C30 -> Otros equivalentes de efectivo en el sector público interno | D30: =BALANCE_COMPROBACION!D30 -> 0 | E30: =BALANCE_COMPROBACION!E30 -> 601019243 | F30: =BALANCE_COMPROBACION!F30 -> 0 | G30: =BALANCE_COMPROBACION!G30 -> 601019243 | H30: 15 | I30: 1 | J30: =IFERROR(IF(B30="GRAN TOTAL","N/A",IF(H30=22,"N/A",IF(B30=0,"N/A",VLOOKUP(B30,PLAN_CUENTAS!$J:$J,1,FALSE)))),"ERROR") -> 1.1.1.02.99.02. | O30: =IFERROR(IF(N30="","",VLOOKUP(N30,REGISTRO_RECIPROCAS!C:E,3,FALSE)),"") ->  | P30: =IFERROR(VLOOKUP(N30,REGISTRO_RECIPROCAS!C$2:D$501,2,FALSE),"") ->  | R30: =IFERROR(IF(Q30="","",VLOOKUP(Q30,REGISTRO_RECIPROCAS!A:B,2,FALSE)),"") ->  | S30: CORRECTO | T30: =IFERROR(IF(Q30=VLOOKUP(Q30,REGISTRO_RECIPROCAS!A:A,1,FALSE),"APLICA","NO APLICA"),"NO APLICA") -> NO APLICA | V30: =BALANCE_PERIODO_ANTERIOR!A30 -> 3.1 | W30: =BALANCE_PERIODO_ANTERIOR!B30 -> 1.1.1.02.99.02. | X30: =BALANCE_PERIODO_ANTERIOR!C30 -> Otros equivalentes de efectivo en el sector público interno | Y30: =BALANCE_PERIODO_ANTERIOR!D30 -> 0 | Z30: =BALANCE_PERIODO_ANTERIOR!E30 -> 678271275.7 | AA30: =BALANCE_PERIODO_ANTERIOR!F30 -> 678271275.7 | AB30: =BALANCE_PERIODO_ANTERIOR!G30 -> 0 | AC30: 0 | AD30: 0 | AE30: 0 | AF30: 0 | AG30: 0 | AH30: =IFERROR(IF(VLOOKUP(B30,PLAN_CUENTAS!$J:$AC,20,0)="EXCEP",0,1),0) -> 1 | AI30: 1 | AJ30: 0 | AK30: =#REF! ->  | AL30: =#REF! ->  | AM30: =#REF! ->  | AN30: =#REF! ->  | AO30: =#REF! ->  | AP30: =#REF! ->  | AY30: - | AZ30: 0 | BA30: 2 | BB30: 0 | BC30: 2 | BD30: -
A31: =BALANCE_COMPROBACION!A31 -> 3.1 | B31: =BALANCE_COMPROBACION!B31 -> 1.1.1.02.99.02.0. | C31: =BALANCE_COMPROBACION!C31 -> Otros equivalentes de efectivo en el sector público interno | D31: =BALANCE_COMPROBACION!D31 -> 0 | E31: =BALANCE_COMPROBACION!E31 -> 601019243 | F31: =BALANCE_COMPROBACION!F31 -> 0 | G31: =BALANCE_COMPROBACION!G31 -> 601019243 | H31: 17 | I31: 1 | J31: =IFERROR(IF(B31="GRAN TOTAL","N/A",IF(H31=22,"N/A",IF(B31=0,"N/A",VLOOKUP(B31,PLAN_CUENTAS!$J:$J,1,FALSE)))),"ERROR") -> 1.1.1.02.99.02.0. | O31: =IFERROR(IF(N31="","",VLOOKUP(N31,REGISTRO_RECIPROCAS!C:E,3,FALSE)),"") ->  | P31: =IFERROR(VLOOKUP(N31,REGISTRO_RECIPROCAS!C$2:D$501,2,FALSE),"") ->  | R31: =IFERROR(IF(Q31="","",VLOOKUP(Q31,REGISTRO_RECIPROCAS!A:B,2,FALSE)),"") ->  | S31: CORRECTO | T31: =IFERROR(IF(Q31=VLOOKUP(Q31,REGISTRO_RECIPROCAS!A:A,1,FALSE),"APLICA","NO APLICA"),"NO APLICA") -> NO APLICA | V31: =BALANCE_PERIODO_ANTERIOR!A31 -> 3.1 | W31: =BALANCE_PERIODO_ANTERIOR!B31 -> 1.1.1.02.99.02.0. | X31: =BALANCE_PERIODO_ANTERIOR!C31 -> Otros equivalentes de efectivo en el sector público interno | Y31: =BALANCE_PERIODO_ANTERIOR!D31 -> 0 | Z31: =BALANCE_PERIODO_ANTERIOR!E31 -> 678271275.7 | AA31: =BALANCE_PERIODO_ANTERIOR!F31 -> 678271275.7 | AB31: =BALANCE_PERIODO_ANTERIOR!G31 -> 0 | AC31: 0 | AD31: 0 | AE31: 0 | AF31: 0 | AG31: 0 | AH31: =IFERROR(IF(VLOOKUP(B31,PLAN_CUENTAS!$J:$AC,20,0)="EXCEP",0,1),0) -> 1 | AI31: 1 | AJ31: 0 | AK31: =#REF! ->  | AL31: =#REF! ->  | AM31: =#REF! ->  | AN31: =#REF! ->  | AO31: =#REF! ->  | AP31: =#REF! ->  | AY31: - | AZ31: 0 | BA31: 2 | BB31: 0 | BC31: 2 | BD31: -
A32: =BALANCE_COMPROBACION!A32 -> 3.1 | B32: =BALANCE_COMPROBACION!B32 -> 1.1.1.02.99.02.0.21101 | C32: =BALANCE_COMPROBACION!C32 -> Banco Costa Rica | D32: =BALANCE_COMPROBACION!D32 -> 0 | E32: =BALANCE_COMPROBACION!E32 -> 300516991.8 | F32: =BALANCE_COMPROBACION!F32 -> 0 | G32: =BALANCE_COMPROBACION!G32 -> 300516991.8 | H32: 22 | I32: 1 | J32: =IFERROR(IF(B32="GRAN TOTAL","N/A",IF(H32=22,"N/A",IF(B32=0,"N/A",VLOOKUP(B32,PLAN_CUENTAS!$J:$J,1,FALSE)))),"ERROR") -> N/A | M32: RECIPROCA | N32: 21101 | O32: =IFERROR(IF(N32="","",VLOOKUP(N32,REGISTRO_RECIPROCAS!C:E,3,FALSE)),"") -> IPF | P32: =IFERROR(VLOOKUP(N32,REGISTRO_RECIPROCAS!C$2:D$501,2,FALSE),"") -> Banco de Costa Rica (BCR) | Q32: 1.1.1.02.99.02.0. | R32: =IFERROR(IF(Q32="","",VLOOKUP(Q32,REGISTRO_RECIPROCAS!A:B,2,FALSE)),"") ->  | S32: ERROR | T32: =IFERROR(IF(Q32=VLOOKUP(Q32,REGISTRO_RECIPROCAS!A:A,1,FALSE),"APLICA","NO APLICA"),"NO APLICA") -> NO APLICA | V32: =BALANCE_PERIODO_ANTERIOR!A32 -> 3.1 | W32: =BALANCE_PERIODO_ANTERIOR!B32 -> 1.1.1.02.99.02.0.21101 | X32: =BALANCE_PERIODO_ANTERIOR!C32 -> Banco Costa Rica | Y32: =BALANCE_PERIODO_ANTERIOR!D32 -> 0 | Z32: =BALANCE_PERIODO_ANTERIOR!E32 -> 311624057.2 | AA32: =BALANCE_PERIODO_ANTERIOR!F32 -> 311624057.2 | AB32: =BALANCE_PERIODO_ANTERIOR!G32 -> 0 | AC32: 0 | AD32: 0 | AE32: 0 | AF32: 0 | AG32: 0 | AH32: =IFERROR(IF(VLOOKUP(B32,PLAN_CUENTAS!$J:$AC,20,0)="EXCEP",0,1),0) -> 0 | AI32: 1 | AJ32: 0 | AK32: =#REF! ->  | AL32: =#REF! ->  | AM32: =#REF! ->  | AN32: =#REF! ->  | AO32: =#REF! ->  | AP32: =#REF! ->  | AQ32: 0 | AR32: 300516991.8 | AS32: 0 | AT32: 300516991.8 | AU32: 0 | AV32: 0 | AW32: 0 | AX32: 0 | AY32: - | AZ32: 0 | BA32: 2 | BB32: 0 | BC32: 2 | BD32: -
A33: =BALANCE_COMPROBACION!A33 -> 3.1 | B33: =BALANCE_COMPROBACION!B33 -> 1.1.1.02.99.02.0.21103 | C33: =BALANCE_COMPROBACION!C33 -> Banco Nacional de Costa Rica | D33: =BALANCE_COMPROBACION!D33 -> 0 | E33: =BALANCE_COMPROBACION!E33 -> 300502251.3 | F33: =BALANCE_COMPROBACION!F33 -> 0 | G33: =BALANCE_COMPROBACION!G33 -> 300502251.3 | H33: 22 | I33: 1 | J33: =IFERROR(IF(B33="GRAN TOTAL","N/A",IF(H33=22,"N/A",IF(B33=0,"N/A",VLOOKUP(B33,PLAN_CUENTAS!$J:$J,1,FALSE)))),"ERROR") -> N/A | M33: RECIPROCA | N33: 21103 | O33: =IFERROR(IF(N33="","",VLOOKUP(N33,REGISTRO_RECIPROCAS!C:E,3,FALSE)),"") -> IPF | P33: =IFERROR(VLOOKUP(N33,REGISTRO_RECIPROCAS!C$2:D$501,2,FALSE),"") -> Banco Nacional de Costa Rica (BNCR) | Q33: 1.1.1.02.99.02.0. | R33: =IFERROR(IF(Q33="","",VLOOKUP(Q33,REGISTRO_RECIPROCAS!A:B,2,FALSE)),"") ->  | S33: ERROR | T33: =IFERROR(IF(Q33=VLOOKUP(Q33,REGISTRO_RECIPROCAS!A:A,1,FALSE),"APLICA","NO APLICA"),"NO APLICA") -> NO APLICA | V33: =BALANCE_PERIODO_ANTERIOR!A33 -> 3.1 | W33: =BALANCE_PERIODO_ANTERIOR!B33 -> 1.1.1.02.99.02.0.21103 | X33: =BALANCE_PERIODO_ANTERIOR!C33 -> Banco Nacional de Costa Rica | Y33: =BALANCE_PERIODO_ANTERIOR!D33 -> 0 | Z33: =BALANCE_PERIODO_ANTERIOR!E33 -> 366647218.5 | AA33: =BALANCE_PERIODO_ANTERIOR!F33 -> 366647218.5 | AB33: =BALANCE_PERIODO_ANTERIOR!G33 -> 0 | AC33: 0 | AD33: 0 | AE33: 0 | AF33: 0 | AG33: 0 | AH33: =IFERROR(IF(VLOOKUP(B33,PLAN_CUENTAS!$J:$AC,20,0)="EXCEP",0,1),0) -> 0 | AI33: 1 | AJ33: 0 | AK33: =#REF! ->  | AL33: =#REF! ->  | AM33: =#REF! ->  | AN33: =#REF! ->  | AO33: =#REF! ->  | AP33: =#REF! ->  | AQ33: 0 | AR33: 300502251.3 | AS33: 0 | AT33: 300502251.3 | AU33: 0 | AV33: 0 | AW33: 0 | AX33: 0 | AY33: - | AZ33: 0 | BA33: 2 | BB33: 0 | BC33: 2 | BD33: -
A34: =BALANCE_COMPROBACION!A34 -> 3.1 | B34: =BALANCE_COMPROBACION!B34 -> 1.1.3. | C34: =BALANCE_COMPROBACION!C34 -> Cuentas a cobrar a c/p | D34: =BALANCE_COMPROBACION!D34 -> 495942436.4 | E34: =BALANCE_COMPROBACION!E34 -> 403488080.7 | F34: =BALANCE_COMPROBACION!F34 -> 138564595.9 | G34: =BALANCE_COMPROBACION!G34 -> 760865921.2 | H34: 6 | I34: 1 | J34: =IFERROR(IF(B34="GRAN TOTAL","N/A",IF(H34=22,"N/A",IF(B34=0,"N/A",VLOOKUP(B34,PLAN_CUENTAS!$J:$J,1,FALSE)))),"ERROR") -> 1.1.3. | O34: =IFERROR(IF(N34="","",VLOOKUP(N34,REGISTRO_RECIPROCAS!C:E,3,FALSE)),"") ->  | P34: =IFERROR(VLOOKUP(N34,REGISTRO_RECIPROCAS!C$2:D$501,2,FALSE),"") ->  | R34: =IFERROR(IF(Q34="","",VLOOKUP(Q34,REGISTRO_RECIPROCAS!A:B,2,FALSE)),"") ->  | S34: CORRECTO | T34: =IFERROR(IF(Q34=VLOOKUP(Q34,REGISTRO_RECIPROCAS!A:A,1,FALSE),"APLICA","NO APLICA"),"NO APLICA") -> NO APLICA | V34: =BALANCE_PERIODO_ANTERIOR!A34 -> 3.1 | W34: =BALANCE_PERIODO_ANTERIOR!B34 -> 1.1.3. | X34: =BALANCE_PERIODO_ANTERIOR!C34 -> Cuentas a cobrar a c/p | Y34: =BALANCE_PERIODO_ANTERIOR!D34 -> 616617332.2 | Z34: =BALANCE_PERIODO_ANTERIOR!E34 -> 6100237757 | AA34: =BALANCE_PERIODO_ANTERIOR!F34 -> 6220912653 | AB34: =BALANCE_PERIODO_ANTERIOR!G34 -> 495942436.4 | AC34: 495942436.4 | AD34: 495942436.4 | AE34: 0 | AF34: 0 | AG34: 0 | AH34: =IFERROR(IF(VLOOKUP(B34,PLAN_CUENTAS!$J:$AC,20,0)="EXCEP",0,1),0) -> 1 | AI34: 1 | AJ34: 0 | AK34: =#REF! ->  | AL34: =#REF! ->  | AM34: =#REF! ->  | AN34: =#REF! ->  | AO34: =#REF! ->  | AP34: =#REF! ->  | AY34: - | AZ34: 2 | BA34: 1 | BB34: 2 | BC34: 2 | BD34: -
A35: =BALANCE_COMPROBACION!A35 -> 3.1 | B35: =BALANCE_COMPROBACION!B35 -> 1.1.3.01. | C35: =BALANCE_COMPROBACION!C35 -> Impuestos a cobrar a c/p | D35: =BALANCE_COMPROBACION!D35 -> 488369513.4 | E35: =BALANCE_COMPROBACION!E35 -> 239859036.7 | F35: =BALANCE_COMPROBACION!F35 -> 88968732.81 | G35: =BALANCE_COMPROBACION!G35 -> 639259817.2 | H35: 9 | I35: 1 | J35: =IFERROR(IF(B35="GRAN TOTAL","N/A",IF(H35=22,"N/A",IF(B35=0,"N/A",VLOOKUP(B35,PLAN_CUENTAS!$J:$J,1,FALSE)))),"ERROR") -> 1.1.3.01. | O35: =IFERROR(IF(N35="","",VLOOKUP(N35,REGISTRO_RECIPROCAS!C:E,3,FALSE)),"") ->  | P35: =IFERROR(VLOOKUP(N35,REGISTRO_RECIPROCAS!C$2:D$501,2,FALSE),"") ->  | R35: =IFERROR(IF(Q35="","",VLOOKUP(Q35,REGISTRO_RECIPROCAS!A:B,2,FALSE)),"") ->  | S35: CORRECTO | T35: =IFERROR(IF(Q35=VLOOKUP(Q35,REGISTRO_RECIPROCAS!A:A,1,FALSE),"APLICA","NO APLICA"),"NO APLICA") -> NO APLICA | V35: =BALANCE_PERIODO_ANTERIOR!A35 -> 3.1 | W35: =BALANCE_PERIODO_ANTERIOR!B35 -> 1.1.3.01. | X35: =BALANCE_PERIODO_ANTERIOR!C35 -> Impuestos a cobrar a c/p | Y35: =BALANCE_PERIODO_ANTERIOR!D35 -> 619441745.8 | Z35: =BALANCE_PERIODO_ANTERIOR!E35 -> 1404350721 | AA35: =BALANCE_PERIODO_ANTERIOR!F35 -> 1535422953 | AB35: =BALANCE_PERIODO_ANTERIOR!G35 -> 488369513.4 | AC35: 488369513.4 | AD35: 488369513.4 | AE35: 0 | AF35: 0 | AG35: 0 | AH35: =IFERROR(IF(VLOOKUP(B35,PLAN_CUENTAS!$J:$AC,20,0)="EXCEP",0,1),0) -> 1 | AI35: 1 | AJ35: 0 | AK35: =#REF! ->  | AL35: =#REF! ->  | AM35: =#REF! ->  | AN35: =#REF! ->  | AO35: =#REF! ->  | AP35: =#REF! ->  | AY35: - | AZ35: 2 | BA35: 1 | BB35: 2 | BC35: 2 | BD35: -
A36: =BALANCE_COMPROBACION!A36 -> 3.1 | B36: =BALANCE_COMPROBACION!B36 -> 1.1.3.01.02. | C36: =BALANCE_COMPROBACION!C36 -> Impuestos sobre la propiedad a cobrar c/p | D36: =BALANCE_COMPROBACION!D36 -> 454864572.4 | E36: =BALANCE_COMPROBACION!E36 -> 164593346.3 | F36: =BALANCE_COMPROBACION!F36 -> 59420740.81 | G36: =BALANCE_COMPROBACION!G36 -> 560037177.9 | H36: 12 | I36: 1 | J36: =IFERROR(IF(B36="GRAN TOTAL","N/A",IF(H36=22,"N/A",IF(B36=0,"N/A",VLOOKUP(B36,PLAN_CUENTAS!$J:$J,1,FALSE)))),"ERROR") -> 1.1.3.01.02. | O36: =IFERROR(IF(N36="","",VLOOKUP(N36,REGISTRO_RECIPROCAS!C:E,3,FALSE)),"") ->  | P36: =IFERROR(VLOOKUP(N36,REGISTRO_RECIPROCAS!C$2:D$501,2,FALSE),"") ->  | R36: =IFERROR(IF(Q36="","",VLOOKUP(Q36,REGISTRO_RECIPROCAS!A:B,2,FALSE)),"") ->  | S36: CORRECTO | T36: =IFERROR(IF(Q36=VLOOKUP(Q36,REGISTRO_RECIPROCAS!A:A,1,FALSE),"APLICA","NO APLICA"),"NO APLICA") -> NO APLICA | V36: =BALANCE_PERIODO_ANTERIOR!A36 -> 3.1 | W36: =BALANCE_PERIODO_ANTERIOR!B36 -> 1.1.3.01.02. | X36: =BALANCE_PERIODO_ANTERIOR!C36 -> Impuestos sobre la propiedad a cobrar c/p | Y36: =BALANCE_PERIODO_ANTERIOR!D36 -> 583097545.6 | Z36: =BALANCE_PERIODO_ANTERIOR!E36 -> 1097625125 | AA36: =BALANCE_PERIODO_ANTERIOR!F36 -> 1225858098 | AB36: =BALANCE_PERIODO_ANTERIOR!G36 -> 454864572.4 | AC36: 454864572.4 | AD36: 454864572.4 | AE36: 0 | AF36: 0 | AG36: 0 | AH36: =IFERROR(IF(VLOOKUP(B36,PLAN_CUENTAS!$J:$AC,20,0)="EXCEP",0,1),0) -> 1 | AI36: 1 | AJ36: 0 | AK36: =#REF! ->  | AL36: =#REF! ->  | AM36: =#REF! ->  | AN36: =#REF! ->  | AO36: =#REF! ->  | AP36: =#REF! ->  | AY36: - | AZ36: 2 | BA36: 2 | BB36: 2 | BC36: 2 | BD36: -
A37: =BALANCE_COMPROBACION!A37 -> 3.1 | B37: =BALANCE_COMPROBACION!B37 -> 1.1.3.01.02.01. | C37: =BALANCE_COMPROBACION!C37 -> Impuesto sobre la propiedad de bienes inmuebles a cobrar c/p | D37: =BALANCE_COMPROBACION!D37 -> 454864572.4 | E37: =BALANCE_COMPROBACION!E37 -> 164593346.3 | F37: =BALANCE_COMPROBACION!F37 -> 59420740.81 | G37: =BALANCE_COMPROBACION!G37 -> 560037177.9 | H37: 15 | I37: 1 | J37: =IFERROR(IF(B37="GRAN TOTAL","N/A",IF(H37=22,"N/A",IF(B37=0,"N/A",VLOOKUP(B37,PLAN_CUENTAS!$J:$J,1,FALSE)))),"ERROR") -> 1.1.3.01.02.01. | O37: =IFERROR(IF(N37="","",VLOOKUP(N37,REGISTRO_RECIPROCAS!C:E,3,FALSE)),"") ->  | P37: =IFERROR(VLOOKUP(N37,REGISTRO_RECIPROCAS!C$2:D$501,2,FALSE),"") ->  | R37: =IFERROR(IF(Q37="","",VLOOKUP(Q37,REGISTRO_RECIPROCAS!A:B,2,FALSE)),"") ->  | S37: CORRECTO | T37: =IFERROR(IF(Q37=VLOOKUP(Q37,REGISTRO_RECIPROCAS!A:A,1,FALSE),"APLICA","NO APLICA"),"NO APLICA") -> NO APLICA | V37: =BALANCE_PERIODO_ANTERIOR!A37 -> 3.1 | W37: =BALANCE_PERIODO_ANTERIOR!B37 -> 1.1.3.01.02.01. | X37: =BALANCE_PERIODO_ANTERIOR!C37 -> Impuesto sobre la propiedad de bienes inmuebles a cobrar c/p | Y37: =BALANCE_PERIODO_ANTERIOR!D37 -> 583097545.6 | Z37: =BALANCE_PERIODO_ANTERIOR!E37 -> 1097625125 | AA37: =BALANCE_PERIODO_ANTERIOR!F37 -> 1225858098 | AB37: =BALANCE_PERIODO_ANTERIOR!G37 -> 454864572.4 | AC37: 454864572.4 | AD37: 454864572.4 | AE37: 0 | AF37: 0 | AG37: 0 | AH37: =IFERROR(IF(VLOOKUP(B37,PLAN_CUENTAS!$J:$AC,20,0)="EXCEP",0,1),0) -> 1 | AI37: 1 | AJ37: 0 | AK37: =#REF! ->  | AL37: =#REF! ->  | AM37: =#REF! ->  | AN37: =#REF! ->  | AO37: =#REF! ->  | AP37: =#REF! ->  | AY37: - | AZ37: 2 | BA37: 2 | BB37: 2 | BC37: 2 | BD37: -
A38: =BALANCE_COMPROBACION!A38 -> 3.1 | B38: =BALANCE_COMPROBACION!B38 -> 1.1.3.01.02.01.0. | C38: =BALANCE_COMPROBACION!C38 -> Impuesto sobre la propiedad de bienes inmuebles a cobrar c/p | D38: =BALANCE_COMPROBACION!D38 -> 454864572.4 | E38: =BALANCE_COMPROBACION!E38 -> 164593346.3 | F38: =BALANCE_COMPROBACION!F38 -> 59420740.81 | G38: =BALANCE_COMPROBACION!G38 -> 560037177.9 | H38: 17 | I38: 1 | J38: =IFERROR(IF(B38="GRAN TOTAL","N/A",IF(H38=22,"N/A",IF(B38=0,"N/A",VLOOKUP(B38,PLAN_CUENTAS!$J:$J,1,FALSE)))),"ERROR") -> 1.1.3.01.02.01.0. | O38: =IFERROR(IF(N38="","",VLOOKUP(N38,REGISTRO_RECIPROCAS!C:E,3,FALSE)),"") ->  | P38: =IFERROR(VLOOKUP(N38,REGISTRO_RECIPROCAS!C$2:D$501,2,FALSE),"") ->  | R38: =IFERROR(IF(Q38="","",VLOOKUP(Q38,REGISTRO_RECIPROCAS!A:B,2,FALSE)),"") ->  | S38: CORRECTO | T38: =IFERROR(IF(Q38=VLOOKUP(Q38,REGISTRO_RECIPROCAS!A:A,1,FALSE),"APLICA","NO APLICA"),"NO APLICA") -> NO APLICA | V38: =BALANCE_PERIODO_ANTERIOR!A38 -> 3.1 | W38: =BALANCE_PERIODO_ANTERIOR!B38 -> 1.1.3.01.02.01.0. | X38: =BALANCE_PERIODO_ANTERIOR!C38 -> Impuesto sobre la propiedad de bienes inmuebles a cobrar c/p | Y38: =BALANCE_PERIODO_ANTERIOR!D38 -> 583097545.6 | Z38: =BALANCE_PERIODO_ANTERIOR!E38 -> 1097625125 | AA38: =BALANCE_PERIODO_ANTERIOR!F38 -> 1225858098 | AB38: =BALANCE_PERIODO_ANTERIOR!G38 -> 454864572.4 | AC38: 454864572.4 | AD38: 454864572.4 | AE38: 0 | AF38: 0 | AG38: 0 | AH38: =IFERROR(IF(VLOOKUP(B38,PLAN_CUENTAS!$J:$AC,20,0)="EXCEP",0,1),0) -> 1 | AI38: 1 | AJ38: 0 | AK38: =#REF! ->  | AL38: =#REF! ->  | AM38: =#REF! ->  | AN38: =#REF! ->  | AO38: =#REF! ->  | AP38: =#REF! ->  | AY38: - | AZ38: 2 | BA38: 2 | BB38: 2 | BC38: 2 | BD38: -
A39: =BALANCE_COMPROBACION!A39 -> 3.1 | B39: =BALANCE_COMPROBACION!B39 -> 1.1.3.01.02.01.0.99999 | C39: =BALANCE_COMPROBACION!C39 -> Impuesto sobre la propiedad de bienes inmuebles a cobrar c/p | D39: =BALANCE_COMPROBACION!D39 -> 454864572.4 | E39: =BALANCE_COMPROBACION!E39 -> 164593346.3 | F39: =BALANCE_COMPROBACION!F39 -> 59420740.81 | G39: =BALANCE_COMPROBACION!G39 -> 560037177.9 | H39: 22 | I39: 1 | J39: =IFERROR(IF(B39="GRAN TOTAL","N/A",IF(H39=22,"N/A",IF(B39=0,"N/A",VLOOKUP(B39,PLAN_CUENTAS!$J:$J,1,FALSE)))),"ERROR") -> N/A | M39: RECIPROCA | N39: 99999 | O39: =IFERROR(IF(N39="","",VLOOKUP(N39,REGISTRO_RECIPROCAS!C:E,3,FALSE)),"") -> N/A | P39: =IFERROR(VLOOKUP(N39,REGISTRO_RECIPROCAS!C$2:D$501,2,FALSE),"") -> NO APLICA | Q39: 1.1.3.01.02.01.0. | R39: =IFERROR(IF(Q39="","",VLOOKUP(Q39,REGISTRO_RECIPROCAS!A:B,2,FALSE)),"") ->  | S39: ERROR | T39: =IFERROR(IF(Q39=VLOOKUP(Q39,REGISTRO_RECIPROCAS!A:A,1,FALSE),"APLICA","NO APLICA"),"NO APLICA") -> NO APLICA | V39: =BALANCE_PERIODO_ANTERIOR!A39 -> 3.1 | W39: =BALANCE_PERIODO_ANTERIOR!B39 -> 1.1.3.01.02.01.0.99999 | X39: =BALANCE_PERIODO_ANTERIOR!C39 -> Impuesto sobre la propiedad de bienes inmuebles a cobrar c/p | Y39: =BALANCE_PERIODO_ANTERIOR!D39 -> 583097545.6 | Z39: =BALANCE_PERIODO_ANTERIOR!E39 -> 1097625125 | AA39: =BALANCE_PERIODO_ANTERIOR!F39 -> 1225858098 | AB39: =BALANCE_PERIODO_ANTERIOR!G39 -> 454864572.4 | AC39: 454864572.4 | AD39: 454864572.4 | AE39: 0 | AF39: 0 | AG39: 0 | AH39: =IFERROR(IF(VLOOKUP(B39,PLAN_CUENTAS!$J:$AC,20,0)="EXCEP",0,1),0) -> 0 | AI39: 1 | AJ39: 0 | AK39: =#REF! ->  | AL39: =#REF! ->  | AM39: =#REF! ->  | AN39: =#REF! ->  | AO39: =#REF! ->  | AP39: =#REF! ->  | AQ39: 454864572.4 | AR39: 164593346.3 | AS39: 59420740.81 | AT39: 560037177.9 | AU39: 0 | AV39: 0 | AW39: 0 | AX39: 0 | AY39: - | AZ39: 2 | BA39: 2 | BB39: 2 | BC39: 2 | BD39: -
A40: =BALANCE_COMPROBACION!A40 -> 3.1 | B40: =BALANCE_COMPROBACION!B40 -> 1.1.3.01.03. | C40: =BALANCE_COMPROBACION!C40 -> Impuestos sobre bienes y servicios a cobrar c/p | D40: =BALANCE_COMPROBACION!D40 -> 33504940.95 | E40: =BALANCE_COMPROBACION!E40 -> 75265690.44 | F40: =BALANCE_COMPROBACION!F40 -> 29547992 | G40: =BALANCE_COMPROBACION!G40 -> 79222639.39 | H40: 12 | I40: 1 | J40: =IFERROR(IF(B40="GRAN TOTAL","N/A",IF(H40=22,"N/A",IF(B40=0,"N/A",VLOOKUP(B40,PLAN_CUENTAS!$J:$J,1,FALSE)))),"ERROR") -> 1.1.3.01.03. | O40: =IFERROR(IF(N40="","",VLOOKUP(N40,REGISTRO_RECIPROCAS!C:E,3,FALSE)),"") ->  | P40: =IFERROR(VLOOKUP(N40,REGISTRO_RECIPROCAS!C$2:D$501,2,FALSE),"") ->  | R40: =IFERROR(IF(Q40="","",VLOOKUP(Q40,REGISTRO_RECIPROCAS!A:B,2,FALSE)),"") ->  | S40: CORRECTO | T40: =IFERROR(IF(Q40=VLOOKUP(Q40,REGISTRO_RECIPROCAS!A:A,1,FALSE),"APLICA","NO APLICA"),"NO APLICA") -> NO APLICA | V40: =BALANCE_PERIODO_ANTERIOR!A40 -> 3.1 | W40: =BALANCE_PERIODO_ANTERIOR!B40 -> 1.1.3.01.03. | X40: =BALANCE_PERIODO_ANTERIOR!C40 -> Impuestos sobre bienes y servicios a cobrar c/p | Y40: =BALANCE_PERIODO_ANTERIOR!D40 -> 36344200.19 | Z40: =BALANCE_PERIODO_ANTERIOR!E40 -> 306725595.6 | AA40: =BALANCE_PERIODO_ANTERIOR!F40 -> 309564854.9 | AB40: =BALANCE_PERIODO_ANTERIOR!G40 -> 33504940.95 | AC40: 33504940.95 | AD40: 33504940.95 | AE40: 0 | AF40: 0 | AG40: 0 | AH40: =IFERROR(IF(VLOOKUP(B40,PLAN_CUENTAS!$J:$AC,20,0)="EXCEP",0,1),0) -> 1 | AI40: 1 | AJ40: 0 | AK40: =#REF! ->  | AL40: =#REF! ->  | AM40: =#REF! ->  | AN40: =#REF! ->  | AO40: =#REF! ->  | AP40: =#REF! ->  | AY40: - | AZ40: 2 | BA40: 2 | BB40: 0 | BC40: 2 | BD40: -
A41: =BALANCE_COMPROBACION!A41 -> 3.1 | B41: =BALANCE_COMPROBACION!B41 -> 1.1.3.01.03.99. | C41: =BALANCE_COMPROBACION!C41 -> Otros Impuestos sobre bienes y servicios a cobrar c/p | D41: =BALANCE_COMPROBACION!D41 -> 33504940.95 | E41: =BALANCE_COMPROBACION!E41 -> 75265690.44 | F41: =BALANCE_COMPROBACION!F41 -> 29547992 | G41: =BALANCE_COMPROBACION!G41 -> 79222639.39 | H41: 15 | I41: 1 | J41: =IFERROR(IF(B41="GRAN TOTAL","N/A",IF(H41=22,"N/A",IF(B41=0,"N/A",VLOOKUP(B41,PLAN_CUENTAS!$J:$J,1,FALSE)))),"ERROR") -> 1.1.3.01.03.99. | O41: =IFERROR(IF(N41="","",VLOOKUP(N41,REGISTRO_RECIPROCAS!C:E,3,FALSE)),"") ->  | P41: =IFERROR(VLOOKUP(N41,REGISTRO_RECIPROCAS!C$2:D$501,2,FALSE),"") ->  | R41: =IFERROR(IF(Q41="","",VLOOKUP(Q41,REGISTRO_RECIPROCAS!A:B,2,FALSE)),"") ->  | S41: CORRECTO | T41: =IFERROR(IF(Q41=VLOOKUP(Q41,REGISTRO_RECIPROCAS!A:A,1,FALSE),"APLICA","NO APLICA"),"NO APLICA") -> NO APLICA | V41: =BALANCE_PERIODO_ANTERIOR!A41 -> 3.1 | W41: =BALANCE_PERIODO_ANTERIOR!B41 -> 1.1.3.01.03.99. | X41: =BALANCE_PERIODO_ANTERIOR!C41 -> Otros Impuestos sobre bienes y servicios a cobrar c/p | Y41: =BALANCE_PERIODO_ANTERIOR!D41 -> 36344200.19 | Z41: =BALANCE_PERIODO_ANTERIOR!E41 -> 306725595.6 | AA41: =BALANCE_PERIODO_ANTERIOR!F41 -> 309564854.9 | AB41: =BALANCE_PERIODO_ANTERIOR!G41 -> 33504940.95 | AC41: 33504940.95 | AD41: 33504940.95 | AE41: 0 | AF41: 0 | AG41: 0 | AH41: =IFERROR(IF(VLOOKUP(B41,PLAN_CUENTAS!$J:$AC,20,0)="EXCEP",0,1),0) -> 1 | AI41: 1 | AJ41: 0 | AK41: =#REF! ->  | AL41: =#REF! ->  | AM41: =#REF! ->  | AN41: =#REF! ->  | AO41: =#REF! ->  | AP41: =#REF! ->  | AY41: - | AZ41: 2 | BA41: 2 | BB41: 0 | BC41: 2 | BD41: -
A42: =BALANCE_COMPROBACION!A42 -> 3.1 | B42: =BALANCE_COMPROBACION!B42 -> 1.1.3.01.03.99.1. | C42: =BALANCE_COMPROBACION!C42 -> Licencias profesionales, comerciales y otros permisos a cobrar c/p | D42: =BALANCE_COMPROBACION!D42 -> 30044160.51 | E42: =BALANCE_COMPROBACION!E42 -> 72323171.51 | F42: =BALANCE_COMPROBACION!F42 -> 28176282 | G42: =BALANCE_COMPROBACION!G42 -> 74191050.02 | H42: 17 | I42: 1 | J42: =IFERROR(IF(B42="GRAN TOTAL","N/A",IF(H42=22,"N/A",IF(B42=0,"N/A",VLOOKUP(B42,PLAN_CUENTAS!$J:$J,1,FALSE)))),"ERROR") -> 1.1.3.01.03.99.1. | O42: =IFERROR(IF(N42="","",VLOOKUP(N42,REGISTRO_RECIPROCAS!C:E,3,FALSE)),"") ->  | P42: =IFERROR(VLOOKUP(N42,REGISTRO_RECIPROCAS!C$2:D$501,2,FALSE),"") ->  | R42: =IFERROR(IF(Q42="","",VLOOKUP(Q42,REGISTRO_RECIPROCAS!A:B,2,FALSE)),"") ->  | S42: CORRECTO | T42: =IFERROR(IF(Q42=VLOOKUP(Q42,REGISTRO_RECIPROCAS!A:A,1,FALSE),"APLICA","NO APLICA"),"NO APLICA") -> NO APLICA | V42: =BALANCE_PERIODO_ANTERIOR!A42 -> 3.1 | W42: =BALANCE_PERIODO_ANTERIOR!B42 -> 1.1.3.01.03.99.1. | X42: =BALANCE_PERIODO_ANTERIOR!C42 -> Licencias profesionales, comerciales y otros permisos a cobrar c/p | Y42: =BALANCE_PERIODO_ANTERIOR!D42 -> 34052862.94 | Z42: =BALANCE_PERIODO_ANTERIOR!E42 -> 294079923.4 | AA42: =BALANCE_PERIODO_ANTERIOR!F42 -> 298088625.8 | AB42: =BALANCE_PERIODO_ANTERIOR!G42 -> 30044160.51 | AC42: 30044160.51 | AD42: 30044160.51 | AE42: 0 | AF42: 0 | AG42: 0 | AH42: =IFERROR(IF(VLOOKUP(B42,PLAN_CUENTAS!$J:$AC,20,0)="EXCEP",0,1),0) -> 1 | AI42: 1 | AJ42: 0 | AK42: =#REF! ->  | AL42: =#REF! ->  | AM42: =#REF! ->  | AN42: =#REF! ->  | AO42: =#REF! ->  | AP42: =#REF! ->  | AY42: - | AZ42: 2 | BA42: 2 | BB42: 0 | BC42: 2 | BD42: -
A43: =BALANCE_COMPROBACION!A43 -> 3.1 | B43: =BALANCE_COMPROBACION!B43 -> 1.1.3.01.03.99.1.99999 | C43: =BALANCE_COMPROBACION!C43 -> Licencias profesionales, comerciales y otros permisos a cobrar c/p | D43: =BALANCE_COMPROBACION!D43 -> 30044160.51 | E43: =BALANCE_COMPROBACION!E43 -> 72323171.51 | F43: =BALANCE_COMPROBACION!F43 -> 28176282 | G43: =BALANCE_COMPROBACION!G43 -> 74191050.02 | H43: 22 | I43: 1 | J43: =IFERROR(IF(B43="GRAN TOTAL","N/A",IF(H43=22,"N/A",IF(B43=0,"N/A",VLOOKUP(B43,PLAN_CUENTAS!$J:$J,1,FALSE)))),"ERROR") -> N/A | M43: RECIPROCA | N43: 99999 | O43: =IFERROR(IF(N43="","",VLOOKUP(N43,REGISTRO_RECIPROCAS!C:E,3,FALSE)),"") -> N/A | P43: =IFERROR(VLOOKUP(N43,REGISTRO_RECIPROCAS!C$2:D$501,2,FALSE),"") -> NO APLICA | Q43: 1.1.3.01.03.99.1. | R43: =IFERROR(IF(Q43="","",VLOOKUP(Q43,REGISTRO_RECIPROCAS!A:B,2,FALSE)),"") ->  | S43: ERROR | T43: =IFERROR(IF(Q43=VLOOKUP(Q43,REGISTRO_RECIPROCAS!A:A,1,FALSE),"APLICA","NO APLICA"),"NO APLICA") -> NO APLICA | V43: =BALANCE_PERIODO_ANTERIOR!A43 -> 3.1 | W43: =BALANCE_PERIODO_ANTERIOR!B43 -> 1.1.3.01.03.99.1.99999 | X43: =BALANCE_PERIODO_ANTERIOR!C43 -> Licencias profesionales, comerciales y otros permisos a cobrar c/p | Y43: =BALANCE_PERIODO_ANTERIOR!D43 -> 34052862.94 | Z43: =BALANCE_PERIODO_ANTERIOR!E43 -> 294079923.4 | AA43: =BALANCE_PERIODO_ANTERIOR!F43 -> 298088625.8 | AB43: =BALANCE_PERIODO_ANTERIOR!G43 -> 30044160.51 | AC43: 30044160.51 | AD43: 30044160.51 | AE43: 0 | AF43: 0 | AG43: 0 | AH43: =IFERROR(IF(VLOOKUP(B43,PLAN_CUENTAS!$J:$AC,20,0)="EXCEP",0,1),0) -> 0 | AI43: 1 | AJ43: 0 | AK43: =#REF! ->  | AL43: =#REF! ->  | AM43: =#REF! ->  | AN43: =#REF! ->  | AO43: =#REF! ->  | AP43: =#REF! ->  | AQ43: 30044160.51 | AR43: 72323171.51 | AS43: 28176282 | AT43: 74191050.02 | AU43: 0 | AV43: 0 | AW43: 0 | AX43: 0 | AY43: - | AZ43: 2 | BA43: 2 | BB43: 0 | BC43: 2 | BD43: -
A44: =BALANCE_COMPROBACION!A44 -> 3.1 | B44: =BALANCE_COMPROBACION!B44 -> 1.1.3.01.03.99.9. | C44: =BALANCE_COMPROBACION!C44 -> Otros impuestos varios sobre bienes y servicios a cobrar c/p | D44: =BALANCE_COMPROBACION!D44 -> 3460780.44 | E44: =BALANCE_COMPROBACION!E44 -> 2942518.93 | F44: =BALANCE_COMPROBACION!F44 -> 1371710 | G44: =BALANCE_COMPROBACION!G44 -> 5031589.37 | H44: 17 | I44: 1 | J44: =IFERROR(IF(B44="GRAN TOTAL","N/A",IF(H44=22,"N/A",IF(B44=0,"N/A",VLOOKUP(B44,PLAN_CUENTAS!$J:$J,1,FALSE)))),"ERROR") -> 1.1.3.01.03.99.9. | O44: =IFERROR(IF(N44="","",VLOOKUP(N44,REGISTRO_RECIPROCAS!C:E,3,FALSE)),"") ->  | P44: =IFERROR(VLOOKUP(N44,REGISTRO_RECIPROCAS!C$2:D$501,2,FALSE),"") ->  | R44: =IFERROR(IF(Q44="","",VLOOKUP(Q44,REGISTRO_RECIPROCAS!A:B,2,FALSE)),"") ->  | S44: CORRECTO | T44: =IFERROR(IF(Q44=VLOOKUP(Q44,REGISTRO_RECIPROCAS!A:A,1,FALSE),"APLICA","NO APLICA"),"NO APLICA") -> NO APLICA | V44: =BALANCE_PERIODO_ANTERIOR!A44 -> 3.1 | W44: =BALANCE_PERIODO_ANTERIOR!B44 -> 1.1.3.01.03.99.9. | X44: =BALANCE_PERIODO_ANTERIOR!C44 -> Otros impuestos varios sobre bienes y servicios a cobrar c/p | Y44: =BALANCE_PERIODO_ANTERIOR!D44 -> 2291337.25 | Z44: =BALANCE_PERIODO_ANTERIOR!E44 -> 12645672.25 | AA44: =BALANCE_PERIODO_ANTERIOR!F44 -> 11476229.06 | AB44: =BALANCE_PERIODO_ANTERIOR!G44 -> 3460780.44 | AC44: 3460780.44 | AD44: 3460780.44 | AE44: 0 | AF44: 0 | AG44: 0 | AH44: =IFERROR(IF(VLOOKUP(B44,PLAN_CUENTAS!$J:$AC,20,0)="EXCEP",0,1),0) -> 1 | AI44: 1 | AJ44: 0 | AK44: =#REF! ->  | AL44: =#REF! ->  | AM44: =#REF! ->  | AN44: =#REF! ->  | AO44: =#REF! ->  | AP44: =#REF! ->  | AY44: - | AZ44: 2 | BA44: 2 | BB44: 0 | BC44: 2 | BD44: -
A45: =BALANCE_COMPROBACION!A45 -> 3.1 | B45: =BALANCE_COMPROBACION!B45 -> 1.1.3.01.03.99.9.99999 | C45: =BALANCE_COMPROBACION!C45 -> Otros impuestos varios sobre bienes y servicios a cobrar c/p | D45: =BALANCE_COMPROBACION!D45 -> 3460780.44 | E45: =BALANCE_COMPROBACION!E45 -> 2942518.93 | F45: =BALANCE_COMPROBACION!F45 -> 1371710 | G45: =BALANCE_COMPROBACION!G45 -> 5031589.37 | H45: 22 | I45: 1 | J45: =IFERROR(IF(B45="GRAN TOTAL","N/A",IF(H45=22,"N/A",IF(B45=0,"N/A",VLOOKUP(B45,PLAN_CUENTAS!$J:$J,1,FALSE)))),"ERROR") -> N/A | M45: RECIPROCA | N45: 99999 | O45: =IFERROR(IF(N45="","",VLOOKUP(N45,REGISTRO_RECIPROCAS!C:E,3,FALSE)),"") -> N/A | P45: =IFERROR(VLOOKUP(N45,REGISTRO_RECIPROCAS!C$2:D$501,2,FALSE),"") -> NO APLICA | Q45: 1.1.3.01.03.99.9. | R45: =IFERROR(IF(Q45="","",VLOOKUP(Q45,REGISTRO_RECIPROCAS!A:B,2,FALSE)),"") ->  | S45: ERROR | T45: =IFERROR(IF(Q45=VLOOKUP(Q45,REGISTRO_RECIPROCAS!A:A,1,FALSE),"APLICA","NO APLICA"),"NO APLICA") -> NO APLICA | V45: =BALANCE_PERIODO_ANTERIOR!A45 -> 3.1 | W45: =BALANCE_PERIODO_ANTERIOR!B45 -> 1.1.3.01.03.99.9.99999 | X45: =BALANCE_PERIODO_ANTERIOR!C45 -> Otros impuestos varios sobre bienes y servicios a cobrar c/p | Y45: =BALANCE_PERIODO_ANTERIOR!D45 -> 2291337.25 | Z45: =BALANCE_PERIODO_ANTERIOR!E45 -> 12645672.25 | AA45: =BALANCE_PERIODO_ANTERIOR!F45 -> 11476229.06 | AB45: =BALANCE_PERIODO_ANTERIOR!G45 -> 3460780.44 | AC45: 3460780.44 | AD45: 3460780.44 | AE45: 0 | AF45: 0 | AG45: 0 | AH45: =IFERROR(IF(VLOOKUP(B45,PLAN_CUENTAS!$J:$AC,20,0)="EXCEP",0,1),0) -> 0 | AI45: 1 | AJ45: 0 | AK45: =#REF! ->  | AL45: =#REF! ->  | AM45: =#REF! ->  | AN45: =#REF! ->  | AO45: =#REF! ->  | AP45: =#REF! ->  | AQ45: 3460780.44 | AR45: 2942518.93 | AS45: 1371710 | AT45: 5031589.37 | AU45: 0 | AV45: 0 | AW45: 0 | AX45: 0 | AY45: - | AZ45: 2 | BA45: 2 | BB45: 0 | BC45: 2 | BD45: -
A46: =BALANCE_COMPROBACION!A46 -> 3.1 | B46: =BALANCE_COMPROBACION!B46 -> 1.1.3.04. | C46: =BALANCE_COMPROBACION!C46 -> Servicios y derechos a cobrar a corto plazo | D46: =BALANCE_COMPROBACION!D46 -> 180183637.8 | E46: =BALANCE_COMPROBACION!E46 -> 162004044 | F46: =BALANCE_COMPROBACION!F46 -> 49200355.06 | G46: =BALANCE_COMPROBACION!G46 -> 292987326.7 | H46: 9 | I46: 1 | J46: =IFERROR(IF(B46="GRAN TOTAL","N/A",IF(H46=22,"N/A",IF(B46=0,"N/A",VLOOKUP(B46,PLAN_CUENTAS!$J:$J,1,FALSE)))),"ERROR") -> 1.1.3.04. | O46: =IFERROR(IF(N46="","",VLOOKUP(N46,REGISTRO_RECIPROCAS!C:E,3,FALSE)),"") ->  | P46: =IFERROR(VLOOKUP(N46,REGISTRO_RECIPROCAS!C$2:D$501,2,FALSE),"") ->  | R46: =IFERROR(IF(Q46="","",VLOOKUP(Q46,REGISTRO_RECIPROCAS!A:B,2,FALSE)),"") ->  | S46: CORRECTO | T46: =IFERROR(IF(Q46=VLOOKUP(Q46,REGISTRO_RECIPROCAS!A:A,1,FALSE),"APLICA","NO APLICA"),"NO APLICA") -> NO APLICA | V46: =BALANCE_PERIODO_ANTERIOR!A46 -> 3.1 | W46: =BALANCE_PERIODO_ANTERIOR!B46 -> 1.1.3.04. | X46: =BALANCE_PERIODO_ANTERIOR!C46 -> Servicios y derechos a cobrar a corto plazo | Y46: =BALANCE_PERIODO_ANTERIOR!D46 -> 171480251.5 | Z46: =BALANCE_PERIODO_ANTERIOR!E46 -> 525369525.2 | AA46: =BALANCE_PERIODO_ANTERIOR!F46 -> 516666138.9 | AB46: =BALANCE_PERIODO_ANTERIOR!G46 -> 180183637.8 | AC46: 180183637.8 | AD46: 180183637.8 | AE46: 0 | AF46: 0 | AG46: 0 | AH46: =IFERROR(IF(VLOOKUP(B46,PLAN_CUENTAS!$J:$AC,20,0)="EXCEP",0,1),0) -> 1 | AI46: 1 | AJ46: 0 | AK46: =#REF! ->  | AL46: =#REF! ->  | AM46: =#REF! ->  | AN46: =#REF! ->  | AO46: =#REF! ->  | AP46: =#REF! ->  | AY46: - | AZ46: 1 | BA46: 0 | BB46: 2 | BC46: 2 | BD46: -
A47: =BALANCE_COMPROBACION!A47 -> 3.1 | B47: =BALANCE_COMPROBACION!B47 -> 1.1.3.04.01. | C47: =BALANCE_COMPROBACION!C47 -> Servicios a cobrar c/p | D47: =BALANCE_COMPROBACION!D47 -> 179741182.8 | E47: =BALANCE_COMPROBACION!E47 -> 161888404 | F47: =BALANCE_COMPROBACION!F47 -> 49117175.06 | G47: =BALANCE_COMPROBACION!G47 -> 292512411.7 | H47: 12 | I47: 1 | J47: =IFERROR(IF(B47="GRAN TOTAL","N/A",IF(H47=22,"N/A",IF(B47=0,"N/A",VLOOKUP(B47,PLAN_CUENTAS!$J:$J,1,FALSE)))),"ERROR") -> 1.1.3.04.01. | O47: =IFERROR(IF(N47="","",VLOOKUP(N47,REGISTRO_RECIPROCAS!C:E,3,FALSE)),"") ->  | P47: =IFERROR(VLOOKUP(N47,REGISTRO_RECIPROCAS!C$2:D$501,2,FALSE),"") ->  | R47: =IFERROR(IF(Q47="","",VLOOKUP(Q47,REGISTRO_RECIPROCAS!A:B,2,FALSE)),"") ->  | S47: CORRECTO | T47: =IFERROR(IF(Q47=VLOOKUP(Q47,REGISTRO_RECIPROCAS!A:A,1,FALSE),"APLICA","NO APLICA"),"NO APLICA") -> NO APLICA | V47: =BALANCE_PERIODO_ANTERIOR!A47 -> 3.1 | W47: =BALANCE_PERIODO_ANTERIOR!B47 -> 1.1.3.04.01. | X47: =BALANCE_PERIODO_ANTERIOR!C47 -> Servicios a cobrar c/p | Y47: =BALANCE_PERIODO_ANTERIOR!D47 -> 170633251.5 | Z47: =BALANCE_PERIODO_ANTERIOR!E47 -> 524387525.2 | AA47: =BALANCE_PERIODO_ANTERIOR!F47 -> 515279593.9 | AB47: =BALANCE_PERIODO_ANTERIOR!G47 -> 179741182.8 | AC47: 179741182.8 | AD47: 179741182.8 | AE47: 0 | AF47: 0 | AG47: 0 | AH47: =IFERROR(IF(VLOOKUP(B47,PLAN_CUENTAS!$J:$AC,20,0)="EXCEP",0,1),0) -> 1 | AI47: 1 | AJ47: 0 | AK47: =#REF! ->  | AL47: =#REF! ->  | AM47: =#REF! ->  | AN47: =#REF! ->  | AO47: =#REF! ->  | AP47: =#REF! ->  | AY47: - | AZ47: 1 | BA47: 0 | BB47: 2 | BC47: 2 | BD47: -
A48: =BALANCE_COMPROBACION!A48 -> 3.1 | B48: =BALANCE_COMPROBACION!B48 -> 1.1.3.04.01.04. | C48: =BALANCE_COMPROBACION!C48 -> Servicios comunitarios a cobrar c/p | D48: =BALANCE_COMPROBACION!D48 -> 179741182.8 | E48: =BALANCE_COMPROBACION!E48 -> 161888404 | F48: =BALANCE_COMPROBACION!F48 -> 49117175.06 | G48: =BALANCE_COMPROBACION!G48 -> 292512411.7 | H48: 15 | I48: 1 | J48: =IFERROR(IF(B48="GRAN TOTAL","N/A",IF(H48=22,"N/A",IF(B48=0,"N/A",VLOOKUP(B48,PLAN_CUENTAS!$J:$J,1,FALSE)))),"ERROR") -> 1.1.3.04.01.04. | O48: =IFERROR(IF(N48="","",VLOOKUP(N48,REGISTRO_RECIPROCAS!C:E,3,FALSE)),"") ->  | P48: =IFERROR(VLOOKUP(N48,REGISTRO_RECIPROCAS!C$2:D$501,2,FALSE),"") ->  | R48: =IFERROR(IF(Q48="","",VLOOKUP(Q48,REGISTRO_RECIPROCAS!A:B,2,FALSE)),"") ->  | S48: CORRECTO | T48: =IFERROR(IF(Q48=VLOOKUP(Q48,REGISTRO_RECIPROCAS!A:A,1,FALSE),"APLICA","NO APLICA"),"NO APLICA") -> NO APLICA | V48: =BALANCE_PERIODO_ANTERIOR!A48 -> 3.1 | W48: =BALANCE_PERIODO_ANTERIOR!B48 -> 1.1.3.04.01.04. | X48: =BALANCE_PERIODO_ANTERIOR!C48 -> Servicios comunitarios a cobrar c/p | Y48: =BALANCE_PERIODO_ANTERIOR!D48 -> 170633251.5 | Z48: =BALANCE_PERIODO_ANTERIOR!E48 -> 524387525.2 | AA48: =BALANCE_PERIODO_ANTERIOR!F48 -> 515279593.9 | AB48: =BALANCE_PERIODO_ANTERIOR!G48 -> 179741182.8 | AC48: 179741182.8 | AD48: 179741182.8 | AE48: 0 | AF48: 0 | AG48: 0 | AH48: =IFERROR(IF(VLOOKUP(B48,PLAN_CUENTAS!$J:$AC,20,0)="EXCEP",0,1),0) -> 1 | AI48: 1 | AJ48: 0 | AK48: =#REF! ->  | AL48: =#REF! ->  | AM48: =#REF! ->  | AN48: =#REF! ->  | AO48: =#REF! ->  | AP48: =#REF! ->  | AY48: - | AZ48: 1 | BA48: 0 | BB48: 2 | BC48: 2 | BD48: -
A49: =BALANCE_COMPROBACION!A49 -> 3.1 | B49: =BALANCE_COMPROBACION!B49 -> 1.1.3.04.01.04.0. | C49: =BALANCE_COMPROBACION!C49 -> Servicios comunitarios a cobrar c/p | D49: =BALANCE_COMPROBACION!D49 -> 179741182.8 | E49: =BALANCE_COMPROBACION!E49 -> 161888404 | F49: =BALANCE_COMPROBACION!F49 -> 49117175.06 | G49: =BALANCE_COMPROBACION!G49 -> 292512411.7 | H49: 17 | I49: 1 | J49: =IFERROR(IF(B49="GRAN TOTAL","N/A",IF(H49=22,"N/A",IF(B49=0,"N/A",VLOOKUP(B49,PLAN_CUENTAS!$J:$J,1,FALSE)))),"ERROR") -> 1.1.3.04.01.04.0. | O49: =IFERROR(IF(N49="","",VLOOKUP(N49,REGISTRO_RECIPROCAS!C:E,3,FALSE)),"") ->  | P49: =IFERROR(VLOOKUP(N49,REGISTRO_RECIPROCAS!C$2:D$501,2,FALSE),"") ->  | R49: =IFERROR(IF(Q49="","",VLOOKUP(Q49,REGISTRO_RECIPROCAS!A:B,2,FALSE)),"") ->  | S49: CORRECTO | T49: =IFERROR(IF(Q49=VLOOKUP(Q49,REGISTRO_RECIPROCAS!A:A,1,FALSE),"APLICA","NO APLICA"),"NO APLICA") -> NO APLICA | V49: =BALANCE_PERIODO_ANTERIOR!A49 -> 3.1 | W49: =BALANCE_PERIODO_ANTERIOR!B49 -> 1.1.3.04.01.04.0. | X49: =BALANCE_PERIODO_ANTERIOR!C49 -> Servicios comunitarios a cobrar c/p | Y49: =BALANCE_PERIODO_ANTERIOR!D49 -> 170633251.5 | Z49: =BALANCE_PERIODO_ANTERIOR!E49 -> 524387525.2 | AA49: =BALANCE_PERIODO_ANTERIOR!F49 -> 515279593.9 | AB49: =BALANCE_PERIODO_ANTERIOR!G49 -> 179741182.8 | AC49: 179741182.8 | AD49: 179741182.8 | AE49: 0 | AF49: 0 | AG49: 0 | AH49: =IFERROR(IF(VLOOKUP(B49,PLAN_CUENTAS!$J:$AC,20,0)="EXCEP",0,1),0) -> 1 | AI49: 1 | AJ49: 0 | AK49: =#REF! ->  | AL49: =#REF! ->  | AM49: =#REF! ->  | AN49: =#REF! ->  | AO49: =#REF! ->  | AP49: =#REF! ->  | AY49: - | AZ49: 1 | BA49: 0 | BB49: 2 | BC49: 2 | BD49: -
A50: =BALANCE_COMPROBACION!A50 -> 3.1 | B50: =BALANCE_COMPROBACION!B50 -> 1.1.3.04.01.04.0.99999 | C50: =BALANCE_COMPROBACION!C50 -> Servicios comunitarios a cobrar c/p | D50: =BALANCE_COMPROBACION!D50 -> 179741182.8 | E50: =BALANCE_COMPROBACION!E50 -> 161888404 | F50: =BALANCE_COMPROBACION!F50 -> 49117175.06 | G50: =BALANCE_COMPROBACION!G50 -> 292512411.7 | H50: 22 | I50: 1 | J50: =IFERROR(IF(B50="GRAN TOTAL","N/A",IF(H50=22,"N/A",IF(B50=0,"N/A",VLOOKUP(B50,PLAN_CUENTAS!$J:$J,1,FALSE)))),"ERROR") -> N/A | M50: RECIPROCA | N50: 99999 | O50: =IFERROR(IF(N50="","",VLOOKUP(N50,REGISTRO_RECIPROCAS!C:E,3,FALSE)),"") -> N/A | P50: =IFERROR(VLOOKUP(N50,REGISTRO_RECIPROCAS!C$2:D$501,2,FALSE),"") -> NO APLICA | Q50: 1.1.3.04.01.04.0. | R50: =IFERROR(IF(Q50="","",VLOOKUP(Q50,REGISTRO_RECIPROCAS!A:B,2,FALSE)),"") ->  | S50: ERROR | T50: =IFERROR(IF(Q50=VLOOKUP(Q50,REGISTRO_RECIPROCAS!A:A,1,FALSE),"APLICA","NO APLICA"),"NO APLICA") -> NO APLICA | V50: =BALANCE_PERIODO_ANTERIOR!A50 -> 3.1 | W50: =BALANCE_PERIODO_ANTERIOR!B50 -> 1.1.3.04.01.04.0.99999 | X50: =BALANCE_PERIODO_ANTERIOR!C50 -> Servicios comunitarios a cobrar c/p | Y50: =BALANCE_PERIODO_ANTERIOR!D50 -> 170633251.5 | Z50: =BALANCE_PERIODO_ANTERIOR!E50 -> 524387525.2 | AA50: =BALANCE_PERIODO_ANTERIOR!F50 -> 515279593.9 | AB50: =BALANCE_PERIODO_ANTERIOR!G50 -> 179741182.8 | AC50: 179741182.8 | AD50: 179741182.8 | AE50: 0 | AF50: 0 | AG50: 0 | AH50: =IFERROR(IF(VLOOKUP(B50,PLAN_CUENTAS!$J:$AC,20,0)="EXCEP",0,1),0) -> 0 | AI50: 1 | AJ50: 0 | AK50: =#REF! ->  | AL50: =#REF! ->  | AM50: =#REF! ->  | AN50: =#REF! ->  | AO50: =#REF! ->  | AP50: =#REF! ->  | AQ50: 179741182.8 | AR50: 161888404 | AS50: 49117175.06 | AT50: 292512411.7 | AU50: 0 | AV50: 0 | AW50: 0 | AX50: 0 | AY50: - | AZ50: 1 | BA50: 0 | BB50: 2 | BC50: 2 | BD50: -
A51: =BALANCE_COMPROBACION!A51 -> 3.1 | B51: =BALANCE_COMPROBACION!B51 -> 1.1.3.04.02. | C51: =BALANCE_COMPROBACION!C51 -> Derechos administrativos a cobrar c/p | D51: =BALANCE_COMPROBACION!D51 -> 442455 | E51: =BALANCE_COMPROBACION!E51 -> 115640 | F51: =BALANCE_COMPROBACION!F51 -> 83180 | G51: =BALANCE_COMPROBACION!G51 -> 474915 | H51: 12 | I51: 1 | J51: =IFERROR(IF(B51="GRAN TOTAL","N/A",IF(H51=22,"N/A",IF(B51=0,"N/A",VLOOKUP(B51,PLAN_CUENTAS!$J:$J,1,FALSE)))),"ERROR") -> 1.1.3.04.02. | O51: =IFERROR(IF(N51="","",VLOOKUP(N51,REGISTRO_RECIPROCAS!C:E,3,FALSE)),"") ->  | P51: =IFERROR(VLOOKUP(N51,REGISTRO_RECIPROCAS!C$2:D$501,2,FALSE),"") ->  | R51: =IFERROR(IF(Q51="","",VLOOKUP(Q51,REGISTRO_RECIPROCAS!A:B,2,FALSE)),"") ->  | S51: CORRECTO | T51: =IFERROR(IF(Q51=VLOOKUP(Q51,REGISTRO_RECIPROCAS!A:A,1,FALSE),"APLICA","NO APLICA"),"NO APLICA") -> NO APLICA | V51: =BALANCE_PERIODO_ANTERIOR!A51 -> 3.1 | W51: =BALANCE_PERIODO_ANTERIOR!B51 -> 1.1.3.04.02. | X51: =BALANCE_PERIODO_ANTERIOR!C51 -> Derechos administrativos a cobrar c/p | Y51: =BALANCE_PERIODO_ANTERIOR!D51 -> 847000 | Z51: =BALANCE_PERIODO_ANTERIOR!E51 -> 982000 | AA51: =BALANCE_PERIODO_ANTERIOR!F51 -> 1386545 | AB51: =BALANCE_PERIODO_ANTERIOR!G51 -> 442455 | AC51: 442455 | AD51: 442455 | AE51: 0 | AF51: 0 | AG51: 0 | AH51: =IFERROR(IF(VLOOKUP(B51,PLAN_CUENTAS!$J:$AC,20,0)="EXCEP",0,1),0) -> 1 | AI51: 1 | AJ51: 0 | AK51: =#REF! ->  | AL51: =#REF! ->  | AM51: =#REF! ->  | AN51: =#REF! ->  | AO51: =#REF! ->  | AP51: =#REF! ->  | AY51: - | AZ51: 0 | BA51: 0 | BB51: 0 | BC51: 0 | BD51: -
A52: =BALANCE_COMPROBACION!A52 -> 3.1 | B52: =BALANCE_COMPROBACION!B52 -> 1.1.3.04.02.01. | C52: =BALANCE_COMPROBACION!C52 -> Derechos administrativos a los servicios de transporte a cobrar c/p | D52: =BALANCE_COMPROBACION!D52 -> 50000 | E52: =BALANCE_COMPROBACION!E52 -> 40000 | F52: =BALANCE_COMPROBACION!F52 -> 60000 | G52: =BALANCE_COMPROBACION!G52 -> 30000 | H52: 15 | I52: 1 | J52: =IFERROR(IF(B52="GRAN TOTAL","N/A",IF(H52=22,"N/A",IF(B52=0,"N/A",VLOOKUP(B52,PLAN_CUENTAS!$J:$J,1,FALSE)))),"ERROR") -> 1.1.3.04.02.01. | O52: =IFERROR(IF(N52="","",VLOOKUP(N52,REGISTRO_RECIPROCAS!C:E,3,FALSE)),"") ->  | P52: =IFERROR(VLOOKUP(N52,REGISTRO_RECIPROCAS!C$2:D$501,2,FALSE),"") ->  | R52: =IFERROR(IF(Q52="","",VLOOKUP(Q52,REGISTRO_RECIPROCAS!A:B,2,FALSE)),"") ->  | S52: CORRECTO | T52: =IFERROR(IF(Q52=VLOOKUP(Q52,REGISTRO_RECIPROCAS!A:A,1,FALSE),"APLICA","NO APLICA"),"NO APLICA") -> NO APLICA | V52: =BALANCE_PERIODO_ANTERIOR!A52 -> 3.1 | W52: =BALANCE_PERIODO_ANTERIOR!B52 -> 1.1.3.04.02.01. | X52: =BALANCE_PERIODO_ANTERIOR!C52 -> Derechos administrativos a los servicios de transporte a cobrar c/p | Y52: =BALANCE_PERIODO_ANTERIOR!D52 -> 340000 | Z52: =BALANCE_PERIODO_ANTERIOR!E52 -> 660000 | AA52: =BALANCE_PERIODO_ANTERIOR!F52 -> 950000 | AB52: =BALANCE_PERIODO_ANTERIOR!G52 -> 50000 | AC52: 50000 | AD52: 50000 | AE52: 0 | AF52: 0 | AG52: 0 | AH52: =IFERROR(IF(VLOOKUP(B52,PLAN_CUENTAS!$J:$AC,20,0)="EXCEP",0,1),0) -> 1 | AI52: 1 | AJ52: 0 | AK52: =#REF! ->  | AL52: =#REF! ->  | AM52: =#REF! ->  | AN52: =#REF! ->  | AO52: =#REF! ->  | AP52: =#REF! ->  | AY52: - | AZ52: 0 | BA52: 0 | BB52: 0 | BC52: 0 | BD52: -
A53: =BALANCE_COMPROBACION!A53 -> 3.1 | B53: =BALANCE_COMPROBACION!B53 -> 1.1.3.04.02.01.0. | C53: =BALANCE_COMPROBACION!C53 -> Derechos administrativos a los servicios de transporte a cobrar c/p | D53: =BALANCE_COMPROBACION!D53 -> 50000 | E53: =BALANCE_COMPROBACION!E53 -> 40000 | F53: =BALANCE_COMPROBACION!F53 -> 60000 | G53: =BALANCE_COMPROBACION!G53 -> 30000 | H53: 17 | I53: 1 | J53: =IFERROR(IF(B53="GRAN TOTAL","N/A",IF(H53=22,"N/A",IF(B53=0,"N/A",VLOOKUP(B53,PLAN_CUENTAS!$J:$J,1,FALSE)))),"ERROR") -> 1.1.3.04.02.01.0. | O53: =IFERROR(IF(N53="","",VLOOKUP(N53,REGISTRO_RECIPROCAS!C:E,3,FALSE)),"") ->  | P53: =IFERROR(VLOOKUP(N53,REGISTRO_RECIPROCAS!C$2:D$501,2,FALSE),"") ->  | R53: =IFERROR(IF(Q53="","",VLOOKUP(Q53,REGISTRO_RECIPROCAS!A:B,2,FALSE)),"") ->  | S53: CORRECTO | T53: =IFERROR(IF(Q53=VLOOKUP(Q53,REGISTRO_RECIPROCAS!A:A,1,FALSE),"APLICA","NO APLICA"),"NO APLICA") -> NO APLICA | V53: =BALANCE_PERIODO_ANTERIOR!A53 -> 3.1 | W53: =BALANCE_PERIODO_ANTERIOR!B53 -> 1.1.3.04.02.01.0. | X53: =BALANCE_PERIODO_ANTERIOR!C53 -> Derechos administrativos a los servicios de transporte a cobrar c/p | Y53: =BALANCE_PERIODO_ANTERIOR!D53 -> 340000 | Z53: =BALANCE_PERIODO_ANTERIOR!E53 -> 660000 | AA53: =BALANCE_PERIODO_ANTERIOR!F53 -> 950000 | AB53: =BALANCE_PERIODO_ANTERIOR!G53 -> 50000 | AC53: 50000 | AD53: 50000 | AE53: 0 | AF53: 0 | AG53: 0 | AH53: =IFERROR(IF(VLOOKUP(B53,PLAN_CUENTAS!$J:$AC,20,0)="EXCEP",0,1),0) -> 1 | AI53: 1 | AJ53: 0 | AK53: =#REF! ->  | AL53: =#REF! ->  | AM53: =#REF! ->  | AN53: =#REF! ->  | AO53: =#REF! ->  | AP53: =#REF! ->  | AY53: - | AZ53: 0 | BA53: 0 | BB53: 0 | BC53: 0 | BD53: -
A54: =BALANCE_COMPROBACION!A54 -> 3.1 | B54: =BALANCE_COMPROBACION!B54 -> 1.1.3.04.02.01.0.99999 | C54: =BALANCE_COMPROBACION!C54 -> Derechos administrativos a los servicios de transporte a cobrar c/p Derecho de piso uso terminal | D54: =BALANCE_COMPROBACION!D54 -> 50000 | E54: =BALANCE_COMPROBACION!E54 -> 40000 | F54: =BALANCE_COMPROBACION!F54 -> 60000 | G54: =BALANCE_COMPROBACION!G54 -> 30000 | H54: 22 | I54: 1 | J54: =IFERROR(IF(B54="GRAN TOTAL","N/A",IF(H54=22,"N/A",IF(B54=0,"N/A",VLOOKUP(B54,PLAN_CUENTAS!$J:$J,1,FALSE)))),"ERROR") -> N/A | M54: RECIPROCA | N54: 99999 | O54: =IFERROR(IF(N54="","",VLOOKUP(N54,REGISTRO_RECIPROCAS!C:E,3,FALSE)),"") -> N/A | P54: =IFERROR(VLOOKUP(N54,REGISTRO_RECIPROCAS!C$2:D$501,2,FALSE),"") -> NO APLICA | Q54: 1.1.3.04.02.01.0. | R54: =IFERROR(IF(Q54="","",VLOOKUP(Q54,REGISTRO_RECIPROCAS!A:B,2,FALSE)),"") ->  | S54: ERROR | T54: =IFERROR(IF(Q54=VLOOKUP(Q54,REGISTRO_RECIPROCAS!A:A,1,FALSE),"APLICA","NO APLICA"),"NO APLICA") -> NO APLICA | V54: =BALANCE_PERIODO_ANTERIOR!A54 -> 3.1 | W54: =BALANCE_PERIODO_ANTERIOR!B54 -> 1.1.3.04.02.01.0.99999 | X54: =BALANCE_PERIODO_ANTERIOR!C54 -> Derechos administrativos a los servicios de transporte a cobrar c/p Derecho de piso uso terminal | Y54: =BALANCE_PERIODO_ANTERIOR!D54 -> 340000 | Z54: =BALANCE_PERIODO_ANTERIOR!E54 -> 660000 | AA54: =BALANCE_PERIODO_ANTERIOR!F54 -> 950000 | AB54: =BALANCE_PERIODO_ANTERIOR!G54 -> 50000 | AC54: 50000 | AD54: 50000 | AE54: 0 | AF54: 0 | AG54: 0 | AH54: =IFERROR(IF(VLOOKUP(B54,PLAN_CUENTAS!$J:$AC,20,0)="EXCEP",0,1),0) -> 0 | AI54: 1 | AJ54: 0 | AK54: =#REF! ->  | AL54: =#REF! ->  | AM54: =#REF! ->  | AN54: =#REF! ->  | AO54: =#REF! ->  | AP54: =#REF! ->  | AQ54: 50000 | AR54: 40000 | AS54: 60000 | AT54: 30000 | AU54: 0 | AV54: 0 | AW54: 0 | AX54: 0 | AY54: - | AZ54: 0 | BA54: 0 | BB54: 0 | BC54: 0 | BD54: -
A55: =BALANCE_COMPROBACION!A55 -> 3.1 | B55: =BALANCE_COMPROBACION!B55 -> 1.1.3.04.02.99. | C55: =BALANCE_COMPROBACION!C55 -> Otros derechos administrativos a cobrar c/p | D55: =BALANCE_COMPROBACION!D55 -> 392455 | E55: =BALANCE_COMPROBACION!E55 -> 75640 | F55: =BALANCE_COMPROBACION!F55 -> 23180 | G55: =BALANCE_COMPROBACION!G55 -> 444915 | H55: 15 | I55: 1 | J55: =IFERROR(IF(B55="GRAN TOTAL","N/A",IF(H55=22,"N/A",IF(B55=0,"N/A",VLOOKUP(B55,PLAN_CUENTAS!$J:$J,1,FALSE)))),"ERROR") -> 1.1.3.04.02.99. | O55: =IFERROR(IF(N55="","",VLOOKUP(N55,REGISTRO_RECIPROCAS!C:E,3,FALSE)),"") ->  | P55: =IFERROR(VLOOKUP(N55,REGISTRO_RECIPROCAS!C$2:D$501,2,FALSE),"") ->  | R55: =IFERROR(IF(Q55="","",VLOOKUP(Q55,REGISTRO_RECIPROCAS!A:B,2,FALSE)),"") ->  | S55: CORRECTO | T55: =IFERROR(IF(Q55=VLOOKUP(Q55,REGISTRO_RECIPROCAS!A:A,1,FALSE),"APLICA","NO APLICA"),"NO APLICA") -> NO APLICA | V55: =BALANCE_PERIODO_ANTERIOR!A55 -> 3.1 | W55: =BALANCE_PERIODO_ANTERIOR!B55 -> 1.1.3.04.02.99. | X55: =BALANCE_PERIODO_ANTERIOR!C55 -> Otros derechos administrativos a cobrar c/p | Y55: =BALANCE_PERIODO_ANTERIOR!D55 -> 507000 | Z55: =BALANCE_PERIODO_ANTERIOR!E55 -> 322000 | AA55: =BALANCE_PERIODO_ANTERIOR!F55 -> 436545 | AB55: =BALANCE_PERIODO_ANTERIOR!G55 -> 392455 | AC55: 392455 | AD55: 392455 | AE55: 0 | AF55: 0 | AG55: 0 | AH55: =IFERROR(IF(VLOOKUP(B55,PLAN_CUENTAS!$J:$AC,20,0)="EXCEP",0,1),0) -> 1 | AI55: 1 | AJ55: 0 | AK55: =#REF! ->  | AL55: =#REF! ->  | AM55: =#REF! ->  | AN55: =#REF! ->  | AO55: =#REF! ->  | AP55: =#REF! ->  | AY55: - | AZ55: 0 | BA55: 0 | BB55: 0 | BC55: 0 | BD55: -
A56: =BALANCE_COMPROBACION!A56 -> 3.1 | B56: =BALANCE_COMPROBACION!B56 -> 1.1.3.04.02.99.0. | C56: =BALANCE_COMPROBACION!C56 -> Otros derechos administrativos a cobrar c/p | D56: =BALANCE_COMPROBACION!D56 -> 392455 | E56: =BALANCE_COMPROBACION!E56 -> 75640 | F56: =BALANCE_COMPROBACION!F56 -> 23180 | G56: =BALANCE_COMPROBACION!G56 -> 444915 | H56: 17 | I56: 1 | J56: =IFERROR(IF(B56="GRAN TOTAL","N/A",IF(H56=22,"N/A",IF(B56=0,"N/A",VLOOKUP(B56,PLAN_CUENTAS!$J:$J,1,FALSE)))),"ERROR") -> 1.1.3.04.02.99.0. | O56: =IFERROR(IF(N56="","",VLOOKUP(N56,REGISTRO_RECIPROCAS!C:E,3,FALSE)),"") ->  | P56: =IFERROR(VLOOKUP(N56,REGISTRO_RECIPROCAS!C$2:D$501,2,FALSE),"") ->  | R56: =IFERROR(IF(Q56="","",VLOOKUP(Q56,REGISTRO_RECIPROCAS!A:B,2,FALSE)),"") ->  | S56: CORRECTO | T56: =IFERROR(IF(Q56=VLOOKUP(Q56,REGISTRO_RECIPROCAS!A:A,1,FALSE),"APLICA","NO APLICA"),"NO APLICA") -> NO APLICA | V56: =BALANCE_PERIODO_ANTERIOR!A56 -> 3.1 | W56: =BALANCE_PERIODO_ANTERIOR!B56 -> 1.1.3.04.02.99.0. | X56: =BALANCE_PERIODO_ANTERIOR!C56 -> Otros derechos administrativos a cobrar c/p | Y56: =BALANCE_PERIODO_ANTERIOR!D56 -> 507000 | Z56: =BALANCE_PERIODO_ANTERIOR!E56 -> 322000 | AA56: =BALANCE_PERIODO_ANTERIOR!F56 -> 436545 | AB56: =BALANCE_PERIODO_ANTERIOR!G56 -> 392455 | AC56: 392455 | AD56: 392455 | AE56: 0 | AF56: 0 | AG56: 0 | AH56: =IFERROR(IF(VLOOKUP(B56,PLAN_CUENTAS!$J:$AC,20,0)="EXCEP",0,1),0) -> 1 | AI56: 1 | AJ56: 0 | AK56: =#REF! ->  | AL56: =#REF! ->  | AM56: =#REF! ->  | AN56: =#REF! ->  | AO56: =#REF! ->  | AP56: =#REF! ->  | AY56: - | AZ56: 0 | BA56: 0 | BB56: 0 | BC56: 0 | BD56: -
A57: =BALANCE_COMPROBACION!A57 -> 3.1 | B57: =BALANCE_COMPROBACION!B57 -> 1.1.3.04.02.99.0.99999 | C57: =BALANCE_COMPROBACION!C57 -> Otros derechos administrativos a cobrar c/p Derecho cementerio | D57: =BALANCE_COMPROBACION!D57 -> 392455 | E57: =BALANCE_COMPROBACION!E57 -> 75640 | F57: =BALANCE_COMPROBACION!F57 -> 23180 | G57: =BALANCE_COMPROBACION!G57 -> 444915 | H57: 22 | I57: 1 | J57: =IFERROR(IF(B57="GRAN TOTAL","N/A",IF(H57=22,"N/A",IF(B57=0,"N/A",VLOOKUP(B57,PLAN_CUENTAS!$J:$J,1,FALSE)))),"ERROR") -> N/A | M57: RECIPROCA | N57: 99999 | O57: =IFERROR(IF(N57="","",VLOOKUP(N57,REGISTRO_RECIPROCAS!C:E,3,FALSE)),"") -> N/A | P57: =IFERROR(VLOOKUP(N57,REGISTRO_RECIPROCAS!C$2:D$501,2,FALSE),"") -> NO APLICA | Q57: 1.1.3.04.02.99.0. | R57: =IFERROR(IF(Q57="","",VLOOKUP(Q57,REGISTRO_RECIPROCAS!A:B,2,FALSE)),"") ->  | S57: ERROR | T57: =IFERROR(IF(Q57=VLOOKUP(Q57,REGISTRO_RECIPROCAS!A:A,1,FALSE),"APLICA","NO APLICA"),"NO APLICA") -> NO APLICA | V57: =BALANCE_PERIODO_ANTERIOR!A57 -> 3.1 | W57: =BALANCE_PERIODO_ANTERIOR!B57 -> 1.1.3.04.02.99.0.99999 | X57: =BALANCE_PERIODO_ANTERIOR!C57 -> Otros derechos administrativos a cobrar c/p Derecho cementerio | Y57: =BALANCE_PERIODO_ANTERIOR!D57 -> 507000 | Z57: =BALANCE_PERIODO_ANTERIOR!E57 -> 322000 | AA57: =BALANCE_PERIODO_ANTERIOR!F57 -> 436545 | AB57: =BALANCE_PERIODO_ANTERIOR!G57 -> 392455 | AC57: 392455 | AD57: 392455 | AE57: 0 | AF57: 0 | AG57: 0 | AH57: =IFERROR(IF(VLOOKUP(B57,PLAN_CUENTAS!$J:$AC,20,0)="EXCEP",0,1),0) -> 0 | AI57: 1 | AJ57: 0 | AK57: =#REF! ->  | AL57: =#REF! ->  | AM57: =#REF! ->  | AN57: =#REF! ->  | AO57: =#REF! ->  | AP57: =#REF! ->  | AQ57: 392455 | AR57: 75640 | AS57: 23180 | AT57: 444915 | AU57: 0 | AV57: 0 | AW57: 0 | AX57: 0 | AY57: - | AZ57: 0 | BA57: 0 | BB57: 0 | BC57: 0 | BD57: -
A58: =BALANCE_COMPROBACION!A58 -> 3.1 | B58: =BALANCE_COMPROBACION!B58 -> 1.1.3.06. | C58: =BALANCE_COMPROBACION!C58 -> Transferencias a cobrar a c/p | D58: =BALANCE_COMPROBACION!D58 -> 0 | E58: =BALANCE_COMPROBACION!E58 -> 0 | F58: =BALANCE_COMPROBACION!F58 -> 0 | G58: =BALANCE_COMPROBACION!G58 -> 0 | H58: 9 | I58: 1 | J58: =IFERROR(IF(B58="GRAN TOTAL","N/A",IF(H58=22,"N/A",IF(B58=0,"N/A",VLOOKUP(B58,PLAN_CUENTAS!$J:$J,1,FALSE)))),"ERROR") -> 1.1.3.06. | O58: =IFERROR(IF(N58="","",VLOOKUP(N58,REGISTRO_RECIPROCAS!C:E,3,FALSE)),"") ->  | P58: =IFERROR(VLOOKUP(N58,REGISTRO_RECIPROCAS!C$2:D$501,2,FALSE),"") ->  | R58: =IFERROR(IF(Q58="","",VLOOKUP(Q58,REGISTRO_RECIPROCAS!A:B,2,FALSE)),"") ->  | S58: CORRECTO | T58: =IFERROR(IF(Q58=VLOOKUP(Q58,REGISTRO_RECIPROCAS!A:A,1,FALSE),"APLICA","NO APLICA"),"NO APLICA") -> NO APLICA | V58: =BALANCE_PERIODO_ANTERIOR!A58 -> 3.1 | W58: =BALANCE_PERIODO_ANTERIOR!B58 -> 1.1.3.06. | X58: =BALANCE_PERIODO_ANTERIOR!C58 -> Transferencias a cobrar a c/p | Y58: =BALANCE_PERIODO_ANTERIOR!D58 -> 0 | Z58: =BALANCE_PERIODO_ANTERIOR!E58 -> 4157821709 | AA58: =BALANCE_PERIODO_ANTERIOR!F58 -> 4157821709 | AB58: =BALANCE_PERIODO_ANTERIOR!G58 -> 0 | AC58: 0 | AD58: 0 | AE58: 0 | AF58: 0 | AG58: 0 | AH58: =IFERROR(IF(VLOOKUP(B58,PLAN_CUENTAS!$J:$AC,20,0)="EXCEP",0,1),0) -> 1 | AI58: 1 | AJ58: 0 | AK58: =#REF! ->  | AL58: =#REF! ->  | AM58: =#REF! ->  | AN58: =#REF! ->  | AO58: =#REF! ->  | AP58: =#REF! ->  | AY58: - | AZ58: 0 | BA58: 0 | BB58: 0 | BC58: 0 | BD58: -
A59: =BALANCE_COMPROBACION!A59 -> 3.1 | B59: =BALANCE_COMPROBACION!B59 -> 1.1.3.06.02. | C59: =BALANCE_COMPROBACION!C59 -> Transferencias del sector público interno a cobrar c/p | D59: =BALANCE_COMPROBACION!D59 -> 0 | E59: =BALANCE_COMPROBACION!E59 -> 0 | F59: =BALANCE_COMPROBACION!F59 -> 0 | G59: =BALANCE_COMPROBACION!G59 -> 0 | H59: 12 | I59: 1 | J59: =IFERROR(IF(B59="GRAN TOTAL","N/A",IF(H59=22,"N/A",IF(B59=0,"N/A",VLOOKUP(B59,PLAN_CUENTAS!$J:$J,1,FALSE)))),"ERROR") -> 1.1.3.06.02. | O59: =IFERROR(IF(N59="","",VLOOKUP(N59,REGISTRO_RECIPROCAS!C:E,3,FALSE)),"") ->  | P59: =IFERROR(VLOOKUP(N59,REGISTRO_RECIPROCAS!C$2:D$501,2,FALSE),"") ->  | R59: =IFERROR(IF(Q59="","",VLOOKUP(Q59,REGISTRO_RECIPROCAS!A:B,2,FALSE)),"") ->  | S59: CORRECTO | T59: =IFERROR(IF(Q59=VLOOKUP(Q59,REGISTRO_RECIPROCAS!A:A,1,FALSE),"APLICA","NO APLICA"),"NO APLICA") -> NO APLICA | V59: =BALANCE_PERIODO_ANTERIOR!A59 -> 3.1 | W59: =BALANCE_PERIODO_ANTERIOR!B59 -> 1.1.3.06.02. | X59: =BALANCE_PERIODO_ANTERIOR!C59 -> Transferencias del sector público interno a cobrar c/p | Y59: =BALANCE_PERIODO_ANTERIOR!D59 -> 0 | Z59: =BALANCE_PERIODO_ANTERIOR!E59 -> 4157821709 | AA59: =BALANCE_PERIODO_ANTERIOR!F59 -> 4157821709 | AB59: =BALANCE_PERIODO_ANTERIOR!G59 -> 0 | AC59: 0 | AD59: 0 | AE59: 0 | AF59: 0 | AG59: 0 | AH59: =IFERROR(IF(VLOOKUP(B59,PLAN_CUENTAS!$J:$AC,20,0)="EXCEP",0,1),0) -> 1 | AI59: 1 | AJ59: 0 | AK59: =#REF! ->  | AL59: =#REF! ->  | AM59: =#REF! ->  | AN59: =#REF! ->  | AO59: =#REF! ->  | AP59: =#REF! ->  | AY59: - | AZ59: 0 | BA59: 0 | BB59: 0 | BC59: 0 | BD59: -
A60: =BALANCE_COMPROBACION!A60 -> 3.1 | B60: =BALANCE_COMPROBACION!B60 -> 1.1.3.06.02.01. | C60: =BALANCE_COMPROBACION!C60 -> Transferencias del Gobierno Central a cobrar c/p | D60: =BALANCE_COMPROBACION!D60 -> 0 | E60: =BALANCE_COMPROBACION!E60 -> 0 | F60: =BALANCE_COMPROBACION!F60 -> 0 | G60: =BALANCE_COMPROBACION!G60 -> 0 | H60: 15 | I60: 1 | J60: =IFERROR(IF(B60="GRAN TOTAL","N/A",IF(H60=22,"N/A",IF(B60=0,"N/A",VLOOKUP(B60,PLAN_CUENTAS!$J:$J,1,FALSE)))),"ERROR") -> 1.1.3.06.02.01. | O60: =IFERROR(IF(N60="","",VLOOKUP(N60,REGISTRO_RECIPROCAS!C:E,3,FALSE)),"") ->  | P60: =IFERROR(VLOOKUP(N60,REGISTRO_RECIPROCAS!C$2:D$501,2,FALSE),"") ->  | R60: =IFERROR(IF(Q60="","",VLOOKUP(Q60,REGISTRO_RECIPROCAS!A:B,2,FALSE)),"") ->  | S60: CORRECTO | T60: =IFERROR(IF(Q60=VLOOKUP(Q60,REGISTRO_RECIPROCAS!A:A,1,FALSE),"APLICA","NO APLICA"),"NO APLICA") -> NO APLICA | V60: =BALANCE_PERIODO_ANTERIOR!A60 -> 3.1 | W60: =BALANCE_PERIODO_ANTERIOR!B60 -> 1.1.3.06.02.01. | X60: =BALANCE_PERIODO_ANTERIOR!C60 -> Transferencias del Gobierno Central a cobrar c/p | Y60: =BALANCE_PERIODO_ANTERIOR!D60 -> 0 | Z60: =BALANCE_PERIODO_ANTERIOR!E60 -> 4139431351 | AA60: =BALANCE_PERIODO_ANTERIOR!F60 -> 4139431351 | AB60: =BALANCE_PERIODO_ANTERIOR!G60 -> 0 | AC60: 0 | AD60: 0 | AE60: 0 | AF60: 0 | AG60: 0 | AH60: =IFERROR(IF(VLOOKUP(B60,PLAN_CUENTAS!$J:$AC,20,0)="EXCEP",0,1),0) -> 1 | AI60: 1 | AJ60: 0 | AK60: =#REF! ->  | AL60: =#REF! ->  | AM60: =#REF! ->  | AN60: =#REF! ->  | AO60: =#REF! ->  | AP60: =#REF! ->  | AY60: - | AZ60: 0 | BA60: 0 | BB60: 0 | BC60: 0 | BD60: -
A61: =BALANCE_COMPROBACION!A61 -> 3.1 | B61: =BALANCE_COMPROBACION!B61 -> 1.1.3.06.02.01.0. | C61: =BALANCE_COMPROBACION!C61 -> Transferencias del Gobierno Central a cobrar c/p | D61: =BALANCE_COMPROBACION!D61 -> 0 | E61: =BALANCE_COMPROBACION!E61 -> 0 | F61: =BALANCE_COMPROBACION!F61 -> 0 | G61: =BALANCE_COMPROBACION!G61 -> 0 | H61: 17 | I61: 1 | J61: =IFERROR(IF(B61="GRAN TOTAL","N/A",IF(H61=22,"N/A",IF(B61=0,"N/A",VLOOKUP(B61,PLAN_CUENTAS!$J:$J,1,FALSE)))),"ERROR") -> 1.1.3.06.02.01.0. | O61: =IFERROR(IF(N61="","",VLOOKUP(N61,REGISTRO_RECIPROCAS!C:E,3,FALSE)),"") ->  | P61: =IFERROR(VLOOKUP(N61,REGISTRO_RECIPROCAS!C$2:D$501,2,FALSE),"") ->  | R61: =IFERROR(IF(Q61="","",VLOOKUP(Q61,REGISTRO_RECIPROCAS!A:B,2,FALSE)),"") ->  | S61: CORRECTO | T61: =IFERROR(IF(Q61=VLOOKUP(Q61,REGISTRO_RECIPROCAS!A:A,1,FALSE),"APLICA","NO APLICA"),"NO APLICA") -> NO APLICA | V61: =BALANCE_PERIODO_ANTERIOR!A61 -> 3.1 | W61: =BALANCE_PERIODO_ANTERIOR!B61 -> 1.1.3.06.02.01.0. | X61: =BALANCE_PERIODO_ANTERIOR!C61 -> Transferencias del Gobierno Central a cobrar c/p | Y61: =BALANCE_PERIODO_ANTERIOR!D61 -> 0 | Z61: =BALANCE_PERIODO_ANTERIOR!E61 -> 4139431351 | AA61: =BALANCE_PERIODO_ANTERIOR!F61 -> 4139431351 | AB61: =BALANCE_PERIODO_ANTERIOR!G61 -> 0 | AC61: 0 | AD61: 0 | AE61: 0 | AF61: 0 | AG61: 0 | AH61: =IFERROR(IF(VLOOKUP(B61,PLAN_CUENTAS!$J:$AC,20,0)="EXCEP",0,1),0) -> 1 | AI61: 1 | AJ61: 0 | AK61: =#REF! ->  | AL61: =#REF! ->  | AM61: =#REF! ->  | AN61: =#REF! ->  | AO61: =#REF! ->  | AP61: =#REF! ->  | AY61: - | AZ61: 0 | BA61: 0 | BB61: 0 | BC61: 0 | BD61: -
A62: =BALANCE_COMPROBACION!A62 -> 3.1 | B62: =BALANCE_COMPROBACION!B62 -> 1.1.3.06.02.01.0.11206 | C62: =BALANCE_COMPROBACION!C62 -> Ministerio de Hacienda | D62: =BALANCE_COMPROBACION!D62 -> 0 | E62: =BALANCE_COMPROBACION!E62 -> 0 | F62: =BALANCE_COMPROBACION!F62 -> 0 | G62: =BALANCE_COMPROBACION!G62 -> 0 | H62: 22 | I62: 1 | J62: =IFERROR(IF(B62="GRAN TOTAL","N/A",IF(H62=22,"N/A",IF(B62=0,"N/A",VLOOKUP(B62,PLAN_CUENTAS!$J:$J,1,FALSE)))),"ERROR") -> N/A | M62: RECIPROCA | N62: 11206 | O62: =IFERROR(IF(N62="","",VLOOKUP(N62,REGISTRO_RECIPROCAS!C:E,3,FALSE)),"") -> PD | P62: =IFERROR(VLOOKUP(N62,REGISTRO_RECIPROCAS!C$2:D$501,2,FALSE),"") -> Ministerio de Hacienda (MHD) | Q62: 1.1.3.06.02.01.0. | R62: =IFERROR(IF(Q62="","",VLOOKUP(Q62,REGISTRO_RECIPROCAS!A:B,2,FALSE)),"") -> PD | S62: CORRECTO | T62: =IFERROR(IF(Q62=VLOOKUP(Q62,REGISTRO_RECIPROCAS!A:A,1,FALSE),"APLICA","NO APLICA"),"NO APLICA") -> APLICA | V62: =BALANCE_PERIODO_ANTERIOR!A62 -> 3.1 | W62: =BALANCE_PERIODO_ANTERIOR!B62 -> 1.1.3.06.02.01.0.11206 | X62: =BALANCE_PERIODO_ANTERIOR!C62 -> Ministerio de Hacienda | Y62: =BALANCE_PERIODO_ANTERIOR!D62 -> 0 | Z62: =BALANCE_PERIODO_ANTERIOR!E62 -> 4139431351 | AA62: =BALANCE_PERIODO_ANTERIOR!F62 -> 4139431351 | AB62: =BALANCE_PERIODO_ANTERIOR!G62 -> 0 | AC62: 0 | AD62: 0 | AE62: 0 | AF62: 0 | AG62: 0 | AH62: =IFERROR(IF(VLOOKUP(B62,PLAN_CUENTAS!$J:$AC,20,0)="EXCEP",0,1),0) -> 0 | AI62: 1 | AJ62: 0 | AK62: =#REF! ->  | AL62: =#REF! ->  | AM62: =#REF! ->  | AN62: =#REF! ->  | AO62: =#REF! ->  | AP62: =#REF! ->  | AQ62: 0 | AR62: 0 | AS62: 0 | AT62: 0 | AU62: 0 | AV62: 0 | AW62: 0 | AX62: 0 | AY62: - | AZ62: 0 | BA62: 0 | BB62: 0 | BC62: 0 | BD62: -
A63: =BALANCE_COMPROBACION!A63 -> 3.1 | B63: =BALANCE_COMPROBACION!B63 -> 1.1.3.06.02.03. | C63: =BALANCE_COMPROBACION!C63 -> Transferencias de Instituciones Descentralizadas no Empresariales a cobrar c/p | D63: =BALANCE_COMPROBACION!D63 -> 0 | E63: =BALANCE_COMPROBACION!E63 -> 0 | F63: =BALANCE_COMPROBACION!F63 -> 0 | G63: =BALANCE_COMPROBACION!G63 -> 0 | H63: 15 | I63: 1 | J63: =IFERROR(IF(B63="GRAN TOTAL","N/A",IF(H63=22,"N/A",IF(B63=0,"N/A",VLOOKUP(B63,PLAN_CUENTAS!$J:$J,1,FALSE)))),"ERROR") -> 1.1.3.06.02.03. | O63: =IFERROR(IF(N63="","",VLOOKUP(N63,REGISTRO_RECIPROCAS!C:E,3,FALSE)),"") ->  | P63: =IFERROR(VLOOKUP(N63,REGISTRO_RECIPROCAS!C$2:D$501,2,FALSE),"") ->  | R63: =IFERROR(IF(Q63="","",VLOOKUP(Q63,REGISTRO_RECIPROCAS!A:B,2,FALSE)),"") ->  | S63: CORRECTO | T63: =IFERROR(IF(Q63=VLOOKUP(Q63,REGISTRO_RECIPROCAS!A:A,1,FALSE),"APLICA","NO APLICA"),"NO APLICA") -> NO APLICA | V63: =BALANCE_PERIODO_ANTERIOR!A63 -> 3.1 | W63: =BALANCE_PERIODO_ANTERIOR!B63 -> 1.1.3.06.02.02. | X63: =BALANCE_PERIODO_ANTERIOR!C63 -> Transferencias de Órganos Desconcentrados a cobrar c/p | Y63: =BALANCE_PERIODO_ANTERIOR!D63 -> 0 | Z63: =BALANCE_PERIODO_ANTERIOR!E63 -> 6428232 | AA63: =BALANCE_PERIODO_ANTERIOR!F63 -> 6428232 | AB63: =BALANCE_PERIODO_ANTERIOR!G63 -> 0 | AC63: 0 | AD63: 0 | AE63: 0 | AF63: 0 | AG63: 0 | AH63: =IFERROR(IF(VLOOKUP(B63,PLAN_CUENTAS!$J:$AC,20,0)="EXCEP",0,1),0) -> 1 | AI63: 1 | AJ63: 0 | AK63: =#REF! ->  | AL63: =#REF! ->  | AM63: =#REF! ->  | AN63: =#REF! ->  | AO63: =#REF! ->  | AP63: =#REF! ->  | AY63: - | AZ63: 0 | BA63: 0 | BB63: 0 | BC63: 0 | BD63: -
A64: =BALANCE_COMPROBACION!A64 -> 3.1 | B64: =BALANCE_COMPROBACION!B64 -> 1.1.3.06.02.03.0. | C64: =BALANCE_COMPROBACION!C64 -> Transferencias de Instituciones Descentralizadas no Empresariales a cobrar c/p | D64: =BALANCE_COMPROBACION!D64 -> 0 | E64: =BALANCE_COMPROBACION!E64 -> 0 | F64: =BALANCE_COMPROBACION!F64 -> 0 | G64: =BALANCE_COMPROBACION!G64 -> 0 | H64: 17 | I64: 1 | J64: =IFERROR(IF(B64="GRAN TOTAL","N/A",IF(H64=22,"N/A",IF(B64=0,"N/A",VLOOKUP(B64,PLAN_CUENTAS!$J:$J,1,FALSE)))),"ERROR") -> 1.1.3.06.02.03.0. | O64: =IFERROR(IF(N64="","",VLOOKUP(N64,REGISTRO_RECIPROCAS!C:E,3,FALSE)),"") ->  | P64: =IFERROR(VLOOKUP(N64,REGISTRO_RECIPROCAS!C$2:D$501,2,FALSE),"") ->  | R64: =IFERROR(IF(Q64="","",VLOOKUP(Q64,REGISTRO_RECIPROCAS!A:B,2,FALSE)),"") ->  | S64: CORRECTO | T64: =IFERROR(IF(Q64=VLOOKUP(Q64,REGISTRO_RECIPROCAS!A:A,1,FALSE),"APLICA","NO APLICA"),"NO APLICA") -> NO APLICA | V64: =BALANCE_PERIODO_ANTERIOR!A64 -> 3.1 | W64: =BALANCE_PERIODO_ANTERIOR!B64 -> 1.1.3.06.02.02.0. | X64: =BALANCE_PERIODO_ANTERIOR!C64 -> Transferencias de Órganos Desconcentrados a cobrar c/p | Y64: =BALANCE_PERIODO_ANTERIOR!D64 -> 0 | Z64: =BALANCE_PERIODO_ANTERIOR!E64 -> 6428232 | AA64: =BALANCE_PERIODO_ANTERIOR!F64 -> 6428232 | AB64: =BALANCE_PERIODO_ANTERIOR!G64 -> 0 | AC64: 0 | AD64: 0 | AE64: 0 | AF64: 0 | AG64: 0 | AH64: =IFERROR(IF(VLOOKUP(B64,PLAN_CUENTAS!$J:$AC,20,0)="EXCEP",0,1),0) -> 1 | AI64: 1 | AJ64: 0 | AK64: =#REF! ->  | AL64: =#REF! ->  | AM64: =#REF! ->  | AN64: =#REF! ->  | AO64: =#REF! ->  | AP64: =#REF! ->  | AY64: - | AZ64: 0 | BA64: 0 | BB64: 0 | BC64: 0 | BD64: -
A65: =BALANCE_COMPROBACION!A65 -> 3.1 | B65: =BALANCE_COMPROBACION!B65 -> 1.1.3.06.02.03.0.14226 | C65: =BALANCE_COMPROBACION!C65 -> Transferencias de Instituciones Descentralizadas no Empresariales a cobrar c/p (Aporte IFAM Licores Nacionales y Ext) | D65: =BALANCE_COMPROBACION!D65 -> 0 | E65: =BALANCE_COMPROBACION!E65 -> 0 | F65: =BALANCE_COMPROBACION!F65 -> 0 | G65: =BALANCE_COMPROBACION!G65 -> 0 | H65: 22 | I65: 1 | J65: =IFERROR(IF(B65="GRAN TOTAL","N/A",IF(H65=22,"N/A",IF(B65=0,"N/A",VLOOKUP(B65,PLAN_CUENTAS!$J:$J,1,FALSE)))),"ERROR") -> N/A | M65: RECIPROCA | N65: 14226 | O65: =IFERROR(IF(N65="","",VLOOKUP(N65,REGISTRO_RECIPROCAS!C:E,3,FALSE)),"") -> ID | P65: =IFERROR(VLOOKUP(N65,REGISTRO_RECIPROCAS!C$2:D$501,2,FALSE),"") -> Instituto de Fomento y Asesoría Municipal (IFAM) | Q65: 1.1.3.06.02.03.0. | R65: =IFERROR(IF(Q65="","",VLOOKUP(Q65,REGISTRO_RECIPROCAS!A:B,2,FALSE)),"") -> ID | S65: CORRECTO | T65: =IFERROR(IF(Q65=VLOOKUP(Q65,REGISTRO_RECIPROCAS!A:A,1,FALSE),"APLICA","NO APLICA"),"NO APLICA") -> APLICA | V65: =BALANCE_PERIODO_ANTERIOR!A65 -> 3.1 | W65: =BALANCE_PERIODO_ANTERIOR!B65 -> 1.1.3.06.02.02.0.12583 | X65: =BALANCE_PERIODO_ANTERIOR!C65 -> Transfrencias de Organos desconcentrados a cobrar.Consejo Nacional de la Política Pública de la Persona Joven (CPJ) | Y65: =BALANCE_PERIODO_ANTERIOR!D65 -> 0 | Z65: =BALANCE_PERIODO_ANTERIOR!E65 -> 6428232 | AA65: =BALANCE_PERIODO_ANTERIOR!F65 -> 6428232 | AB65: =BALANCE_PERIODO_ANTERIOR!G65 -> 0 | AC65: 0 | AD65: 0 | AE65: 0 | AF65: 0 | AG65: 0 | AH65: =IFERROR(IF(VLOOKUP(B65,PLAN_CUENTAS!$J:$AC,20,0)="EXCEP",0,1),0) -> 0 | AI65: 1 | AJ65: 0 | AK65: =#REF! ->  | AL65: =#REF! ->  | AM65: =#REF! ->  | AN65: =#REF! ->  | AO65: =#REF! ->  | AP65: =#REF! ->  | AQ65: 0 | AR65: 0 | AS65: 0 | AT65: 0 | AU65: 0 | AV65: 0 | AW65: 0 | AX65: 0 | AY65: - | AZ65: 0 | BA65: 0 | BB65: 0 | BC65: 0 | BD65: -
A66: =BALANCE_COMPROBACION!A66 -> 3.1 | B66: =BALANCE_COMPROBACION!B66 -> 1.1.3.98. | C66: =BALANCE_COMPROBACION!C66 -> Otras cuentas a cobrar a corto plazo | D66: =BALANCE_COMPROBACION!D66 -> 2767182.6 | E66: =BALANCE_COMPROBACION!E66 -> 1625000 | F66: =BALANCE_COMPROBACION!F66 -> 395508 | G66: =BALANCE_COMPROBACION!G66 -> 3996674.6 | H66: 9 | I66: 1 | J66: =IFERROR(IF(B66="GRAN TOTAL","N/A",IF(H66=22,"N/A",IF(B66=0,"N/A",VLOOKUP(B66,PLAN_CUENTAS!$J:$J,1,FALSE)))),"ERROR") -> 1.1.3.98. | O66: =IFERROR(IF(N66="","",VLOOKUP(N66,REGISTRO_RECIPROCAS!C:E,3,FALSE)),"") ->  | P66: =IFERROR(VLOOKUP(N66,REGISTRO_RECIPROCAS!C$2:D$501,2,FALSE),"") ->  | R66: =IFERROR(IF(Q66="","",VLOOKUP(Q66,REGISTRO_RECIPROCAS!A:B,2,FALSE)),"") ->  | S66: CORRECTO | T66: =IFERROR(IF(Q66=VLOOKUP(Q66,REGISTRO_RECIPROCAS!A:A,1,FALSE),"APLICA","NO APLICA"),"NO APLICA") -> NO APLICA | V66: =BALANCE_PERIODO_ANTERIOR!A66 -> 3.1 | W66: =BALANCE_PERIODO_ANTERIOR!B66 -> 1.1.3.06.02.03. | X66: =BALANCE_PERIODO_ANTERIOR!C66 -> Transferencias de Instituciones Descentralizadas no Empresariales a cobrar c/p | Y66: =BALANCE_PERIODO_ANTERIOR!D66 -> 0 | Z66: =BALANCE_PERIODO_ANTERIOR!E66 -> 11962125.78 | AA66: =BALANCE_PERIODO_ANTERIOR!F66 -> 11962125.78 | AB66: =BALANCE_PERIODO_ANTERIOR!G66 -> 0 | AC66: 2767182.6 | AD66: 2767182.6 | AE66: 0 | AF66: 0 | AG66: 0 | AH66: =IFERROR(IF(VLOOKUP(B66,PLAN_CUENTAS!$J:$AC,20,0)="EXCEP",0,1),0) -> 1 | AI66: 1 | AJ66: 0 | AK66: =#REF! ->  | AL66: =#REF! ->  | AM66: =#REF! ->  | AN66: =#REF! ->  | AO66: =#REF! ->  | AP66: =#REF! ->  | AY66: - | AZ66: 1 | BA66: 0 | BB66: 0 | BC66: 1 | BD66: -
A67: =BALANCE_COMPROBACION!A67 -> 3.1 | B67: =BALANCE_COMPROBACION!B67 -> 1.1.3.98.01. | C67: =BALANCE_COMPROBACION!C67 -> Multas, sanciones, remates y confiscaciones de origen no tributario a cobrar c/p | D67: =BALANCE_COMPROBACION!D67 -> 2267182.6 | E67: =BALANCE_COMPROBACION!E67 -> 1625000 | F67: =BALANCE_COMPROBACION!F67 -> 395508 | G67: =BALANCE_COMPROBACION!G67 -> 3496674.6 | H67: 12 | I67: 1 | J67: =IFERROR(IF(B67="GRAN TOTAL","N/A",IF(H67=22,"N/A",IF(B67=0,"N/A",VLOOKUP(B67,PLAN_CUENTAS!$J:$J,1,FALSE)))),"ERROR") -> 1.1.3.98.01. | O67: =IFERROR(IF(N67="","",VLOOKUP(N67,REGISTRO_RECIPROCAS!C:E,3,FALSE)),"") ->  | P67: =IFERROR(VLOOKUP(N67,REGISTRO_RECIPROCAS!C$2:D$501,2,FALSE),"") ->  | R67: =IFERROR(IF(Q67="","",VLOOKUP(Q67,REGISTRO_RECIPROCAS!A:B,2,FALSE)),"") ->  | S67: CORRECTO | T67: =IFERROR(IF(Q67=VLOOKUP(Q67,REGISTRO_RECIPROCAS!A:A,1,FALSE),"APLICA","NO APLICA"),"NO APLICA") -> NO APLICA | V67: =BALANCE_PERIODO_ANTERIOR!A67 -> 3.1 | W67: =BALANCE_PERIODO_ANTERIOR!B67 -> 1.1.3.06.02.03.0. | X67: =BALANCE_PERIODO_ANTERIOR!C67 -> Transferencias de Instituciones Descentralizadas no Empresariales a cobrar c/p | Y67: =BALANCE_PERIODO_ANTERIOR!D67 -> 0 | Z67: =BALANCE_PERIODO_ANTERIOR!E67 -> 11962125.78 | AA67: =BALANCE_PERIODO_ANTERIOR!F67 -> 11962125.78 | AB67: =BALANCE_PERIODO_ANTERIOR!G67 -> 0 | AC67: 2267182.6 | AD67: 2267182.6 | AE67: 0 | AF67: 0 | AG67: 0 | AH67: =IFERROR(IF(VLOOKUP(B67,PLAN_CUENTAS!$J:$AC,20,0)="EXCEP",0,1),0) -> 1 | AI67: 1 | AJ67: 0 | AK67: =#REF! ->  | AL67: =#REF! ->  | AM67: =#REF! ->  | AN67: =#REF! ->  | AO67: =#REF! ->  | AP67: =#REF! ->  | AY67: - | AZ67: 1 | BA67: 0 | BB67: 0 | BC67: 1 | BD67: -
A68: =BALANCE_COMPROBACION!A68 -> 3.1 | B68: =BALANCE_COMPROBACION!B68 -> 1.1.3.98.01.01. | C68: =BALANCE_COMPROBACION!C68 -> Multas y sanciones administrativas a cobrar c/p | D68: =BALANCE_COMPROBACION!D68 -> 2267182.6 | E68: =BALANCE_COMPROBACION!E68 -> 1625000 | F68: =BALANCE_COMPROBACION!F68 -> 395508 | G68: =BALANCE_COMPROBACION!G68 -> 3496674.6 | H68: 15 | I68: 1 | J68: =IFERROR(IF(B68="GRAN TOTAL","N/A",IF(H68=22,"N/A",IF(B68=0,"N/A",VLOOKUP(B68,PLAN_CUENTAS!$J:$J,1,FALSE)))),"ERROR") -> 1.1.3.98.01.01. | O68: =IFERROR(IF(N68="","",VLOOKUP(N68,REGISTRO_RECIPROCAS!C:E,3,FALSE)),"") ->  | P68: =IFERROR(VLOOKUP(N68,REGISTRO_RECIPROCAS!C$2:D$501,2,FALSE),"") ->  | R68: =IFERROR(IF(Q68="","",VLOOKUP(Q68,REGISTRO_RECIPROCAS!A:B,2,FALSE)),"") ->  | S68: CORRECTO | T68: =IFERROR(IF(Q68=VLOOKUP(Q68,REGISTRO_RECIPROCAS!A:A,1,FALSE),"APLICA","NO APLICA"),"NO APLICA") -> NO APLICA | V68: =BALANCE_PERIODO_ANTERIOR!A68 -> 3.1 | W68: =BALANCE_PERIODO_ANTERIOR!B68 -> 1.1.3.06.02.03.0.14226 | X68: =BALANCE_PERIODO_ANTERIOR!C68 -> Transferencias de Instituciones Descentralizadas no Empresariales a cobrar c/p (Aporte IFAM Licores Nacionales y Ext) | Y68: =BALANCE_PERIODO_ANTERIOR!D68 -> 0 | Z68: =BALANCE_PERIODO_ANTERIOR!E68 -> 11962125.78 | AA68: =BALANCE_PERIODO_ANTERIOR!F68 -> 11962125.78 | AB68: =BALANCE_PERIODO_ANTERIOR!G68 -> 0 | AC68: 2267182.6 | AD68: 2267182.6 | AE68: 0 | AF68: 0 | AG68: 0 | AH68: =IFERROR(IF(VLOOKUP(B68,PLAN_CUENTAS!$J:$AC,20,0)="EXCEP",0,1),0) -> 1 | AI68: 1 | AJ68: 0 | AK68: =#REF! ->  | AL68: =#REF! ->  | AM68: =#REF! ->  | AN68: =#REF! ->  | AO68: =#REF! ->  | AP68: =#REF! ->  | AY68: - | AZ68: 1 | BA68: 0 | BB68: 0 | BC68: 1 | BD68: -
A69: =BALANCE_COMPROBACION!A69 -> 3.1 | B69: =BALANCE_COMPROBACION!B69 -> 1.1.3.98.01.01.0. | C69: =BALANCE_COMPROBACION!C69 -> Multas y sanciones administrativas a cobrar c/p | D69: =BALANCE_COMPROBACION!D69 -> 2267182.6 | E69: =BALANCE_COMPROBACION!E69 -> 1625000 | F69: =BALANCE_COMPROBACION!F69 -> 395508 | G69: =BALANCE_COMPROBACION!G69 -> 3496674.6 | H69: 17 | I69: 1 | J69: =IFERROR(IF(B69="GRAN TOTAL","N/A",IF(H69=22,"N/A",IF(B69=0,"N/A",VLOOKUP(B69,PLAN_CUENTAS!$J:$J,1,FALSE)))),"ERROR") -> 1.1.3.98.01.01.0. | O69: =IFERROR(IF(N69="","",VLOOKUP(N69,REGISTRO_RECIPROCAS!C:E,3,FALSE)),"") ->  | P69: =IFERROR(VLOOKUP(N69,REGISTRO_RECIPROCAS!C$2:D$501,2,FALSE),"") ->  | R69: =IFERROR(IF(Q69="","",VLOOKUP(Q69,REGISTRO_RECIPROCAS!A:B,2,FALSE)),"") ->  | S69: CORRECTO | T69: =IFERROR(IF(Q69=VLOOKUP(Q69,REGISTRO_RECIPROCAS!A:A,1,FALSE),"APLICA","NO APLICA"),"NO APLICA") -> NO APLICA | V69: =BALANCE_PERIODO_ANTERIOR!A69 -> 3.1 | W69: =BALANCE_PERIODO_ANTERIOR!B69 -> 1.1.3.98. | X69: =BALANCE_PERIODO_ANTERIOR!C69 -> Otras cuentas a cobrar a corto plazo | Y69: =BALANCE_PERIODO_ANTERIOR!D69 -> 1073232.35 | Z69: =BALANCE_PERIODO_ANTERIOR!E69 -> 12695802.65 | AA69: =BALANCE_PERIODO_ANTERIOR!F69 -> 11001852.4 | AB69: =BALANCE_PERIODO_ANTERIOR!G69 -> 2767182.6 | AC69: 2267182.6 | AD69: 2267182.6 | AE69: 0 | AF69: 0 | AG69: 0 | AH69: =IFERROR(IF(VLOOKUP(B69,PLAN_CUENTAS!$J:$AC,20,0)="EXCEP",0,1),0) -> 1 | AI69: 1 | AJ69: 0 | AK69: =#REF! ->  | AL69: =#REF! ->  | AM69: =#REF! ->  | AN69: =#REF! ->  | AO69: =#REF! ->  | AP69: =#REF! ->  | AY69: - | AZ69: 1 | BA69: 0 | BB69: 0 | BC69: 1 | BD69: -
A70: =BALANCE_COMPROBACION!A70 -> 3.1 | B70: =BALANCE_COMPROBACION!B70 -> 1.1.3.98.01.01.0.99999 | C70: =BALANCE_COMPROBACION!C70 -> Multas y sanciones administrativas a cobrar c/p | D70: =BALANCE_COMPROBACION!D70 -> 2267182.6 | E70: =BALANCE_COMPROBACION!E70 -> 1625000 | F70: =BALANCE_COMPROBACION!F70 -> 395508 | G70: =BALANCE_COMPROBACION!G70 -> 3496674.6 | H70: 22 | I70: 1 | J70: =IFERROR(IF(B70="GRAN TOTAL","N/A",IF(H70=22,"N/A",IF(B70=0,"N/A",VLOOKUP(B70,PLAN_CUENTAS!$J:$J,1,FALSE)))),"ERROR") -> N/A | M70: RECIPROCA | N70: 99999 | O70: =IFERROR(IF(N70="","",VLOOKUP(N70,REGISTRO_RECIPROCAS!C:E,3,FALSE)),"") -> N/A | P70: =IFERROR(VLOOKUP(N70,REGISTRO_RECIPROCAS!C$2:D$501,2,FALSE),"") -> NO APLICA | Q70: 1.1.3.98.01.01.0. | R70: =IFERROR(IF(Q70="","",VLOOKUP(Q70,REGISTRO_RECIPROCAS!A:B,2,FALSE)),"") ->  | S70: ERROR | T70: =IFERROR(IF(Q70=VLOOKUP(Q70,REGISTRO_RECIPROCAS!A:A,1,FALSE),"APLICA","NO APLICA"),"NO APLICA") -> NO APLICA | V70: =BALANCE_PERIODO_ANTERIOR!A70 -> 3.1 | W70: =BALANCE_PERIODO_ANTERIOR!B70 -> 1.1.3.98.01. | X70: =BALANCE_PERIODO_ANTERIOR!C70 -> Multas, sanciones, remates y confiscaciones de origen no tributario a cobrar c/p | Y70: =BALANCE_PERIODO_ANTERIOR!D70 -> 1073232.35 | Z70: =BALANCE_PERIODO_ANTERIOR!E70 -> 12195802.65 | AA70: =BALANCE_PERIODO_ANTERIOR!F70 -> 11001852.4 | AB70: =BALANCE_PERIODO_ANTERIOR!G70 -> 2267182.6 | AC70: 2267182.6 | AD70: 2267182.6 | AE70: 0 | AF70: 0 | AG70: 0 | AH70: =IFERROR(IF(VLOOKUP(B70,PLAN_CUENTAS!$J:$AC,20,0)="EXCEP",0,1),0) -> 0 | AI70: 1 | AJ70: 0 | AK70: =#REF! ->  | AL70: =#REF! ->  | AM70: =#REF! ->  | AN70: =#REF! ->  | AO70: =#REF! ->  | AP70: =#REF! ->  | AQ70: 2267182.6 | AR70: 1625000 | AS70: 395508 | AT70: 3496674.6 | AU70: 0 | AV70: 0 | AW70: 0 | AX70: 0 | AY70: - | AZ70: 1 | BA70: 0 | BB70: 0 | BC70: 1 | BD70: -
A71: =BALANCE_COMPROBACION!A71 -> 3.1 | B71: =BALANCE_COMPROBACION!B71 -> 1.1.3.98.03. | C71: =BALANCE_COMPROBACION!C71 -> Depósitos en garantía c/p | D71: =BALANCE_COMPROBACION!D71 -> 500000 | E71: =BALANCE_COMPROBACION!E71 -> 0 | F71: =BALANCE_COMPROBACION!F71 -> 0 | G71: =BALANCE_COMPROBACION!G71 -> 500000 | H71: 12 | I71: 1 | J71: =IFERROR(IF(B71="GRAN TOTAL","N/A",IF(H71=22,"N/A",IF(B71=0,"N/A",VLOOKUP(B71,PLAN_CUENTAS!$J:$J,1,FALSE)))),"ERROR") -> 1.1.3.98.03. | O71: =IFERROR(IF(N71="","",VLOOKUP(N71,REGISTRO_RECIPROCAS!C:E,3,FALSE)),"") ->  | P71: =IFERROR(VLOOKUP(N71,REGISTRO_RECIPROCAS!C$2:D$501,2,FALSE),"") ->  | R71: =IFERROR(IF(Q71="","",VLOOKUP(Q71,REGISTRO_RECIPROCAS!A:B,2,FALSE)),"") ->  | S71: CORRECTO | T71: =IFERROR(IF(Q71=VLOOKUP(Q71,REGISTRO_RECIPROCAS!A:A,1,FALSE),"APLICA","NO APLICA"),"NO APLICA") -> NO APLICA | V71: =BALANCE_PERIODO_ANTERIOR!A71 -> 3.1 | W71: =BALANCE_PERIODO_ANTERIOR!B71 -> 1.1.3.98.01.01. | X71: =BALANCE_PERIODO_ANTERIOR!C71 -> Multas y sanciones administrativas a cobrar c/p | Y71: =BALANCE_PERIODO_ANTERIOR!D71 -> 1073232.35 | Z71: =BALANCE_PERIODO_ANTERIOR!E71 -> 12195802.65 | AA71: =BALANCE_PERIODO_ANTERIOR!F71 -> 11001852.4 | AB71: =BALANCE_PERIODO_ANTERIOR!G71 -> 2267182.6 | AC71: 500000 | AD71: 500000 | AE71: 0 | AF71: 0 | AG71: 0 | AH71: =IFERROR(IF(VLOOKUP(B71,PLAN_CUENTAS!$J:$AC,20,0)="EXCEP",0,1),0) -> 1 | AI71: 1 | AJ71: 0 | AK71: =#REF! ->  | AL71: =#REF! ->  | AM71: =#REF! ->  | AN71: =#REF! ->  | AO71: =#REF! ->  | AP71: =#REF! ->  | AY71: - | AZ71: 0 | BA71: 0 | BB71: 0 | BC71: 0 | BD71: -
A72: =BALANCE_COMPROBACION!A72 -> 3.1 | B72: =BALANCE_COMPROBACION!B72 -> 1.1.3.98.03.02. | C72: =BALANCE_COMPROBACION!C72 -> Depósitos en garantía en el sector público interno c/p | D72: =BALANCE_COMPROBACION!D72 -> 500000 | E72: =BALANCE_COMPROBACION!E72 -> 0 | F72: =BALANCE_COMPROBACION!F72 -> 0 | G72: =BALANCE_COMPROBACION!G72 -> 500000 | H72: 15 | I72: 1 | J72: =IFERROR(IF(B72="GRAN TOTAL","N/A",IF(H72=22,"N/A",IF(B72=0,"N/A",VLOOKUP(B72,PLAN_CUENTAS!$J:$J,1,FALSE)))),"ERROR") -> 1.1.3.98.03.02. | O72: =IFERROR(IF(N72="","",VLOOKUP(N72,REGISTRO_RECIPROCAS!C:E,3,FALSE)),"") ->  | P72: =IFERROR(VLOOKUP(N72,REGISTRO_RECIPROCAS!C$2:D$501,2,FALSE),"") ->  | R72: =IFERROR(IF(Q72="","",VLOOKUP(Q72,REGISTRO_RECIPROCAS!A:B,2,FALSE)),"") ->  | S72: CORRECTO | T72: =IFERROR(IF(Q72=VLOOKUP(Q72,REGISTRO_RECIPROCAS!A:A,1,FALSE),"APLICA","NO APLICA"),"NO APLICA") -> NO APLICA | V72: =BALANCE_PERIODO_ANTERIOR!A72 -> 3.1 | W72: =BALANCE_PERIODO_ANTERIOR!B72 -> 1.1.3.98.01.01.0. | X72: =BALANCE_PERIODO_ANTERIOR!C72 -> Multas y sanciones administrativas a cobrar c/p | Y72: =BALANCE_PERIODO_ANTERIOR!D72 -> 1073232.35 | Z72: =BALANCE_PERIODO_ANTERIOR!E72 -> 12195802.65 | AA72: =BALANCE_PERIODO_ANTERIOR!F72 -> 11001852.4 | AB72: =BALANCE_PERIODO_ANTERIOR!G72 -> 2267182.6 | AC72: 500000 | AD72: 500000 | AE72: 0 | AF72: 0 | AG72: 0 | AH72: =IFERROR(IF(VLOOKUP(B72,PLAN_CUENTAS!$J:$AC,20,0)="EXCEP",0,1),0) -> 1 | AI72: 1 | AJ72: 0 | AK72: =#REF! ->  | AL72: =#REF! ->  | AM72: =#REF! ->  | AN72: =#REF! ->  | AO72: =#REF! ->  | AP72: =#REF! ->  | AY72: - | AZ72: 0 | BA72: 0 | BB72: 0 | BC72: 0 | BD72: -
A73: =BALANCE_COMPROBACION!A73 -> 3.1 | B73: =BALANCE_COMPROBACION!B73 -> 1.1.3.98.03.02.0. | C73: =BALANCE_COMPROBACION!C73 -> Depósitos en garantía en el sector público interno c/p | D73: =BALANCE_COMPROBACION!D73 -> 500000 | E73: =BALANCE_COMPROBACION!E73 -> 0 | F73: =BALANCE_COMPROBACION!F73 -> 0 | G73: =BALANCE_COMPROBACION!G73 -> 500000 | H73: 17 | I73: 1 | J73: =IFERROR(IF(B73="GRAN TOTAL","N/A",IF(H73=22,"N/A",IF(B73=0,"N/A",VLOOKUP(B73,PLAN_CUENTAS!$J:$J,1,FALSE)))),"ERROR") -> 1.1.3.98.03.02.0. | O73: =IFERROR(IF(N73="","",VLOOKUP(N73,REGISTRO_RECIPROCAS!C:E,3,FALSE)),"") ->  | P73: =IFERROR(VLOOKUP(N73,REGISTRO_RECIPROCAS!C$2:D$501,2,FALSE),"") ->  | R73: =IFERROR(IF(Q73="","",VLOOKUP(Q73,REGISTRO_RECIPROCAS!A:B,2,FALSE)),"") ->  | S73: CORRECTO | T73: =IFERROR(IF(Q73=VLOOKUP(Q73,REGISTRO_RECIPROCAS!A:A,1,FALSE),"APLICA","NO APLICA"),"NO APLICA") -> NO APLICA | V73: =BALANCE_PERIODO_ANTERIOR!A73 -> 3.1 | W73: =BALANCE_PERIODO_ANTERIOR!B73 -> 1.1.3.98.01.01.0.99999 | X73: =BALANCE_PERIODO_ANTERIOR!C73 -> Multas y sanciones administrativas a cobrar c/p | Y73: =BALANCE_PERIODO_ANTERIOR!D73 -> 1073232.35 | Z73: =BALANCE_PERIODO_ANTERIOR!E73 -> 12195802.65 | AA73: =BALANCE_PERIODO_ANTERIOR!F73 -> 11001852.4 | AB73: =BALANCE_PERIODO_ANTERIOR!G73 -> 2267182.6 | AC73: 500000 | AD73: 500000 | AE73: 0 | AF73: 0 | AG73: 0 | AH73: =IFERROR(IF(VLOOKUP(B73,PLAN_CUENTAS!$J:$AC,20,0)="EXCEP",0,1),0) -> 1 | AI73: 1 | AJ73: 0 | AK73: =#REF! ->  | AL73: =#REF! ->  | AM73: =#REF! ->  | AN73: =#REF! ->  | AO73: =#REF! ->  | AP73: =#REF! ->  | AY73: - | AZ73: 0 | BA73: 0 | BB73: 0 | BC73: 0 | BD73: -
A74: =BALANCE_COMPROBACION!A74 -> 3.1 | B74: =BALANCE_COMPROBACION!B74 -> 1.1.3.98.03.02.0.99999 | C74: =BALANCE_COMPROBACION!C74 -> Depósitos en garantía en el sector público interno c/p | D74: =BALANCE_COMPROBACION!D74 -> 500000 | E74: =BALANCE_COMPROBACION!E74 -> 0 | F74: =BALANCE_COMPROBACION!F74 -> 0 | G74: =BALANCE_COMPROBACION!G74 -> 500000 | H74: 22 | I74: 1 | J74: =IFERROR(IF(B74="GRAN TOTAL","N/A",IF(H74=22,"N/A",IF(B74=0,"N/A",VLOOKUP(B74,PLAN_CUENTAS!$J:$J,1,FALSE)))),"ERROR") -> N/A | M74: =IFERROR(IF(AND(B74<>"",J74="N/A",B74<>0),"RECIPROCA",""),"") -> RECIPROCA | N74: 99999 | O74: =IFERROR(IF(N74="","",VLOOKUP(N74,REGISTRO_RECIPROCAS!C:E,3,FALSE)),"") -> N/A | P74: =IFERROR(VLOOKUP(N74,REGISTRO_RECIPROCAS!C$2:D$501,2,FALSE),"") -> NO APLICA | Q74: 1.1.3.98.03.02.0. | R74: =IFERROR(IF(Q74="","",VLOOKUP(Q74,REGISTRO_RECIPROCAS!A:B,2,FALSE)),"") ->  | S74: ERROR | T74: =IFERROR(IF(Q74=VLOOKUP(Q74,REGISTRO_RECIPROCAS!A:A,1,FALSE),"APLICA","NO APLICA"),"NO APLICA") -> NO APLICA | V74: =BALANCE_PERIODO_ANTERIOR!A74 -> 3.1 | W74: =BALANCE_PERIODO_ANTERIOR!B74 -> 1.1.3.98.03. | X74: =BALANCE_PERIODO_ANTERIOR!C74 -> Depósitos en garantía c/p | Y74: =BALANCE_PERIODO_ANTERIOR!D74 -> 0 | Z74: =BALANCE_PERIODO_ANTERIOR!E74 -> 500000 | AA74: =BALANCE_PERIODO_ANTERIOR!F74 -> 0 | AB74: =BALANCE_PERIODO_ANTERIOR!G74 -> 500000 | AC74: 500000 | AD74: =IFERROR(IF(I74="4",0,IF(I74="5",0,VLOOKUP(B74,$W$10:$AB$10000,6,FALSE))),"CUENTA NUEVA") -> 500000 | AE74: 0 | AF74: 0 | AG74: 0 | AH74: =IFERROR(IF(VLOOKUP(B74,PLAN_CUENTAS!$J:$AC,20,0)="EXCEP",0,1),0) -> 0 | AI74: 1 | AJ74: 0 | AK74: =#REF! ->  | AL74: =#REF! ->  | AM74: =#REF! ->  | AN74: =#REF! ->  | AO74: =#REF! ->  | AP74: =#REF! ->  | AQ74: 500000 | AR74: 0 | AS74: 0 | AT74: 500000 | AU74: 0 | AV74: 0 | AW74: 0 | AX74: 0 | AY74: - | AZ74: 0 | BA74: 0 | BB74: 0 | BC74: 0 | BD74: -
A75: =BALANCE_COMPROBACION!A75 -> 3.1 | B75: =BALANCE_COMPROBACION!B75 -> 1.1.3.99. | C75: =BALANCE_COMPROBACION!C75 -> Previsiones para deterioro de cuentas a cobrar a corto plazo * | D75: =BALANCE_COMPROBACION!D75 -> -175377897.4 | E75: =BALANCE_COMPROBACION!E75 -> 0 | F75: =BALANCE_COMPROBACION!F75 -> 0 | G75: =BALANCE_COMPROBACION!G75 -> -175377897.4 | H75: =LEN(B75) -> 9 | I75: =MID(B75,1,1) -> 1 | J75: =IFERROR(IF(B75="GRAN TOTAL","N/A",IF(H75=22,"N/A",IF(B75=0,"N/A",VLOOKUP(B75,PLAN_CUENTAS!$J:$J,1,FALSE)))),"ERROR") -> 1.1.3.99. | K75: =IF(IF(B75<>0,COUNTIF($B$10:$B$10000,B75),1)>1,"DUPLICADO","") ->  | L75: =IFERROR(IF(J75="ERROR","CUENTA NO ENCONTRADA",IF(K75="DUPLICADO","CUENTA DUPLICADA","")),"") ->  | N75: =IFERROR(IF(M75="RECIPROCA",RIGHT(B75,5),""),"") ->  | O75: =IFERROR(IF(N75="","",VLOOKUP(N75,REGISTRO_RECIPROCAS!C:E,3,FALSE)),"") ->  | P75: =IFERROR(VLOOKUP(N75,REGISTRO_RECIPROCAS!C$2:D$501,2,FALSE),"") ->  | Q75: =IFERROR(IF(M75="","",IF(M75<>"",MID(B75,1,17))),"") ->  | R75: =IFERROR(IF(Q75="","",VLOOKUP(Q75,REGISTRO_RECIPROCAS!A:B,2,FALSE)),"") ->  | S75: =IFERROR(IF(B75="1.1.1.01.02.02.3.11206","CORRECTO",IF(B75="2.1.1.02.01.04.0.14120","CORRECTO",IF(B75="2.1.1.02.02.02.0.11206","CORRECTO",IF(B75="1.1.3.13.01.01.0.11206","CORRECTO",IF(B75="2.1.1.02.01.05.0.14120","CORRECTO",IF(OR(B75="1.1.1.01.02.02.3.00000",B75="1.1.1.01.02.02.3.99999"),"ERROR",IF(OR(B75="2.1.1.02.01.04.0.00000",B75="2.1.1.02.01.04.0.99999"),"ERROR",IF(OR(B75="2.1.1.02.02.02.0.00000",B75="2.1.1.02.02.02.0.99999"),"ERROR",IF(OR(B75="1.1.3.13.01.01.0.00000",B75="1.1.3.13.01.01.0.99999"),"ERROR",IF(OR(B75="2.1.1.02.01.05.0.14120",B75="2.1.1.02.01.05.0.14120"),"ERROR",IF(OR(B75="2.1.1.02.01.05.0.14120",B75="2.1.1.02.01.05.0.14120"),"ERROR",IF(AND(T75="APLICA",N75="00000",N75="99999"),"ERROR",IF(AND(M75="RECIPROCA",O75=""),"ERROR",IF(O75="EPE","CORRECTO",IF(EXACT(O75,R75),"CORRECTO","ERROR"))))))))))))))),"") -> CORRECTO | T75: =IFERROR(IF(Q75=VLOOKUP(Q75,REGISTRO_RECIPROCAS!A:A,1,FALSE),"APLICA","NO APLICA"),"NO APLICA") -> NO APLICA | U75: =IF(AND(S75="ERROR",T75="APLICA",G75<>0),"ERROR","") ->  | V75: =BALANCE_PERIODO_ANTERIOR!A75 -> 3.1 | W75: =BALANCE_PERIODO_ANTERIOR!B75 -> 1.1.3.98.03.02. | X75: =BALANCE_PERIODO_ANTERIOR!C75 -> Depósitos en garantía en el sector público interno c/p | Y75: =BALANCE_PERIODO_ANTERIOR!D75 -> 0 | Z75: =BALANCE_PERIODO_ANTERIOR!E75 -> 500000 | AA75: =BALANCE_PERIODO_ANTERIOR!F75 -> 0 | AB75: =BALANCE_PERIODO_ANTERIOR!G75 -> 500000 | AC75: =IFERROR(VLOOKUP(B75,$B$10:$D$10000,3,FALSE),"Cuenta Nueva") -> -175377897.4 | AD75: -175377897.4 | AE75: =IFERROR(ROUND(AC75-AD75,0),0) -> 0 | AF75: =IFERROR(IF(B75="GRAN TOTAL",0,IF(AD75="CUENTA NUEVA","CUENTA NUEVA",IF(ROUND((AC75-AD75),0)=0,0,"REVISAR SALDO"))),"REVISAR SALDO") -> 0 | AG75: =IFERROR(IF(G75<0,1,0),0) -> 1 | AH75: =IFERROR(IF(VLOOKUP(B75,PLAN_CUENTAS!$J:$AC,20,0)="EXCEP",0,1),0) -> 0 | AI75: =IFERROR(IF(MID(B75,1,6)="3.1.5.",0,1),0) -> 1 | AJ75: =IFERROR(IF(AND(AG75=1,AH75=1,AI75=1),1,0),0) -> 0 | AK75: =#REF! ->  | AL75: =#REF! ->  | AM75: =#REF! ->  | AN75: =#REF! ->  | AO75: =#REF! ->  | AP75: =#REF! ->  | AQ75: =IF(H75=22,VLOOKUP(B75,$B$10:$G$10000,3,FALSE),VLOOKUP(B75,$AK$10:$AP$10000,3,FALSE)) ->  | AR75: =IF(H75=22,VLOOKUP(B75,$B$10:$G$10000,4,FALSE),VLOOKUP(B75,$AK$10:$AP$10000,4,FALSE)) ->  | AS75: =IF(H75=22,VLOOKUP(B75,$B$10:$G$10000,5,FALSE),VLOOKUP(B75,$AK$10:$AP$10000,5,FALSE)) ->  | AT75: =IF(H75=22,VLOOKUP(B75,$B$10:$G$10000,6,FALSE),VLOOKUP(B75,$AK$10:$AP$10000,6,FALSE)) ->  | AU75: =ROUND(D75-AQ75,0) ->  | AV75: =ROUND(E75-AR75,0) ->  | AW75: =ROUND(F75-AS75,0) ->  | AX75: =ROUND(G75-AT75,0) ->  | AY75: =IFERROR(IF(SUM(AU75,AV75,AW75,AX75)=0,"-","DIFERENCIA"),"-") -> - | AZ75: =DecimalesFX(D75) -> 2 | BA75: =DecimalesFX(E75) -> 0 | BB75: =DecimalesFX(F75) -> 0 | BC75: =DecimalesFX(G75) -> 2 | BD75: =IF(OR(AZ75>2,BA75>2,BB75>2,BC75>2),"ERROR","-") -> -
A76: =BALANCE_COMPROBACION!A76 -> 3.1 | B76: =BALANCE_COMPROBACION!B76 -> 1.1.3.99.01. | C76: =BALANCE_COMPROBACION!C76 -> Previsiones para impuestos a cobrar c/p * | D76: =BALANCE_COMPROBACION!D76 -> -116983004.6 | E76: =BALANCE_COMPROBACION!E76 -> 0 | F76: =BALANCE_COMPROBACION!F76 -> 0 | G76: =BALANCE_COMPROBACION!G76 -> -116983004.6 | H76: 12 | I76: 1 | J76: =IFERROR(IF(B76="GRAN TOTAL","N/A",IF(H76=22,"N/A",IF(B76=0,"N/A",VLOOKUP(B76,PLAN_CUENTAS!$J:$J,1,FALSE)))),"ERROR") -> 1.1.3.99.01. | O76: =IFERROR(IF(N76="","",VLOOKUP(N76,REGISTRO_RECIPROCAS!C:E,3,FALSE)),"") ->  | P76: =IFERROR(VLOOKUP(N76,REGISTRO_RECIPROCAS!C$2:D$501,2,FALSE),"") ->  | R76: =IFERROR(IF(Q76="","",VLOOKUP(Q76,REGISTRO_RECIPROCAS!A:B,2,FALSE)),"") ->  | S76: CORRECTO | T76: =IFERROR(IF(Q76=VLOOKUP(Q76,REGISTRO_RECIPROCAS!A:A,1,FALSE),"APLICA","NO APLICA"),"NO APLICA") -> NO APLICA | V76: =BALANCE_PERIODO_ANTERIOR!A76 -> 3.1 | W76: =BALANCE_PERIODO_ANTERIOR!B76 -> 1.1.3.98.03.02.0. | X76: =BALANCE_PERIODO_ANTERIOR!C76 -> Depósitos en garantía en el sector público interno c/p | Y76: =BALANCE_PERIODO_ANTERIOR!D76 -> 0 | Z76: =BALANCE_PERIODO_ANTERIOR!E76 -> 500000 | AA76: =BALANCE_PERIODO_ANTERIOR!F76 -> 0 | AB76: =BALANCE_PERIODO_ANTERIOR!G76 -> 500000 | AC76: -116983004.6 | AD76: -116983004.6 | AE76: 0 | AF76: 0 | AG76: 1 | AH76: =IFERROR(IF(VLOOKUP(B76,PLAN_CUENTAS!$J:$AC,20,0)="EXCEP",0,1),0) -> 0 | AI76: 1 | AJ76: 0 | AK76: =#REF! ->  | AL76: =#REF! ->  | AM76: =#REF! ->  | AN76: =#REF! ->  | AO76: =#REF! ->  | AP76: =#REF! ->  | AY76: - | AZ76: 2 | BA76: 0 | BB76: 0 | BC76: 2 | BD76: -
A77: =BALANCE_COMPROBACION!A77 -> 3.1 | B77: =BALANCE_COMPROBACION!B77 -> 1.1.3.99.01.02. | C77: =BALANCE_COMPROBACION!C77 -> Previsiones para impuestos sobre la propiedad a cobrar c/p * | D77: =BALANCE_COMPROBACION!D77 -> -106283608.3 | E77: =BALANCE_COMPROBACION!E77 -> 0 | F77: =BALANCE_COMPROBACION!F77 -> 0 | G77: =BALANCE_COMPROBACION!G77 -> -106283608.3 | H77: 15 | I77: 1 | J77: =IFERROR(IF(B77="GRAN TOTAL","N/A",IF(H77=22,"N/A",IF(B77=0,"N/A",VLOOKUP(B77,PLAN_CUENTAS!$J:$J,1,FALSE)))),"ERROR") -> 1.1.3.99.01.02. | O77: =IFERROR(IF(N77="","",VLOOKUP(N77,REGISTRO_RECIPROCAS!C:E,3,FALSE)),"") ->  | P77: =IFERROR(VLOOKUP(N77,REGISTRO_RECIPROCAS!C$2:D$501,2,FALSE),"") ->  | R77: =IFERROR(IF(Q77="","",VLOOKUP(Q77,REGISTRO_RECIPROCAS!A:B,2,FALSE)),"") ->  | S77: CORRECTO | T77: =IFERROR(IF(Q77=VLOOKUP(Q77,REGISTRO_RECIPROCAS!A:A,1,FALSE),"APLICA","NO APLICA"),"NO APLICA") -> NO APLICA | V77: =BALANCE_PERIODO_ANTERIOR!A77 -> 3.1 | W77: =BALANCE_PERIODO_ANTERIOR!B77 -> 1.1.3.98.03.02.0.99999 | X77: =BALANCE_PERIODO_ANTERIOR!C77 -> Depósitos en garantía en el sector público interno c/p | Y77: =BALANCE_PERIODO_ANTERIOR!D77 -> 0 | Z77: =BALANCE_PERIODO_ANTERIOR!E77 -> 500000 | AA77: =BALANCE_PERIODO_ANTERIOR!F77 -> 0 | AB77: =BALANCE_PERIODO_ANTERIOR!G77 -> 500000 | AC77: -106283608.3 | AD77: -106283608.3 | AE77: 0 | AF77: 0 | AG77: 1 | AH77: =IFERROR(IF(VLOOKUP(B77,PLAN_CUENTAS!$J:$AC,20,0)="EXCEP",0,1),0) -> 0 | AI77: 1 | AJ77: 0 | AK77: =#REF! ->  | AL77: =#REF! ->  | AM77: =#REF! ->  | AN77: =#REF! ->  | AO77: =#REF! ->  | AP77: =#REF! ->  | AY77: - | AZ77: 2 | BA77: 0 | BB77: 0 | BC77: 2 | BD77: -
A78: =BALANCE_COMPROBACION!A78 -> 3.1 | B78: =BALANCE_COMPROBACION!B78 -> 1.1.3.99.01.02.0. | C78: =BALANCE_COMPROBACION!C78 -> Previsiones para impuestos sobre la propiedad a cobrar c/p * | D78: =BALANCE_COMPROBACION!D78 -> -106283608.3 | E78: =BALANCE_COMPROBACION!E78 -> 0 | F78: =BALANCE_COMPROBACION!F78 -> 0 | G78: =BALANCE_COMPROBACION!G78 -> -106283608.3 | H78: 17 | I78: 1 | J78: =IFERROR(IF(B78="GRAN TOTAL","N/A",IF(H78=22,"N/A",IF(B78=0,"N/A",VLOOKUP(B78,PLAN_CUENTAS!$J:$J,1,FALSE)))),"ERROR") -> 1.1.3.99.01.02.0. | O78: =IFERROR(IF(N78="","",VLOOKUP(N78,REGISTRO_RECIPROCAS!C:E,3,FALSE)),"") ->  | P78: =IFERROR(VLOOKUP(N78,REGISTRO_RECIPROCAS!C$2:D$501,2,FALSE),"") ->  | R78: =IFERROR(IF(Q78="","",VLOOKUP(Q78,REGISTRO_RECIPROCAS!A:B,2,FALSE)),"") ->  | S78: CORRECTO | T78: =IFERROR(IF(Q78=VLOOKUP(Q78,REGISTRO_RECIPROCAS!A:A,1,FALSE),"APLICA","NO APLICA"),"NO APLICA") -> NO APLICA | V78: =BALANCE_PERIODO_ANTERIOR!A78 -> 3.1 | W78: =BALANCE_PERIODO_ANTERIOR!B78 -> 1.1.3.99. | X78: =BALANCE_PERIODO_ANTERIOR!C78 -> Previsiones para deterioro de cuentas a cobrar a corto plazo * | Y78: =BALANCE_PERIODO_ANTERIOR!D78 -> -175377897.4 | Z78: =BALANCE_PERIODO_ANTERIOR!E78 -> 0 | AA78: =BALANCE_PERIODO_ANTERIOR!F78 -> 0 | AB78: =BALANCE_PERIODO_ANTERIOR!G78 -> -175377897.4 | AC78: -106283608.3 | AD78: -106283608.3 | AE78: 0 | AF78: 0 | AG78: 1 | AH78: =IFERROR(IF(VLOOKUP(B78,PLAN_CUENTAS!$J:$AC,20,0)="EXCEP",0,1),0) -> 0 | AI78: 1 | AJ78: 0 | AK78: =#REF! ->  | AL78: =#REF! ->  | AM78: =#REF! ->  | AN78: =#REF! ->  | AO78: =#REF! ->  | AP78: =#REF! ->  | AY78: - | AZ78: 2 | BA78: 0 | BB78: 0 | BC78: 2 | BD78: -
A79: =BALANCE_COMPROBACION!A79 -> 3.1 | B79: =BALANCE_COMPROBACION!B79 -> 1.1.3.99.01.02.0.99999 | C79: =BALANCE_COMPROBACION!C79 -> Previsiones para impuestos sobre la propiedad a cobrar c/p * | D79: =BALANCE_COMPROBACION!D79 -> -106283608.3 | E79: =BALANCE_COMPROBACION!E79 -> 0 | F79: =BALANCE_COMPROBACION!F79 -> 0 | G79: =BALANCE_COMPROBACION!G79 -> -106283608.3 | H79: 22 | I79: 1 | J79: =IFERROR(IF(B79="GRAN TOTAL","N/A",IF(H79=22,"N/A",IF(B79=0,"N/A",VLOOKUP(B79,PLAN_CUENTAS!$J:$J,1,FALSE)))),"ERROR") -> N/A | M79: RECIPROCA | N79: 99999 | O79: =IFERROR(IF(N79="","",VLOOKUP(N79,REGISTRO_RECIPROCAS!C:E,3,FALSE)),"") -> N/A | P79: =IFERROR(VLOOKUP(N79,REGISTRO_RECIPROCAS!C$2:D$501,2,FALSE),"") -> NO APLICA | Q79: 1.1.3.99.01.02.0. | R79: =IFERROR(IF(Q79="","",VLOOKUP(Q79,REGISTRO_RECIPROCAS!A:B,2,FALSE)),"") ->  | S79: ERROR | T79: =IFERROR(IF(Q79=VLOOKUP(Q79,REGISTRO_RECIPROCAS!A:A,1,FALSE),"APLICA","NO APLICA"),"NO APLICA") -> NO APLICA | V79: =BALANCE_PERIODO_ANTERIOR!A79 -> 3.1 | W79: =BALANCE_PERIODO_ANTERIOR!B79 -> 1.1.3.99.01. | X79: =BALANCE_PERIODO_ANTERIOR!C79 -> Previsiones para impuestos a cobrar c/p * | Y79: =BALANCE_PERIODO_ANTERIOR!D79 -> -116983004.6 | Z79: =BALANCE_PERIODO_ANTERIOR!E79 -> 0 | AA79: =BALANCE_PERIODO_ANTERIOR!F79 -> 0 | AB79: =BALANCE_PERIODO_ANTERIOR!G79 -> -116983004.6 | AC79: -106283608.3 | AD79: -106283608.3 | AE79: 0 | AF79: 0 | AG79: 1 | AH79: =IFERROR(IF(VLOOKUP(B79,PLAN_CUENTAS!$J:$AC,20,0)="EXCEP",0,1),0) -> 0 | AI79: 1 | AJ79: 0 | AK79: =#REF! ->  | AL79: =#REF! ->  | AM79: =#REF! ->  | AN79: =#REF! ->  | AO79: =#REF! ->  | AP79: =#REF! ->  | AQ79: -106283608.3 | AR79: 0 | AS79: 0 | AT79: -106283608.3 | AU79: 0 | AV79: 0 | AW79: 0 | AX79: 0 | AY79: - | AZ79: 2 | BA79: 0 | BB79: 0 | BC79: 2 | BD79: -
A80: =BALANCE_COMPROBACION!A80 -> 3.1 | B80: =BALANCE_COMPROBACION!B80 -> 1.1.3.99.01.03. | C80: =BALANCE_COMPROBACION!C80 -> Previsiones para impuestos sobre bienes y servicios a cobrar c/p * | D80: =BALANCE_COMPROBACION!D80 -> -9270015.01 | E80: =BALANCE_COMPROBACION!E80 -> 0 | F80: =BALANCE_COMPROBACION!F80 -> 0 | G80: =BALANCE_COMPROBACION!G80 -> -9270015.01 | H80: 15 | I80: 1 | J80: =IFERROR(IF(B80="GRAN TOTAL","N/A",IF(H80=22,"N/A",IF(B80=0,"N/A",VLOOKUP(B80,PLAN_CUENTAS!$J:$J,1,FALSE)))),"ERROR") -> 1.1.3.99.01.03. | O80: =IFERROR(IF(N80="","",VLOOKUP(N80,REGISTRO_RECIPROCAS!C:E,3,FALSE)),"") ->  | P80: =IFERROR(VLOOKUP(N80,REGISTRO_RECIPROCAS!C$2:D$501,2,FALSE),"") ->  | R80: =IFERROR(IF(Q80="","",VLOOKUP(Q80,REGISTRO_RECIPROCAS!A:B,2,FALSE)),"") ->  | S80: CORRECTO | T80: =IFERROR(IF(Q80=VLOOKUP(Q80,REGISTRO_RECIPROCAS!A:A,1,FALSE),"APLICA","NO APLICA"),"NO APLICA") -> NO APLICA | V80: =BALANCE_PERIODO_ANTERIOR!A80 -> 3.1 | W80: =BALANCE_PERIODO_ANTERIOR!B80 -> 1.1.3.99.01.02. | X80: =BALANCE_PERIODO_ANTERIOR!C80 -> Previsiones para impuestos sobre la propiedad a cobrar c/p * | Y80: =BALANCE_PERIODO_ANTERIOR!D80 -> -106283608.3 | Z80: =BALANCE_PERIODO_ANTERIOR!E80 -> 0 | AA80: =BALANCE_PERIODO_ANTERIOR!F80 -> 0 | AB80: =BALANCE_PERIODO_ANTERIOR!G80 -> -106283608.3 | AC80: -9270015.01 | AD80: -9270015.01 | AE80: 0 | AF80: 0 | AG80: 1 | AH80: =IFERROR(IF(VLOOKUP(B80,PLAN_CUENTAS!$J:$AC,20,0)="EXCEP",0,1),0) -> 0 | AI80: 1 | AJ80: 0 | AK80: =#REF! ->  | AL80: =#REF! ->  | AM80: =#REF! ->  | AN80: =#REF! ->  | AO80: =#REF! ->  | AP80: =#REF! ->  | AY80: - | AZ80: 2 | BA80: 0 | BB80: 0 | BC80: 2 | BD80: -
A81: =BALANCE_COMPROBACION!A81 -> 3.1 | B81: =BALANCE_COMPROBACION!B81 -> 1.1.3.99.01.03.0. | C81: =BALANCE_COMPROBACION!C81 -> Previsiones para impuestos sobre bienes y servicios a cobrar c/p * | D81: =BALANCE_COMPROBACION!D81 -> -9270015.01 | E81: =BALANCE_COMPROBACION!E81 -> 0 | F81: =BALANCE_COMPROBACION!F81 -> 0 | G81: =BALANCE_COMPROBACION!G81 -> -9270015.01 | H81: 17 | I81: 1 | J81: =IFERROR(IF(B81="GRAN TOTAL","N/A",IF(H81=22,"N/A",IF(B81=0,"N/A",VLOOKUP(B81,PLAN_CUENTAS!$J:$J,1,FALSE)))),"ERROR") -> 1.1.3.99.01.03.0. | O81: =IFERROR(IF(N81="","",VLOOKUP(N81,REGISTRO_RECIPROCAS!C:E,3,FALSE)),"") ->  | P81: =IFERROR(VLOOKUP(N81,REGISTRO_RECIPROCAS!C$2:D$501,2,FALSE),"") ->  | R81: =IFERROR(IF(Q81="","",VLOOKUP(Q81,REGISTRO_RECIPROCAS!A:B,2,FALSE)),"") ->  | S81: CORRECTO | T81: =IFERROR(IF(Q81=VLOOKUP(Q81,REGISTRO_RECIPROCAS!A:A,1,FALSE),"APLICA","NO APLICA"),"NO APLICA") -> NO APLICA | V81: =BALANCE_PERIODO_ANTERIOR!A81 -> 3.1 | W81: =BALANCE_PERIODO_ANTERIOR!B81 -> 1.1.3.99.01.02.0. | X81: =BALANCE_PERIODO_ANTERIOR!C81 -> Previsiones para impuestos sobre la propiedad a cobrar c/p * | Y81: =BALANCE_PERIODO_ANTERIOR!D81 -> -106283608.3 | Z81: =BALANCE_PERIODO_ANTERIOR!E81 -> 0 | AA81: =BALANCE_PERIODO_ANTERIOR!F81 -> 0 | AB81: =BALANCE_PERIODO_ANTERIOR!G81 -> -106283608.3 | AC81: -9270015.01 | AD81: -9270015.01 | AE81: 0 | AF81: 0 | AG81: 1 | AH81: =IFERROR(IF(VLOOKUP(B81,PLAN_CUENTAS!$J:$AC,20,0)="EXCEP",0,1),0) -> 0 | AI81: 1 | AJ81: 0 | AK81: =#REF! ->  | AL81: =#REF! ->  | AM81: =#REF! ->  | AN81: =#REF! ->  | AO81: =#REF! ->  | AP81: =#REF! ->  | AY81: - | AZ81: 2 | BA81: 0 | BB81: 0 | BC81: 2 | BD81: -
A82: =BALANCE_COMPROBACION!A82 -> 3.1 | B82: =BALANCE_COMPROBACION!B82 -> 1.1.3.99.01.03.0.99999 | C82: =BALANCE_COMPROBACION!C82 -> Previsiones para impuestos sobre bienes y servicios a cobrar c/p * | D82: =BALANCE_COMPROBACION!D82 -> -9270015.01 | E82: =BALANCE_COMPROBACION!E82 -> 0 | F82: =BALANCE_COMPROBACION!F82 -> 0 | G82: =BALANCE_COMPROBACION!G82 -> -9270015.01 | H82: 22 | I82: 1 | J82: =IFERROR(IF(B82="GRAN TOTAL","N/A",IF(H82=22,"N/A",IF(B82=0,"N/A",VLOOKUP(B82,PLAN_CUENTAS!$J:$J,1,FALSE)))),"ERROR") -> N/A | M82: RECIPROCA | N82: 99999 | O82: =IFERROR(IF(N82="","",VLOOKUP(N82,REGISTRO_RECIPROCAS!C:E,3,FALSE)),"") -> N/A | P82: =IFERROR(VLOOKUP(N82,REGISTRO_RECIPROCAS!C$2:D$501,2,FALSE),"") -> NO APLICA | Q82: 1.1.3.99.01.03.0. | R82: =IFERROR(IF(Q82="","",VLOOKUP(Q82,REGISTRO_RECIPROCAS!A:B,2,FALSE)),"") ->  | S82: ERROR | T82: =IFERROR(IF(Q82=VLOOKUP(Q82,REGISTRO_RECIPROCAS!A:A,1,FALSE),"APLICA","NO APLICA"),"NO APLICA") -> NO APLICA | V82: =BALANCE_PERIODO_ANTERIOR!A82 -> 3.1 | W82: =BALANCE_PERIODO_ANTERIOR!B82 -> 1.1.3.99.01.02.0.99999 | X82: =BALANCE_PERIODO_ANTERIOR!C82 -> Previsiones para impuestos sobre la propiedad a cobrar c/p * | Y82: =BALANCE_PERIODO_ANTERIOR!D82 -> -106283608.3 | Z82: =BALANCE_PERIODO_ANTERIOR!E82 -> 0 | AA82: =BALANCE_PERIODO_ANTERIOR!F82 -> 0 | AB82: =BALANCE_PERIODO_ANTERIOR!G82 -> -106283608.3 | AC82: -9270015.01 | AD82: -9270015.01 | AE82: 0 | AF82: 0 | AG82: 1 | AH82: =IFERROR(IF(VLOOKUP(B82,PLAN_CUENTAS!$J:$AC,20,0)="EXCEP",0,1),0) -> 0 | AI82: 1 | AJ82: 0 | AK82: =#REF! ->  | AL82: =#REF! ->  | AM82: =#REF! ->  | AN82: =#REF! ->  | AO82: =#REF! ->  | AP82: =#REF! ->  | AQ82: -9270015.01 | AR82: 0 | AS82: 0 | AT82: -9270015.01 | AU82: 0 | AV82: 0 | AW82: 0 | AX82: 0 | AY82: - | AZ82: 2 | BA82: 0 | BB82: 0 | BC82: 2 | BD82: -
A83: =BALANCE_COMPROBACION!A83 -> 3.1 | B83: =BALANCE_COMPROBACION!B83 -> 1.1.3.99.01.99. | C83: =BALANCE_COMPROBACION!C83 -> Previsiones para otros impuestos a cobrar c/p * | D83: =BALANCE_COMPROBACION!D83 -> -1429381.33 | E83: =BALANCE_COMPROBACION!E83 -> 0 | F83: =BALANCE_COMPROBACION!F83 -> 0 | G83: =BALANCE_COMPROBACION!G83 -> -1429381.33 | H83: 15 | I83: 1 | J83: =IFERROR(IF(B83="GRAN TOTAL","N/A",IF(H83=22,"N/A",IF(B83=0,"N/A",VLOOKUP(B83,PLAN_CUENTAS!$J:$J,1,FALSE)))),"ERROR") -> 1.1.3.99.01.99. | O83: =IFERROR(IF(N83="","",VLOOKUP(N83,REGISTRO_RECIPROCAS!C:E,3,FALSE)),"") ->  | P83: =IFERROR(VLOOKUP(N83,REGISTRO_RECIPROCAS!C$2:D$501,2,FALSE),"") ->  | R83: =IFERROR(IF(Q83="","",VLOOKUP(Q83,REGISTRO_RECIPROCAS!A:B,2,FALSE)),"") ->  | S83: CORRECTO | T83: =IFERROR(IF(Q83=VLOOKUP(Q83,REGISTRO_RECIPROCAS!A:A,1,FALSE),"APLICA","NO APLICA"),"NO APLICA") -> NO APLICA | V83: =BALANCE_PERIODO_ANTERIOR!A83 -> 3.1 | W83: =BALANCE_PERIODO_ANTERIOR!B83 -> 1.1.3.99.01.03. | X83: =BALANCE_PERIODO_ANTERIOR!C83 -> Previsiones para impuestos sobre bienes y servicios a cobrar c/p * | Y83: =BALANCE_PERIODO_ANTERIOR!D83 -> -9270015.01 | Z83: =BALANCE_PERIODO_ANTERIOR!E83 -> 0 | AA83: =BALANCE_PERIODO_ANTERIOR!F83 -> 0 | AB83: =BALANCE_PERIODO_ANTERIOR!G83 -> -9270015.01 | AC83: -1429381.33 | AD83: -1429381.33 | AE83: 0 | AF83: 0 | AG83: 1 | AH83: =IFERROR(IF(VLOOKUP(B83,PLAN_CUENTAS!$J:$AC,20,0)="EXCEP",0,1),0) -> 0 | AI83: 1 | AJ83: 0 | AK83: =#REF! ->  | AL83: =#REF! ->  | AM83: =#REF! ->  | AN83: =#REF! ->  | AO83: =#REF! ->  | AP83: =#REF! ->  | AY83: - | AZ83: 2 | BA83: 0 | BB83: 0 | BC83: 2 | BD83: -
A84: =BALANCE_COMPROBACION!A84 -> 3.1 | B84: =BALANCE_COMPROBACION!B84 -> 1.1.3.99.01.99.0. | C84: =BALANCE_COMPROBACION!C84 -> Previsiones para otros impuestos a cobrar c/p * | D84: =BALANCE_COMPROBACION!D84 -> -1429381.33 | E84: =BALANCE_COMPROBACION!E84 -> 0 | F84: =BALANCE_COMPROBACION!F84 -> 0 | G84: =BALANCE_COMPROBACION!G84 -> -1429381.33 | H84: 17 | I84: 1 | J84: =IFERROR(IF(B84="GRAN TOTAL","N/A",IF(H84=22,"N/A",IF(B84=0,"N/A",VLOOKUP(B84,PLAN_CUENTAS!$J:$J,1,FALSE)))),"ERROR") -> 1.1.3.99.01.99.0. | O84: =IFERROR(IF(N84="","",VLOOKUP(N84,REGISTRO_RECIPROCAS!C:E,3,FALSE)),"") ->  | P84: =IFERROR(VLOOKUP(N84,REGISTRO_RECIPROCAS!C$2:D$501,2,FALSE),"") ->  | R84: =IFERROR(IF(Q84="","",VLOOKUP(Q84,REGISTRO_RECIPROCAS!A:B,2,FALSE)),"") ->  | S84: CORRECTO | T84: =IFERROR(IF(Q84=VLOOKUP(Q84,REGISTRO_RECIPROCAS!A:A,1,FALSE),"APLICA","NO APLICA"),"NO APLICA") -> NO APLICA | V84: =BALANCE_PERIODO_ANTERIOR!A84 -> 3.1 | W84: =BALANCE_PERIODO_ANTERIOR!B84 -> 1.1.3.99.01.03.0. | X84: =BALANCE_PERIODO_ANTERIOR!C84 -> Previsiones para impuestos sobre bienes y servicios a cobrar c/p * | Y84: =BALANCE_PERIODO_ANTERIOR!D84 -> -9270015.01 | Z84: =BALANCE_PERIODO_ANTERIOR!E84 -> 0 | AA84: =BALANCE_PERIODO_ANTERIOR!F84 -> 0 | AB84: =BALANCE_PERIODO_ANTERIOR!G84 -> -9270015.01 | AC84: -1429381.33 | AD84: -1429381.33 | AE84: 0 | AF84: 0 | AG84: 1 | AH84: =IFERROR(IF(VLOOKUP(B84,PLAN_CUENTAS!$J:$AC,20,0)="EXCEP",0,1),0) -> 0 | AI84: 1 | AJ84: 0 | AK84: =#REF! ->  | AL84: =#REF! ->  | AM84: =#REF! ->  | AN84: =#REF! ->  | AO84: =#REF! ->  | AP84: =#REF! ->  | AY84: - | AZ84: 2 | BA84: 0 | BB84: 0 | BC84: 2 | BD84: -
A85: =BALANCE_COMPROBACION!A85 -> 3.1 | B85: =BALANCE_COMPROBACION!B85 -> 1.1.3.99.01.99.0.99999 | C85: =BALANCE_COMPROBACION!C85 -> Previsiones para otros impuestos a cobrar c/p * | D85: =BALANCE_COMPROBACION!D85 -> -1429381.33 | E85: =BALANCE_COMPROBACION!E85 -> 0 | F85: =BALANCE_COMPROBACION!F85 -> 0 | G85: =BALANCE_COMPROBACION!G85 -> -1429381.33 | H85: 22 | I85: 1 | J85: =IFERROR(IF(B85="GRAN TOTAL","N/A",IF(H85=22,"N/A",IF(B85=0,"N/A",VLOOKUP(B85,PLAN_CUENTAS!$J:$J,1,FALSE)))),"ERROR") -> N/A | M85: RECIPROCA | N85: 99999 | O85: =IFERROR(IF(N85="","",VLOOKUP(N85,REGISTRO_RECIPROCAS!C:E,3,FALSE)),"") -> N/A | P85: =IFERROR(VLOOKUP(N85,REGISTRO_RECIPROCAS!C$2:D$501,2,FALSE),"") -> NO APLICA | Q85: 1.1.3.99.01.99.0. | R85: =IFERROR(IF(Q85="","",VLOOKUP(Q85,REGISTRO_RECIPROCAS!A:B,2,FALSE)),"") ->  | S85: ERROR | T85: =IFERROR(IF(Q85=VLOOKUP(Q85,REGISTRO_RECIPROCAS!A:A,1,FALSE),"APLICA","NO APLICA"),"NO APLICA") -> NO APLICA | V85: =BALANCE_PERIODO_ANTERIOR!A85 -> 3.1 | W85: =BALANCE_PERIODO_ANTERIOR!B85 -> 1.1.3.99.01.03.0.99999 | X85: =BALANCE_PERIODO_ANTERIOR!C85 -> Previsiones para impuestos sobre bienes y servicios a cobrar c/p * | Y85: =BALANCE_PERIODO_ANTERIOR!D85 -> -9270015.01 | Z85: =BALANCE_PERIODO_ANTERIOR!E85 -> 0 | AA85: =BALANCE_PERIODO_ANTERIOR!F85 -> 0 | AB85: =BALANCE_PERIODO_ANTERIOR!G85 -> -9270015.01 | AC85: -1429381.33 | AD85: -1429381.33 | AE85: 0 | AF85: 0 | AG85: 1 | AH85: =IFERROR(IF(VLOOKUP(B85,PLAN_CUENTAS!$J:$AC,20,0)="EXCEP",0,1),0) -> 0 | AI85: 1 | AJ85: 0 | AK85: =#REF! ->  | AL85: =#REF! ->  | AM85: =#REF! ->  | AN85: =#REF! ->  | AO85: =#REF! ->  | AP85: =#REF! ->  | AQ85: -1429381.33 | AR85: 0 | AS85: 0 | AT85: -1429381.33 | AU85: 0 | AV85: 0 | AW85: 0 | AX85: 0 | AY85: - | AZ85: 2 | BA85: 0 | BB85: 0 | BC85: 2 | BD85: -
A86: =BALANCE_COMPROBACION!A86 -> 3.1 | B86: =BALANCE_COMPROBACION!B86 -> 1.1.3.99.04. | C86: =BALANCE_COMPROBACION!C86 -> Previsiones para servicios a cobrar c/p * | D86: =BALANCE_COMPROBACION!D86 -> -51378929.55 | E86: =BALANCE_COMPROBACION!E86 -> 0 | F86: =BALANCE_COMPROBACION!F86 -> 0 | G86: =BALANCE_COMPROBACION!G86 -> -51378929.55 | H86: 12 | I86: 1 | J86: =IFERROR(IF(B86="GRAN TOTAL","N/A",IF(H86=22,"N/A",IF(B86=0,"N/A",VLOOKUP(B86,PLAN_CUENTAS!$J:$J,1,FALSE)))),"ERROR") -> 1.1.3.99.04. | O86: =IFERROR(IF(N86="","",VLOOKUP(N86,REGISTRO_RECIPROCAS!C:E,3,FALSE)),"") ->  | P86: =IFERROR(VLOOKUP(N86,REGISTRO_RECIPROCAS!C$2:D$501,2,FALSE),"") ->  | R86: =IFERROR(IF(Q86="","",VLOOKUP(Q86,REGISTRO_RECIPROCAS!A:B,2,FALSE)),"") ->  | S86: CORRECTO | T86: =IFERROR(IF(Q86=VLOOKUP(Q86,REGISTRO_RECIPROCAS!A:A,1,FALSE),"APLICA","NO APLICA"),"NO APLICA") -> NO APLICA | V86: =BALANCE_PERIODO_ANTERIOR!A86 -> 3.1 | W86: =BALANCE_PERIODO_ANTERIOR!B86 -> 1.1.3.99.01.99. | X86: =BALANCE_PERIODO_ANTERIOR!C86 -> Previsiones para otros impuestos a cobrar c/p * | Y86: =BALANCE_PERIODO_ANTERIOR!D86 -> -1429381.33 | Z86: =BALANCE_PERIODO_ANTERIOR!E86 -> 0 | AA86: =BALANCE_PERIODO_ANTERIOR!F86 -> 0 | AB86: =BALANCE_PERIODO_ANTERIOR!G86 -> -1429381.33 | AC86: -51378929.55 | AD86: -51378929.55 | AE86: 0 | AF86: 0 | AG86: 1 | AH86: =IFERROR(IF(VLOOKUP(B86,PLAN_CUENTAS!$J:$AC,20,0)="EXCEP",0,1),0) -> 0 | AI86: 1 | AJ86: 0 | AK86: =#REF! ->  | AL86: =#REF! ->  | AM86: =#REF! ->  | AN86: =#REF! ->  | AO86: =#REF! ->  | AP86: =#REF! ->  | AY86: - | AZ86: 2 | BA86: 0 | BB86: 0 | BC86: 2 | BD86: -
A87: =BALANCE_COMPROBACION!A87 -> 3.1 | B87: =BALANCE_COMPROBACION!B87 -> 1.1.3.99.04.01. | C87: =BALANCE_COMPROBACION!C87 -> Previsiones para ventas de servicios a cobrar c/p * | D87: =BALANCE_COMPROBACION!D87 -> -50738208.69 | E87: =BALANCE_COMPROBACION!E87 -> 0 | F87: =BALANCE_COMPROBACION!F87 -> 0 | G87: =BALANCE_COMPROBACION!G87 -> -50738208.69 | H87: 15 | I87: 1 | J87: =IFERROR(IF(B87="GRAN TOTAL","N/A",IF(H87=22,"N/A",IF(B87=0,"N/A",VLOOKUP(B87,PLAN_CUENTAS!$J:$J,1,FALSE)))),"ERROR") -> 1.1.3.99.04.01. | O87: =IFERROR(IF(N87="","",VLOOKUP(N87,REGISTRO_RECIPROCAS!C:E,3,FALSE)),"") ->  | P87: =IFERROR(VLOOKUP(N87,REGISTRO_RECIPROCAS!C$2:D$501,2,FALSE),"") ->  | R87: =IFERROR(IF(Q87="","",VLOOKUP(Q87,REGISTRO_RECIPROCAS!A:B,2,FALSE)),"") ->  | S87: CORRECTO | T87: =IFERROR(IF(Q87=VLOOKUP(Q87,REGISTRO_RECIPROCAS!A:A,1,FALSE),"APLICA","NO APLICA"),"NO APLICA") -> NO APLICA | V87: =BALANCE_PERIODO_ANTERIOR!A87 -> 3.1 | W87: =BALANCE_PERIODO_ANTERIOR!B87 -> 1.1.3.99.01.99.0. | X87: =BALANCE_PERIODO_ANTERIOR!C87 -> Previsiones para otros impuestos a cobrar c/p * | Y87: =BALANCE_PERIODO_ANTERIOR!D87 -> -1429381.33 | Z87: =BALANCE_PERIODO_ANTERIOR!E87 -> 0 | AA87: =BALANCE_PERIODO_ANTERIOR!F87 -> 0 | AB87: =BALANCE_PERIODO_ANTERIOR!G87 -> -1429381.33 | AC87: -50738208.69 | AD87: -50738208.69 | AE87: 0 | AF87: 0 | AG87: 1 | AH87: =IFERROR(IF(VLOOKUP(B87,PLAN_CUENTAS!$J:$AC,20,0)="EXCEP",0,1),0) -> 0 | AI87: 1 | AJ87: 0 | AK87: =#REF! ->  | AL87: =#REF! ->  | AM87: =#REF! ->  | AN87: =#REF! ->  | AO87: =#REF! ->  | AP87: =#REF! ->  | AY87: - | AZ87: 2 | BA87: 0 | BB87: 0 | BC87: 2 | BD87: -
A88: =BALANCE_COMPROBACION!A88 -> 3.1 | B88: =BALANCE_COMPROBACION!B88 -> 1.1.3.99.04.01.0. | C88: =BALANCE_COMPROBACION!C88 -> Previsiones para ventas de servicios a cobrar c/p * | D88: =BALANCE_COMPROBACION!D88 -> -50738208.69 | E88: =BALANCE_COMPROBACION!E88 -> 0 | F88: =BALANCE_COMPROBACION!F88 -> 0 | G88: =BALANCE_COMPROBACION!G88 -> -50738208.69 | H88: 17 | I88: 1 | J88: =IFERROR(IF(B88="GRAN TOTAL","N/A",IF(H88=22,"N/A",IF(B88=0,"N/A",VLOOKUP(B88,PLAN_CUENTAS!$J:$J,1,FALSE)))),"ERROR") -> 1.1.3.99.04.01.0. | O88: =IFERROR(IF(N88="","",VLOOKUP(N88,REGISTRO_RECIPROCAS!C:E,3,FALSE)),"") ->  | P88: =IFERROR(VLOOKUP(N88,REGISTRO_RECIPROCAS!C$2:D$501,2,FALSE),"") ->  | R88: =IFERROR(IF(Q88="","",VLOOKUP(Q88,REGISTRO_RECIPROCAS!A:B,2,FALSE)),"") ->  | S88: CORRECTO | T88: =IFERROR(IF(Q88=VLOOKUP(Q88,REGISTRO_RECIPROCAS!A:A,1,FALSE),"APLICA","NO APLICA"),"NO APLICA") -> NO APLICA | V88: =BALANCE_PERIODO_ANTERIOR!A88 -> 3.1 | W88: =BALANCE_PERIODO_ANTERIOR!B88 -> 1.1.3.99.01.99.0.99999 | X88: =BALANCE_PERIODO_ANTERIOR!C88 -> Previsiones para otros impuestos a cobrar c/p * | Y88: =BALANCE_PERIODO_ANTERIOR!D88 -> -1429381.33 | Z88: =BALANCE_PERIODO_ANTERIOR!E88 -> 0 | AA88: =BALANCE_PERIODO_ANTERIOR!F88 -> 0 | AB88: =BALANCE_PERIODO_ANTERIOR!G88 -> -1429381.33 | AC88: -50738208.69 | AD88: -50738208.69 | AE88: 0 | AF88: 0 | AG88: 1 | AH88: =IFERROR(IF(VLOOKUP(B88,PLAN_CUENTAS!$J:$AC,20,0)="EXCEP",0,1),0) -> 0 | AI88: 1 | AJ88: 0 | AK88: =#REF! ->  | AL88: =#REF! ->  | AM88: =#REF! ->  | AN88: =#REF! ->  | AO88: =#REF! ->  | AP88: =#REF! ->  | AY88: - | AZ88: 2 | BA88: 0 | BB88: 0 | BC88: 2 | BD88: -
A89: =BALANCE_COMPROBACION!A89 -> 3.1 | B89: =BALANCE_COMPROBACION!B89 -> 1.1.3.99.04.01.0.99999 | C89: =BALANCE_COMPROBACION!C89 -> Previsiones para ventas de servicios a cobrar c/p * | D89: =BALANCE_COMPROBACION!D89 -> -50738208.69 | E89: =BALANCE_COMPROBACION!E89 -> 0 | F89: =BALANCE_COMPROBACION!F89 -> 0 | G89: =BALANCE_COMPROBACION!G89 -> -50738208.69 | H89: 22 | I89: 1 | J89: =IFERROR(IF(B89="GRAN TOTAL","N/A",IF(H89=22,"N/A",IF(B89=0,"N/A",VLOOKUP(B89,PLAN_CUENTAS!$J:$J,1,FALSE)))),"ERROR") -> N/A | M89: RECIPROCA | N89: 99999 | O89: =IFERROR(IF(N89="","",VLOOKUP(N89,REGISTRO_RECIPROCAS!C:E,3,FALSE)),"") -> N/A | P89: =IFERROR(VLOOKUP(N89,REGISTRO_RECIPROCAS!C$2:D$501,2,FALSE),"") -> NO APLICA | Q89: 1.1.3.99.04.01.0. | R89: =IFERROR(IF(Q89="","",VLOOKUP(Q89,REGISTRO_RECIPROCAS!A:B,2,FALSE)),"") ->  | S89: ERROR | T89: =IFERROR(IF(Q89=VLOOKUP(Q89,REGISTRO_RECIPROCAS!A:A,1,FALSE),"APLICA","NO APLICA"),"NO APLICA") -> NO APLICA | V89: =BALANCE_PERIODO_ANTERIOR!A89 -> 3.1 | W89: =BALANCE_PERIODO_ANTERIOR!B89 -> 1.1.3.99.04. | X89: =BALANCE_PERIODO_ANTERIOR!C89 -> Previsiones para servicios a cobrar c/p * | Y89: =BALANCE_PERIODO_ANTERIOR!D89 -> -51378929.55 | Z89: =BALANCE_PERIODO_ANTERIOR!E89 -> 0 | AA89: =BALANCE_PERIODO_ANTERIOR!F89 -> 0 | AB89: =BALANCE_PERIODO_ANTERIOR!G89 -> -51378929.55 | AC89: -50738208.69 | AD89: -50738208.69 | AE89: 0 | AF89: 0 | AG89: 1 | AH89: =IFERROR(IF(VLOOKUP(B89,PLAN_CUENTAS!$J:$AC,20,0)="EXCEP",0,1),0) -> 0 | AI89: 1 | AJ89: 0 | AK89: =#REF! ->  | AL89: =#REF! ->  | AM89: =#REF! ->  | AN89: =#REF! ->  | AO89: =#REF! ->  | AP89: =#REF! ->  | AQ89: -50738208.69 | AR89: 0 | AS89: 0 | AT89: -50738208.69 | AU89: 0 | AV89: 0 | AW89: 0 | AX89: 0 | AY89: - | AZ89: 2 | BA89: 0 | BB89: 0 | BC89: 2 | BD89: -
A90: =BALANCE_COMPROBACION!A90 -> 3.1 | B90: =BALANCE_COMPROBACION!B90 -> 1.1.3.99.04.02. | C90: =BALANCE_COMPROBACION!C90 -> Previsiones para derechos administrativos a cobrar c/p * | D90: =BALANCE_COMPROBACION!D90 -> -640720.86 | E90: =BALANCE_COMPROBACION!E90 -> 0 | F90: =BALANCE_COMPROBACION!F90 -> 0 | G90: =BALANCE_COMPROBACION!G90 -> -640720.86 | H90: 15 | I90: 1 | J90: =IFERROR(IF(B90="GRAN TOTAL","N/A",IF(H90=22,"N/A",IF(B90=0,"N/A",VLOOKUP(B90,PLAN_CUENTAS!$J:$J,1,FALSE)))),"ERROR") -> 1.1.3.99.04.02. | O90: =IFERROR(IF(N90="","",VLOOKUP(N90,REGISTRO_RECIPROCAS!C:E,3,FALSE)),"") ->  | P90: =IFERROR(VLOOKUP(N90,REGISTRO_RECIPROCAS!C$2:D$501,2,FALSE),"") ->  | R90: =IFERROR(IF(Q90="","",VLOOKUP(Q90,REGISTRO_RECIPROCAS!A:B,2,FALSE)),"") ->  | S90: CORRECTO | T90: =IFERROR(IF(Q90=VLOOKUP(Q90,REGISTRO_RECIPROCAS!A:A,1,FALSE),"APLICA","NO APLICA"),"NO APLICA") -> NO APLICA | V90: =BALANCE_PERIODO_ANTERIOR!A90 -> 3.1 | W90: =BALANCE_PERIODO_ANTERIOR!B90 -> 1.1.3.99.04.01. | X90: =BALANCE_PERIODO_ANTERIOR!C90 -> Previsiones para ventas de servicios a cobrar c/p * | Y90: =BALANCE_PERIODO_ANTERIOR!D90 -> -50738208.69 | Z90: =BALANCE_PERIODO_ANTERIOR!E90 -> 0 | AA90: =BALANCE_PERIODO_ANTERIOR!F90 -> 0 | AB90: =BALANCE_PERIODO_ANTERIOR!G90 -> -50738208.69 | AC90: -640720.86 | AD90: -640720.86 | AE90: 0 | AF90: 0 | AG90: 1 | AH90: =IFERROR(IF(VLOOKUP(B90,PLAN_CUENTAS!$J:$AC,20,0)="EXCEP",0,1),0) -> 0 | AI90: 1 | AJ90: 0 | AK90: =#REF! ->  | AL90: =#REF! ->  | AM90: =#REF! ->  | AN90: =#REF! ->  | AO90: =#REF! ->  | AP90: =#REF! ->  | AY90: - | AZ90: 2 | BA90: 0 | BB90: 0 | BC90: 2 | BD90: -
A91: =BALANCE_COMPROBACION!A91 -> 3.1 | B91: =BALANCE_COMPROBACION!B91 -> 1.1.3.99.04.02.0. | C91: =BALANCE_COMPROBACION!C91 -> Previsiones para derechos administrativos a cobrar c/p * | D91: =BALANCE_COMPROBACION!D91 -> -640720.86 | E91: =BALANCE_COMPROBACION!E91 -> 0 | F91: =BALANCE_COMPROBACION!F91 -> 0 | G91: =BALANCE_COMPROBACION!G91 -> -640720.86 | H91: 17 | I91: 1 | J91: =IFERROR(IF(B91="GRAN TOTAL","N/A",IF(H91=22,"N/A",IF(B91=0,"N/A",VLOOKUP(B91,PLAN_CUENTAS!$J:$J,1,FALSE)))),"ERROR") -> 1.1.3.99.04.02.0. | O91: =IFERROR(IF(N91="","",VLOOKUP(N91,REGISTRO_RECIPROCAS!C:E,3,FALSE)),"") ->  | P91: =IFERROR(VLOOKUP(N91,REGISTRO_RECIPROCAS!C$2:D$501,2,FALSE),"") ->  | R91: =IFERROR(IF(Q91="","",VLOOKUP(Q91,REGISTRO_RECIPROCAS!A:B,2,FALSE)),"") ->  | S91: CORRECTO | T91: =IFERROR(IF(Q91=VLOOKUP(Q91,REGISTRO_RECIPROCAS!A:A,1,FALSE),"APLICA","NO APLICA"),"NO APLICA") -> NO APLICA | V91: =BALANCE_PERIODO_ANTERIOR!A91 -> 3.1 | W91: =BALANCE_PERIODO_ANTERIOR!B91 -> 1.1.3.99.04.01.0. | X91: =BALANCE_PERIODO_ANTERIOR!C91 -> Previsiones para ventas de servicios a cobrar c/p * | Y91: =BALANCE_PERIODO_ANTERIOR!D91 -> -50738208.69 | Z91: =BALANCE_PERIODO_ANTERIOR!E91 -> 0 | AA91: =BALANCE_PERIODO_ANTERIOR!F91 -> 0 | AB91: =BALANCE_PERIODO_ANTERIOR!G91 -> -50738208.69 | AC91: -640720.86 | AD91: -640720.86 | AE91: 0 | AF91: 0 | AG91: 1 | AH91: =IFERROR(IF(VLOOKUP(B91,PLAN_CUENTAS!$J:$AC,20,0)="EXCEP",0,1),0) -> 0 | AI91: 1 | AJ91: 0 | AK91: =#REF! ->  | AL91: =#REF! ->  | AM91: =#REF! ->  | AN91: =#REF! ->  | AO91: =#REF! ->  | AP91: =#REF! ->  | AY91: - | AZ91: 2 | BA91: 0 | BB91: 0 | BC91: 2 | BD91: -
A92: =BALANCE_COMPROBACION!A92 -> 3.1 | B92: =BALANCE_COMPROBACION!B92 -> 1.1.3.99.04.02.0.99999 | C92: =BALANCE_COMPROBACION!C92 -> Previsiones para derechos administrativos a cobrar c/p * | D92: =BALANCE_COMPROBACION!D92 -> -640720.86 | E92: =BALANCE_COMPROBACION!E92 -> 0 | F92: =BALANCE_COMPROBACION!F92 -> 0 | G92: =BALANCE_COMPROBACION!G92 -> -640720.86 | H92: 22 | I92: 1 | J92: =IFERROR(IF(B92="GRAN TOTAL","N/A",IF(H92=22,"N/A",IF(B92=0,"N/A",VLOOKUP(B92,PLAN_CUENTAS!$J:$J,1,FALSE)))),"ERROR") -> N/A | M92: RECIPROCA | N92: 99999 | O92: =IFERROR(IF(N92="","",VLOOKUP(N92,REGISTRO_RECIPROCAS!C:E,3,FALSE)),"") -> N/A | P92: =IFERROR(VLOOKUP(N92,REGISTRO_RECIPROCAS!C$2:D$501,2,FALSE),"") -> NO APLICA | Q92: 1.1.3.99.04.02.0. | R92: =IFERROR(IF(Q92="","",VLOOKUP(Q92,REGISTRO_RECIPROCAS!A:B,2,FALSE)),"") ->  | S92: ERROR | T92: =IFERROR(IF(Q92=VLOOKUP(Q92,REGISTRO_RECIPROCAS!A:A,1,FALSE),"APLICA","NO APLICA"),"NO APLICA") -> NO APLICA | V92: =BALANCE_PERIODO_ANTERIOR!A92 -> 3.1 | W92: =BALANCE_PERIODO_ANTERIOR!B92 -> 1.1.3.99.04.01.0.99999 | X92: =BALANCE_PERIODO_ANTERIOR!C92 -> Previsiones para ventas de servicios a cobrar c/p * | Y92: =BALANCE_PERIODO_ANTERIOR!D92 -> -50738208.69 | Z92: =BALANCE_PERIODO_ANTERIOR!E92 -> 0 | AA92: =BALANCE_PERIODO_ANTERIOR!F92 -> 0 | AB92: =BALANCE_PERIODO_ANTERIOR!G92 -> -50738208.69 | AC92: -640720.86 | AD92: -640720.86 | AE92: 0 | AF92: 0 | AG92: 1 | AH92: =IFERROR(IF(VLOOKUP(B92,PLAN_CUENTAS!$J:$AC,20,0)="EXCEP",0,1),0) -> 0 | AI92: 1 | AJ92: 0 | AK92: =#REF! ->  | AL92: =#REF! ->  | AM92: =#REF! ->  | AN92: =#REF! ->  | AO92: =#REF! ->  | AP92: =#REF! ->  | AQ92: -640720.86 | AR92: 0 | AS92: 0 | AT92: -640720.86 | AU92: 0 | AV92: 0 | AW92: 0 | AX92: 0 | AY92: - | AZ92: 2 | BA92: 0 | BB92: 0 | BC92: 2 | BD92: -
A93: =BALANCE_COMPROBACION!A93 -> 3.1 | B93: =BALANCE_COMPROBACION!B93 -> 1.1.3.99.05. | C93: =BALANCE_COMPROBACION!C93 -> Previsiones para ingresos de la propiedad a cobrar c/p * | D93: =BALANCE_COMPROBACION!D93 -> -7015963.19 | E93: =BALANCE_COMPROBACION!E93 -> 0 | F93: =BALANCE_COMPROBACION!F93 -> 0 | G93: =BALANCE_COMPROBACION!G93 -> -7015963.19 | H93: 12 | I93: 1 | J93: =IFERROR(IF(B93="GRAN TOTAL","N/A",IF(H93=22,"N/A",IF(B93=0,"N/A",VLOOKUP(B93,PLAN_CUENTAS!$J:$J,1,FALSE)))),"ERROR") -> 1.1.3.99.05. | O93: =IFERROR(IF(N93="","",VLOOKUP(N93,REGISTRO_RECIPROCAS!C:E,3,FALSE)),"") ->  | P93: =IFERROR(VLOOKUP(N93,REGISTRO_RECIPROCAS!C$2:D$501,2,FALSE),"") ->  | R93: =IFERROR(IF(Q93="","",VLOOKUP(Q93,REGISTRO_RECIPROCAS!A:B,2,FALSE)),"") ->  | S93: CORRECTO | T93: =IFERROR(IF(Q93=VLOOKUP(Q93,REGISTRO_RECIPROCAS!A:A,1,FALSE),"APLICA","NO APLICA"),"NO APLICA") -> NO APLICA | V93: =BALANCE_PERIODO_ANTERIOR!A93 -> 3.1 | W93: =BALANCE_PERIODO_ANTERIOR!B93 -> 1.1.3.99.04.02. | X93: =BALANCE_PERIODO_ANTERIOR!C93 -> Previsiones para derechos administrativos a cobrar c/p * | Y93: =BALANCE_PERIODO_ANTERIOR!D93 -> -640720.86 | Z93: =BALANCE_PERIODO_ANTERIOR!E93 -> 0 | AA93: =BALANCE_PERIODO_ANTERIOR!F93 -> 0 | AB93: =BALANCE_PERIODO_ANTERIOR!G93 -> -640720.86 | AC93: -7015963.19 | AD93: -7015963.19 | AE93: 0 | AF93: 0 | AG93: 1 | AH93: =IFERROR(IF(VLOOKUP(B93,PLAN_CUENTAS!$J:$AC,20,0)="EXCEP",0,1),0) -> 0 | AI93: 1 | AJ93: 0 | AK93: =#REF! ->  | AL93: =#REF! ->  | AM93: =#REF! ->  | AN93: =#REF! ->  | AO93: =#REF! ->  | AP93: =#REF! ->  | AY93: - | AZ93: 2 | BA93: 0 | BB93: 0 | BC93: 2 | BD93: -
A94: =BALANCE_COMPROBACION!A94 -> 3.1 | B94: =BALANCE_COMPROBACION!B94 -> 1.1.3.99.05.01. | C94: =BALANCE_COMPROBACION!C94 -> Previsiones para alquileres y derechos sobre bienes a cobrar c/p * | D94: =BALANCE_COMPROBACION!D94 -> -7015963.19 | E94: =BALANCE_COMPROBACION!E94 -> 0 | F94: =BALANCE_COMPROBACION!F94 -> 0 | G94: =BALANCE_COMPROBACION!G94 -> -7015963.19 | H94: 15 | I94: 1 | J94: =IFERROR(IF(B94="GRAN TOTAL","N/A",IF(H94=22,"N/A",IF(B94=0,"N/A",VLOOKUP(B94,PLAN_CUENTAS!$J:$J,1,FALSE)))),"ERROR") -> 1.1.3.99.05.01. | O94: =IFERROR(IF(N94="","",VLOOKUP(N94,REGISTRO_RECIPROCAS!C:E,3,FALSE)),"") ->  | P94: =IFERROR(VLOOKUP(N94,REGISTRO_RECIPROCAS!C$2:D$501,2,FALSE),"") ->  | R94: =IFERROR(IF(Q94="","",VLOOKUP(Q94,REGISTRO_RECIPROCAS!A:B,2,FALSE)),"") ->  | S94: CORRECTO | T94: =IFERROR(IF(Q94=VLOOKUP(Q94,REGISTRO_RECIPROCAS!A:A,1,FALSE),"APLICA","NO APLICA"),"NO APLICA") -> NO APLICA | V94: =BALANCE_PERIODO_ANTERIOR!A94 -> 3.1 | W94: =BALANCE_PERIODO_ANTERIOR!B94 -> 1.1.3.99.04.02.0. | X94: =BALANCE_PERIODO_ANTERIOR!C94 -> Previsiones para derechos administrativos a cobrar c/p * | Y94: =BALANCE_PERIODO_ANTERIOR!D94 -> -640720.86 | Z94: =BALANCE_PERIODO_ANTERIOR!E94 -> 0 | AA94: =BALANCE_PERIODO_ANTERIOR!F94 -> 0 | AB94: =BALANCE_PERIODO_ANTERIOR!G94 -> -640720.86 | AC94: -7015963.19 | AD94: -7015963.19 | AE94: 0 | AF94: 0 | AG94: 1 | AH94: =IFERROR(IF(VLOOKUP(B94,PLAN_CUENTAS!$J:$AC,20,0)="EXCEP",0,1),0) -> 0 | AI94: 1 | AJ94: 0 | AK94: =#REF! ->  | AL94: =#REF! ->  | AM94: =#REF! ->  | AN94: =#REF! ->  | AO94: =#REF! ->  | AP94: =#REF! ->  | AY94: - | AZ94: 2 | BA94: 0 | BB94: 0 | BC94: 2 | BD94: -
A95: =BALANCE_COMPROBACION!A95 -> 3.1 | B95: =BALANCE_COMPROBACION!B95 -> 1.1.3.99.05.01.0. | C95: =BALANCE_COMPROBACION!C95 -> Previsiones para alquileres y derechos sobre bienes a cobrar c/p * | D95: =BALANCE_COMPROBACION!D95 -> -7015963.19 | E95: =BALANCE_COMPROBACION!E95 -> 0 | F95: =BALANCE_COMPROBACION!F95 -> 0 | G95: =BALANCE_COMPROBACION!G95 -> -7015963.19 | H95: 17 | I95: 1 | J95: =IFERROR(IF(B95="GRAN TOTAL","N/A",IF(H95=22,"N/A",IF(B95=0,"N/A",VLOOKUP(B95,PLAN_CUENTAS!$J:$J,1,FALSE)))),"ERROR") -> 1.1.3.99.05.01.0. | O95: =IFERROR(IF(N95="","",VLOOKUP(N95,REGISTRO_RECIPROCAS!C:E,3,FALSE)),"") ->  | P95: =IFERROR(VLOOKUP(N95,REGISTRO_RECIPROCAS!C$2:D$501,2,FALSE),"") ->  | R95: =IFERROR(IF(Q95="","",VLOOKUP(Q95,REGISTRO_RECIPROCAS!A:B,2,FALSE)),"") ->  | S95: CORRECTO | T95: =IFERROR(IF(Q95=VLOOKUP(Q95,REGISTRO_RECIPROCAS!A:A,1,FALSE),"APLICA","NO APLICA"),"NO APLICA") -> NO APLICA | V95: =BALANCE_PERIODO_ANTERIOR!A95 -> 3.1 | W95: =BALANCE_PERIODO_ANTERIOR!B95 -> 1.1.3.99.04.02.0.99999 | X95: =BALANCE_PERIODO_ANTERIOR!C95 -> Previsiones para derechos administrativos a cobrar c/p * | Y95: =BALANCE_PERIODO_ANTERIOR!D95 -> -640720.86 | Z95: =BALANCE_PERIODO_ANTERIOR!E95 -> 0 | AA95: =BALANCE_PERIODO_ANTERIOR!F95 -> 0 | AB95: =BALANCE_PERIODO_ANTERIOR!G95 -> -640720.86 | AC95: -7015963.19 | AD95: -7015963.19 | AE95: 0 | AF95: 0 | AG95: 1 | AH95: =IFERROR(IF(VLOOKUP(B95,PLAN_CUENTAS!$J:$AC,20,0)="EXCEP",0,1),0) -> 0 | AI95: 1 | AJ95: 0 | AK95: =#REF! ->  | AL95: =#REF! ->  | AM95: =#REF! ->  | AN95: =#REF! ->  | AO95: =#REF! ->  | AP95: =#REF! ->  | AY95: - | AZ95: 2 | BA95: 0 | BB95: 0 | BC95: 2 | BD95: -
A96: =BALANCE_COMPROBACION!A96 -> 3.1 | B96: =BALANCE_COMPROBACION!B96 -> 1.1.3.99.05.01.0.99999 | C96: =BALANCE_COMPROBACION!C96 -> Previsiones para alquileres y derechos sobre bienes a cobrar c/p * | D96: =BALANCE_COMPROBACION!D96 -> -7015963.19 | E96: =BALANCE_COMPROBACION!E96 -> 0 | F96: =BALANCE_COMPROBACION!F96 -> 0 | G96: =BALANCE_COMPROBACION!G96 -> -7015963.19 | H96: 22 | I96: 1 | J96: =IFERROR(IF(B96="GRAN TOTAL","N/A",IF(H96=22,"N/A",IF(B96=0,"N/A",VLOOKUP(B96,PLAN_CUENTAS!$J:$J,1,FALSE)))),"ERROR") -> N/A | M96: RECIPROCA | N96: 99999 | O96: =IFERROR(IF(N96="","",VLOOKUP(N96,REGISTRO_RECIPROCAS!C:E,3,FALSE)),"") -> N/A | P96: =IFERROR(VLOOKUP(N96,REGISTRO_RECIPROCAS!C$2:D$501,2,FALSE),"") -> NO APLICA | Q96: 1.1.3.99.05.01.0. | R96: =IFERROR(IF(Q96="","",VLOOKUP(Q96,REGISTRO_RECIPROCAS!A:B,2,FALSE)),"") ->  | S96: ERROR | T96: =IFERROR(IF(Q96=VLOOKUP(Q96,REGISTRO_RECIPROCAS!A:A,1,FALSE),"APLICA","NO APLICA"),"NO APLICA") -> NO APLICA | V96: =BALANCE_PERIODO_ANTERIOR!A96 -> 3.1 | W96: =BALANCE_PERIODO_ANTERIOR!B96 -> 1.1.3.99.05. | X96: =BALANCE_PERIODO_ANTERIOR!C96 -> Previsiones para ingresos de la propiedad a cobrar c/p * | Y96: =BALANCE_PERIODO_ANTERIOR!D96 -> -7015963.19 | Z96: =BALANCE_PERIODO_ANTERIOR!E96 -> 0 | AA96: =BALANCE_PERIODO_ANTERIOR!F96 -> 0 | AB96: =BALANCE_PERIODO_ANTERIOR!G96 -> -7015963.19 | AC96: -7015963.19 | AD96: -7015963.19 | AE96: 0 | AF96: 0 | AG96: 1 | AH96: =IFERROR(IF(VLOOKUP(B96,PLAN_CUENTAS!$J:$AC,20,0)="EXCEP",0,1),0) -> 0 | AI96: 1 | AJ96: 0 | AK96: =#REF! ->  | AL96: =#REF! ->  | AM96: =#REF! ->  | AN96: =#REF! ->  | AO96: =#REF! ->  | AP96: =#REF! ->  | AQ96: -7015963.19 | AR96: 0 | AS96: 0 | AT96: -7015963.19 | AU96: 0 | AV96: 0 | AW96: 0 | AX96: 0 | AY96: - | AZ96: 2 | BA96: 0 | BB96: 0 | BC96: 2 | BD96: -
A97: =BALANCE_COMPROBACION!A97 -> 3.1 | B97: =BALANCE_COMPROBACION!B97 -> 1.1.4. | C97: =BALANCE_COMPROBACION!C97 -> Inventarios | D97: =BALANCE_COMPROBACION!D97 -> 192987092.2 | E97: =BALANCE_COMPROBACION!E97 -> 3741494.92 | F97: =BALANCE_COMPROBACION!F97 -> 8011262.09 | G97: =BALANCE_COMPROBACION!G97 -> 188717325.1 | H97: 6 | I97: 1 | J97: =IFERROR(IF(B97="GRAN TOTAL","N/A",IF(H97=22,"N/A",IF(B97=0,"N/A",VLOOKUP(B97,PLAN_CUENTAS!$J:$J,1,FALSE)))),"ERROR") -> 1.1.4. | O97: =IFERROR(IF(N97="","",VLOOKUP(N97,REGISTRO_RECIPROCAS!C:E,3,FALSE)),"") ->  | P97: =IFERROR(VLOOKUP(N97,REGISTRO_RECIPROCAS!C$2:D$501,2,FALSE),"") ->  | R97: =IFERROR(IF(Q97="","",VLOOKUP(Q97,REGISTRO_RECIPROCAS!A:B,2,FALSE)),"") ->  | S97: CORRECTO | T97: =IFERROR(IF(Q97=VLOOKUP(Q97,REGISTRO_RECIPROCAS!A:A,1,FALSE),"APLICA","NO APLICA"),"NO APLICA") -> NO APLICA | V97: =BALANCE_PERIODO_ANTERIOR!A97 -> 3.1 | W97: =BALANCE_PERIODO_ANTERIOR!B97 -> 1.1.3.99.05.01. | X97: =BALANCE_PERIODO_ANTERIOR!C97 -> Previsiones para alquileres y derechos sobre bienes a cobrar c/p * | Y97: =BALANCE_PERIODO_ANTERIOR!D97 -> -7015963.19 | Z97: =BALANCE_PERIODO_ANTERIOR!E97 -> 0 | AA97: =BALANCE_PERIODO_ANTERIOR!F97 -> 0 | AB97: =BALANCE_PERIODO_ANTERIOR!G97 -> -7015963.19 | AC97: 192987092.2 | AD97: 192987092.2 | AE97: 0 | AF97: 0 | AG97: 0 | AH97: =IFERROR(IF(VLOOKUP(B97,PLAN_CUENTAS!$J:$AC,20,0)="EXCEP",0,1),0) -> 1 | AI97: 1 | AJ97: 0 | AK97: =#REF! ->  | AL97: =#REF! ->  | AM97: =#REF! ->  | AN97: =#REF! ->  | AO97: =#REF! ->  | AP97: =#REF! ->  | AY97: - | AZ97: 2 | BA97: 2 | BB97: 2 | BC97: 2 | BD97: -
A98: =BALANCE_COMPROBACION!A98 -> 3.1 | B98: =BALANCE_COMPROBACION!B98 -> 1.1.4.01. | C98: =BALANCE_COMPROBACION!C98 -> Materiales y suministros para consumo y prestación de servicios | D98: =BALANCE_COMPROBACION!D98 -> 192987092.2 | E98: =BALANCE_COMPROBACION!E98 -> 3741494.92 | F98: =BALANCE_COMPROBACION!F98 -> 8011262.09 | G98: =BALANCE_COMPROBACION!G98 -> 188717325.1 | H98: 9 | I98: 1 | J98: =IFERROR(IF(B98="GRAN TOTAL","N/A",IF(H98=22,"N/A",IF(B98=0,"N/A",VLOOKUP(B98,PLAN_CUENTAS!$J:$J,1,FALSE)))),"ERROR") -> 1.1.4.01. | O98: =IFERROR(IF(N98="","",VLOOKUP(N98,REGISTRO_RECIPROCAS!C:E,3,FALSE)),"") ->  | P98: =IFERROR(VLOOKUP(N98,REGISTRO_RECIPROCAS!C$2:D$501,2,FALSE),"") ->  | R98: =IFERROR(IF(Q98="","",VLOOKUP(Q98,REGISTRO_RECIPROCAS!A:B,2,FALSE)),"") ->  | S98: CORRECTO | T98: =IFERROR(IF(Q98=VLOOKUP(Q98,REGISTRO_RECIPROCAS!A:A,1,FALSE),"APLICA","NO APLICA"),"NO APLICA") -> NO APLICA | V98: =BALANCE_PERIODO_ANTERIOR!A98 -> 3.1 | W98: =BALANCE_PERIODO_ANTERIOR!B98 -> 1.1.3.99.05.01.0. | X98: =BALANCE_PERIODO_ANTERIOR!C98 -> Previsiones para alquileres y derechos sobre bienes a cobrar c/p * | Y98: =BALANCE_PERIODO_ANTERIOR!D98 -> -7015963.19 | Z98: =BALANCE_PERIODO_ANTERIOR!E98 -> 0 | AA98: =BALANCE_PERIODO_ANTERIOR!F98 -> 0 | AB98: =BALANCE_PERIODO_ANTERIOR!G98 -> -7015963.19 | AC98: 192987092.2 | AD98: 192987092.2 | AE98: 0 | AF98: 0 | AG98: 0 | AH98: =IFERROR(IF(VLOOKUP(B98,PLAN_CUENTAS!$J:$AC,20,0)="EXCEP",0,1),0) -> 1 | AI98: 1 | AJ98: 0 | AK98: =#REF! ->  | AL98: =#REF! ->  | AM98: =#REF! ->  | AN98: =#REF! ->  | AO98: =#REF! ->  | AP98: =#REF! ->  | AY98: - | AZ98: 2 | BA98: 2 | BB98: 2 | BC98: 2 | BD98: -
A99: =BALANCE_COMPROBACION!A99 -> 3.1 | B99: =BALANCE_COMPROBACION!B99 -> 1.1.4.01.01. | C99: =BALANCE_COMPROBACION!C99 -> Productos químicos y conexos | D99: =BALANCE_COMPROBACION!D99 -> 21280495.09 | E99: =BALANCE_COMPROBACION!E99 -> 227330.1 | F99: =BALANCE_COMPROBACION!F99 -> 403241.5 | G99: =BALANCE_COMPROBACION!G99 -> 21104583.69 | H99: 12 | I99: 1 | J99: =IFERROR(IF(B99="GRAN TOTAL","N/A",IF(H99=22,"N/A",IF(B99=0,"N/A",VLOOKUP(B99,PLAN_CUENTAS!$J:$J,1,FALSE)))),"ERROR") -> 1.1.4.01.01. | O99: =IFERROR(IF(N99="","",VLOOKUP(N99,REGISTRO_RECIPROCAS!C:E,3,FALSE)),"") ->  | P99: =IFERROR(VLOOKUP(N99,REGISTRO_RECIPROCAS!C$2:D$501,2,FALSE),"") ->  | R99: =IFERROR(IF(Q99="","",VLOOKUP(Q99,REGISTRO_RECIPROCAS!A:B,2,FALSE)),"") ->  | S99: CORRECTO | T99: =IFERROR(IF(Q99=VLOOKUP(Q99,REGISTRO_RECIPROCAS!A:A,1,FALSE),"APLICA","NO APLICA"),"NO APLICA") -> NO APLICA | V99: =BALANCE_PERIODO_ANTERIOR!A99 -> 3.1 | W99: =BALANCE_PERIODO_ANTERIOR!B99 -> 1.1.3.99.05.01.0.99999 | X99: =BALANCE_PERIODO_ANTERIOR!C99 -> Previsiones para alquileres y derechos sobre bienes a cobrar c/p * | Y99: =BALANCE_PERIODO_ANTERIOR!D99 -> -7015963.19 | Z99: =BALANCE_PERIODO_ANTERIOR!E99 -> 0 | AA99: =BALANCE_PERIODO_ANTERIOR!F99 -> 0 | AB99: =BALANCE_PERIODO_ANTERIOR!G99 -> -7015963.19 | AC99: 21280495.09 | AD99: 21280495.09 | AE99: 0 | AF99: 0 | AG99: 0 | AH99: =IFERROR(IF(VLOOKUP(B99,PLAN_CUENTAS!$J:$AC,20,0)="EXCEP",0,1),0) -> 1 | AI99: 1 | AJ99: 0 | AK99: =#REF! ->  | AL99: =#REF! ->  | AM99: =#REF! ->  | AN99: =#REF! ->  | AO99: =#REF! ->  | AP99: =#REF! ->  | AY99: - | AZ99: 2 | BA99: 1 | BB99: 1 | BC99: 2 | BD99: -
A100: =BALANCE_COMPROBACION!A100 -> 3.1 | B100: =BALANCE_COMPROBACION!B100 -> 1.1.4.01.01.01. | C100: =BALANCE_COMPROBACION!C100 -> Combustibles y lubricantes | D100: =BALANCE_COMPROBACION!D100 -> 17684339.46 | E100: =BALANCE_COMPROBACION!E100 -> 0 | F100: =BALANCE_COMPROBACION!F100 -> 113417.4 | G100: =BALANCE_COMPROBACION!G100 -> 17570922.06 | H100: 15 | I100: 1 | J100: =IFERROR(IF(B100="GRAN TOTAL","N/A",IF(H100=22,"N/A",IF(B100=0,"N/A",VLOOKUP(B100,PLAN_CUENTAS!$J:$J,1,FALSE)))),"ERROR") -> 1.1.4.01.01.01. | O100: =IFERROR(IF(N100="","",VLOOKUP(N100,REGISTRO_RECIPROCAS!C:E,3,FALSE)),"") ->  | P100: =IFERROR(VLOOKUP(N100,REGISTRO_RECIPROCAS!C$2:D$501,2,FALSE),"") ->  | R100: =IFERROR(IF(Q100="","",VLOOKUP(Q100,REGISTRO_RECIPROCAS!A:B,2,FALSE)),"") ->  | S100: CORRECTO | T100: =IFERROR(IF(Q100=VLOOKUP(Q100,REGISTRO_RECIPROCAS!A:A,1,FALSE),"APLICA","NO APLICA"),"NO APLICA") -> NO APLICA | V100: =BALANCE_PERIODO_ANTERIOR!A100 -> 3.1 | W100: =BALANCE_PERIODO_ANTERIOR!B100 -> 1.1.4. | X100: =BALANCE_PERIODO_ANTERIOR!C100 -> Inventarios | Y100: =BALANCE_PERIODO_ANTERIOR!D100 -> 4559673.55 | Z100: =BALANCE_PERIODO_ANTERIOR!E100 -> 202605131.2 | AA100: =BALANCE_PERIODO_ANTERIOR!F100 -> 14177712.56 | AB100: =BALANCE_PERIODO_ANTERIOR!G100 -> 192987092.2 | AC100: 17684339.46 | AD100: 17684339.46 | AE100: 0 | AF100: 0 | AG100: 0 | AH100: =IFERROR(IF(VLOOKUP(B100,PLAN_CUENTAS!$J:$AC,20,0)="EXCEP",0,1),0) -> 1 | AI100: 1 | AJ100: 0 | AK100: =#REF! ->  | AL100: =#REF! ->  | AM100: =#REF! ->  | AN100: =#REF! ->  | AO100: =#REF! ->  | AP100: =#REF! ->  | AY100: - | AZ100: 2 | BA100: 0 | BB100: 1 | BC100: 2 | BD100: -
A101: =BALANCE_COMPROBACION!A101 -> 3.1 | B101: =BALANCE_COMPROBACION!B101 -> 1.1.4.01.01.01.0. | C101: =BALANCE_COMPROBACION!C101 -> Combustibles y lubricantes | D101: =BALANCE_COMPROBACION!D101 -> 17684339.46 | E101: =BALANCE_COMPROBACION!E101 -> 0 | F101: =BALANCE_COMPROBACION!F101 -> 113417.4 | G101: =BALANCE_COMPROBACION!G101 -> 17570922.06 | H101: 17 | I101: 1 | J101: =IFERROR(IF(B101="GRAN TOTAL","N/A",IF(H101=22,"N/A",IF(B101=0,"N/A",VLOOKUP(B101,PLAN_CUENTAS!$J:$J,1,FALSE)))),"ERROR") -> 1.1.4.01.01.01.0. | O101: =IFERROR(IF(N101="","",VLOOKUP(N101,REGISTRO_RECIPROCAS!C:E,3,FALSE)),"") ->  | P101: =IFERROR(VLOOKUP(N101,REGISTRO_RECIPROCAS!C$2:D$501,2,FALSE),"") ->  | R101: =IFERROR(IF(Q101="","",VLOOKUP(Q101,REGISTRO_RECIPROCAS!A:B,2,FALSE)),"") ->  | S101: CORRECTO | T101: =IFERROR(IF(Q101=VLOOKUP(Q101,REGISTRO_RECIPROCAS!A:A,1,FALSE),"APLICA","NO APLICA"),"NO APLICA") -> NO APLICA | V101: =BALANCE_PERIODO_ANTERIOR!A101 -> 3.1 | W101: =BALANCE_PERIODO_ANTERIOR!B101 -> 1.1.4.01. | X101: =BALANCE_PERIODO_ANTERIOR!C101 -> Materiales y suministros para consumo y prestación de servicios | Y101: =BALANCE_PERIODO_ANTERIOR!D101 -> 4559673.55 | Z101: =BALANCE_PERIODO_ANTERIOR!E101 -> 202605131.2 | AA101: =BALANCE_PERIODO_ANTERIOR!F101 -> 14177712.56 | AB101: =BALANCE_PERIODO_ANTERIOR!G101 -> 192987092.2 | AC101: 17684339.46 | AD101: 17684339.46 | AE101: 0 | AF101: 0 | AG101: 0 | AH101: =IFERROR(IF(VLOOKUP(B101,PLAN_CUENTAS!$J:$AC,20,0)="EXCEP",0,1),0) -> 1 | AI101: 1 | AJ101: 0 | AK101: =#REF! ->  | AL101: =#REF! ->  | AM101: =#REF! ->  | AN101: =#REF! ->  | AO101: =#REF! ->  | AP101: =#REF! ->  | AY101: - | AZ101: 2 | BA101: 0 | BB101: 1 | BC101: 2 | BD101: -
A102: =BALANCE_COMPROBACION!A102 -> 3.1 | B102: =BALANCE_COMPROBACION!B102 -> 1.1.4.01.01.01.0.99999 | C102: =BALANCE_COMPROBACION!C102 -> Combustibles y lubricantes | D102: =BALANCE_COMPROBACION!D102 -> 17684339.46 | E102: =BALANCE_COMPROBACION!E102 -> 0 | F102: =BALANCE_COMPROBACION!F102 -> 113417.4 | G102: =BALANCE_COMPROBACION!G102 -> 17570922.06 | H102: 22 | I102: 1 | J102: =IFERROR(IF(B102="GRAN TOTAL","N/A",IF(H102=22,"N/A",IF(B102=0,"N/A",VLOOKUP(B102,PLAN_CUENTAS!$J:$J,1,FALSE)))),"ERROR") -> N/A | M102: RECIPROCA | N102: 99999 | O102: =IFERROR(IF(N102="","",VLOOKUP(N102,REGISTRO_RECIPROCAS!C:E,3,FALSE)),"") -> N/A | P102: =IFERROR(VLOOKUP(N102,REGISTRO_RECIPROCAS!C$2:D$501,2,FALSE),"") -> NO APLICA | Q102: 1.1.4.01.01.01.0. | R102: =IFERROR(IF(Q102="","",VLOOKUP(Q102,REGISTRO_RECIPROCAS!A:B,2,FALSE)),"") ->  | S102: ERROR | T102: =IFERROR(IF(Q102=VLOOKUP(Q102,REGISTRO_RECIPROCAS!A:A,1,FALSE),"APLICA","NO APLICA"),"NO APLICA") -> NO APLICA | V102: =BALANCE_PERIODO_ANTERIOR!A102 -> 3.1 | W102: =BALANCE_PERIODO_ANTERIOR!B102 -> 1.1.4.01.01. | X102: =BALANCE_PERIODO_ANTERIOR!C102 -> Productos químicos y conexos | Y102: =BALANCE_PERIODO_ANTERIOR!D102 -> 1195234.05 | Z102: =BALANCE_PERIODO_ANTERIOR!E102 -> 23083581.78 | AA102: =BALANCE_PERIODO_ANTERIOR!F102 -> 2998320.74 | AB102: =BALANCE_PERIODO_ANTERIOR!G102 -> 21280495.09 | AC102: 17684339.46 | AD102: 17684339.46 | AE102: 0 | AF102: 0 | AG102: 0 | AH102: =IFERROR(IF(VLOOKUP(B102,PLAN_CUENTAS!$J:$AC,20,0)="EXCEP",0,1),0) -> 0 | AI102: 1 | AJ102: 0 | AK102: =#REF! ->  | AL102: =#REF! ->  | AM102: =#REF! ->  | AN102: =#REF! ->  | AO102: =#REF! ->  | AP102: =#REF! ->  | AQ102: 17684339.46 | AR102: 0 | AS102: 113417.4 | AT102: 17570922.06 | AU102: 0 | AV102: 0 | AW102: 0 | AX102: 0 | AY102: - | AZ102: 2 | BA102: 0 | BB102: 1 | BC102: 2 | BD102: -
A103: =BALANCE_COMPROBACION!A103 -> 3.1 | B103: =BALANCE_COMPROBACION!B103 -> 1.1.4.01.01.02. | C103: =BALANCE_COMPROBACION!C103 -> Productos farmacéuticos y medicinales | D103: =BALANCE_COMPROBACION!D103 -> 6400 | E103: =BALANCE_COMPROBACION!E103 -> 0 | F103: =BALANCE_COMPROBACION!F103 -> 6400 | G103: =BALANCE_COMPROBACION!G103 -> 0 | H103: 15 | I103: 1 | J103: =IFERROR(IF(B103="GRAN TOTAL","N/A",IF(H103=22,"N/A",IF(B103=0,"N/A",VLOOKUP(B103,PLAN_CUENTAS!$J:$J,1,FALSE)))),"ERROR") -> 1.1.4.01.01.02. | O103: =IFERROR(IF(N103="","",VLOOKUP(N103,REGISTRO_RECIPROCAS!C:E,3,FALSE)),"") ->  | P103: =IFERROR(VLOOKUP(N103,REGISTRO_RECIPROCAS!C$2:D$501,2,FALSE),"") ->  | R103: =IFERROR(IF(Q103="","",VLOOKUP(Q103,REGISTRO_RECIPROCAS!A:B,2,FALSE)),"") ->  | S103: CORRECTO | T103: =IFERROR(IF(Q103=VLOOKUP(Q103,REGISTRO_RECIPROCAS!A:A,1,FALSE),"APLICA","NO APLICA"),"NO APLICA") -> NO APLICA | V103: =BALANCE_PERIODO_ANTERIOR!A103 -> 3.1 | W103: =BALANCE_PERIODO_ANTERIOR!B103 -> 1.1.4.01.01.01. | X103: =BALANCE_PERIODO_ANTERIOR!C103 -> Combustibles y lubricantes | Y103: =BALANCE_PERIODO_ANTERIOR!D103 -> 0 | Z103: =BALANCE_PERIODO_ANTERIOR!E103 -> 19372089.25 | AA103: =BALANCE_PERIODO_ANTERIOR!F103 -> 1687749.79 | AB103: =BALANCE_PERIODO_ANTERIOR!G103 -> 17684339.46 | AC103: 6400 | AD103: 6400 | AE103: 0 | AF103: 0 | AG103: 0 | AH103: =IFERROR(IF(VLOOKUP(B103,PLAN_CUENTAS!$J:$AC,20,0)="EXCEP",0,1),0) -> 1 | AI103: 1 | AJ103: 0 | AK103: =#REF! ->  | AL103: =#REF! ->  | AM103: =#REF! ->  | AN103: =#REF! ->  | AO103: =#REF! ->  | AP103: =#REF! ->  | AY103: - | AZ103: 0 | BA103: 0 | BB103: 0 | BC103: 0 | BD103: -
A104: =BALANCE_COMPROBACION!A104 -> 3.1 | B104: =BALANCE_COMPROBACION!B104 -> 1.1.4.01.01.02.0. | C104: =BALANCE_COMPROBACION!C104 -> Productos farmacéuticos y medicinales | D104: =BALANCE_COMPROBACION!D104 -> 6400 | E104: =BALANCE_COMPROBACION!E104 -> 0 | F104: =BALANCE_COMPROBACION!F104 -> 6400 | G104: =BALANCE_COMPROBACION!G104 -> 0 | H104: 17 | I104: 1 | J104: =IFERROR(IF(B104="GRAN TOTAL","N/A",IF(H104=22,"N/A",IF(B104=0,"N/A",VLOOKUP(B104,PLAN_CUENTAS!$J:$J,1,FALSE)))),"ERROR") -> 1.1.4.01.01.02.0. | O104: =IFERROR(IF(N104="","",VLOOKUP(N104,REGISTRO_RECIPROCAS!C:E,3,FALSE)),"") ->  | P104: =IFERROR(VLOOKUP(N104,REGISTRO_RECIPROCAS!C$2:D$501,2,FALSE),"") ->  | R104: =IFERROR(IF(Q104="","",VLOOKUP(Q104,REGISTRO_RECIPROCAS!A:B,2,FALSE)),"") ->  | S104: CORRECTO | T104: =IFERROR(IF(Q104=VLOOKUP(Q104,REGISTRO_RECIPROCAS!A:A,1,FALSE),"APLICA","NO APLICA"),"NO APLICA") -> NO APLICA | V104: =BALANCE_PERIODO_ANTERIOR!A104 -> 3.1 | W104: =BALANCE_PERIODO_ANTERIOR!B104 -> 1.1.4.01.01.01.0. | X104: =BALANCE_PERIODO_ANTERIOR!C104 -> Combustibles y lubricantes | Y104: =BALANCE_PERIODO_ANTERIOR!D104 -> 0 | Z104: =BALANCE_PERIODO_ANTERIOR!E104 -> 19372089.25 | AA104: =BALANCE_PERIODO_ANTERIOR!F104 -> 1687749.79 | AB104: =BALANCE_PERIODO_ANTERIOR!G104 -> 17684339.46 | AC104: 6400 | AD104: 6400 | AE104: 0 | AF104: 0 | AG104: 0 | AH104: =IFERROR(IF(VLOOKUP(B104,PLAN_CUENTAS!$J:$AC,20,0)="EXCEP",0,1),0) -> 1 | AI104: 1 | AJ104: 0 | AK104: =#REF! ->  | AL104: =#REF! ->  | AM104: =#REF! ->  | AN104: =#REF! ->  | AO104: =#REF! ->  | AP104: =#REF! ->  | AY104: - | AZ104: 0 | BA104: 0 | BB104: 0 | BC104: 0 | BD104: -
A105: =BALANCE_COMPROBACION!A105 -> 3.1 | B105: =BALANCE_COMPROBACION!B105 -> 1.1.4.01.01.02.0.99999 | C105: =BALANCE_COMPROBACION!C105 -> Productos farmacéuticos y medicinales | D105: =BALANCE_COMPROBACION!D105 -> 6400 | E105: =BALANCE_COMPROBACION!E105 -> 0 | F105: =BALANCE_COMPROBACION!F105 -> 6400 | G105: =BALANCE_COMPROBACION!G105 -> 0 | H105: 22 | I105: 1 | J105: =IFERROR(IF(B105="GRAN TOTAL","N/A",IF(H105=22,"N/A",IF(B105=0,"N/A",VLOOKUP(B105,PLAN_CUENTAS!$J:$J,1,FALSE)))),"ERROR") -> N/A | M105: RECIPROCA | N105: 99999 | O105: =IFERROR(IF(N105="","",VLOOKUP(N105,REGISTRO_RECIPROCAS!C:E,3,FALSE)),"") -> N/A | P105: =IFERROR(VLOOKUP(N105,REGISTRO_RECIPROCAS!C$2:D$501,2,FALSE),"") -> NO APLICA | Q105: 1.1.4.01.01.02.0. | R105: =IFERROR(IF(Q105="","",VLOOKUP(Q105,REGISTRO_RECIPROCAS!A:B,2,FALSE)),"") ->  | S105: ERROR | T105: =IFERROR(IF(Q105=VLOOKUP(Q105,REGISTRO_RECIPROCAS!A:A,1,FALSE),"APLICA","NO APLICA"),"NO APLICA") -> NO APLICA | V105: =BALANCE_PERIODO_ANTERIOR!A105 -> 3.1 | W105: =BALANCE_PERIODO_ANTERIOR!B105 -> 1.1.4.01.01.01.0.99999 | X105: =BALANCE_PERIODO_ANTERIOR!C105 -> Combustibles y lubricantes | Y105: =BALANCE_PERIODO_ANTERIOR!D105 -> 0 | Z105: =BALANCE_PERIODO_ANTERIOR!E105 -> 19372089.25 | AA105: =BALANCE_PERIODO_ANTERIOR!F105 -> 1687749.79 | AB105: =BALANCE_PERIODO_ANTERIOR!G105 -> 17684339.46 | AC105: 6400 | AD105: 6400 | AE105: 0 | AF105: 0 | AG105: 0 | AH105: =IFERROR(IF(VLOOKUP(B105,PLAN_CUENTAS!$J:$AC,20,0)="EXCEP",0,1),0) -> 0 | AI105: 1 | AJ105: 0 | AK105: =#REF! ->  | AL105: =#REF! ->  | AM105: =#REF! ->  | AN105: =#REF! ->  | AO105: =#REF! ->  | AP105: =#REF! ->  | AQ105: 6400 | AR105: 0 | AS105: 6400 | AT105: 0 | AU105: 0 | AV105: 0 | AW105: 0 | AX105: 0 | AY105: - | AZ105: 0 | BA105: 0 | BB105: 0 | BC105: 0 | BD105: -
A106: =BALANCE_COMPROBACION!A106 -> 3.1 | B106: =BALANCE_COMPROBACION!B106 -> 1.1.4.01.01.04. | C106: =BALANCE_COMPROBACION!C106 -> Tintas, pinturas y diluyentes | D106: =BALANCE_COMPROBACION!D106 -> 2775593.63 | E106: =BALANCE_COMPROBACION!E106 -> 227330.1 | F106: =BALANCE_COMPROBACION!F106 -> 95370.1 | G106: =BALANCE_COMPROBACION!G106 -> 2907553.63 | H106: 15 | I106: 1 | J106: =IFERROR(IF(B106="GRAN TOTAL","N/A",IF(H106=22,"N/A",IF(B106=0,"N/A",VLOOKUP(B106,PLAN_CUENTAS!$J:$J,1,FALSE)))),"ERROR") -> 1.1.4.01.01.04. | O106: =IFERROR(IF(N106="","",VLOOKUP(N106,REGISTRO_RECIPROCAS!C:E,3,FALSE)),"") ->  | P106: =IFERROR(VLOOKUP(N106,REGISTRO_RECIPROCAS!C$2:D$501,2,FALSE),"") ->  | R106: =IFERROR(IF(Q106="","",VLOOKUP(Q106,REGISTRO_RECIPROCAS!A:B,2,FALSE)),"") ->  | S106: CORRECTO | T106: =IFERROR(IF(Q106=VLOOKUP(Q106,REGISTRO_RECIPROCAS!A:A,1,FALSE),"APLICA","NO APLICA"),"NO APLICA") -> NO APLICA | V106: =BALANCE_PERIODO_ANTERIOR!A106 -> 3.1 | W106: =BALANCE_PERIODO_ANTERIOR!B106 -> 1.1.4.01.01.02. | X106: =BALANCE_PERIODO_ANTERIOR!C106 -> Productos farmacéuticos y medicinales | Y106: =BALANCE_PERIODO_ANTERIOR!D106 -> 0 | Z106: =BALANCE_PERIODO_ANTERIOR!E106 -> 6400 | AA106: =BALANCE_PERIODO_ANTERIOR!F106 -> 0 | AB106: =BALANCE_PERIODO_ANTERIOR!G106 -> 6400 | AC106: 2775593.63 | AD106: 2775593.63 | AE106: 0 | AF106: 0 | AG106: 0 | AH106: =IFERROR(IF(VLOOKUP(B106,PLAN_CUENTAS!$J:$AC,20,0)="EXCEP",0,1),0) -> 1 | AI106: 1 | AJ106: 0 | AK106: =#REF! ->  | AL106: =#REF! ->  | AM106: =#REF! ->  | AN106: =#REF! ->  | AO106: =#REF! ->  | AP106: =#REF! ->  | AY106: - | AZ106: 2 | BA106: 1 | BB106: 1 | BC106: 2 | BD106: -
A107: =BALANCE_COMPROBACION!A107 -> 3.1 | B107: =BALANCE_COMPROBACION!B107 -> 1.1.4.01.01.04.0. | C107: =BALANCE_COMPROBACION!C107 -> Tintas, pinturas y diluyentes | D107: =BALANCE_COMPROBACION!D107 -> 2775593.63 | E107: =BALANCE_COMPROBACION!E107 -> 227330.1 | F107: =BALANCE_COMPROBACION!F107 -> 95370.1 | G107: =BALANCE_COMPROBACION!G107 -> 2907553.63 | H107: 17 | I107: 1 | J107: =IFERROR(IF(B107="GRAN TOTAL","N/A",IF(H107=22,"N/A",IF(B107=0,"N/A",VLOOKUP(B107,PLAN_CUENTAS!$J:$J,1,FALSE)))),"ERROR") -> 1.1.4.01.01.04.0. | O107: =IFERROR(IF(N107="","",VLOOKUP(N107,REGISTRO_RECIPROCAS!C:E,3,FALSE)),"") ->  | P107: =IFERROR(VLOOKUP(N107,REGISTRO_RECIPROCAS!C$2:D$501,2,FALSE),"") ->  | R107: =IFERROR(IF(Q107="","",VLOOKUP(Q107,REGISTRO_RECIPROCAS!A:B,2,FALSE)),"") ->  | S107: CORRECTO | T107: =IFERROR(IF(Q107=VLOOKUP(Q107,REGISTRO_RECIPROCAS!A:A,1,FALSE),"APLICA","NO APLICA"),"NO APLICA") -> NO APLICA | V107: =BALANCE_PERIODO_ANTERIOR!A107 -> 3.1 | W107: =BALANCE_PERIODO_ANTERIOR!B107 -> 1.1.4.01.01.02.0. | X107: =BALANCE_PERIODO_ANTERIOR!C107 -> Productos farmacéuticos y medicinales | Y107: =BALANCE_PERIODO_ANTERIOR!D107 -> 0 | Z107: =BALANCE_PERIODO_ANTERIOR!E107 -> 6400 | AA107: =BALANCE_PERIODO_ANTERIOR!F107 -> 0 | AB107: =BALANCE_PERIODO_ANTERIOR!G107 -> 6400 | AC107: 2775593.63 | AD107: 2775593.63 | AE107: 0 | AF107: 0 | AG107: 0 | AH107: =IFERROR(IF(VLOOKUP(B107,PLAN_CUENTAS!$J:$AC,20,0)="EXCEP",0,1),0) -> 1 | AI107: 1 | AJ107: 0 | AK107: =#REF! ->  | AL107: =#REF! ->  | AM107: =#REF! ->  | AN107: =#REF! ->  | AO107: =#REF! ->  | AP107: =#REF! ->  | AY107: - | AZ107: 2 | BA107: 1 | BB107: 1 | BC107: 2 | BD107: -
A108: =BALANCE_COMPROBACION!A108 -> 3.1 | B108: =BALANCE_COMPROBACION!B108 -> 1.1.4.01.01.04.0.99999 | C108: =BALANCE_COMPROBACION!C108 -> Tintas, pinturas y diluyentes | D108: =BALANCE_COMPROBACION!D108 -> 2775593.63 | E108: =BALANCE_COMPROBACION!E108 -> 227330.1 | F108: =BALANCE_COMPROBACION!F108 -> 95370.1 | G108: =BALANCE_COMPROBACION!G108 -> 2907553.63 | H108: 22 | I108: 1 | J108: =IFERROR(IF(B108="GRAN TOTAL","N/A",IF(H108=22,"N/A",IF(B108=0,"N/A",VLOOKUP(B108,PLAN_CUENTAS!$J:$J,1,FALSE)))),"ERROR") -> N/A | M108: RECIPROCA | N108: 99999 | O108: =IFERROR(IF(N108="","",VLOOKUP(N108,REGISTRO_RECIPROCAS!C:E,3,FALSE)),"") -> N/A | P108: =IFERROR(VLOOKUP(N108,REGISTRO_RECIPROCAS!C$2:D$501,2,FALSE),"") -> NO APLICA | Q108: 1.1.4.01.01.04.0. | R108: =IFERROR(IF(Q108="","",VLOOKUP(Q108,REGISTRO_RECIPROCAS!A:B,2,FALSE)),"") ->  | S108: ERROR | T108: =IFERROR(IF(Q108=VLOOKUP(Q108,REGISTRO_RECIPROCAS!A:A,1,FALSE),"APLICA","NO APLICA"),"NO APLICA") -> NO APLICA | V108: =BALANCE_PERIODO_ANTERIOR!A108 -> 3.1 | W108: =BALANCE_PERIODO_ANTERIOR!B108 -> 1.1.4.01.01.02.0.99999 | X108: =BALANCE_PERIODO_ANTERIOR!C108 -> Productos farmacéuticos y medicinales | Y108: =BALANCE_PERIODO_ANTERIOR!D108 -> 0 | Z108: =BALANCE_PERIODO_ANTERIOR!E108 -> 6400 | AA108: =BALANCE_PERIODO_ANTERIOR!F108 -> 0 | AB108: =BALANCE_PERIODO_ANTERIOR!G108 -> 6400 | AC108: 2775593.63 | AD108: 2775593.63 | AE108: 0 | AF108: 0 | AG108: 0 | AH108: =IFERROR(IF(VLOOKUP(B108,PLAN_CUENTAS!$J:$AC,20,0)="EXCEP",0,1),0) -> 0 | AI108: 1 | AJ108: 0 | AK108: =#REF! ->  | AL108: =#REF! ->  | AM108: =#REF! ->  | AN108: =#REF! ->  | AO108: =#REF! ->  | AP108: =#REF! ->  | AQ108: 2775593.63 | AR108: 227330.1 | AS108: 95370.1 | AT108: 2907553.63 | AU108: 0 | AV108: 0 | AW108: 0 | AX108: 0 | AY108: - | AZ108: 2 | BA108: 1 | BB108: 1 | BC108: 2 | BD108: -
A109: =BALANCE_COMPROBACION!A109 -> 3.1 | B109: =BALANCE_COMPROBACION!B109 -> 1.1.4.01.01.99. | C109: =BALANCE_COMPROBACION!C109 -> Otros productos químicos y conexos | D109: =BALANCE_COMPROBACION!D109 -> 814162 | E109: =BALANCE_COMPROBACION!E109 -> 0 | F109: =BALANCE_COMPROBACION!F109 -> 188054 | G109: =BALANCE_COMPROBACION!G109 -> 626108 | H109: 15 | I109: 1 | J109: =IFERROR(IF(B109="GRAN TOTAL","N/A",IF(H109=22,"N/A",IF(B109=0,"N/A",VLOOKUP(B109,PLAN_CUENTAS!$J:$J,1,FALSE)))),"ERROR") -> 1.1.4.01.01.99. | O109: =IFERROR(IF(N109="","",VLOOKUP(N109,REGISTRO_RECIPROCAS!C:E,3,FALSE)),"") ->  | P109: =IFERROR(VLOOKUP(N109,REGISTRO_RECIPROCAS!C$2:D$501,2,FALSE),"") ->  | R109: =IFERROR(IF(Q109="","",VLOOKUP(Q109,REGISTRO_RECIPROCAS!A:B,2,FALSE)),"") ->  | S109: CORRECTO | T109: =IFERROR(IF(Q109=VLOOKUP(Q109,REGISTRO_RECIPROCAS!A:A,1,FALSE),"APLICA","NO APLICA"),"NO APLICA") -> NO APLICA | V109: =BALANCE_PERIODO_ANTERIOR!A109 -> 3.1 | W109: =BALANCE_PERIODO_ANTERIOR!B109 -> 1.1.4.01.01.04. | X109: =BALANCE_PERIODO_ANTERIOR!C109 -> Tintas, pinturas y diluyentes | Y109: =BALANCE_PERIODO_ANTERIOR!D109 -> 1195234.05 | Z109: =BALANCE_PERIODO_ANTERIOR!E109 -> 2516936.53 | AA109: =BALANCE_PERIODO_ANTERIOR!F109 -> 936576.95 | AB109: =BALANCE_PERIODO_ANTERIOR!G109 -> 2775593.63 | AC109: 814162 | AD109: 814162 | AE109: 0 | AF109: 0 | AG109: 0 | AH109: =IFERROR(IF(VLOOKUP(B109,PLAN_CUENTAS!$J:$AC,20,0)="EXCEP",0,1),0) -> 1 | AI109: 1 | AJ109: 0 | AK109: =#REF! ->  | AL109: =#REF! ->  | AM109: =#REF! ->  | AN109: =#REF! ->  | AO109: =#REF! ->  | AP109: =#REF! ->  | AY109: - | AZ109: 0 | BA109: 0 | BB109: 0 | BC109: 0 | BD109: -
A110: =BALANCE_COMPROBACION!A110 -> 3.1 | B110: =BALANCE_COMPROBACION!B110 -> 1.1.4.01.01.99.0. | C110: =BALANCE_COMPROBACION!C110 -> Otros productos químicos y conexos | D110: =BALANCE_COMPROBACION!D110 -> 814162 | E110: =BALANCE_COMPROBACION!E110 -> 0 | F110: =BALANCE_COMPROBACION!F110 -> 188054 | G110: =BALANCE_COMPROBACION!G110 -> 626108 | H110: 17 | I110: 1 | J110: =IFERROR(IF(B110="GRAN TOTAL","N/A",IF(H110=22,"N/A",IF(B110=0,"N/A",VLOOKUP(B110,PLAN_CUENTAS!$J:$J,1,FALSE)))),"ERROR") -> 1.1.4.01.01.99.0. | O110: =IFERROR(IF(N110="","",VLOOKUP(N110,REGISTRO_RECIPROCAS!C:E,3,FALSE)),"") ->  | P110: =IFERROR(VLOOKUP(N110,REGISTRO_RECIPROCAS!C$2:D$501,2,FALSE),"") ->  | R110: =IFERROR(IF(Q110="","",VLOOKUP(Q110,REGISTRO_RECIPROCAS!A:B,2,FALSE)),"") ->  | S110: CORRECTO | T110: =IFERROR(IF(Q110=VLOOKUP(Q110,REGISTRO_RECIPROCAS!A:A,1,FALSE),"APLICA","NO APLICA"),"NO APLICA") -> NO APLICA | V110: =BALANCE_PERIODO_ANTERIOR!A110 -> 3.1 | W110: =BALANCE_PERIODO_ANTERIOR!B110 -> 1.1.4.01.01.04.0. | X110: =BALANCE_PERIODO_ANTERIOR!C110 -> Tintas, pinturas y diluyentes | Y110: =BALANCE_PERIODO_ANTERIOR!D110 -> 1195234.05 | Z110: =BALANCE_PERIODO_ANTERIOR!E110 -> 2516936.53 | AA110: =BALANCE_PERIODO_ANTERIOR!F110 -> 936576.95 | AB110: =BALANCE_PERIODO_ANTERIOR!G110 -> 2775593.63 | AC110: 814162 | AD110: 814162 | AE110: 0 | AF110: 0 | AG110: 0 | AH110: =IFERROR(IF(VLOOKUP(B110,PLAN_CUENTAS!$J:$AC,20,0)="EXCEP",0,1),0) -> 1 | AI110: 1 | AJ110: 0 | AK110: =#REF! ->  | AL110: =#REF! ->  | AM110: =#REF! ->  | AN110: =#REF! ->  | AO110: =#REF! ->  | AP110: =#REF! ->  | AY110: - | AZ110: 0 | BA110: 0 | BB110: 0 | BC110: 0 | BD110: -
A111: =BALANCE_COMPROBACION!A111 -> 3.1 | B111: =BALANCE_COMPROBACION!B111 -> 1.1.4.01.01.99.0.99999 | C111: =BALANCE_COMPROBACION!C111 -> Otros productos químicos y conexos | D111: =BALANCE_COMPROBACION!D111 -> 814162 | E111: =BALANCE_COMPROBACION!E111 -> 0 | F111: =BALANCE_COMPROBACION!F111 -> 188054 | G111: =BALANCE_COMPROBACION!G111 -> 626108 | H111: 22 | I111: 1 | J111: =IFERROR(IF(B111="GRAN TOTAL","N/A",IF(H111=22,"N/A",IF(B111=0,"N/A",VLOOKUP(B111,PLAN_CUENTAS!$J:$J,1,FALSE)))),"ERROR") -> N/A | M111: RECIPROCA | N111: 99999 | O111: =IFERROR(IF(N111="","",VLOOKUP(N111,REGISTRO_RECIPROCAS!C:E,3,FALSE)),"") -> N/A | P111: =IFERROR(VLOOKUP(N111,REGISTRO_RECIPROCAS!C$2:D$501,2,FALSE),"") -> NO APLICA | Q111: 1.1.4.01.01.99.0. | R111: =IFERROR(IF(Q111="","",VLOOKUP(Q111,REGISTRO_RECIPROCAS!A:B,2,FALSE)),"") ->  | S111: ERROR | T111: =IFERROR(IF(Q111=VLOOKUP(Q111,REGISTRO_RECIPROCAS!A:A,1,FALSE),"APLICA","NO APLICA"),"NO APLICA") -> NO APLICA | V111: =BALANCE_PERIODO_ANTERIOR!A111 -> 3.1 | W111: =BALANCE_PERIODO_ANTERIOR!B111 -> 1.1.4.01.01.04.0.99999 | X111: =BALANCE_PERIODO_ANTERIOR!C111 -> Tintas, pinturas y diluyentes | Y111: =BALANCE_PERIODO_ANTERIOR!D111 -> 1195234.05 | Z111: =BALANCE_PERIODO_ANTERIOR!E111 -> 2516936.53 | AA111: =BALANCE_PERIODO_ANTERIOR!F111 -> 936576.95 | AB111: =BALANCE_PERIODO_ANTERIOR!G111 -> 2775593.63 | AC111: 814162 | AD111: 814162 | AE111: 0 | AF111: 0 | AG111: 0 | AH111: =IFERROR(IF(VLOOKUP(B111,PLAN_CUENTAS!$J:$AC,20,0)="EXCEP",0,1),0) -> 0 | AI111: 1 | AJ111: 0 | AK111: =#REF! ->  | AL111: =#REF! ->  | AM111: =#REF! ->  | AN111: =#REF! ->  | AO111: =#REF! ->  | AP111: =#REF! ->  | AQ111: 814162 | AR111: 0 | AS111: 188054 | AT111: 626108 | AU111: 0 | AV111: 0 | AW111: 0 | AX111: 0 | AY111: - | AZ111: 0 | BA111: 0 | BB111: 0 | BC111: 0 | BD111: -
A112: =BALANCE_COMPROBACION!A112 -> 3.1 | B112: =BALANCE_COMPROBACION!B112 -> 1.1.4.01.03. | C112: =BALANCE_COMPROBACION!C112 -> Materiales y productos de uso en la construcción y mantenimiento | D112: =BALANCE_COMPROBACION!D112 -> 30127789.25 | E112: =BALANCE_COMPROBACION!E112 -> 2226700 | F112: =BALANCE_COMPROBACION!F112 -> 464966.64 | G112: =BALANCE_COMPROBACION!G112 -> 31889522.61 | H112: 12 | I112: 1 | J112: =IFERROR(IF(B112="GRAN TOTAL","N/A",IF(H112=22,"N/A",IF(B112=0,"N/A",VLOOKUP(B112,PLAN_CUENTAS!$J:$J,1,FALSE)))),"ERROR") -> 1.1.4.01.03. | O112: =IFERROR(IF(N112="","",VLOOKUP(N112,REGISTRO_RECIPROCAS!C:E,3,FALSE)),"") ->  | P112: =IFERROR(VLOOKUP(N112,REGISTRO_RECIPROCAS!C$2:D$501,2,FALSE),"") ->  | R112: =IFERROR(IF(Q112="","",VLOOKUP(Q112,REGISTRO_RECIPROCAS!A:B,2,FALSE)),"") ->  | S112: CORRECTO | T112: =IFERROR(IF(Q112=VLOOKUP(Q112,REGISTRO_RECIPROCAS!A:A,1,FALSE),"APLICA","NO APLICA"),"NO APLICA") -> NO APLICA | V112: =BALANCE_PERIODO_ANTERIOR!A112 -> 3.1 | W112: =BALANCE_PERIODO_ANTERIOR!B112 -> 1.1.4.01.01.99. | X112: =BALANCE_PERIODO_ANTERIOR!C112 -> Otros productos químicos y conexos | Y112: =BALANCE_PERIODO_ANTERIOR!D112 -> 0 | Z112: =BALANCE_PERIODO_ANTERIOR!E112 -> 1188156 | AA112: =BALANCE_PERIODO_ANTERIOR!F112 -> 373994 | AB112: =BALANCE_PERIODO_ANTERIOR!G112 -> 814162 | AC112: 30127789.25 | AD112: 30127789.25 | AE112: 0 | AF112: 0 | AG112: 0 | AH112: =IFERROR(IF(VLOOKUP(B112,PLAN_CUENTAS!$J:$AC,20,0)="EXCEP",0,1),0) -> 1 | AI112: 1 | AJ112: 0 | AK112: =#REF! ->  | AL112: =#REF! ->  | AM112: =#REF! ->  | AN112: =#REF! ->  | AO112: =#REF! ->  | AP112: =#REF! ->  | AY112: - | AZ112: 2 | BA112: 0 | BB112: 2 | BC112: 2 | BD112: -
A113: =BALANCE_COMPROBACION!A113 -> 3.1 | B113: =BALANCE_COMPROBACION!B113 -> 1.1.4.01.03.01. | C113: =BALANCE_COMPROBACION!C113 -> Materiales y productos metálicos | D113: =BALANCE_COMPROBACION!D113 -> 25238704.2 | E113: =BALANCE_COMPROBACION!E113 -> 0 | F113: =BALANCE_COMPROBACION!F113 -> 370635.64 | G113: =BALANCE_COMPROBACION!G113 -> 24868068.56 | H113: 15 | I113: 1 | J113: =IFERROR(IF(B113="GRAN TOTAL","N/A",IF(H113=22,"N/A",IF(B113=0,"N/A",VLOOKUP(B113,PLAN_CUENTAS!$J:$J,1,FALSE)))),"ERROR") -> 1.1.4.01.03.01. | O113: =IFERROR(IF(N113="","",VLOOKUP(N113,REGISTRO_RECIPROCAS!C:E,3,FALSE)),"") ->  | P113: =IFERROR(VLOOKUP(N113,REGISTRO_RECIPROCAS!C$2:D$501,2,FALSE),"") ->  | R113: =IFERROR(IF(Q113="","",VLOOKUP(Q113,REGISTRO_RECIPROCAS!A:B,2,FALSE)),"") ->  | S113: CORRECTO | T113: =IFERROR(IF(Q113=VLOOKUP(Q113,REGISTRO_RECIPROCAS!A:A,1,FALSE),"APLICA","NO APLICA"),"NO APLICA") -> NO APLICA | V113: =BALANCE_PERIODO_ANTERIOR!A113 -> 3.1 | W113: =BALANCE_PERIODO_ANTERIOR!B113 -> 1.1.4.01.01.99.0. | X113: =BALANCE_PERIODO_ANTERIOR!C113 -> Otros productos químicos y conexos | Y113: =BALANCE_PERIODO_ANTERIOR!D113 -> 0 | Z113: =BALANCE_PERIODO_ANTERIOR!E113 -> 1188156 | AA113: =BALANCE_PERIODO_ANTERIOR!F113 -> 373994 | AB113: =BALANCE_PERIODO_ANTERIOR!G113 -> 814162 | AC113: 25238704.2 | AD113: 25238704.2 | AE113: 0 | AF113: 0 | AG113: 0 | AH113: =IFERROR(IF(VLOOKUP(B113,PLAN_CUENTAS!$J:$AC,20,0)="EXCEP",0,1),0) -> 1 | AI113: 1 | AJ113: 0 | AK113: =#REF! ->  | AL113: =#REF! ->  | AM113: =#REF! ->  | AN113: =#REF! ->  | AO113: =#REF! ->  | AP113: =#REF! ->  | AY113: - | AZ113: 1 | BA113: 0 | BB113: 2 | BC113: 2 | BD113: -
A114: =BALANCE_COMPROBACION!A114 -> 3.1 | B114: =BALANCE_COMPROBACION!B114 -> 1.1.4.01.03.01.0. | C114: =BALANCE_COMPROBACION!C114 -> Materiales y productos metálicos | D114: =BALANCE_COMPROBACION!D114 -> 25238704.2 | E114: =BALANCE_COMPROBACION!E114 -> 0 | F114: =BALANCE_COMPROBACION!F114 -> 370635.64 | G114: =BALANCE_COMPROBACION!G114 -> 24868068.56 | H114: 17 | I114: 1 | J114: =IFERROR(IF(B114="GRAN TOTAL","N/A",IF(H114=22,"N/A",IF(B114=0,"N/A",VLOOKUP(B114,PLAN_CUENTAS!$J:$J,1,FALSE)))),"ERROR") -> 1.1.4.01.03.01.0. | O114: =IFERROR(IF(N114="","",VLOOKUP(N114,REGISTRO_RECIPROCAS!C:E,3,FALSE)),"") ->  | P114: =IFERROR(VLOOKUP(N114,REGISTRO_RECIPROCAS!C$2:D$501,2,FALSE),"") ->  | R114: =IFERROR(IF(Q114="","",VLOOKUP(Q114,REGISTRO_RECIPROCAS!A:B,2,FALSE)),"") ->  | S114: CORRECTO | T114: =IFERROR(IF(Q114=VLOOKUP(Q114,REGISTRO_RECIPROCAS!A:A,1,FALSE),"APLICA","NO APLICA"),"NO APLICA") -> NO APLICA | V114: =BALANCE_PERIODO_ANTERIOR!A114 -> 3.1 | W114: =BALANCE_PERIODO_ANTERIOR!B114 -> 1.1.4.01.01.99.0.99999 | X114: =BALANCE_PERIODO_ANTERIOR!C114 -> Otros productos químicos y conexos | Y114: =BALANCE_PERIODO_ANTERIOR!D114 -> 0 | Z114: =BALANCE_PERIODO_ANTERIOR!E114 -> 1188156 | AA114: =BALANCE_PERIODO_ANTERIOR!F114 -> 373994 | AB114: =BALANCE_PERIODO_ANTERIOR!G114 -> 814162 | AC114: 25238704.2 | AD114: 25238704.2 | AE114: 0 | AF114: 0 | AG114: 0 | AH114: =IFERROR(IF(VLOOKUP(B114,PLAN_CUENTAS!$J:$AC,20,0)="EXCEP",0,1),0) -> 1 | AI114: 1 | AJ114: 0 | AK114: =#REF! ->  | AL114: =#REF! ->  | AM114: =#REF! ->  | AN114: =#REF! ->  | AO114: =#REF! ->  | AP114: =#REF! ->  | AY114: - | AZ114: 1 | BA114: 0 | BB114: 2 | BC114: 2 | BD114: -
A115: =BALANCE_COMPROBACION!A115 -> 3.1 | B115: =BALANCE_COMPROBACION!B115 -> 1.1.4.01.03.01.0.99999 | C115: =BALANCE_COMPROBACION!C115 -> Materiales y productos metálicos | D115: =BALANCE_COMPROBACION!D115 -> 25238704.2 | E115: =BALANCE_COMPROBACION!E115 -> 0 | F115: =BALANCE_COMPROBACION!F115 -> 370635.64 | G115: =BALANCE_COMPROBACION!G115 -> 24868068.56 | H115: 22 | I115: 1 | J115: =IFERROR(IF(B115="GRAN TOTAL","N/A",IF(H115=22,"N/A",IF(B115=0,"N/A",VLOOKUP(B115,PLAN_CUENTAS!$J:$J,1,FALSE)))),"ERROR") -> N/A | M115: RECIPROCA | N115: 99999 | O115: =IFERROR(IF(N115="","",VLOOKUP(N115,REGISTRO_RECIPROCAS!C:E,3,FALSE)),"") -> N/A | P115: =IFERROR(VLOOKUP(N115,REGISTRO_RECIPROCAS!C$2:D$501,2,FALSE),"") -> NO APLICA | Q115: 1.1.4.01.03.01.0. | R115: =IFERROR(IF(Q115="","",VLOOKUP(Q115,REGISTRO_RECIPROCAS!A:B,2,FALSE)),"") ->  | S115: ERROR | T115: =IFERROR(IF(Q115=VLOOKUP(Q115,REGISTRO_RECIPROCAS!A:A,1,FALSE),"APLICA","NO APLICA"),"NO APLICA") -> NO APLICA | V115: =BALANCE_PERIODO_ANTERIOR!A115 -> 3.1 | W115: =BALANCE_PERIODO_ANTERIOR!B115 -> 1.1.4.01.03. | X115: =BALANCE_PERIODO_ANTERIOR!C115 -> Materiales y productos de uso en la construcción y mantenimiento | Y115: =BALANCE_PERIODO_ANTERIOR!D115 -> 0 | Z115: =BALANCE_PERIODO_ANTERIOR!E115 -> 34189729.49 | AA115: =BALANCE_PERIODO_ANTERIOR!F115 -> 4061940.24 | AB115: =BALANCE_PERIODO_ANTERIOR!G115 -> 30127789.25 | AC115: 25238704.2 | AD115: 25238704.2 | AE115: 0 | AF115: 0 | AG115: 0 | AH115: =IFERROR(IF(VLOOKUP(B115,PLAN_CUENTAS!$J:$AC,20,0)="EXCEP",0,1),0) -> 0 | AI115: 1 | AJ115: 0 | AK115: =#REF! ->  | AL115: =#REF! ->  | AM115: =#REF! ->  | AN115: =#REF! ->  | AO115: =#REF! ->  | AP115: =#REF! ->  | AQ115: 25238704.2 | AR115: 0 | AS115: 370635.64 | AT115: 24868068.56 | AU115: 0 | AV115: 0 | AW115: 0 | AX115: 0 | AY115: - | AZ115: 1 | BA115: 0 | BB115: 2 | BC115: 2 | BD115: -
A116: =BALANCE_COMPROBACION!A116 -> 3.1 | B116: =BALANCE_COMPROBACION!B116 -> 1.1.4.01.03.02. | C116: =BALANCE_COMPROBACION!C116 -> Materiales y productos minerales y asfálticos | D116: =BALANCE_COMPROBACION!D116 -> 3708677 | E116: =BALANCE_COMPROBACION!E116 -> 2226700 | F116: =BALANCE_COMPROBACION!F116 -> 0 | G116: =BALANCE_COMPROBACION!G116 -> 5935377 | H116: 15 | I116: 1 | J116: =IFERROR(IF(B116="GRAN TOTAL","N/A",IF(H116=22,"N/A",IF(B116=0,"N/A",VLOOKUP(B116,PLAN_CUENTAS!$J:$J,1,FALSE)))),"ERROR") -> 1.1.4.01.03.02. | O116: =IFERROR(IF(N116="","",VLOOKUP(N116,REGISTRO_RECIPROCAS!C:E,3,FALSE)),"") ->  | P116: =IFERROR(VLOOKUP(N116,REGISTRO_RECIPROCAS!C$2:D$501,2,FALSE),"") ->  | R116: =IFERROR(IF(Q116="","",VLOOKUP(Q116,REGISTRO_RECIPROCAS!A:B,2,FALSE)),"") ->  | S116: CORRECTO | T116: =IFERROR(IF(Q116=VLOOKUP(Q116,REGISTRO_RECIPROCAS!A:A,1,FALSE),"APLICA","NO APLICA"),"NO APLICA") -> NO APLICA | V116: =BALANCE_PERIODO_ANTERIOR!A116 -> 3.1 | W116: =BALANCE_PERIODO_ANTERIOR!B116 -> 1.1.4.01.03.01. | X116: =BALANCE_PERIODO_ANTERIOR!C116 -> Materiales y productos metálicos | Y116: =BALANCE_PERIODO_ANTERIOR!D116 -> 0 | Z116: =BALANCE_PERIODO_ANTERIOR!E116 -> 26486657.62 | AA116: =BALANCE_PERIODO_ANTERIOR!F116 -> 1247953.42 | AB116: =BALANCE_PERIODO_ANTERIOR!G116 -> 25238704.2 | AC116: 3708677 | AD116: 3708677 | AE116: 0 | AF116: 0 | AG116: 0 | AH116: =IFERROR(IF(VLOOKUP(B116,PLAN_CUENTAS!$J:$AC,20,0)="EXCEP",0,1),0) -> 1 | AI116: 1 | AJ116: 0 | AK116: =#REF! ->  | AL116: =#REF! ->  | AM116: =#REF! ->  | AN116: =#REF! ->  | AO116: =#REF! ->  | AP116: =#REF! ->  | AY116: - | AZ116: 0 | BA116: 0 | BB116: 0 | BC116: 0 | BD116: -
A117: =BALANCE_COMPROBACION!A117 -> 3.1 | B117: =BALANCE_COMPROBACION!B117 -> 1.1.4.01.03.02.0. | C117: =BALANCE_COMPROBACION!C117 -> Materiales y productos minerales y asfálticos | D117: =BALANCE_COMPROBACION!D117 -> 3708677 | E117: =BALANCE_COMPROBACION!E117 -> 2226700 | F117: =BALANCE_COMPROBACION!F117 -> 0 | G117: =BALANCE_COMPROBACION!G117 -> 5935377 | H117: 17 | I117: 1 | J117: =IFERROR(IF(B117="GRAN TOTAL","N/A",IF(H117=22,"N/A",IF(B117=0,"N/A",VLOOKUP(B117,PLAN_CUENTAS!$J:$J,1,FALSE)))),"ERROR") -> 1.1.4.01.03.02.0. | O117: =IFERROR(IF(N117="","",VLOOKUP(N117,REGISTRO_RECIPROCAS!C:E,3,FALSE)),"") ->  | P117: =IFERROR(VLOOKUP(N117,REGISTRO_RECIPROCAS!C$2:D$501,2,FALSE),"") ->  | R117: =IFERROR(IF(Q117="","",VLOOKUP(Q117,REGISTRO_RECIPROCAS!A:B,2,FALSE)),"") ->  | S117: CORRECTO | T117: =IFERROR(IF(Q117=VLOOKUP(Q117,REGISTRO_RECIPROCAS!A:A,1,FALSE),"APLICA","NO APLICA"),"NO APLICA") -> NO APLICA | V117: =BALANCE_PERIODO_ANTERIOR!A117 -> 3.1 | W117: =BALANCE_PERIODO_ANTERIOR!B117 -> 1.1.4.01.03.01.0. | X117: =BALANCE_PERIODO_ANTERIOR!C117 -> Materiales y productos metálicos | Y117: =BALANCE_PERIODO_ANTERIOR!D117 -> 0 | Z117: =BALANCE_PERIODO_ANTERIOR!E117 -> 26486657.62 | AA117: =BALANCE_PERIODO_ANTERIOR!F117 -> 1247953.42 | AB117: =BALANCE_PERIODO_ANTERIOR!G117 -> 25238704.2 | AC117: 3708677 | AD117: 3708677 | AE117: 0 | AF117: 0 | AG117: 0 | AH117: =IFERROR(IF(VLOOKUP(B117,PLAN_CUENTAS!$J:$AC,20,0)="EXCEP",0,1),0) -> 1 | AI117: 1 | AJ117: 0 | AK117: =#REF! ->  | AL117: =#REF! ->  | AM117: =#REF! ->  | AN117: =#REF! ->  | AO117: =#REF! ->  | AP117: =#REF! ->  | AY117: - | AZ117: 0 | BA117: 0 | BB117: 0 | BC117: 0 | BD117: -
A118: =BALANCE_COMPROBACION!A118 -> 3.1 | B118: =BALANCE_COMPROBACION!B118 -> 1.1.4.01.03.02.0.99999 | C118: =BALANCE_COMPROBACION!C118 -> Materiales y productos minerales y asfálticos | D118: =BALANCE_COMPROBACION!D118 -> 3708677 | E118: =BALANCE_COMPROBACION!E118 -> 2226700 | F118: =BALANCE_COMPROBACION!F118 -> 0 | G118: =BALANCE_COMPROBACION!G118 -> 5935377 | H118: 22 | I118: 1 | J118: =IFERROR(IF(B118="GRAN TOTAL","N/A",IF(H118=22,"N/A",IF(B118=0,"N/A",VLOOKUP(B118,PLAN_CUENTAS!$J:$J,1,FALSE)))),"ERROR") -> N/A | M118: RECIPROCA | N118: 99999 | O118: =IFERROR(IF(N118="","",VLOOKUP(N118,REGISTRO_RECIPROCAS!C:E,3,FALSE)),"") -> N/A | P118: =IFERROR(VLOOKUP(N118,REGISTRO_RECIPROCAS!C$2:D$501,2,FALSE),"") -> NO APLICA | Q118: 1.1.4.01.03.02.0. | R118: =IFERROR(IF(Q118="","",VLOOKUP(Q118,REGISTRO_RECIPROCAS!A:B,2,FALSE)),"") ->  | S118: ERROR | T118: =IFERROR(IF(Q118=VLOOKUP(Q118,REGISTRO_RECIPROCAS!A:A,1,FALSE),"APLICA","NO APLICA"),"NO APLICA") -> NO APLICA | V118: =BALANCE_PERIODO_ANTERIOR!A118 -> 3.1 | W118: =BALANCE_PERIODO_ANTERIOR!B118 -> 1.1.4.01.03.01.0.99999 | X118: =BALANCE_PERIODO_ANTERIOR!C118 -> Materiales y productos metálicos | Y118: =BALANCE_PERIODO_ANTERIOR!D118 -> 0 | Z118: =BALANCE_PERIODO_ANTERIOR!E118 -> 26486657.62 | AA118: =BALANCE_PERIODO_ANTERIOR!F118 -> 1247953.42 | AB118: =BALANCE_PERIODO_ANTERIOR!G118 -> 25238704.2 | AC118: 3708677 | AD118: 3708677 | AE118: 0 | AF118: 0 | AG118: 0 | AH118: =IFERROR(IF(VLOOKUP(B118,PLAN_CUENTAS!$J:$AC,20,0)="EXCEP",0,1),0) -> 0 | AI118: 1 | AJ118: 0 | AK118: =#REF! ->  | AL118: =#REF! ->  | AM118: =#REF! ->  | AN118: =#REF! ->  | AO118: =#REF! ->  | AP118: =#REF! ->  | AQ118: 3708677 | AR118: 2226700 | AS118: 0 | AT118: 5935377 | AU118: 0 | AV118: 0 | AW118: 0 | AX118: 0 | AY118: - | AZ118: 0 | BA118: 0 | BB118: 0 | BC118: 0 | BD118: -
A119: =BALANCE_COMPROBACION!A119 -> 3.1 | B119: =BALANCE_COMPROBACION!B119 -> 1.1.4.01.03.03. | C119: =BALANCE_COMPROBACION!C119 -> Madera y sus derivados | D119: =BALANCE_COMPROBACION!D119 -> 896515 | E119: =BALANCE_COMPROBACION!E119 -> 0 | F119: =BALANCE_COMPROBACION!F119 -> 93960 | G119: =BALANCE_COMPROBACION!G119 -> 802555 | H119: 15 | I119: 1 | J119: =IFERROR(IF(B119="GRAN TOTAL","N/A",IF(H119=22,"N/A",IF(B119=0,"N/A",VLOOKUP(B119,PLAN_CUENTAS!$J:$J,1,FALSE)))),"ERROR") -> 1.1.4.01.03.03. | O119: =IFERROR(IF(N119="","",VLOOKUP(N119,REGISTRO_RECIPROCAS!C:E,3,FALSE)),"") ->  | P119: =IFERROR(VLOOKUP(N119,REGISTRO_RECIPROCAS!C$2:D$501,2,FALSE),"") ->  | R119: =IFERROR(IF(Q119="","",VLOOKUP(Q119,REGISTRO_RECIPROCAS!A:B,2,FALSE)),"") ->  | S119: CORRECTO | T119: =IFERROR(IF(Q119=VLOOKUP(Q119,REGISTRO_RECIPROCAS!A:A,1,FALSE),"APLICA","NO APLICA"),"NO APLICA") -> NO APLICA | V119: =BALANCE_PERIODO_ANTERIOR!A119 -> 3.1 | W119: =BALANCE_PERIODO_ANTERIOR!B119 -> 1.1.4.01.03.02. | X119: =BALANCE_PERIODO_ANTERIOR!C119 -> Materiales y productos minerales y asfálticos | Y119: =BALANCE_PERIODO_ANTERIOR!D119 -> 0 | Z119: =BALANCE_PERIODO_ANTERIOR!E119 -> 5475775.81 | AA119: =BALANCE_PERIODO_ANTERIOR!F119 -> 1767098.81 | AB119: =BALANCE_PERIODO_ANTERIOR!G119 -> 3708677 | AC119: 896515 | AD119: 896515 | AE119: 0 | AF119: 0 | AG119: 0 | AH119: =IFERROR(IF(VLOOKUP(B119,PLAN_CUENTAS!$J:$AC,20,0)="EXCEP",0,1),0) -> 1 | AI119: 1 | AJ119: 0 | AK119: =#REF! ->  | AL119: =#REF! ->  | AM119: =#REF! ->  | AN119: =#REF! ->  | AO119: =#REF! ->  | AP119: =#REF! ->  | AY119: - | AZ119: 0 | BA119: 0 | BB119: 0 | BC119: 0 | BD119: -
A120: =BALANCE_COMPROBACION!A120 -> 3.1 | B120: =BALANCE_COMPROBACION!B120 -> 1.1.4.01.03.03.0. | C120: =BALANCE_COMPROBACION!C120 -> Madera y sus derivados | D120: =BALANCE_COMPROBACION!D120 -> 896515 | E120: =BALANCE_COMPROBACION!E120 -> 0 | F120: =BALANCE_COMPROBACION!F120 -> 93960 | G120: =BALANCE_COMPROBACION!G120 -> 802555 | H120: 17 | I120: 1 | J120: =IFERROR(IF(B120="GRAN TOTAL","N/A",IF(H120=22,"N/A",IF(B120=0,"N/A",VLOOKUP(B120,PLAN_CUENTAS!$J:$J,1,FALSE)))),"ERROR") -> 1.1.4.01.03.03.0. | O120: =IFERROR(IF(N120="","",VLOOKUP(N120,REGISTRO_RECIPROCAS!C:E,3,FALSE)),"") ->  | P120: =IFERROR(VLOOKUP(N120,REGISTRO_RECIPROCAS!C$2:D$501,2,FALSE),"") ->  | R120: =IFERROR(IF(Q120="","",VLOOKUP(Q120,REGISTRO_RECIPROCAS!A:B,2,FALSE)),"") ->  | S120: CORRECTO | T120: =IFERROR(IF(Q120=VLOOKUP(Q120,REGISTRO_RECIPROCAS!A:A,1,FALSE),"APLICA","NO APLICA"),"NO APLICA") -> NO APLICA | V120: =BALANCE_PERIODO_ANTERIOR!A120 -> 3.1 | W120: =BALANCE_PERIODO_ANTERIOR!B120 -> 1.1.4.01.03.02.0. | X120: =BALANCE_PERIODO_ANTERIOR!C120 -> Materiales y productos minerales y asfálticos | Y120: =BALANCE_PERIODO_ANTERIOR!D120 -> 0 | Z120: =BALANCE_PERIODO_ANTERIOR!E120 -> 5475775.81 | AA120: =BALANCE_PERIODO_ANTERIOR!F120 -> 1767098.81 | AB120: =BALANCE_PERIODO_ANTERIOR!G120 -> 3708677 | AC120: 896515 | AD120: 896515 | AE120: 0 | AF120: 0 | AG120: 0 | AH120: =IFERROR(IF(VLOOKUP(B120,PLAN_CUENTAS!$J:$AC,20,0)="EXCEP",0,1),0) -> 1 | AI120: 1 | AJ120: 0 | AK120: =#REF! ->  | AL120: =#REF! ->  | AM120: =#REF! ->  | AN120: =#REF! ->  | AO120: =#REF! ->  | AP120: =#REF! ->  | AY120: - | AZ120: 0 | BA120: 0 | BB120: 0 | BC120: 0 | BD120: -
A121: =BALANCE_COMPROBACION!A121 -> 3.1 | B121: =BALANCE_COMPROBACION!B121 -> 1.1.4.01.03.03.0.99999 | C121: =BALANCE_COMPROBACION!C121 -> Madera y sus derivados | D121: =BALANCE_COMPROBACION!D121 -> 896515 | E121: =BALANCE_COMPROBACION!E121 -> 0 | F121: =BALANCE_COMPROBACION!F121 -> 93960 | G121: =BALANCE_COMPROBACION!G121 -> 802555 | H121: 22 | I121: 1 | J121: =IFERROR(IF(B121="GRAN TOTAL","N/A",IF(H121=22,"N/A",IF(B121=0,"N/A",VLOOKUP(B121,PLAN_CUENTAS!$J:$J,1,FALSE)))),"ERROR") -> N/A | M121: RECIPROCA | N121: 99999 | O121: =IFERROR(IF(N121="","",VLOOKUP(N121,REGISTRO_RECIPROCAS!C:E,3,FALSE)),"") -> N/A | P121: =IFERROR(VLOOKUP(N121,REGISTRO_RECIPROCAS!C$2:D$501,2,FALSE),"") -> NO APLICA | Q121: 1.1.4.01.03.03.0. | R121: =IFERROR(IF(Q121="","",VLOOKUP(Q121,REGISTRO_RECIPROCAS!A:B,2,FALSE)),"") ->  | S121: ERROR | T121: =IFERROR(IF(Q121=VLOOKUP(Q121,REGISTRO_RECIPROCAS!A:A,1,FALSE),"APLICA","NO APLICA"),"NO APLICA") -> NO APLICA | V121: =BALANCE_PERIODO_ANTERIOR!A121 -> 3.1 | W121: =BALANCE_PERIODO_ANTERIOR!B121 -> 1.1.4.01.03.02.0.99999 | X121: =BALANCE_PERIODO_ANTERIOR!C121 -> Materiales y productos minerales y asfálticos | Y121: =BALANCE_PERIODO_ANTERIOR!D121 -> 0 | Z121: =BALANCE_PERIODO_ANTERIOR!E121 -> 5475775.81 | AA121: =BALANCE_PERIODO_ANTERIOR!F121 -> 1767098.81 | AB121: =BALANCE_PERIODO_ANTERIOR!G121 -> 3708677 | AC121: 896515 | AD121: 896515 | AE121: 0 | AF121: 0 | AG121: 0 | AH121: =IFERROR(IF(VLOOKUP(B121,PLAN_CUENTAS!$J:$AC,20,0)="EXCEP",0,1),0) -> 0 | AI121: 1 | AJ121: 0 | AK121: =#REF! ->  | AL121: =#REF! ->  | AM121: =#REF! ->  | AN121: =#REF! ->  | AO121: =#REF! ->  | AP121: =#REF! ->  | AQ121: 896515 | AR121: 0 | AS121: 93960 | AT121: 802555 | AU121: 0 | AV121: 0 | AW121: 0 | AX121: 0 | AY121: - | AZ121: 0 | BA121: 0 | BB121: 0 | BC121: 0 | BD121: -
A122: =BALANCE_COMPROBACION!A122 -> 3.1 | B122: =BALANCE_COMPROBACION!B122 -> 1.1.4.01.03.04. | C122: =BALANCE_COMPROBACION!C122 -> Materiales y productos eléctricos, telefónicos y de cómputo | D122: =BALANCE_COMPROBACION!D122 -> 135171.56 | E122: =BALANCE_COMPROBACION!E122 -> 0 | F122: =BALANCE_COMPROBACION!F122 -> 371 | G122: =BALANCE_COMPROBACION!G122 -> 134800.56 | H122: 15 | I122: 1 | J122: =IFERROR(IF(B122="GRAN TOTAL","N/A",IF(H122=22,"N/A",IF(B122=0,"N/A",VLOOKUP(B122,PLAN_CUENTAS!$J:$J,1,FALSE)))),"ERROR") -> 1.1.4.01.03.04. | O122: =IFERROR(IF(N122="","",VLOOKUP(N122,REGISTRO_RECIPROCAS!C:E,3,FALSE)),"") ->  | P122: =IFERROR(VLOOKUP(N122,REGISTRO_RECIPROCAS!C$2:D$501,2,FALSE),"") ->  | R122: =IFERROR(IF(Q122="","",VLOOKUP(Q122,REGISTRO_RECIPROCAS!A:B,2,FALSE)),"") ->  | S122: CORRECTO | T122: =IFERROR(IF(Q122=VLOOKUP(Q122,REGISTRO_RECIPROCAS!A:A,1,FALSE),"APLICA","NO APLICA"),"NO APLICA") -> NO APLICA | V122: =BALANCE_PERIODO_ANTERIOR!A122 -> 3.1 | W122: =BALANCE_PERIODO_ANTERIOR!B122 -> 1.1.4.01.03.03. | X122: =BALANCE_PERIODO_ANTERIOR!C122 -> Madera y sus derivados | Y122: =BALANCE_PERIODO_ANTERIOR!D122 -> 0 | Z122: =BALANCE_PERIODO_ANTERIOR!E122 -> 1836820 | AA122: =BALANCE_PERIODO_ANTERIOR!F122 -> 940305 | AB122: =BALANCE_PERIODO_ANTERIOR!G122 -> 896515 | AC122: 135171.56 | AD122: 135171.56 | AE122: 0 | AF122: 0 | AG122: 0 | AH122: =IFERROR(IF(VLOOKUP(B122,PLAN_CUENTAS!$J:$AC,20,0)="EXCEP",0,1),0) -> 1 | AI122: 1 | AJ122: 0 | AK122: =#REF! ->  | AL122: =#REF! ->  | AM122: =#REF! ->  | AN122: =#REF! ->  | AO122: =#REF! ->  | AP122: =#REF! ->  | AY122: - | AZ122: 2 | BA122: 0 | BB122: 0 | BC122: 2 | BD122: -
A123: =BALANCE_COMPROBACION!A123 -> 3.1 | B123: =BALANCE_COMPROBACION!B123 -> 1.1.4.01.03.04.0. | C123: =BALANCE_COMPROBACION!C123 -> Materiales y productos eléctricos, telefónicos y de cómputo | D123: =BALANCE_COMPROBACION!D123 -> 135171.56 | E123: =BALANCE_COMPROBACION!E123 -> 0 | F123: =BALANCE_COMPROBACION!F123 -> 371 | G123: =BALANCE_COMPROBACION!G123 -> 134800.56 | H123: 17 | I123: 1 | J123: =IFERROR(IF(B123="GRAN TOTAL","N/A",IF(H123=22,"N/A",IF(B123=0,"N/A",VLOOKUP(B123,PLAN_CUENTAS!$J:$J,1,FALSE)))),"ERROR") -> 1.1.4.01.03.04.0. | O123: =IFERROR(IF(N123="","",VLOOKUP(N123,REGISTRO_RECIPROCAS!C:E,3,FALSE)),"") ->  | P123: =IFERROR(VLOOKUP(N123,REGISTRO_RECIPROCAS!C$2:D$501,2,FALSE),"") ->  | R123: =IFERROR(IF(Q123="","",VLOOKUP(Q123,REGISTRO_RECIPROCAS!A:B,2,FALSE)),"") ->  | S123: CORRECTO | T123: =IFERROR(IF(Q123=VLOOKUP(Q123,REGISTRO_RECIPROCAS!A:A,1,FALSE),"APLICA","NO APLICA"),"NO APLICA") -> NO APLICA | V123: =BALANCE_PERIODO_ANTERIOR!A123 -> 3.1 | W123: =BALANCE_PERIODO_ANTERIOR!B123 -> 1.1.4.01.03.03.0. | X123: =BALANCE_PERIODO_ANTERIOR!C123 -> Madera y sus derivados | Y123: =BALANCE_PERIODO_ANTERIOR!D123 -> 0 | Z123: =BALANCE_PERIODO_ANTERIOR!E123 -> 1836820 | AA123: =BALANCE_PERIODO_ANTERIOR!F123 -> 940305 | AB123: =BALANCE_PERIODO_ANTERIOR!G123 -> 896515 | AC123: 135171.56 | AD123: 135171.56 | AE123: 0 | AF123: 0 | AG123: 0 | AH123: =IFERROR(IF(VLOOKUP(B123,PLAN_CUENTAS!$J:$AC,20,0)="EXCEP",0,1),0) -> 1 | AI123: 1 | AJ123: 0 | AK123: =#REF! ->  | AL123: =#REF! ->  | AM123: =#REF! ->  | AN123: =#REF! ->  | AO123: =#REF! ->  | AP123: =#REF! ->  | AY123: - | AZ123: 2 | BA123: 0 | BB123: 0 | BC123: 2 | BD123: -
A124: =BALANCE_COMPROBACION!A124 -> 3.1 | B124: =BALANCE_COMPROBACION!B124 -> 1.1.4.01.03.04.0.99999 | C124: =BALANCE_COMPROBACION!C124 -> Materiales y productos eléctricos, telefónicos y de cómputo | D124: =BALANCE_COMPROBACION!D124 -> 135171.56 | E124: =BALANCE_COMPROBACION!E124 -> 0 | F124: =BALANCE_COMPROBACION!F124 -> 371 | G124: =BALANCE_COMPROBACION!G124 -> 134800.56 | H124: 22 | I124: 1 | J124: =IFERROR(IF(B124="GRAN TOTAL","N/A",IF(H124=22,"N/A",IF(B124=0,"N/A",VLOOKUP(B124,PLAN_CUENTAS!$J:$J,1,FALSE)))),"ERROR") -> N/A | M124: RECIPROCA | N124: 99999 | O124: =IFERROR(IF(N124="","",VLOOKUP(N124,REGISTRO_RECIPROCAS!C:E,3,FALSE)),"") -> N/A | P124: =IFERROR(VLOOKUP(N124,REGISTRO_RECIPROCAS!C$2:D$501,2,FALSE),"") -> NO APLICA | Q124: 1.1.4.01.03.04.0. | R124: =IFERROR(IF(Q124="","",VLOOKUP(Q124,REGISTRO_RECIPROCAS!A:B,2,FALSE)),"") ->  | S124: ERROR | T124: =IFERROR(IF(Q124=VLOOKUP(Q124,REGISTRO_RECIPROCAS!A:A,1,FALSE),"APLICA","NO APLICA"),"NO APLICA") -> NO APLICA | V124: =BALANCE_PERIODO_ANTERIOR!A124 -> 3.1 | W124: =BALANCE_PERIODO_ANTERIOR!B124 -> 1.1.4.01.03.03.0.99999 | X124: =BALANCE_PERIODO_ANTERIOR!C124 -> Madera y sus derivados | Y124: =BALANCE_PERIODO_ANTERIOR!D124 -> 0 | Z124: =BALANCE_PERIODO_ANTERIOR!E124 -> 1836820 | AA124: =BALANCE_PERIODO_ANTERIOR!F124 -> 940305 | AB124: =BALANCE_PERIODO_ANTERIOR!G124 -> 896515 | AC124: 135171.56 | AD124: 135171.56 | AE124: 0 | AF124: 0 | AG124: 0 | AH124: =IFERROR(IF(VLOOKUP(B124,PLAN_CUENTAS!$J:$AC,20,0)="EXCEP",0,1),0) -> 0 | AI124: 1 | AJ124: 0 | AK124: =#REF! ->  | AL124: =#REF! ->  | AM124: =#REF! ->  | AN124: =#REF! ->  | AO124: =#REF! ->  | AP124: =#REF! ->  | AQ124: 135171.56 | AR124: 0 | AS124: 371 | AT124: 134800.56 | AU124: 0 | AV124: 0 | AW124: 0 | AX124: 0 | AY124: - | AZ124: 2 | BA124: 0 | BB124: 0 | BC124: 2 | BD124: -
A125: =BALANCE_COMPROBACION!A125 -> 3.1 | B125: =BALANCE_COMPROBACION!B125 -> 1.1.4.01.03.06. | C125: =BALANCE_COMPROBACION!C125 -> Materiales y productos de plástico | D125: =BALANCE_COMPROBACION!D125 -> 148721.49 | E125: =BALANCE_COMPROBACION!E125 -> 0 | F125: =BALANCE_COMPROBACION!F125 -> 0 | G125: =BALANCE_COMPROBACION!G125 -> 148721.49 | H125: 15 | I125: 1 | J125: =IFERROR(IF(B125="GRAN TOTAL","N/A",IF(H125=22,"N/A",IF(B125=0,"N/A",VLOOKUP(B125,PLAN_CUENTAS!$J:$J,1,FALSE)))),"ERROR") -> 1.1.4.01.03.06. | O125: =IFERROR(IF(N125="","",VLOOKUP(N125,REGISTRO_RECIPROCAS!C:E,3,FALSE)),"") ->  | P125: =IFERROR(VLOOKUP(N125,REGISTRO_RECIPROCAS!C$2:D$501,2,FALSE),"") ->  | R125: =IFERROR(IF(Q125="","",VLOOKUP(Q125,REGISTRO_RECIPROCAS!A:B,2,FALSE)),"") ->  | S125: CORRECTO | T125: =IFERROR(IF(Q125=VLOOKUP(Q125,REGISTRO_RECIPROCAS!A:A,1,FALSE),"APLICA","NO APLICA"),"NO APLICA") -> NO APLICA | V125: =BALANCE_PERIODO_ANTERIOR!A125 -> 3.1 | W125: =BALANCE_PERIODO_ANTERIOR!B125 -> 1.1.4.01.03.04. | X125: =BALANCE_PERIODO_ANTERIOR!C125 -> Materiales y productos eléctricos, telefónicos y de cómputo | Y125: =BALANCE_PERIODO_ANTERIOR!D125 -> 0 | Z125: =BALANCE_PERIODO_ANTERIOR!E125 -> 204931.56 | AA125: =BALANCE_PERIODO_ANTERIOR!F125 -> 69760 | AB125: =BALANCE_PERIODO_ANTERIOR!G125 -> 135171.56 | AC125: 148721.49 | AD125: 148721.49 | AE125: 0 | AF125: 0 | AG125: 0 | AH125: =IFERROR(IF(VLOOKUP(B125,PLAN_CUENTAS!$J:$AC,20,0)="EXCEP",0,1),0) -> 1 | AI125: 1 | AJ125: 0 | AK125: =#REF! ->  | AL125: =#REF! ->  | AM125: =#REF! ->  | AN125: =#REF! ->  | AO125: =#REF! ->  | AP125: =#REF! ->  | AY125: - | AZ125: 2 | BA125: 0 | BB125: 0 | BC125: 2 | BD125: -
A126: =BALANCE_COMPROBACION!A126 -> 3.1 | B126: =BALANCE_COMPROBACION!B126 -> 1.1.4.01.03.06.0. | C126: =BALANCE_COMPROBACION!C126 -> Materiales y productos de plástico | D126: =BALANCE_COMPROBACION!D126 -> 148721.49 | E126: =BALANCE_COMPROBACION!E126 -> 0 | F126: =BALANCE_COMPROBACION!F126 -> 0 | G126: =BALANCE_COMPROBACION!G126 -> 148721.49 | H126: 17 | I126: 1 | J126: =IFERROR(IF(B126="GRAN TOTAL","N/A",IF(H126=22,"N/A",IF(B126=0,"N/A",VLOOKUP(B126,PLAN_CUENTAS!$J:$J,1,FALSE)))),"ERROR") -> 1.1.4.01.03.06.0. | O126: =IFERROR(IF(N126="","",VLOOKUP(N126,REGISTRO_RECIPROCAS!C:E,3,FALSE)),"") ->  | P126: =IFERROR(VLOOKUP(N126,REGISTRO_RECIPROCAS!C$2:D$501,2,FALSE),"") ->  | R126: =IFERROR(IF(Q126="","",VLOOKUP(Q126,REGISTRO_RECIPROCAS!A:B,2,FALSE)),"") ->  | S126: CORRECTO | T126: =IFERROR(IF(Q126=VLOOKUP(Q126,REGISTRO_RECIPROCAS!A:A,1,FALSE),"APLICA","NO APLICA"),"NO APLICA") -> NO APLICA | V126: =BALANCE_PERIODO_ANTERIOR!A126 -> 3.1 | W126: =BALANCE_PERIODO_ANTERIOR!B126 -> 1.1.4.01.03.04.0. | X126: =BALANCE_PERIODO_ANTERIOR!C126 -> Materiales y productos eléctricos, telefónicos y de cómputo | Y126: =BALANCE_PERIODO_ANTERIOR!D126 -> 0 | Z126: =BALANCE_PERIODO_ANTERIOR!E126 -> 204931.56 | AA126: =BALANCE_PERIODO_ANTERIOR!F126 -> 69760 | AB126: =BALANCE_PERIODO_ANTERIOR!G126 -> 135171.56 | AC126: 148721.49 | AD126: 148721.49 | AE126: 0 | AF126: 0 | AG126: 0 | AH126: =IFERROR(IF(VLOOKUP(B126,PLAN_CUENTAS!$J:$AC,20,0)="EXCEP",0,1),0) -> 1 | AI126: 1 | AJ126: 0 | AK126: =#REF! ->  | AL126: =#REF! ->  | AM126: =#REF! ->  | AN126: =#REF! ->  | AO126: =#REF! ->  | AP126: =#REF! ->  | AY126: - | AZ126: 2 | BA126: 0 | BB126: 0 | BC126: 2 | BD126: -
A127: =BALANCE_COMPROBACION!A127 -> 3.1 | B127: =BALANCE_COMPROBACION!B127 -> 1.1.4.01.03.06.0.99999 | C127: =BALANCE_COMPROBACION!C127 -> Materiales y productos de plástico | D127: =BALANCE_COMPROBACION!D127 -> 148721.49 | E127: =BALANCE_COMPROBACION!E127 -> 0 | F127: =BALANCE_COMPROBACION!F127 -> 0 | G127: =BALANCE_COMPROBACION!G127 -> 148721.49 | H127: 22 | I127: 1 | J127: =IFERROR(IF(B127="GRAN TOTAL","N/A",IF(H127=22,"N/A",IF(B127=0,"N/A",VLOOKUP(B127,PLAN_CUENTAS!$J:$J,1,FALSE)))),"ERROR") -> N/A | M127: RECIPROCA | N127: 99999 | O127: =IFERROR(IF(N127="","",VLOOKUP(N127,REGISTRO_RECIPROCAS!C:E,3,FALSE)),"") -> N/A | P127: =IFERROR(VLOOKUP(N127,REGISTRO_RECIPROCAS!C$2:D$501,2,FALSE),"") -> NO APLICA | Q127: 1.1.4.01.03.06.0. | R127: =IFERROR(IF(Q127="","",VLOOKUP(Q127,REGISTRO_RECIPROCAS!A:B,2,FALSE)),"") ->  | S127: ERROR | T127: =IFERROR(IF(Q127=VLOOKUP(Q127,REGISTRO_RECIPROCAS!A:A,1,FALSE),"APLICA","NO APLICA"),"NO APLICA") -> NO APLICA | V127: =BALANCE_PERIODO_ANTERIOR!A127 -> 3.1 | W127: =BALANCE_PERIODO_ANTERIOR!B127 -> 1.1.4.01.03.04.0.99999 | X127: =BALANCE_PERIODO_ANTERIOR!C127 -> Materiales y productos eléctricos, telefónicos y de cómputo | Y127: =BALANCE_PERIODO_ANTERIOR!D127 -> 0 | Z127: =BALANCE_PERIODO_ANTERIOR!E127 -> 204931.56 | AA127: =BALANCE_PERIODO_ANTERIOR!F127 -> 69760 | AB127: =BALANCE_PERIODO_ANTERIOR!G127 -> 135171.56 | AC127: 148721.49 | AD127: 148721.49 | AE127: 0 | AF127: 0 | AG127: 0 | AH127: =IFERROR(IF(VLOOKUP(B127,PLAN_CUENTAS!$J:$AC,20,0)="EXCEP",0,1),0) -> 0 | AI127: 1 | AJ127: 0 | AK127: =#REF! ->  | AL127: =#REF! ->  | AM127: =#REF! ->  | AN127: =#REF! ->  | AO127: =#REF! ->  | AP127: =#REF! ->  | AQ127: 148721.49 | AR127: 0 | AS127: 0 | AT127: 148721.49 | AU127: 0 | AV127: 0 | AW127: 0 | AX127: 0 | AY127: - | AZ127: 2 | BA127: 0 | BB127: 0 | BC127: 2 | BD127: -
A128: =BALANCE_COMPROBACION!A128 -> 3.1 | B128: =BALANCE_COMPROBACION!B128 -> 1.1.4.01.04. | C128: =BALANCE_COMPROBACION!C128 -> Herramientas, repuestos y accesorios | D128: =BALANCE_COMPROBACION!D128 -> 131278007.8 | E128: =BALANCE_COMPROBACION!E128 -> 0 | F128: =BALANCE_COMPROBACION!F128 -> 5687215.26 | G128: =BALANCE_COMPROBACION!G128 -> 125590792.5 | H128: 12 | I128: 1 | J128: =IFERROR(IF(B128="GRAN TOTAL","N/A",IF(H128=22,"N/A",IF(B128=0,"N/A",VLOOKUP(B128,PLAN_CUENTAS!$J:$J,1,FALSE)))),"ERROR") -> 1.1.4.01.04. | O128: =IFERROR(IF(N128="","",VLOOKUP(N128,REGISTRO_RECIPROCAS!C:E,3,FALSE)),"") ->  | P128: =IFERROR(VLOOKUP(N128,REGISTRO_RECIPROCAS!C$2:D$501,2,FALSE),"") ->  | R128: =IFERROR(IF(Q128="","",VLOOKUP(Q128,REGISTRO_RECIPROCAS!A:B,2,FALSE)),"") ->  | S128: CORRECTO | T128: =IFERROR(IF(Q128=VLOOKUP(Q128,REGISTRO_RECIPROCAS!A:A,1,FALSE),"APLICA","NO APLICA"),"NO APLICA") -> NO APLICA | V128: =BALANCE_PERIODO_ANTERIOR!A128 -> 3.1 | W128: =BALANCE_PERIODO_ANTERIOR!B128 -> 1.1.4.01.03.06. | X128: =BALANCE_PERIODO_ANTERIOR!C128 -> Materiales y productos de plástico | Y128: =BALANCE_PERIODO_ANTERIOR!D128 -> 0 | Z128: =BALANCE_PERIODO_ANTERIOR!E128 -> 185544.5 | AA128: =BALANCE_PERIODO_ANTERIOR!F128 -> 36823.01 | AB128: =BALANCE_PERIODO_ANTERIOR!G128 -> 148721.49 | AC128: 131278007.8 | AD128: 131278007.8 | AE128: 0 | AF128: 0 | AG128: 0 | AH128: =IFERROR(IF(VLOOKUP(B128,PLAN_CUENTAS!$J:$AC,20,0)="EXCEP",0,1),0) -> 1 | AI128: 1 | AJ128: 0 | AK128: =#REF! ->  | AL128: =#REF! ->  | AM128: =#REF! ->  | AN128: =#REF! ->  | AO128: =#REF! ->  | AP128: =#REF! ->  | AY128: - | AZ128: 2 | BA128: 0 | BB128: 2 | BC128: 2 | BD128: -
A129: =BALANCE_COMPROBACION!A129 -> 3.1 | B129: =BALANCE_COMPROBACION!B129 -> 1.1.4.01.04.01. | C129: =BALANCE_COMPROBACION!C129 -> Herramientas e instrumentos | D129: =BALANCE_COMPROBACION!D129 -> 1233641.5 | E129: =BALANCE_COMPROBACION!E129 -> 0 | F129: =BALANCE_COMPROBACION!F129 -> 25624.39 | G129: =BALANCE_COMPROBACION!G129 -> 1208017.11 | H129: 15 | I129: 1 | J129: =IFERROR(IF(B129="GRAN TOTAL","N/A",IF(H129=22,"N/A",IF(B129=0,"N/A",VLOOKUP(B129,PLAN_CUENTAS!$J:$J,1,FALSE)))),"ERROR") -> 1.1.4.01.04.01. | O129: =IFERROR(IF(N129="","",VLOOKUP(N129,REGISTRO_RECIPROCAS!C:E,3,FALSE)),"") ->  | P129: =IFERROR(VLOOKUP(N129,REGISTRO_RECIPROCAS!C$2:D$501,2,FALSE),"") ->  | R129: =IFERROR(IF(Q129="","",VLOOKUP(Q129,REGISTRO_RECIPROCAS!A:B,2,FALSE)),"") ->  | S129: CORRECTO | T129: =IFERROR(IF(Q129=VLOOKUP(Q129,REGISTRO_RECIPROCAS!A:A,1,FALSE),"APLICA","NO APLICA"),"NO APLICA") -> NO APLICA | V129: =BALANCE_PERIODO_ANTERIOR!A129 -> 3.1 | W129: =BALANCE_PERIODO_ANTERIOR!B129 -> 1.1.4.01.03.06.0. | X129: =BALANCE_PERIODO_ANTERIOR!C129 -> Materiales y productos de plástico | Y129: =BALANCE_PERIODO_ANTERIOR!D129 -> 0 | Z129: =BALANCE_PERIODO_ANTERIOR!E129 -> 185544.5 | AA129: =BALANCE_PERIODO_ANTERIOR!F129 -> 36823.01 | AB129: =BALANCE_PERIODO_ANTERIOR!G129 -> 148721.49 | AC129: 1233641.5 | AD129: 1233641.5 | AE129: 0 | AF129: 0 | AG129: 0 | AH129: =IFERROR(IF(VLOOKUP(B129,PLAN_CUENTAS!$J:$AC,20,0)="EXCEP",0,1),0) -> 1 | AI129: 1 | AJ129: 0 | AK129: =#REF! ->  | AL129: =#REF! ->  | AM129: =#REF! ->  | AN129: =#REF! ->  | AO129: =#REF! ->  | AP129: =#REF! ->  | AY129: - | AZ129: 1 | BA129: 0 | BB129: 2 | BC129: 2 | BD129: -
A130: =BALANCE_COMPROBACION!A130 -> 3.1 | B130: =BALANCE_COMPROBACION!B130 -> 1.1.4.01.04.01.0. | C130: =BALANCE_COMPROBACION!C130 -> Herramientas e instrumentos | D130: =BALANCE_COMPROBACION!D130 -> 1233641.5 | E130: =BALANCE_COMPROBACION!E130 -> 0 | F130: =BALANCE_COMPROBACION!F130 -> 25624.39 | G130: =BALANCE_COMPROBACION!G130 -> 1208017.11 | H130: 17 | I130: 1 | J130: =IFERROR(IF(B130="GRAN TOTAL","N/A",IF(H130=22,"N/A",IF(B130=0,"N/A",VLOOKUP(B130,PLAN_CUENTAS!$J:$J,1,FALSE)))),"ERROR") -> 1.1.4.01.04.01.0. | O130: =IFERROR(IF(N130="","",VLOOKUP(N130,REGISTRO_RECIPROCAS!C:E,3,FALSE)),"") ->  | P130: =IFERROR(VLOOKUP(N130,REGISTRO_RECIPROCAS!C$2:D$501,2,FALSE),"") ->  | R130: =IFERROR(IF(Q130="","",VLOOKUP(Q130,REGISTRO_RECIPROCAS!A:B,2,FALSE)),"") ->  | S130: CORRECTO | T130: =IFERROR(IF(Q130=VLOOKUP(Q130,REGISTRO_RECIPROCAS!A:A,1,FALSE),"APLICA","NO APLICA"),"NO APLICA") -> NO APLICA | V130: =BALANCE_PERIODO_ANTERIOR!A130 -> 3.1 | W130: =BALANCE_PERIODO_ANTERIOR!B130 -> 1.1.4.01.03.06.0.99999 | X130: =BALANCE_PERIODO_ANTERIOR!C130 -> Materiales y productos de plástico | Y130: =BALANCE_PERIODO_ANTERIOR!D130 -> 0 | Z130: =BALANCE_PERIODO_ANTERIOR!E130 -> 185544.5 | AA130: =BALANCE_PERIODO_ANTERIOR!F130 -> 36823.01 | AB130: =BALANCE_PERIODO_ANTERIOR!G130 -> 148721.49 | AC130: 1233641.5 | AD130: 1233641.5 | AE130: 0 | AF130: 0 | AG130: 0 | AH130: =IFERROR(IF(VLOOKUP(B130,PLAN_CUENTAS!$J:$AC,20,0)="EXCEP",0,1),0) -> 1 | AI130: 1 | AJ130: 0 | AK130: =#REF! ->  | AL130: =#REF! ->  | AM130: =#REF! ->  | AN130: =#REF! ->  | AO130: =#REF! ->  | AP130: =#REF! ->  | AY130: - | AZ130: 1 | BA130: 0 | BB130: 2 | BC130: 2 | BD130: -
A131: =BALANCE_COMPROBACION!A131 -> 3.1 | B131: =BALANCE_COMPROBACION!B131 -> 1.1.4.01.04.01.0.99999 | C131: =BALANCE_COMPROBACION!C131 -> Herramientas e instrumentos | D131: =BALANCE_COMPROBACION!D131 -> 1233641.5 | E131: =BALANCE_COMPROBACION!E131 -> 0 | F131: =BALANCE_COMPROBACION!F131 -> 25624.39 | G131: =BALANCE_COMPROBACION!G131 -> 1208017.11 | H131: 22 | I131: 1 | J131: =IFERROR(IF(B131="GRAN TOTAL","N/A",IF(H131=22,"N/A",IF(B131=0,"N/A",VLOOKUP(B131,PLAN_CUENTAS!$J:$J,1,FALSE)))),"ERROR") -> N/A | M131: RECIPROCA | N131: 99999 | O131: =IFERROR(IF(N131="","",VLOOKUP(N131,REGISTRO_RECIPROCAS!C:E,3,FALSE)),"") -> N/A | P131: =IFERROR(VLOOKUP(N131,REGISTRO_RECIPROCAS!C$2:D$501,2,FALSE),"") -> NO APLICA | Q131: 1.1.4.01.04.01.0. | R131: =IFERROR(IF(Q131="","",VLOOKUP(Q131,REGISTRO_RECIPROCAS!A:B,2,FALSE)),"") ->  | S131: ERROR | T131: =IFERROR(IF(Q131=VLOOKUP(Q131,REGISTRO_RECIPROCAS!A:A,1,FALSE),"APLICA","NO APLICA"),"NO APLICA") -> NO APLICA | V131: =BALANCE_PERIODO_ANTERIOR!A131 -> 3.1 | W131: =BALANCE_PERIODO_ANTERIOR!B131 -> 1.1.4.01.04. | X131: =BALANCE_PERIODO_ANTERIOR!C131 -> Herramientas, repuestos y accesorios | Y131: =BALANCE_PERIODO_ANTERIOR!D131 -> 0 | Z131: =BALANCE_PERIODO_ANTERIOR!E131 -> 134450344.9 | AA131: =BALANCE_PERIODO_ANTERIOR!F131 -> 3172337.09 | AB131: =BALANCE_PERIODO_ANTERIOR!G131 -> 131278007.8 | AC131: 1233641.5 | AD131: 1233641.5 | AE131: 0 | AF131: 0 | AG131: 0 | AH131: =IFERROR(IF(VLOOKUP(B131,PLAN_CUENTAS!$J:$AC,20,0)="EXCEP",0,1),0) -> 0 | AI131: 1 | AJ131: 0 | AK131: =#REF! ->  | AL131: =#REF! ->  | AM131: =#REF! ->  | AN131: =#REF! ->  | AO131: =#REF! ->  | AP131: =#REF! ->  | AQ131: 1233641.5 | AR131: 0 | AS131: 25624.39 | AT131: 1208017.11 | AU131: 0 | AV131: 0 | AW131: 0 | AX131: 0 | AY131: - | AZ131: 1 | BA131: 0 | BB131: 2 | BC131: 2 | BD131: -
A132: =BALANCE_COMPROBACION!A132 -> 3.1 | B132: =BALANCE_COMPROBACION!B132 -> 1.1.4.01.04.02. | C132: =BALANCE_COMPROBACION!C132 -> Repuestos y accesorios Nuevos | D132: =BALANCE_COMPROBACION!D132 -> 130044366.3 | E132: =BALANCE_COMPROBACION!E132 -> 0 | F132: =BALANCE_COMPROBACION!F132 -> 5661590.87 | G132: =BALANCE_COMPROBACION!G132 -> 124382775.4 | H132: 15 | I132: 1 | J132: =IFERROR(IF(B132="GRAN TOTAL","N/A",IF(H132=22,"N/A",IF(B132=0,"N/A",VLOOKUP(B132,PLAN_CUENTAS!$J:$J,1,FALSE)))),"ERROR") -> 1.1.4.01.04.02. | O132: =IFERROR(IF(N132="","",VLOOKUP(N132,REGISTRO_RECIPROCAS!C:E,3,FALSE)),"") ->  | P132: =IFERROR(VLOOKUP(N132,REGISTRO_RECIPROCAS!C$2:D$501,2,FALSE),"") ->  | R132: =IFERROR(IF(Q132="","",VLOOKUP(Q132,REGISTRO_RECIPROCAS!A:B,2,FALSE)),"") ->  | S132: CORRECTO | T132: =IFERROR(IF(Q132=VLOOKUP(Q132,REGISTRO_RECIPROCAS!A:A,1,FALSE),"APLICA","NO APLICA"),"NO APLICA") -> NO APLICA | V132: =BALANCE_PERIODO_ANTERIOR!A132 -> 3.1 | W132: =BALANCE_PERIODO_ANTERIOR!B132 -> 1.1.4.01.04.01. | X132: =BALANCE_PERIODO_ANTERIOR!C132 -> Herramientas e instrumentos | Y132: =BALANCE_PERIODO_ANTERIOR!D132 -> 0 | Z132: =BALANCE_PERIODO_ANTERIOR!E132 -> 1296662.5 | AA132: =BALANCE_PERIODO_ANTERIOR!F132 -> 63021 | AB132: =BALANCE_PERIODO_ANTERIOR!G132 -> 1233641.5 | AC132: 130044366.3 | AD132: 130044366.3 | AE132: 0 | AF132: 0 | AG132: 0 | AH132: =IFERROR(IF(VLOOKUP(B132,PLAN_CUENTAS!$J:$AC,20,0)="EXCEP",0,1),0) -> 1 | AI132: 1 | AJ132: 0 | AK132: =#REF! ->  | AL132: =#REF! ->  | AM132: =#REF! ->  | AN132: =#REF! ->  | AO132: =#REF! ->  | AP132: =#REF! ->  | AY132: - | AZ132: 2 | BA132: 0 | BB132: 2 | BC132: 2 | BD132: -
A133: =BALANCE_COMPROBACION!A133 -> 3.1 | B133: =BALANCE_COMPROBACION!B133 -> 1.1.4.01.04.02.0. | C133: =BALANCE_COMPROBACION!C133 -> Repuestos y accesorios Nuevos | D133: =BALANCE_COMPROBACION!D133 -> 130044366.3 | E133: =BALANCE_COMPROBACION!E133 -> 0 | F133: =BALANCE_COMPROBACION!F133 -> 5661590.87 | G133: =BALANCE_COMPROBACION!G133 -> 124382775.4 | H133: 17 | I133: 1 | J133: =IFERROR(IF(B133="GRAN TOTAL","N/A",IF(H133=22,"N/A",IF(B133=0,"N/A",VLOOKUP(B133,PLAN_CUENTAS!$J:$J,1,FALSE)))),"ERROR") -> 1.1.4.01.04.02.0. | O133: =IFERROR(IF(N133="","",VLOOKUP(N133,REGISTRO_RECIPROCAS!C:E,3,FALSE)),"") ->  | P133: =IFERROR(VLOOKUP(N133,REGISTRO_RECIPROCAS!C$2:D$501,2,FALSE),"") ->  | R133: =IFERROR(IF(Q133="","",VLOOKUP(Q133,REGISTRO_RECIPROCAS!A:B,2,FALSE)),"") ->  | S133: CORRECTO | T133: =IFERROR(IF(Q133=VLOOKUP(Q133,REGISTRO_RECIPROCAS!A:A,1,FALSE),"APLICA","NO APLICA"),"NO APLICA") -> NO APLICA | V133: =BALANCE_PERIODO_ANTERIOR!A133 -> 3.1 | W133: =BALANCE_PERIODO_ANTERIOR!B133 -> 1.1.4.01.04.01.0. | X133: =BALANCE_PERIODO_ANTERIOR!C133 -> Herramientas e instrumentos | Y133: =BALANCE_PERIODO_ANTERIOR!D133 -> 0 | Z133: =BALANCE_PERIODO_ANTERIOR!E133 -> 1296662.5 | AA133: =BALANCE_PERIODO_ANTERIOR!F133 -> 63021 | AB133: =BALANCE_PERIODO_ANTERIOR!G133 -> 1233641.5 | AC133: 130044366.3 | AD133: 130044366.3 | AE133: 0 | AF133: 0 | AG133: 0 | AH133: =IFERROR(IF(VLOOKUP(B133,PLAN_CUENTAS!$J:$AC,20,0)="EXCEP",0,1),0) -> 1 | AI133: 1 | AJ133: 0 | AK133: =#REF! ->  | AL133: =#REF! ->  | AM133: =#REF! ->  | AN133: =#REF! ->  | AO133: =#REF! ->  | AP133: =#REF! ->  | AY133: - | AZ133: 2 | BA133: 0 | BB133: 2 | BC133: 2 | BD133: -
A134: =BALANCE_COMPROBACION!A134 -> 3.1 | B134: =BALANCE_COMPROBACION!B134 -> 1.1.4.01.04.02.0.99999 | C134: =BALANCE_COMPROBACION!C134 -> Repuestos y accesorios Nuevos | D134: =BALANCE_COMPROBACION!D134 -> 130044366.3 | E134: =BALANCE_COMPROBACION!E134 -> 0 | F134: =BALANCE_COMPROBACION!F134 -> 5661590.87 | G134: =BALANCE_COMPROBACION!G134 -> 124382775.4 | H134: 22 | I134: 1 | J134: =IFERROR(IF(B134="GRAN TOTAL","N/A",IF(H134=22,"N/A",IF(B134=0,"N/A",VLOOKUP(B134,PLAN_CUENTAS!$J:$J,1,FALSE)))),"ERROR") -> N/A | M134: RECIPROCA | N134: 99999 | O134: =IFERROR(IF(N134="","",VLOOKUP(N134,REGISTRO_RECIPROCAS!C:E,3,FALSE)),"") -> N/A | P134: =IFERROR(VLOOKUP(N134,REGISTRO_RECIPROCAS!C$2:D$501,2,FALSE),"") -> NO APLICA | Q134: 1.1.4.01.04.02.0. | R134: =IFERROR(IF(Q134="","",VLOOKUP(Q134,REGISTRO_RECIPROCAS!A:B,2,FALSE)),"") ->  | S134: ERROR | T134: =IFERROR(IF(Q134=VLOOKUP(Q134,REGISTRO_RECIPROCAS!A:A,1,FALSE),"APLICA","NO APLICA"),"NO APLICA") -> NO APLICA | V134: =BALANCE_PERIODO_ANTERIOR!A134 -> 3.1 | W134: =BALANCE_PERIODO_ANTERIOR!B134 -> 1.1.4.01.04.01.0.99999 | X134: =BALANCE_PERIODO_ANTERIOR!C134 -> Herramientas e instrumentos | Y134: =BALANCE_PERIODO_ANTERIOR!D134 -> 0 | Z134: =BALANCE_PERIODO_ANTERIOR!E134 -> 1296662.5 | AA134: =BALANCE_PERIODO_ANTERIOR!F134 -> 63021 | AB134: =BALANCE_PERIODO_ANTERIOR!G134 -> 1233641.5 | AC134: 130044366.3 | AD134: 130044366.3 | AE134: 0 | AF134: 0 | AG134: 0 | AH134: =IFERROR(IF(VLOOKUP(B134,PLAN_CUENTAS!$J:$AC,20,0)="EXCEP",0,1),0) -> 0 | AI134: 1 | AJ134: 0 | AK134: =#REF! ->  | AL134: =#REF! ->  | AM134: =#REF! ->  | AN134: =#REF! ->  | AO134: =#REF! ->  | AP134: =#REF! ->  | AQ134: 130044366.3 | AR134: 0 | AS134: 5661590.87 | AT134: 124382775.4 | AU134: 0 | AV134: 0 | AW134: 0 | AX134: 0 | AY134: - | AZ134: 2 | BA134: 0 | BB134: 2 | BC134: 2 | BD134: -
A135: =BALANCE_COMPROBACION!A135 -> 3.1 | B135: =BALANCE_COMPROBACION!B135 -> 1.1.4.01.99. | C135: =BALANCE_COMPROBACION!C135 -> Útiles, materiales y suministros diversos | D135: =BALANCE_COMPROBACION!D135 -> 10300800.1 | E135: =BALANCE_COMPROBACION!E135 -> 1287464.82 | F135: =BALANCE_COMPROBACION!F135 -> 1455838.69 | G135: =BALANCE_COMPROBACION!G135 -> 10132426.23 | H135: 12 | I135: 1 | J135: =IFERROR(IF(B135="GRAN TOTAL","N/A",IF(H135=22,"N/A",IF(B135=0,"N/A",VLOOKUP(B135,PLAN_CUENTAS!$J:$J,1,FALSE)))),"ERROR") -> 1.1.4.01.99. | O135: =IFERROR(IF(N135="","",VLOOKUP(N135,REGISTRO_RECIPROCAS!C:E,3,FALSE)),"") ->  | P135: =IFERROR(VLOOKUP(N135,REGISTRO_RECIPROCAS!C$2:D$501,2,FALSE),"") ->  | R135: =IFERROR(IF(Q135="","",VLOOKUP(Q135,REGISTRO_RECIPROCAS!A:B,2,FALSE)),"") ->  | S135: CORRECTO | T135: =IFERROR(IF(Q135=VLOOKUP(Q135,REGISTRO_RECIPROCAS!A:A,1,FALSE),"APLICA","NO APLICA"),"NO APLICA") -> NO APLICA | V135: =BALANCE_PERIODO_ANTERIOR!A135 -> 3.1 | W135: =BALANCE_PERIODO_ANTERIOR!B135 -> 1.1.4.01.04.02. | X135: =BALANCE_PERIODO_ANTERIOR!C135 -> Repuestos y accesorios Nuevos | Y135: =BALANCE_PERIODO_ANTERIOR!D135 -> 0 | Z135: =BALANCE_PERIODO_ANTERIOR!E135 -> 133153682.4 | AA135: =BALANCE_PERIODO_ANTERIOR!F135 -> 3109316.09 | AB135: =BALANCE_PERIODO_ANTERIOR!G135 -> 130044366.3 | AC135: 10300800.1 | AD135: 10300800.1 | AE135: 0 | AF135: 0 | AG135: 0 | AH135: =IFERROR(IF(VLOOKUP(B135,PLAN_CUENTAS!$J:$AC,20,0)="EXCEP",0,1),0) -> 1 | AI135: 1 | AJ135: 0 | AK135: =#REF! ->  | AL135: =#REF! ->  | AM135: =#REF! ->  | AN135: =#REF! ->  | AO135: =#REF! ->  | AP135: =#REF! ->  | AY135: - | AZ135: 1 | BA135: 2 | BB135: 2 | BC135: 2 | BD135: -
A136: =BALANCE_COMPROBACION!A136 -> 3.1 | B136: =BALANCE_COMPROBACION!B136 -> 1.1.4.01.99.01. | C136: =BALANCE_COMPROBACION!C136 -> Útiles y materiales de oficina y cómputo | D136: =BALANCE_COMPROBACION!D136 -> 1943168.61 | E136: =BALANCE_COMPROBACION!E136 -> 0 | F136: =BALANCE_COMPROBACION!F136 -> 29128.19 | G136: =BALANCE_COMPROBACION!G136 -> 1914040.42 | H136: 15 | I136: 1 | J136: =IFERROR(IF(B136="GRAN TOTAL","N/A",IF(H136=22,"N/A",IF(B136=0,"N/A",VLOOKUP(B136,PLAN_CUENTAS!$J:$J,1,FALSE)))),"ERROR") -> 1.1.4.01.99.01. | O136: =IFERROR(IF(N136="","",VLOOKUP(N136,REGISTRO_RECIPROCAS!C:E,3,FALSE)),"") ->  | P136: =IFERROR(VLOOKUP(N136,REGISTRO_RECIPROCAS!C$2:D$501,2,FALSE),"") ->  | R136: =IFERROR(IF(Q136="","",VLOOKUP(Q136,REGISTRO_RECIPROCAS!A:B,2,FALSE)),"") ->  | S136: CORRECTO | T136: =IFERROR(IF(Q136=VLOOKUP(Q136,REGISTRO_RECIPROCAS!A:A,1,FALSE),"APLICA","NO APLICA"),"NO APLICA") -> NO APLICA | V136: =BALANCE_PERIODO_ANTERIOR!A136 -> 3.1 | W136: =BALANCE_PERIODO_ANTERIOR!B136 -> 1.1.4.01.04.02.0. | X136: =BALANCE_PERIODO_ANTERIOR!C136 -> Repuestos y accesorios Nuevos | Y136: =BALANCE_PERIODO_ANTERIOR!D136 -> 0 | Z136: =BALANCE_PERIODO_ANTERIOR!E136 -> 133153682.4 | AA136: =BALANCE_PERIODO_ANTERIOR!F136 -> 3109316.09 | AB136: =BALANCE_PERIODO_ANTERIOR!G136 -> 130044366.3 | AC136: 1943168.61 | AD136: 1943168.61 | AE136: 0 | AF136: 0 | AG136: 0 | AH136: =IFERROR(IF(VLOOKUP(B136,PLAN_CUENTAS!$J:$AC,20,0)="EXCEP",0,1),0) -> 1 | AI136: 1 | AJ136: 0 | AK136: =#REF! ->  | AL136: =#REF! ->  | AM136: =#REF! ->  | AN136: =#REF! ->  | AO136: =#REF! ->  | AP136: =#REF! ->  | AY136: - | AZ136: 2 | BA136: 0 | BB136: 2 | BC136: 2 | BD136: -
A137: =BALANCE_COMPROBACION!A137 -> 3.1 | B137: =BALANCE_COMPROBACION!B137 -> 1.1.4.01.99.01.0. | C137: =BALANCE_COMPROBACION!C137 -> Útiles y materiales de oficina y cómputo | D137: =BALANCE_COMPROBACION!D137 -> 1943168.61 | E137: =BALANCE_COMPROBACION!E137 -> 0 | F137: =BALANCE_COMPROBACION!F137 -> 29128.19 | G137: =BALANCE_COMPROBACION!G137 -> 1914040.42 | H137: 17 | I137: 1 | J137: =IFERROR(IF(B137="GRAN TOTAL","N/A",IF(H137=22,"N/A",IF(B137=0,"N/A",VLOOKUP(B137,PLAN_CUENTAS!$J:$J,1,FALSE)))),"ERROR") -> 1.1.4.01.99.01.0. | O137: =IFERROR(IF(N137="","",VLOOKUP(N137,REGISTRO_RECIPROCAS!C:E,3,FALSE)),"") ->  | P137: =IFERROR(VLOOKUP(N137,REGISTRO_RECIPROCAS!C$2:D$501,2,FALSE),"") ->  | R137: =IFERROR(IF(Q137="","",VLOOKUP(Q137,REGISTRO_RECIPROCAS!A:B,2,FALSE)),"") ->  | S137: CORRECTO | T137: =IFERROR(IF(Q137=VLOOKUP(Q137,REGISTRO_RECIPROCAS!A:A,1,FALSE),"APLICA","NO APLICA"),"NO APLICA") -> NO APLICA | V137: =BALANCE_PERIODO_ANTERIOR!A137 -> 3.1 | W137: =BALANCE_PERIODO_ANTERIOR!B137 -> 1.1.4.01.04.02.0.99999 | X137: =BALANCE_PERIODO_ANTERIOR!C137 -> Repuestos y accesorios Nuevos | Y137: =BALANCE_PERIODO_ANTERIOR!D137 -> 0 | Z137: =BALANCE_PERIODO_ANTERIOR!E137 -> 133153682.4 | AA137: =BALANCE_PERIODO_ANTERIOR!F137 -> 3109316.09 | AB137: =BALANCE_PERIODO_ANTERIOR!G137 -> 130044366.3 | AC137: 1943168.61 | AD137: 1943168.61 | AE137: 0 | AF137: 0 | AG137: 0 | AH137: =IFERROR(IF(VLOOKUP(B137,PLAN_CUENTAS!$J:$AC,20,0)="EXCEP",0,1),0) -> 1 | AI137: 1 | AJ137: 0 | AK137: =#REF! ->  | AL137: =#REF! ->  | AM137: =#REF! ->  | AN137: =#REF! ->  | AO137: =#REF! ->  | AP137: =#REF! ->  | AY137: - | AZ137: 2 | BA137: 0 | BB137: 2 | BC137: 2 | BD137: -
A138: =BALANCE_COMPROBACION!A138 -> 3.1 | B138: =BALANCE_COMPROBACION!B138 -> 1.1.4.01.99.01.0.99999 | C138: =BALANCE_COMPROBACION!C138 -> Útiles y materiales de oficina y cómputo | D138: =BALANCE_COMPROBACION!D138 -> 1943168.61 | E138: =BALANCE_COMPROBACION!E138 -> 0 | F138: =BALANCE_COMPROBACION!F138 -> 29128.19 | G138: =BALANCE_COMPROBACION!G138 -> 1914040.42 | H138: 22 | I138: 1 | J138: =IFERROR(IF(B138="GRAN TOTAL","N/A",IF(H138=22,"N/A",IF(B138=0,"N/A",VLOOKUP(B138,PLAN_CUENTAS!$J:$J,1,FALSE)))),"ERROR") -> N/A | M138: =IFERROR(IF(AND(B138<>"",J138="N/A",B138<>0),"RECIPROCA",""),"") -> RECIPROCA | N138: 99999 | O138: =IFERROR(IF(N138="","",VLOOKUP(N138,REGISTRO_RECIPROCAS!C:E,3,FALSE)),"") -> N/A | P138: =IFERROR(VLOOKUP(N138,REGISTRO_RECIPROCAS!C$2:D$501,2,FALSE),"") -> NO APLICA | Q138: 1.1.4.01.99.01.0. | R138: =IFERROR(IF(Q138="","",VLOOKUP(Q138,REGISTRO_RECIPROCAS!A:B,2,FALSE)),"") ->  | S138: ERROR | T138: =IFERROR(IF(Q138=VLOOKUP(Q138,REGISTRO_RECIPROCAS!A:A,1,FALSE),"APLICA","NO APLICA"),"NO APLICA") -> NO APLICA | V138: =BALANCE_PERIODO_ANTERIOR!A138 -> 3.1 | W138: =BALANCE_PERIODO_ANTERIOR!B138 -> 1.1.4.01.99. | X138: =BALANCE_PERIODO_ANTERIOR!C138 -> Útiles, materiales y suministros diversos | Y138: =BALANCE_PERIODO_ANTERIOR!D138 -> 3364439.5 | Z138: =BALANCE_PERIODO_ANTERIOR!E138 -> 10881475.09 | AA138: =BALANCE_PERIODO_ANTERIOR!F138 -> 3945114.49 | AB138: =BALANCE_PERIODO_ANTERIOR!G138 -> 10300800.1 | AC138: 1943168.61 | AD138: =IFERROR(IF(I138="4",0,IF(I138="5",0,VLOOKUP(B138,$W$10:$AB$10000,6,FALSE))),"CUENTA NUEVA") -> 1943168.61 | AE138: 0 | AF138: 0 | AG138: 0 | AH138: =IFERROR(IF(VLOOKUP(B138,PLAN_CUENTAS!$J:$AC,20,0)="EXCEP",0,1),0) -> 0 | AI138: 1 | AJ138: 0 | AK138: =#REF! ->  | AL138: =#REF! ->  | AM138: =#REF! ->  | AN138: =#REF! ->  | AO138: =#REF! ->  | AP138: =#REF! ->  | AQ138: 1943168.61 | AR138: 0 | AS138: 29128.19 | AT138: 1914040.42 | AU138: 0 | AV138: 0 | AW138: 0 | AX138: 0 | AY138: - | AZ138: 2 | BA138: 0 | BB138: 2 | BC138: 2 | BD138: -
